Workbook

Sheet W15_Bias
A1: -1 | B1: 1 | C1: 1 | D1: 4 | E1: -1 | F1: -4 | G1: 1 | H1: -2 | I1: 1 | J1: -1 | K1: 4 | L1: 4 | M1: 4 | N1: -1 | O1: -2 | P1: 1 | Q1: 1 | R1: -1 | S1: 1 | T1: 1 | U1: -2 | V1: -1 | W1: 1 | X1: 2 | Y1: -2 | Z1: -16 | AA1: -2 | AB1: 1 | AC1: 4 | AD1: -2 | AE1: 4 | AF1: 2 | AG1: -1 | AH1: -1 | AI1: -1 | AJ1: 1 | AK1: -2 | AL1: -4 | AM1: -1 | AN1: 1 | AO1: 1 | AP1: -4 | AQ1: -1 | AR1: -16 | AS1: 2 | AT1: -4 | AU1: -4 | AV1: -1 | AW1: -1 | AX1: -4 | AY1: 1 | AZ1: 1 | BA1: -1 | BB1: -2 | BC1: 4 | BD1: -1 | BE1: -1 | BF1: 1 | BG1: 1 | BH1: 1 | BI1: -2 | BJ1: 1 | BK1: 1 | BL1: -1 | BM1: 2 | BN1: -4 | BO1: -1 | BP1: 2 | BQ1: 1 | BR1: -1 | BS1: -1 | BT1: -4 | BU1: 1 | BV1: 4 | BW1: -1 | BX1: -1 | BY1: -1 | BZ1: -4 | CA1: 1 | CB1: -4 | CC1: 4 | CD1: -4 | CE1: 1 | CF1: 1 | CG1: -1 | CH1: -2 | CI1: 4 | CJ1: 1 | CK1: -2 | CL1: 2 | CM1: -4 | CN1: -2 | CO1: -1 | CP1: 4 | CQ1: -2 | CR1: 4 | CS1: 1 | CT1: -1 | CU1: -2 | CV1: 1 | CW1: 1 | CX1: 4 | CY1: 1 | CZ1: -1 | DA1: -2 | DB1: 2 | DC1: 1 | DD1: -4 | DE1: -16 | DF1: -1 | DG1: -1 | DH1: 2 | DI1: -1 | DJ1: 1 | DK1: 4 | DL1: -1 | DM1: 4 | DN1: -2 | DO1: -4 | DP1: 2 | DQ1: -4 | DR1: -2 | DS1: -4 | DT1: -2 | DU1: -1 | DV1: 4 | DW1: -4 | DX1: -4 | DY1: -4 | DZ1: 1 | EA1: 1 | EB1: -2 | EC1: 2 | ED1: -2 | EE1: -1 | EF1: 4 | EG1: -2 | EH1: -2 | EI1: -4 | EJ1: -2 | EK1: -16 | EL1: 1 | EM1: 1 | EN1: 2 | EO1: -2 | EP1: 4 | EQ1: -1 | ER1: -1 | ES1: -1 | ET1: -4 | EU1: -2 | EV1: 2 | EW1: 2 | EX1: 4 | EY1: 2 | EZ1: -2 | FA1: 4 | FB1: -2 | FC1: 1 | FD1: -1 | FE1: -4 | FF1: -2 | FG1: -1 | FH1: -1 | FI1: 1 | FJ1: 4 | FK1: -1 | FL1: -2 | FM1: 1 | FN1: 1 | FO1: -4 | FP1: -4 | FQ1: -2 | FR1: 1 | FS1: -1 | FT1: 1 | FU1: -2 | FV1: 1 | FW1: -4 | FX1: -2 | FY1: 4 | FZ1: 2 | GA1: -4 | GB1: 1 | GC1: 1 | GD1: -1 | GE1: -16 | GF1: -1 | GG1: 1 | GH1: 2 | GI1: -4 | GJ1: -4 | GK1: -4 | GL1: -4 | GM1: -1 | GN1: -2 | GO1: -4 | GP1: 2 | GQ1: -1 | GR1: 16 | GS1: -4 | GT1: 1 | GU1: -4 | GV1: -4 | GW1: 1 | GX1: 1 | GY1: -2 | GZ1: -2 | HA1: -4 | HB1: 2 | HC1: -4 | HD1: 16 | HE1: 4 | HF1: -1 | HG1: -1 | HH1: -2 | HI1: -2 | HJ1: -1 | HK1: -1 | HL1: 2 | HM1: -1 | HN1: -1 | HO1: 1 | HP1: 4 | HQ1: 4 | HR1: -1 | HS1: -1 | HT1: 2 | HU1: -1 | HV1: 1 | HW1: -1 | HX1: -4 | HY1: -1 | HZ1: -1 | IA1: 1 | IB1: 1 | IC1: -2 | ID1: -2 | IE1: -2 | IF1: 2 | IG1: -2 | IH1: 4 | II1: -1 | IJ1: -1 | IK1: -4 | IL1: -4 | IM1: 1 | IN1: 2 | IO1: 2 | IP1: -1 | IQ1: -1 | IR1: -4 | IS1: -1 | IT1: -2 | IU1: 1 | IV1: 1 | IW1: 1 | IX1: -4 | IY1: -2 | IZ1: -4 | JA1: -4 | JB1: 2 | JC1: 2 | JD1: 1 | JE1: -2 | JF1: -4 | JG1: -2 | JH1: -1 | JI1: 1 | JJ1: 1 | JK1: -2 | JL1: 2 | JM1: 2 | JN1: 1 | JO1: 16 | JP1: 1 | JQ1: 1 | JR1: 1 | JS1: 1 | JT1: 2 | JU1: -4 | JV1: 4 | JW1: 1 | JX1: -4 | JY1: -1 | JZ1: -1 | KA1: 4 | KB1: -4 | KC1: -1 | KD1: -1 | KE1: -4 | KF1: 4 | KG1: -4 | KH1: 4 | KI1: 4 | KJ1: -2 | KK1: -2 | KL1: 4 | KM1: -1 | KN1: -2 | KO1: 1 | KP1: -2 | KQ1: 16 | KR1: -2 | KS1: -4 | KT1: -2 | KU1: 1 | KV1: -1 | KW1: 1 | KX1: -1 | KY1: -4 | KZ1: 1 | LA1: -16 | LB1: 1 | LC1: -2 | LD1: 1 | LE1: -4 | LF1: -1 | LG1: 1 | LH1: 2 | LI1: -1 | LJ1: -1 | LK1: 1 | LL1: -2 | LM1: -1 | LN1: -4 | LO1: -2 | LP1: 1 | LQ1: 4 | LR1: -1 | LS1: -2 | LT1: -2 | LU1: 2 | LV1: 1 | LW1: 1 | LX1: 4 | LY1: -4 | LZ1: -2 | MA1: -4 | MB1: -2 | MC1: -1 | MD1: -2 | ME1: -1 | MF1: -2 | MG1: 1 | MH1: 4 | MI1: 1 | MJ1: 1 | MK1: 1 | ML1: -1 | MM1: -2 | MN1: -1 | MO1: 2 | MP1: 1 | MQ1: 1 | MR1: -1 | MS1: -1 | MT1: 1 | MU1: 1 | MV1: 1 | MW1: -2 | MX1: -4 | MY1: -1 | MZ1: 2 | NA1: 1 | NB1: -4 | NC1: -2 | ND1: -1 | NE1: -2 | NF1: 4 | NG1: -2 | NH1: -1 | NI1: -1 | NJ1: 1 | NK1: -4 | NL1: 1 | NM1: -1 | NN1: 1 | NO1: 4 | NP1: 1 | NQ1: 2 | NR1: -4 | NS1: 1 | NT1: 1 | NU1: 1 | NV1: -1 | NW1: 1 | NX1: 1 | NY1: 1 | NZ1: 1 | OA1: 1 | OB1: -1 | OC1: 1 | OD1: -2 | OE1: -1 | OF1: -2 | OG1: 2 | OH1: 2 | OI1: -1 | OJ1: 4 | OK1: -2 | OL1: -2 | OM1: 1 | ON1: -2 | OO1: -4 | OP1: -1 | OQ1: 1 | OR1: 4 | OS1: 1 | OT1: -1 | OU1: -2 | OV1: -2 | OW1: -2 | OX1: 1 | OY1: -1 | OZ1: -4 | PA1: -1 | PB1: 2 | PC1: -16 | PD1: -1 | PE1: 1 | PF1: -4 | PG1: 4 | PH1: 1 | PI1: 4 | PJ1: 1 | PK1: 4 | PL1: 1 | PM1: -1 | PN1: 1 | PO1: 2 | PP1: -1 | PQ1: -1 | PR1: 4 | PS1: -2 | PT1: 4 | PU1: 1 | PV1: 2 | PW1: -1 | PX1: 1 | PY1: -2 | PZ1: 2 | QA1: 1 | QB1: -4 | QC1: -2 | QD1: -2 | QE1: 4 | QF1: 2 | QG1: 2 | QH1: -1 | QI1: -2 | QJ1: -1 | QK1: -1 | QL1: -2 | QM1: -1 | QN1: -1 | QO1: -2 | QP1: -1 | QQ1: -1 | QR1: -1 | QS1: -1 | QT1: -1 | QU1: -1 | QV1: -4 | QW1: -2 | QX1: -1 | QY1: 1 | QZ1: -2 | RA1: -4 | RB1: -2 | RC1: -1 | RD1: -4 | RE1: -1 | RF1: -1 | RG1: -1 | RH1: -2 | RI1: -1 | RJ1: -4 | RK1: 1 | RL1: -2 | RM1: -2 | RN1: 4 | RO1: 1 | RP1: -2 | RQ1: -4 | RR1: 1 | RS1: -1 | RT1: -16 | RU1: -1 | RV1: -4 | RW1: 1 | RX1: -1 | RY1: -2 | RZ1: -2 | SA1: 1 | SB1: -4 | SC1: -1 | SD1: -2 | SE1: -2 | SF1: -2 | SG1: 2 | SH1: -2 | SI1: -1 | SJ1: -1 | SK1: 2 | SL1: 2 | SM1: -2 | SN1: -1 | SO1: -1 | SP1: 1 | SQ1: 1 | SR1: 4 | SS1: -4 | ST1: 1 | SU1: -16 | SV1: 1 | SW1: 1 | SX1: -4 | SY1: 1 | SZ1: -4 | TA1: -4 | TB1: -4 | TC1: -2 | TD1: -4 | TE1: -1 | TF1: -1 | TG1: -1 | TH1: 1 | TI1: 1 | TJ1: -1 | TK1: -4 | TL1: -2 | TM1: -4 | TN1: -4 | TO1: -1 | TP1: -4 | TQ1: -1 | TR1: -2 | TS1: -4 | TT1: 1 | TU1: -1 | TV1: 2 | TW1: -2 | TX1: 1 | TY1: 2 | TZ1: 2 | UA1: 1 | UB1: -2 | UC1: 1 | UD1: 1 | UE1: -1 | UF1: -2 | UG1: 2 | UH1: 1 | UI1: 4 | UJ1: 1 | UK1: 1 | UL1: -1 | UM1: -1 | UN1: -2 | UO1: -2 | UP1: 2 | UQ1: -1 | UR1: -2 | US1: -2 | UT1: -2 | UU1: -1 | UV1: -4 | UW1: 2 | UX1: 1 | UY1: -2 | UZ1: 4 | VA1: 1 | VB1: 4 | VC1: -1 | VD1: -1 | VE1: -1 | VF1: 2 | VG1: -1 | VH1: 2 | VI1: 4 | VJ1: -2 | VK1: -4 | VL1: -1 | VM1: 2 | VN1: 4 | VO1: 2 | VP1: -1 | VQ1: 1 | VR1: 1 | VS1: -2 | VT1: 2 | VU1: -1 | VV1: -1 | VW1: -1 | VX1: -1 | VY1: -1 | VZ1: -2 | WA1: 4 | WB1: -2 | WC1: -1 | WD1: -2 | WE1: 4 | WF1: 2 | WG1: -1 | WH1: 4 | WI1: -1 | WJ1: -1 | WK1: 4 | WL1: -1 | WM1: 2 | WN1: 2 | WO1: -2 | WP1: -1 | WQ1: -2 | WR1: -4 | WS1: -4 | WT1: 4 | WU1: -1 | WV1: 2 | WW1: -1 | WX1: -1 | WY1: -1 | WZ1: 2 | XA1: -2 | XB1: 2 | XC1: -1 | XD1: -1 | XE1: -1 | XF1: -2 | XG1: 2 | XH1: -2 | XI1: -2 | XJ1: -4 | XK1: -4 | XL1: -2 | XM1: 2 | XN1: -4 | XO1: -2 | XP1: -2 | XQ1: -2 | XR1: 2 | XS1: -1 | XT1: 4 | XU1: 1 | XV1: 4 | XW1: 1 | XX1: -2 | XY1: -16 | XZ1: 1 | YA1: 1 | YB1: -1 | YC1: -4 | YD1: -1 | YE1: -16 | YF1: 2 | YG1: -1 | YH1: 1 | YI1: -1 | YJ1: -4 | YK1: -4 | YL1: -4 | YM1: -2 | YN1: -2 | YO1: -1 | YP1: 1 | YQ1: -4 | YR1: 4 | YS1: -1 | YT1: -1 | YU1: -2 | YV1: 1 | YW1: -2 | YX1: -1 | YY1: 2 | YZ1: -4 | ZA1: -1 | ZB1: 2 | ZC1: -2 | ZD1: -4 | ZE1: 4 | ZF1: -2 | ZG1: -2 | ZH1: -4 | ZI1: 1 | ZJ1: 1 | ZK1: 1 | ZL1: -2 | ZM1: -4 | ZN1: 2 | ZO1: -16 | ZP1: 4 | ZQ1: 1 | ZR1: 4 | ZS1: -16 | ZT1: -2 | ZU1: -2 | ZV1: 4 | ZW1: 1 | ZX1: 4 | ZY1: -2 | ZZ1: -16 | AAA1: 4 | AAB1: -1 | AAC1: 1 | AAD1: -2 | AAE1: 2 | AAF1: 4 | AAG1: 1 | AAH1: -4 | AAI1: -1 | AAJ1: -16 | AAK1: -1 | AAL1: -1 | AAM1: 1 | AAN1: 4 | AAO1: -4 | AAP1: -2 | AAQ1: -2 | AAR1: 2 | AAS1: 1 | AAT1: -1 | AAU1: -4 | AAV1: -1 | AAW1: -4 | AAX1: -1 | AAY1: -4 | AAZ1: 2 | ABA1: 1 | ABB1: -4 | ABC1: -1 | ABD1: -2 | ABE1: 1 | ABF1: 1 | ABG1: 2 | ABH1: -2 | ABI1: 2 | ABJ1: 2 | ABK1: 4 | ABL1: -1 | ABM1: -4 | ABN1: -16 | ABO1: 2 | ABP1: 1 | ABQ1: 2 | ABR1: -4 | ABS1: -2 | ABT1: -1 | ABU1: 2 | ABV1: -1 | ABW1: -1 | ABX1: -2 | ABY1: 1 | ABZ1: -2 | ACA1: 2 | ACB1: -2 | ACC1: -1 | ACD1: 4 | ACE1: -4 | ACF1: 1 | ACG1: 2 | ACH1: -2 | ACI1: 4 | ACJ1: 1 | ACK1: -4 | ACL1: 4 | ACM1: -1 | ACN1: -1 | ACO1: -4 | ACP1: 1 | ACQ1: -1 | ACR1: -1 | ACS1: 2 | ACT1: -4 | ACU1: -2 | ACV1: -2 | ACW1: -1 | ACX1: -2 | ACY1: 1 | ACZ1: 4 | ADA1: -4 | ADB1: 1 | ADC1: 1 | ADD1: -4 | ADE1: -2 | ADF1: -16 | ADG1: -4 | ADH1: -1 | ADI1: -16 | ADJ1: 1 | ADK1: 2 | ADL1: -4 | ADM1: 2 | ADN1: -1 | ADO1: 1 | ADP1: 2 | ADQ1: 2 | ADR1: -1 | ADS1: 4 | ADT1: -2 | ADU1: 1 | ADV1: -4 | ADW1: -2 | ADX1: -2 | ADY1: -4 | ADZ1: 2 | AEA1: -1 | AEB1: -16 | AEC1: -1 | AED1: 2 | AEE1: 1 | AEF1: 16 | AEG1: -4 | AEH1: -4 | AEI1: -4 | AEJ1: 1 | AEK1: -1 | AEL1: 1 | AEM1: -1 | AEN1: 1 | AEO1: -2 | AEP1: -1 | AEQ1: -16 | AER1: 2 | AES1: -1 | AET1: -1 | AEU1: -1 | AEV1: -1 | AEW1: -1 | AEX1: 1 | AEY1: -2 | AEZ1: -4 | AFA1: 16 | AFB1: -1 | AFC1: 4 | AFD1: 1 | AFE1: -16 | AFF1: -16 | AFG1: -1 | AFH1: 1 | AFI1: -2 | AFJ1: -1 | AFK1: -1 | AFL1: -2 | AFM1: -1 | AFN1: -4 | AFO1: -2 | AFP1: 1 | AFQ1: -1 | AFR1: -4 | AFS1: 1 | AFT1: -1 | AFU1: -1 | AFV1: -4 | AFW1: 2 | AFX1: -2 | AFY1: -2 | AFZ1: 1 | AGA1: 4 | AGB1: -1 | AGC1: 2 | AGD1: -2 | AGE1: 1 | AGF1: 2 | AGG1: 1 | AGH1: -4 | AGI1: 1 | AGJ1: 1 | AGK1: 4 | AGL1: -2 | AGM1: -4 | AGN1: 1 | AGO1: -4 | AGP1: 1 | AGQ1: -2 | AGR1: -4 | AGS1: -16 | AGT1: -2 | AGU1: -1 | AGV1: 1 | AGW1: -2 | AGX1: -4 | AGY1: 1 | AGZ1: 1 | AHA1: 2 | AHB1: -2 | AHC1: -4 | AHD1: 4 | AHE1: -2 | AHF1: -2 | AHG1: -1 | AHH1: -1 | AHI1: 1 | AHJ1: 1 | AHK1: 1 | AHL1: 1 | AHM1: -2 | AHN1: -4 | AHO1: 4 | AHP1: 2 | AHQ1: -4 | AHR1: -1 | AHS1: 1 | AHT1: -2 | AHU1: 1 | AHV1: -1 | AHW1: -16 | AHX1: -2 | AHY1: -4 | AHZ1: 4 | AIA1: 1 | AIB1: 4 | AIC1: -2 | AID1: -1 | AIE1: -2 | AIF1: -4 | AIG1: 1 | AIH1: -2 | AII1: -4 | AIJ1: -1 | AIK1: -1 | AIL1: 1 | AIM1: 1 | AIN1: 4 | AIO1: -2 | AIP1: -4 | AIQ1: 1 | AIR1: -1 | AIS1: -2 | AIT1: 1 | AIU1: 1 | AIV1: -1 | AIW1: 2 | AIX1: 4 | AIY1: 2 | AIZ1: -1 | AJA1: 2 | AJB1: -1 | AJC1: -16 | AJD1: -2 | AJE1: -4 | AJF1: 1 | AJG1: -1 | AJH1: -1 | AJI1: 16 | AJJ1: -2 | AJK1: -16 | AJL1: -1 | AJM1: 1 | AJN1: -1 | AJO1: -1 | AJP1: 1 | AJQ1: -2 | AJR1: 1 | AJS1: -1 | AJT1: 1 | AJU1: -2 | AJV1: 1 | AJW1: 2 | AJX1: 2 | AJY1: 4 | AJZ1: 4 | AKA1: 1 | AKB1: -2 | AKC1: -1 | AKD1: -16 | AKE1: -2 | AKF1: 1 | AKG1: 1 | AKH1: 2 | AKI1: -1 | AKJ1: -1 | AKK1: -2 | AKL1: -4 | AKM1: 4 | AKN1: -4 | AKO1: -1 | AKP1: -1 | AKQ1: 2 | AKR1: 2 | AKS1: 2 | AKT1: 1 | AKU1: 4 | AKV1: -2 | AKW1: -2 | AKX1: -16 | AKY1: -1 | AKZ1: -1 | ALA1: -4 | ALB1: -4 | ALC1: -4 | ALD1: -2 | ALE1: -1 | ALF1: -4 | ALG1: -1 | ALH1: -1 | ALI1: 1 | ALJ1: -4 | ALK1: -4 | ALL1: -2 | ALM1: 1 | ALN1: 4 | ALO1: 1 | ALP1: -1 | ALQ1: 1 | ALR1: 2 | ALS1: 4 | ALT1: -16 | ALU1: -4 | ALV1: -1 | ALW1: -4 | ALX1: -1 | ALY1: -4 | ALZ1: 2 | AMA1: -2 | AMB1: 1 | AMC1: 1 | AMD1: -4 | AME1: -1 | AMF1: 1 | AMG1: 16 | AMH1: 1 | AMI1: -1 | AMJ1: -4
A2: -2 | B2: -2 | C2: 1 | D2: -2 | E2: -4 | F2: -1 | G2: 1 | H2: 1 | I2: -2 | J2: 1 | K2: -4 | L2: -2 | M2: -4 | N2: -1 | O2: -1 | P2: -4 | Q2: -2 | R2: -1 | S2: -1 | T2: -1 | U2: 2 | V2: -1 | W2: -1 | X2: -2 | Y2: -1 | Z2: 1 | AA2: 1 | AB2: -2 | AC2: -2 | AD2: -1 | AE2: 2 | AF2: 1 | AG2: 1 | AH2: -2 | AI2: 2 | AJ2: 2 | AK2: -4 | AL2: -1 | AM2: 4 | AN2: -1 | AO2: -4 | AP2: 4 | AQ2: -4 | AR2: -1 | AS2: -1 | AT2: -2 | AU2: -1 | AV2: -1 | AW2: -1 | AX2: -2 | AY2: -2 | AZ2: 1 | BA2: -1 | BB2: -1 | BC2: -1 | BD2: 1 | BE2: -1 | BF2: -2 | BG2: -2 | BH2: 2 | BI2: 1 | BJ2: -2 | BK2: -1 | BL2: -1 | BM2: -4 | BN2: -1 | BO2: 1 | BP2: -2 | BQ2: -1 | BR2: 2 | BS2: 2 | BT2: -1 | BU2: -4 | BV2: -1 | BW2: 1 | BX2: -4 | BY2: -1 | BZ2: -1 | CA2: -2 | CB2: -1 | CC2: -4 | CD2: 1 | CE2: -4 | CF2: -2 | CG2: -1 | CH2: -1 | CI2: -4 | CJ2: -2 | CK2: -2 | CL2: 1 | CM2: -2 | CN2: -1 | CO2: -1 | CP2: -1 | CQ2: -2 | CR2: -2 | CS2: -2 | CT2: -4 | CU2: -1 | CV2: -1 | CW2: -1 | CX2: 4 | CY2: -1 | CZ2: -1 | DA2: -4 | DB2: -1 | DC2: -1 | DD2: -1 | DE2: 2 | DF2: -4 | DG2: 2 | DH2: -1 | DI2: -2 | DJ2: 1 | DK2: -1 | DL2: -2 | DM2: -1 | DN2: -2 | DO2: -1 | DP2: 1 | DQ2: 4 | DR2: 1 | DS2: -1 | DT2: -1 | DU2: -2 | DV2: 1 | DW2: -2 | DX2: -4 | DY2: -1 | DZ2: -2 | EA2: -1 | EB2: 2 | EC2: -1 | ED2: -2 | EE2: 1 | EF2: -2 | EG2: 1 | EH2: 4 | EI2: -1 | EJ2: -1 | EK2: 4 | EL2: -1 | EM2: -1 | EN2: -2 | EO2: 1 | EP2: -2 | EQ2: -1 | ER2: -1 | ES2: 1 | ET2: 1 | EU2: -1 | EV2: 1 | EW2: -2 | EX2: -2 | EY2: 1 | EZ2: -1 | FA2: 1 | FB2: -2 | FC2: -1 | FD2: -1 | FE2: -2 | FF2: -4 | FG2: -1 | FH2: -4 | FI2: -4 | FJ2: 1 | FK2: 1 | FL2: 1 | FM2: -1 | FN2: -1 | FO2: -1 | FP2: 1 | FQ2: -1 | FR2: -1 | FS2: -2 | FT2: -2 | FU2: -1 | FV2: 1 | FW2: -1 | FX2: 1 | FY2: -2 | FZ2: -1 | GA2: 1 | GB2: -1 | GC2: -1 | GD2: -1 | GE2: -2 | GF2: -1 | GG2: -1 | GH2: -1 | GI2: -1 | GJ2: -1 | GK2: 1 | GL2: 1 | GM2: -1 | GN2: 2 | GO2: -4 | GP2: -4 | GQ2: 1 | GR2: 4 | GS2: -1 | GT2: -2 | GU2: -2 | GV2: 2 | GW2: -1 | GX2: -4 | GY2: -1 | GZ2: 2 | HA2: 4 | HB2: -1 | HC2: 1 | HD2: 1 | HE2: -2 | HF2: 1 | HG2: 1 | HH2: -1 | HI2: -2 | HJ2: -1 | HK2: -2 | HL2: 1 | HM2: -2 | HN2: -2 | HO2: -4 | HP2: -1 | HQ2: 4 | HR2: -4 | HS2: -1 | HT2: -2 | HU2: 1 | HV2: 1 | HW2: -1 | HX2: -1 | HY2: -4 | HZ2: -4 | IA2: -1 | IB2: -1 | IC2: -1 | ID2: -2 | IE2: -2 | IF2: -1 | IG2: -4 | IH2: -2 | II2: -1 | IJ2: 2 | IK2: -1 | IL2: -1 | IM2: -1 | IN2: 2 | IO2: -1 | IP2: -2 | IQ2: -2 | IR2: 4 | IS2: 1 | IT2: 4 | IU2: -1 | IV2: -4 | IW2: 1 | IX2: -1 | IY2: -1 | IZ2: -2 | JA2: 1 | JB2: -1 | JC2: -1 | JD2: -1 | JE2: -1 | JF2: 2 | JG2: 4 | JH2: 2 | JI2: -1 | JJ2: -2 | JK2: -2 | JL2: 1 | JM2: -1 | JN2: -1 | JO2: 1 | JP2: -2 | JQ2: -1 | JR2: 1 | JS2: -1 | JT2: 2 | JU2: -1 | JV2: 1 | JW2: 2 | JX2: -1 | JY2: -1 | JZ2: -1 | KA2: -1 | KB2: -4 | KC2: 2 | KD2: -4 | KE2: 1 | KF2: 1 | KG2: 1 | KH2: 1 | KI2: -2 | KJ2: 2 | KK2: -2 | KL2: -1 | KM2: 4 | KN2: 1 | KO2: -2 | KP2: 4 | KQ2: 4 | KR2: -2 | KS2: -2 | KT2: -1 | KU2: -4 | KV2: 1 | KW2: -1 | KX2: 1 | KY2: -2 | KZ2: -4 | LA2: 4 | LB2: -1 | LC2: -2 | LD2: -2 | LE2: -2 | LF2: -1 | LG2: -1 | LH2: -1 | LI2: -1 | LJ2: -1 | LK2: -1 | LL2: -1 | LM2: -1 | LN2: -1 | LO2: -1 | LP2: 1 | LQ2: -1 | LR2: -1 | LS2: 2 | LT2: -1 | LU2: -1 | LV2: -4 | LW2: -2 | LX2: 1 | LY2: -2 | LZ2: -2 | MA2: -1 | MB2: 2 | MC2: -1 | MD2: -2 | ME2: 1 | MF2: -1 | MG2: -4 | MH2: 1 | MI2: -1 | MJ2: -1 | MK2: -4 | ML2: -1 | MM2: 4 | MN2: 4 | MO2: 4 | MP2: 2 | MQ2: 1 | MR2: 1 | MS2: -2 | MT2: 1 | MU2: -2 | MV2: 1 | MW2: -2 | MX2: -1 | MY2: -1 | MZ2: 1 | NA2: -1 | NB2: 2 | NC2: 4 | ND2: 1 | NE2: -2 | NF2: 2 | NG2: 1 | NH2: 2 | NI2: 1 | NJ2: -1 | NK2: -2 | NL2: 1 | NM2: -1 | NN2: -4 | NO2: 4 | NP2: -1 | NQ2: -2 | NR2: -1 | NS2: -1 | NT2: -4 | NU2: -2 | NV2: -1 | NW2: 1 | NX2: 1 | NY2: -1 | NZ2: -1 | OA2: -2 | OB2: -1 | OC2: -1 | OD2: 1 | OE2: 1 | OF2: -1 | OG2: -1 | OH2: 2 | OI2: 1 | OJ2: -4 | OK2: -1 | OL2: -1 | OM2: -2 | ON2: 1 | OO2: 1 | OP2: 1 | OQ2: 1 | OR2: 2 | OS2: -2 | OT2: 1 | OU2: -2 | OV2: 4 | OW2: -1 | OX2: -2 | OY2: -4 | OZ2: -2 | PA2: -1 | PB2: 1 | PC2: -4 | PD2: -1 | PE2: -2 | PF2: 4 | PG2: -1 | PH2: -4 | PI2: -2 | PJ2: -4 | PK2: -1 | PL2: 1 | PM2: -2 | PN2: -2 | PO2: -2 | PP2: -2 | PQ2: 1 | PR2: -4 | PS2: 1 | PT2: 2 | PU2: -1 | PV2: -2 | PW2: -16 | PX2: -1 | PY2: 2 | PZ2: 1 | QA2: 1 | QB2: -1 | QC2: -2 | QD2: 2 | QE2: -4 | QF2: -4 | QG2: -1 | QH2: 1 | QI2: -1 | QJ2: -1 | QK2: -2 | QL2: 1 | QM2: -2 | QN2: -4 | QO2: -1 | QP2: -1 | QQ2: -2 | QR2: 1 | QS2: -4 | QT2: -4 | QU2: -2 | QV2: -2 | QW2: -1 | QX2: -2 | QY2: 1 | QZ2: 1 | RA2: 1 | RB2: -1 | RC2: 1 | RD2: -1 | RE2: -1 | RF2: -4 | RG2: 1 | RH2: -4 | RI2: 1 | RJ2: -4 | RK2: -2 | RL2: -1 | RM2: 1 | RN2: 1 | RO2: 1 | RP2: 1 | RQ2: -4 | RR2: 2 | RS2: -1 | RT2: 2 | RU2: 2 | RV2: -2 | RW2: 2 | RX2: -1 | RY2: 1 | RZ2: 1 | SA2: -2 | SB2: -2 | SC2: 1 | SD2: -1 | SE2: 1 | SF2: -1 | SG2: -4 | SH2: -1 | SI2: -4 | SJ2: 4 | SK2: -2 | SL2: 2 | SM2: -1 | SN2: -1 | SO2: -2 | SP2: -2 | SQ2: -4 | SR2: 4 | SS2: 1 | ST2: -4 | SU2: 1 | SV2: 1 | SW2: -2 | SX2: 1 | SY2: -4 | SZ2: 1 | TA2: -2 | TB2: -4 | TC2: -2 | TD2: -2 | TE2: 1 | TF2: 1 | TG2: 4 | TH2: 1 | TI2: -1 | TJ2: 4 | TK2: 4 | TL2: -2 | TM2: -2 | TN2: -1 | TO2: -2 | TP2: 2 | TQ2: -1 | TR2: -1 | TS2: -1 | TT2: -2 | TU2: -1 | TV2: 1 | TW2: -1 | TX2: -2 | TY2: -4 | TZ2: 2 | UA2: -1 | UB2: 1 | UC2: -1 | UD2: -1 | UE2: 1 | UF2: -2 | UG2: -1 | UH2: -4 | UI2: 2 | UJ2: 1 | UK2: 2 | UL2: -2 | UM2: -1 | UN2: -2 | UO2: 2 | UP2: -2 | UQ2: 1 | UR2: -2 | US2: -1 | UT2: 1 | UU2: -2 | UV2: 2 | UW2: 2 | UX2: 1 | UY2: -1 | UZ2: -16 | VA2: -1 | VB2: 1 | VC2: -2 | VD2: -1 | VE2: -2 | VF2: -1 | VG2: 1 | VH2: -4 | VI2: -1 | VJ2: 1 | VK2: -1 | VL2: -4 | VM2: 2 | VN2: 1 | VO2: 1 | VP2: 1 | VQ2: -1 | VR2: -4 | VS2: -1 | VT2: -2 | VU2: 1 | VV2: 1 | VW2: 1 | VX2: -2 | VY2: -1 | VZ2: -1 | WA2: -2 | WB2: 1 | WC2: -1 | WD2: -4 | WE2: -4 | WF2: -2 | WG2: -1 | WH2: 4 | WI2: -1 | WJ2: 1 | WK2: -1 | WL2: 1 | WM2: 1 | WN2: -1 | WO2: -1 | WP2: -1 | WQ2: -1 | WR2: -1 | WS2: 4 | WT2: -2 | WU2: 1 | WV2: -4 | WW2: 2 | WX2: 1 | WY2: -1 | WZ2: -4 | XA2: 1 | XB2: -2 | XC2: -1 | XD2: -4 | XE2: -4 | XF2: -2 | XG2: -1 | XH2: -1 | XI2: 4 | XJ2: -2 | XK2: -2 | XL2: 2 | XM2: 4 | XN2: -4 | XO2: -1 | XP2: -1 | XQ2: -2 | XR2: -1 | XS2: -2 | XT2: -4 | XU2: -2 | XV2: 4 | XW2: -2 | XX2: -2 | XY2: -1 | XZ2: -2 | YA2: 1 | YB2: -1 | YC2: -2 | YD2: -2 | YE2: 1 | YF2: -1 | YG2: -1 | YH2: -1 | YI2: -1 | YJ2: 4 | YK2: 1 | YL2: -2 | YM2: -2 | YN2: -1 | YO2: -2 | YP2: -4 | YQ2: -1 | YR2: -1 | YS2: -4 | YT2: -1 | YU2: -1 | YV2: 2 | YW2: 2 | YX2: -4 | YY2: 1 | YZ2: -2 | ZA2: -4 | ZB2: -1 | ZC2: -1 | ZD2: 1 | ZE2: -1 | ZF2: 4 | ZG2: 1 | ZH2: -1 | ZI2: -1 | ZJ2: 4 | ZK2: -2 | ZL2: 1 | ZM2: -1 | ZN2: 1 | ZO2: 1 | ZP2: -4 | ZQ2: -4 | ZR2: -4 | ZS2: 1 | ZT2: 1 | ZU2: -4 | ZV2: -2 | ZW2: -2 | ZX2: 1 | ZY2: 2 | ZZ2: 1 | AAA2: 2 | AAB2: -1 | AAC2: -4 | AAD2: 1 | AAE2: -4 | AAF2: -1 | AAG2: -1 | AAH2: -1 | AAI2: 1 | AAJ2: -2 | AAK2: -2 | AAL2: -1 | AAM2: -1 | AAN2: -2 | AAO2: -1 | AAP2: -2 | AAQ2: -2 | AAR2: 2 | AAS2: -4 | AAT2: 4 | AAU2: 1 | AAV2: -4 | AAW2: -4 | AAX2: -1 | AAY2: -1 | AAZ2: -2 | ABA2: -2 | ABB2: 2 | ABC2: 1 | ABD2: 2 | ABE2: -4 | ABF2: -1 | ABG2: 4 | ABH2: -2 | ABI2: -1 | ABJ2: -1 | ABK2: -4 | ABL2: 1 | ABM2: -2 | ABN2: -1 | ABO2: 1 | ABP2: -2 | ABQ2: -1 | ABR2: -4 | ABS2: -1 | ABT2: -1 | ABU2: -2 | ABV2: -4 | ABW2: -1 | ABX2: -2 | ABY2: -2 | ABZ2: -2 | ACA2: -4 | ACB2: 1 | ACC2: -4 | ACD2: -1 | ACE2: -4 | ACF2: 2 | ACG2: 2 | ACH2: 1 | ACI2: -1 | ACJ2: 1 | ACK2: 1 | ACL2: 1 | ACM2: 1 | ACN2: 1 | ACO2: 1 | ACP2: -2 | ACQ2: -1 | ACR2: -1 | ACS2: 2 | ACT2: -1 | ACU2: 1 | ACV2: 4 | ACW2: -1 | ACX2: 1 | ACY2: -4 | ACZ2: 1 | ADA2: -2 | ADB2: 1 | ADC2: -1 | ADD2: 1 | ADE2: -2 | ADF2: 1 | ADG2: -2 | ADH2: -4 | ADI2: -4 | ADJ2: 2 | ADK2: -1 | ADL2: 16 | ADM2: -1 | ADN2: 1 | ADO2: -1 | ADP2: -2 | ADQ2: 1 | ADR2: 1 | ADS2: -2 | ADT2: -1 | ADU2: -1 | ADV2: 2 | ADW2: -2 | ADX2: -1 | ADY2: -2 | ADZ2: -2 | AEA2: -2 | AEB2: -2 | AEC2: -4 | AED2: -2 | AEE2: -1 | AEF2: -1 | AEG2: -1 | AEH2: -1 | AEI2: -4 | AEJ2: -1 | AEK2: -1 | AEL2: 1 | AEM2: 1 | AEN2: 1 | AEO2: -1 | AEP2: -1 | AEQ2: 1 | AER2: -2 | AES2: -2 | AET2: -1 | AEU2: -4 | AEV2: -1 | AEW2: -2 | AEX2: -1 | AEY2: 1 | AEZ2: 1 | AFA2: -4 | AFB2: -1 | AFC2: -2 | AFD2: -1 | AFE2: 1 | AFF2: -1 | AFG2: 1 | AFH2: -2 | AFI2: -2 | AFJ2: 1 | AFK2: -2 | AFL2: 1 | AFM2: -1 | AFN2: -2 | AFO2: 1 | AFP2: -1 | AFQ2: -1 | AFR2: 4 | AFS2: -1 | AFT2: -4 | AFU2: -4 | AFV2: 1 | AFW2: -2 | AFX2: -4 | AFY2: -2 | AFZ2: 2 | AGA2: 1 | AGB2: -4 | AGC2: -2 | AGD2: 1 | AGE2: -4 | AGF2: -1 | AGG2: -4 | AGH2: -2 | AGI2: -4 | AGJ2: 2 | AGK2: -2 | AGL2: -4 | AGM2: 1 | AGN2: -1 | AGO2: -4 | AGP2: 1 | AGQ2: -1 | AGR2: -1 | AGS2: -1 | AGT2: 1 | AGU2: -2 | AGV2: 1 | AGW2: -4 | AGX2: -4 | AGY2: -1 | AGZ2: 1 | AHA2: -2 | AHB2: -2 | AHC2: -2 | AHD2: -16 | AHE2: -1 | AHF2: -1 | AHG2: 1 | AHH2: 1 | AHI2: 1 | AHJ2: 1 | AHK2: -1 | AHL2: -1 | AHM2: 1 | AHN2: -2 | AHO2: -2 | AHP2: -1 | AHQ2: 1 | AHR2: -1 | AHS2: -2 | AHT2: -4 | AHU2: 1 | AHV2: 1 | AHW2: 1 | AHX2: -2 | AHY2: -2 | AHZ2: 1 | AIA2: -4 | AIB2: 1 | AIC2: 2 | AID2: 1 | AIE2: 4 | AIF2: -1 | AIG2: 1 | AIH2: -1 | AII2: 2 | AIJ2: -1 | AIK2: -1 | AIL2: 1 | AIM2: -1 | AIN2: 1 | AIO2: -1 | AIP2: -4 | AIQ2: -1 | AIR2: 2 | AIS2: -2 | AIT2: 1 | AIU2: 2 | AIV2: 2 | AIW2: -2 | AIX2: 1 | AIY2: 1 | AIZ2: 1 | AJA2: -4 | AJB2: -4 | AJC2: -1 | AJD2: -1 | AJE2: 2 | AJF2: 2 | AJG2: -1 | AJH2: -4 | AJI2: -2 | AJJ2: 1 | AJK2: 2 | AJL2: -2 | AJM2: 1 | AJN2: -2 | AJO2: -2 | AJP2: -2 | AJQ2: -2 | AJR2: -2 | AJS2: 4 | AJT2: 2 | AJU2: 4 | AJV2: 2 | AJW2: -1 | AJX2: 1 | AJY2: -1 | AJZ2: -4 | AKA2: -1 | AKB2: 2 | AKC2: -4 | AKD2: -2 | AKE2: -1 | AKF2: -1 | AKG2: -4 | AKH2: 4 | AKI2: 4 | AKJ2: -2 | AKK2: 2 | AKL2: -1 | AKM2: -2 | AKN2: 1 | AKO2: 1 | AKP2: 1 | AKQ2: -2 | AKR2: 1 | AKS2: 2 | AKT2: -4 | AKU2: -1 | AKV2: -1 | AKW2: -1 | AKX2: 1 | AKY2: -1 | AKZ2: -4 | ALA2: -1 | ALB2: -4 | ALC2: 4 | ALD2: 1 | ALE2: 1 | ALF2: -4 | ALG2: 1 | ALH2: -1 | ALI2: 1 | ALJ2: -1 | ALK2: 1 | ALL2: -16 | ALM2: -1 | ALN2: -1 | ALO2: 1 | ALP2: -2 | ALQ2: -2 | ALR2: -2 | ALS2: -1 | ALT2: 1 | ALU2: -1 | ALV2: -2 | ALW2: 1 | ALX2: -4 | ALY2: 1 | ALZ2: -2 | AMA2: 2 | AMB2: -2 | AMC2: -1 | AMD2: 1 | AME2: 2 | AMF2: -4 | AMG2: -1 | AMH2: 2 | AMI2: -1 | AMJ2: 2
A3: 1 | B3: 1 | C3: 1 | D3: -1 | E3: 1 | F3: 1 | G3: 1 | H3: 1 | I3: -2 | J3: 2 | K3: -1 | L3: 1 | M3: 1 | N3: -1 | O3: 1 | P3: -1 | Q3: -1 | R3: -1 | S3: 1 | T3: -1 | U3: -2 | V3: -1 | W3: 1 | X3: -1 | Y3: -1 | Z3: -4 | AA3: -1 | AB3: -1 | AC3: 1 | AD3: 1 | AE3: -2 | AF3: -2 | AG3: 1 | AH3: 1 | AI3: -2 | AJ3: -2 | AK3: -1 | AL3: -2 | AM3: -2 | AN3: 1 | AO3: 2 | AP3: 1 | AQ3: -2 | AR3: -1 | AS3: 1 | AT3: -1 | AU3: 1 | AV3: -1 | AW3: 1 | AX3: 2 | AY3: 1 | AZ3: -1 | BA3: -1 | BB3: -1 | BC3: 1 | BD3: -2 | BE3: 1 | BF3: 1 | BG3: -1 | BH3: -1 | BI3: 2 | BJ3: -1 | BK3: -1 | BL3: 1 | BM3: 1 | BN3: -1 | BO3: -1 | BP3: -1 | BQ3: 1 | BR3: -1 | BS3: 2 | BT3: -2 | BU3: -1 | BV3: 2 | BW3: -1 | BX3: -1 | BY3: -1 | BZ3: -1 | CA3: -1 | CB3: -1 | CC3: -1 | CD3: -4 | CE3: 1 | CF3: -1 | CG3: 1 | CH3: 1 | CI3: -1 | CJ3: 1 | CK3: 1 | CL3: -1 | CM3: 1 | CN3: -1 | CO3: 2 | CP3: 1 | CQ3: 1 | CR3: -2 | CS3: -2 | CT3: 1 | CU3: 1 | CV3: -1 | CW3: -1 | CX3: 1 | CY3: 1 | CZ3: -1 | DA3: 2 | DB3: -1 | DC3: -1 | DD3: -1 | DE3: 1 | DF3: -2 | DG3: -1 | DH3: 1 | DI3: 1 | DJ3: -1 | DK3: -1 | DL3: -1 | DM3: -1 | DN3: 1 | DO3: -1 | DP3: -1 | DQ3: -1 | DR3: -1 | DS3: -1 | DT3: -2 | DU3: -1 | DV3: 1 | DW3: -1 | DX3: -1 | DY3: 1 | DZ3: 1 | EA3: -1 | EB3: -1 | EC3: 1 | ED3: -1 | EE3: -1 | EF3: -1 | EG3: -1 | EH3: -1 | EI3: 1 | EJ3: -1 | EK3: 1 | EL3: -1 | EM3: 1 | EN3: 1 | EO3: 1 | EP3: -1 | EQ3: -1 | ER3: -2 | ES3: -1 | ET3: -1 | EU3: -1 | EV3: -1 | EW3: 1 | EX3: -2 | EY3: -1 | EZ3: -1 | FA3: -2 | FB3: -1 | FC3: -2 | FD3: 1 | FE3: -1 | FF3: -1 | FG3: -1 | FH3: -2 | FI3: -2 | FJ3: 1 | FK3: 1 | FL3: -1 | FM3: 1 | FN3: 2 | FO3: -1 | FP3: -1 | FQ3: -1 | FR3: -1 | FS3: 1 | FT3: -1 | FU3: 1 | FV3: -1 | FW3: -1 | FX3: -1 | FY3: -1 | FZ3: -1 | GA3: 1 | GB3: 1 | GC3: -2 | GD3: 1 | GE3: -2 | GF3: -2 | GG3: -1 | GH3: -2 | GI3: 1 | GJ3: 1 | GK3: -4 | GL3: -1 | GM3: 1 | GN3: -1 | GO3: -2 | GP3: -1 | GQ3: -1 | GR3: -4 | GS3: 1 | GT3: 1 | GU3: -1 | GV3: -1 | GW3: -1 | GX3: 1 | GY3: -1 | GZ3: -1 | HA3: 2 | HB3: 1 | HC3: -1 | HD3: -1 | HE3: 1 | HF3: -2 | HG3: -2 | HH3: -1 | HI3: -1 | HJ3: -1 | HK3: 1 | HL3: 1 | HM3: -1 | HN3: -1 | HO3: -1 | HP3: 1 | HQ3: -1 | HR3: 1 | HS3: 1 | HT3: -1 | HU3: -1 | HV3: -2 | HW3: -1 | HX3: -1 | HY3: -1 | HZ3: 1 | IA3: 1 | IB3: -1 | IC3: 1 | ID3: 1 | IE3: 1 | IF3: -1 | IG3: -1 | IH3: -1 | II3: -1 | IJ3: -1 | IK3: -1 | IL3: -1 | IM3: 1 | IN3: -1 | IO3: 1 | IP3: -1 | IQ3: 1 | IR3: -2 | IS3: -2 | IT3: 1 | IU3: 1 | IV3: -1 | IW3: -1 | IX3: 1 | IY3: 1 | IZ3: 1 | JA3: -1 | JB3: 1 | JC3: -1 | JD3: -1 | JE3: -1 | JF3: 1 | JG3: 1 | JH3: -1 | JI3: -2 | JJ3: -1 | JK3: -1 | JL3: -1 | JM3: -2 | JN3: -2 | JO3: -1 | JP3: -1 | JQ3: 1 | JR3: -1 | JS3: 2 | JT3: -1 | JU3: 1 | JV3: -1 | JW3: -1 | JX3: 1 | JY3: 1 | JZ3: -1 | KA3: -1 | KB3: 1 | KC3: -4 | KD3: -1 | KE3: -2 | KF3: -1 | KG3: 1 | KH3: 1 | KI3: 1 | KJ3: -1 | KK3: 1 | KL3: -1 | KM3: 1 | KN3: 1 | KO3: -1 | KP3: 1 | KQ3: -2 | KR3: -1 | KS3: -1 | KT3: -1 | KU3: 1 | KV3: 1 | KW3: 1 | KX3: 1 | KY3: 1 | KZ3: 1 | LA3: -1 | LB3: -1 | LC3: -1 | LD3: 2 | LE3: -2 | LF3: 1 | LG3: -1 | LH3: -2 | LI3: 1 | LJ3: 2 | LK3: 1 | LL3: -2 | LM3: 1 | LN3: 1 | LO3: 1 | LP3: 1 | LQ3: -2 | LR3: 1 | LS3: -1 | LT3: 1 | LU3: -2 | LV3: 1 | LW3: 1 | LX3: 1 | LY3: 1 | LZ3: 1 | MA3: -1 | MB3: 1 | MC3: -1 | MD3: 1 | ME3: -1 | MF3: -1 | MG3: 2 | MH3: -1 | MI3: -1 | MJ3: 1 | MK3: -1 | ML3: -1 | MM3: -1 | MN3: 1 | MO3: -1 | MP3: 1 | MQ3: -1 | MR3: -1 | MS3: 2 | MT3: -1 | MU3: -2 | MV3: 2 | MW3: 1 | MX3: -2 | MY3: -2 | MZ3: -1 | NA3: -1 | NB3: 1 | NC3: -1 | ND3: 1 | NE3: 1 | NF3: -1 | NG3: 1 | NH3: -1 | NI3: 1 | NJ3: -1 | NK3: 1 | NL3: 1 | NM3: -1 | NN3: 1 | NO3: -1 | NP3: -1 | NQ3: -2 | NR3: -1 | NS3: -2 | NT3: -1 | NU3: 1 | NV3: -1 | NW3: -1 | NX3: -1 | NY3: 1 | NZ3: -1 | OA3: 2 | OB3: -1 | OC3: -1 | OD3: 1 | OE3: -1 | OF3: 4 | OG3: -2 | OH3: 1 | OI3: -1 | OJ3: -1 | OK3: -1 | OL3: 1 | OM3: -1 | ON3: -1 | OO3: -1 | OP3: -1 | OQ3: -1 | OR3: -1 | OS3: -1 | OT3: 2 | OU3: 1 | OV3: 1 | OW3: 1 | OX3: -1 | OY3: -1 | OZ3: 1 | PA3: -1 | PB3: -1 | PC3: 1 | PD3: 1 | PE3: -1 | PF3: 1 | PG3: -1 | PH3: -1 | PI3: -1 | PJ3: -1 | PK3: -1 | PL3: -2 | PM3: -1 | PN3: -1 | PO3: -4 | PP3: 1 | PQ3: -1 | PR3: -2 | PS3: -1 | PT3: -1 | PU3: 1 | PV3: 1 | PW3: 1 | PX3: -1 | PY3: 1 | PZ3: -1 | QA3: 2 | QB3: -1 | QC3: 1 | QD3: 1 | QE3: 1 | QF3: -1 | QG3: -1 | QH3: 1 | QI3: -1 | QJ3: -1 | QK3: -1 | QL3: -1 | QM3: -2 | QN3: 2 | QO3: -1 | QP3: 1 | QQ3: -1 | QR3: -2 | QS3: 1 | QT3: -1 | QU3: -2 | QV3: -1 | QW3: -1 | QX3: 1 | QY3: -1 | QZ3: 1 | RA3: -1 | RB3: -1 | RC3: -1 | RD3: -1 | RE3: -1 | RF3: 2 | RG3: 1 | RH3: -1 | RI3: 1 | RJ3: 1 | RK3: -2 | RL3: -1 | RM3: -1 | RN3: -1 | RO3: -1 | RP3: -1 | RQ3: -1 | RR3: -1 | RS3: -1 | RT3: 1 | RU3: -1 | RV3: -1 | RW3: -2 | RX3: -1 | RY3: 1 | RZ3: 4 | SA3: 2 | SB3: -1 | SC3: -1 | SD3: 1 | SE3: -2 | SF3: -1 | SG3: -1 | SH3: 1 | SI3: 2 | SJ3: 2 | SK3: -1 | SL3: 2 | SM3: 2 | SN3: -2 | SO3: -1 | SP3: 2 | SQ3: -1 | SR3: -2 | SS3: 1 | ST3: 1 | SU3: -1 | SV3: -1 | SW3: -1 | SX3: -1 | SY3: -1 | SZ3: 1 | TA3: -1 | TB3: 1 | TC3: -1 | TD3: -1 | TE3: -1 | TF3: -1 | TG3: -4 | TH3: 1 | TI3: -1 | TJ3: -1 | TK3: -4 | TL3: 1 | TM3: -1 | TN3: 1 | TO3: 1 | TP3: -4 | TQ3: 1 | TR3: 1 | TS3: -1 | TT3: -1 | TU3: -1 | TV3: 1 | TW3: -1 | TX3: -1 | TY3: -1 | TZ3: -2 | UA3: -1 | UB3: 1 | UC3: -2 | UD3: 1 | UE3: -1 | UF3: -2 | UG3: -1 | UH3: -2 | UI3: -1 | UJ3: 1 | UK3: -1 | UL3: -1 | UM3: -2 | UN3: -1 | UO3: -2 | UP3: -1 | UQ3: -4 | UR3: 2 | US3: -2 | UT3: 1 | UU3: -1 | UV3: 1 | UW3: -1 | UX3: 1 | UY3: -1 | UZ3: 1 | VA3: -2 | VB3: -1 | VC3: -1 | VD3: -1 | VE3: -1 | VF3: 1 | VG3: -1 | VH3: -1 | VI3: -1 | VJ3: -1 | VK3: -2 | VL3: 1 | VM3: 1 | VN3: -2 | VO3: -2 | VP3: -1 | VQ3: 1 | VR3: 1 | VS3: 1 | VT3: -2 | VU3: -1 | VV3: -2 | VW3: 2 | VX3: 1 | VY3: -1 | VZ3: 1 | WA3: -2 | WB3: 1 | WC3: 1 | WD3: 1 | WE3: -1 | WF3: 1 | WG3: 2 | WH3: 1 | WI3: 2 | WJ3: -1 | WK3: -1 | WL3: 1 | WM3: 1 | WN3: 1 | WO3: 1 | WP3: -4 | WQ3: -1 | WR3: -1 | WS3: 1 | WT3: 1 | WU3: -1 | WV3: -1 | WW3: -1 | WX3: -1 | WY3: 1 | WZ3: -1 | XA3: -2 | XB3: -1 | XC3: -1 | XD3: -2 | XE3: -1 | XF3: -2 | XG3: 1 | XH3: -2 | XI3: 1 | XJ3: 1 | XK3: 1 | XL3: 1 | XM3: -1 | XN3: -1 | XO3: -1 | XP3: -1 | XQ3: -1 | XR3: 1 | XS3: -2 | XT3: -1 | XU3: 1 | XV3: 1 | XW3: 1 | XX3: -1 | XY3: -4 | XZ3: -1 | YA3: 1 | YB3: -1 | YC3: -1 | YD3: -1 | YE3: -1 | YF3: 1 | YG3: -2 | YH3: 1 | YI3: -1 | YJ3: -1 | YK3: -1 | YL3: -1 | YM3: -1 | YN3: -1 | YO3: 1 | YP3: 2 | YQ3: -1 | YR3: -2 | YS3: -1 | YT3: -1 | YU3: 2 | YV3: 1 | YW3: -1 | YX3: -1 | YY3: -2 | YZ3: 1 | ZA3: -1 | ZB3: -1 | ZC3: 2 | ZD3: -1 | ZE3: 1 | ZF3: 1 | ZG3: 1 | ZH3: -1 | ZI3: 1 | ZJ3: -2 | ZK3: 1 | ZL3: -1 | ZM3: -2 | ZN3: 1 | ZO3: -1 | ZP3: -1 | ZQ3: -1 | ZR3: 1 | ZS3: -2 | ZT3: -1 | ZU3: -2 | ZV3: -1 | ZW3: -1 | ZX3: 1 | ZY3: -1 | ZZ3: -1 | AAA3: 2 | AAB3: -1 | AAC3: 1 | AAD3: -1 | AAE3: -1 | AAF3: -1 | AAG3: -1 | AAH3: -1 | AAI3: 1 | AAJ3: -2 | AAK3: -4 | AAL3: -1 | AAM3: -2 | AAN3: 1 | AAO3: -1 | AAP3: -1 | AAQ3: -2 | AAR3: 1 | AAS3: -1 | AAT3: -2 | AAU3: 1 | AAV3: 2 | AAW3: -1 | AAX3: -1 | AAY3: -4 | AAZ3: -1 | ABA3: 1 | ABB3: -1 | ABC3: -2 | ABD3: 1 | ABE3: -1 | ABF3: -1 | ABG3: -1 | ABH3: 1 | ABI3: -1 | ABJ3: -2 | ABK3: 1 | ABL3: -1 | ABM3: 1 | ABN3: -2 | ABO3: 1 | ABP3: 1 | ABQ3: 1 | ABR3: -1 | ABS3: -1 | ABT3: 1 | ABU3: 1 | ABV3: -1 | ABW3: -1 | ABX3: -2 | ABY3: -1 | ABZ3: -1 | ACA3: -1 | ACB3: 1 | ACC3: 1 | ACD3: -1 | ACE3: -1 | ACF3: 1 | ACG3: -1 | ACH3: 1 | ACI3: -1 | ACJ3: 1 | ACK3: -4 | ACL3: -4 | ACM3: -1 | ACN3: 1 | ACO3: -2 | ACP3: -1 | ACQ3: -1 | ACR3: -1 | ACS3: -1 | ACT3: -1 | ACU3: -1 | ACV3: -1 | ACW3: 1 | ACX3: -1 | ACY3: 2 | ACZ3: 1 | ADA3: 1 | ADB3: -1 | ADC3: -1 | ADD3: 1 | ADE3: 1 | ADF3: 2 | ADG3: -1 | ADH3: 2 | ADI3: 1 | ADJ3: -2 | ADK3: -1 | ADL3: 1 | ADM3: -2 | ADN3: -1 | ADO3: -1 | ADP3: -1 | ADQ3: 1 | ADR3: -2 | ADS3: -1 | ADT3: -2 | ADU3: 1 | ADV3: -1 | ADW3: 1 | ADX3: -1 | ADY3: -2 | ADZ3: -1 | AEA3: 1 | AEB3: -2 | AEC3: -1 | AED3: 1 | AEE3: 1 | AEF3: -1 | AEG3: -1 | AEH3: -1 | AEI3: 1 | AEJ3: 1 | AEK3: -1 | AEL3: -2 | AEM3: -1 | AEN3: -1 | AEO3: 1 | AEP3: 1 | AEQ3: -1 | AER3: 1 | AES3: -1 | AET3: -1 | AEU3: -2 | AEV3: 2 | AEW3: 1 | AEX3: -2 | AEY3: -1 | AEZ3: -2 | AFA3: -2 | AFB3: 1 | AFC3: -4 | AFD3: -2 | AFE3: -2 | AFF3: 1 | AFG3: -1 | AFH3: -1 | AFI3: 1 | AFJ3: 2 | AFK3: 1 | AFL3: -1 | AFM3: -2 | AFN3: 1 | AFO3: -2 | AFP3: -1 | AFQ3: 1 | AFR3: -2 | AFS3: 1 | AFT3: 1 | AFU3: 2 | AFV3: -1 | AFW3: 1 | AFX3: -2 | AFY3: -2 | AFZ3: -1 | AGA3: -1 | AGB3: 1 | AGC3: -1 | AGD3: -1 | AGE3: 1 | AGF3: -2 | AGG3: -1 | AGH3: 1 | AGI3: 1 | AGJ3: 1 | AGK3: -1 | AGL3: -1 | AGM3: 1 | AGN3: 2 | AGO3: -1 | AGP3: -1 | AGQ3: 1 | AGR3: -4 | AGS3: 1 | AGT3: -1 | AGU3: -1 | AGV3: -1 | AGW3: -1 | AGX3: -1 | AGY3: -1 | AGZ3: -2 | AHA3: -1 | AHB3: 1 | AHC3: 2 | AHD3: -1 | AHE3: -1 | AHF3: -2 | AHG3: 2 | AHH3: -1 | AHI3: -2 | AHJ3: -1 | AHK3: -1 | AHL3: -1 | AHM3: 1 | AHN3: -1 | AHO3: -1 | AHP3: -1 | AHQ3: -1 | AHR3: -2 | AHS3: -1 | AHT3: 1 | AHU3: -1 | AHV3: -1 | AHW3: 1 | AHX3: -2 | AHY3: -1 | AHZ3: 1 | AIA3: 1 | AIB3: 1 | AIC3: -1 | AID3: -1 | AIE3: -2 | AIF3: -4 | AIG3: 1 | AIH3: -2 | AII3: 1 | AIJ3: -1 | AIK3: -2 | AIL3: 1 | AIM3: -1 | AIN3: -1 | AIO3: -1 | AIP3: -1 | AIQ3: 1 | AIR3: -1 | AIS3: 1 | AIT3: -1 | AIU3: -1 | AIV3: 1 | AIW3: 4 | AIX3: -1 | AIY3: -1 | AIZ3: 1 | AJA3: 1 | AJB3: -1 | AJC3: -1 | AJD3: -2 | AJE3: 1 | AJF3: -1 | AJG3: 1 | AJH3: -2 | AJI3: -1 | AJJ3: -1 | AJK3: -1 | AJL3: 1 | AJM3: -1 | AJN3: 2 | AJO3: -1 | AJP3: -1 | AJQ3: 1 | AJR3: -1 | AJS3: 1 | AJT3: -1 | AJU3: 1 | AJV3: -1 | AJW3: -2 | AJX3: -1 | AJY3: -2 | AJZ3: -1 | AKA3: -1 | AKB3: -1 | AKC3: 1 | AKD3: -1 | AKE3: 1 | AKF3: 1 | AKG3: -1 | AKH3: -1 | AKI3: 1 | AKJ3: 1 | AKK3: -1 | AKL3: -1 | AKM3: -1 | AKN3: -1 | AKO3: -1 | AKP3: -1 | AKQ3: -1 | AKR3: 1 | AKS3: -2 | AKT3: -1 | AKU3: -1 | AKV3: -1 | AKW3: -1 | AKX3: -1 | AKY3: -1 | AKZ3: 4 | ALA3: -1 | ALB3: -1 | ALC3: -1 | ALD3: -1 | ALE3: -2 | ALF3: 1 | ALG3: -1 | ALH3: 1 | ALI3: 1 | ALJ3: -1 | ALK3: -1 | ALL3: 1 | ALM3: -2 | ALN3: -1 | ALO3: -2 | ALP3: -2 | ALQ3: 1 | ALR3: 2 | ALS3: 1 | ALT3: 1 | ALU3: -1 | ALV3: -2 | ALW3: 1 | ALX3: 1 | ALY3: -1 | ALZ3: -1 | AMA3: -1 | AMB3: 1 | AMC3: 1 | AMD3: -1 | AME3: -1 | AMF3: 1 | AMG3: -1 | AMH3: -1 | AMI3: 1 | AMJ3: -1
A4: -2 | B4: -1 | C4: -2 | D4: -1 | E4: 1 | F4: 2 | G4: 2 | H4: 1 | I4: -1 | J4: -2 | K4: 1 | L4: -1 | M4: -1 | N4: 1 | O4: 1 | P4: 1 | Q4: 2 | R4: -4 | S4: -1 | T4: 1 | U4: 1 | V4: -2 | W4: -1 | X4: 1 | Y4: 1 | Z4: -1 | AA4: 1 | AB4: 1 | AC4: 1 | AD4: -2 | AE4: 1 | AF4: -1 | AG4: -1 | AH4: -1 | AI4: -2 | AJ4: 2 | AK4: -1 | AL4: -1 | AM4: -1 | AN4: -1 | AO4: -1 | AP4: 1 | AQ4: -4 | AR4: -1 | AS4: -1 | AT4: 1 | AU4: 1 | AV4: 1 | AW4: 1 | AX4: 1 | AY4: -2 | AZ4: 1 | BA4: -1 | BB4: -1 | BC4: -1 | BD4: -1 | BE4: 1 | BF4: -1 | BG4: 1 | BH4: -1 | BI4: -1 | BJ4: 1 | BK4: -1 | BL4: -1 | BM4: 2 | BN4: 2 | BO4: -1 | BP4: -1 | BQ4: -1 | BR4: -1 | BS4: -2 | BT4: 1 | BU4: 1 | BV4: 1 | BW4: -2 | BX4: -1 | BY4: -2 | BZ4: -1 | CA4: -1 | CB4: -2 | CC4: -1 | CD4: -2 | CE4: -1 | CF4: -2 | CG4: 1 | CH4: -1 | CI4: -1 | CJ4: -1 | CK4: -2 | CL4: -1 | CM4: 2 | CN4: 1 | CO4: -1 | CP4: 1 | CQ4: -1 | CR4: -1 | CS4: -1 | CT4: 1 | CU4: 1 | CV4: -4 | CW4: 1 | CX4: 1 | CY4: -1 | CZ4: 1 | DA4: 1 | DB4: -1 | DC4: 2 | DD4: -1 | DE4: -2 | DF4: -1 | DG4: 1 | DH4: -1 | DI4: -1 | DJ4: 1 | DK4: -1 | DL4: 1 | DM4: -1 | DN4: 2 | DO4: 1 | DP4: 1 | DQ4: 2 | DR4: -1 | DS4: -1 | DT4: 1 | DU4: 2 | DV4: 1 | DW4: 1 | DX4: -1 | DY4: 1 | DZ4: -4 | EA4: 1 | EB4: 1 | EC4: -1 | ED4: 2 | EE4: -2 | EF4: -1 | EG4: -4 | EH4: -1 | EI4: -1 | EJ4: -4 | EK4: 4 | EL4: -1 | EM4: -1 | EN4: -1 | EO4: 1 | EP4: 1 | EQ4: 1 | ER4: -1 | ES4: -1 | ET4: 1 | EU4: 1 | EV4: -1 | EW4: -1 | EX4: 1 | EY4: 1 | EZ4: -1 | FA4: -2 | FB4: 1 | FC4: -1 | FD4: -1 | FE4: -1 | FF4: -1 | FG4: -1 | FH4: 1 | FI4: 2 | FJ4: 1 | FK4: -1 | FL4: -2 | FM4: -1 | FN4: -1 | FO4: -1 | FP4: 1 | FQ4: 1 | FR4: -1 | FS4: 1 | FT4: -1 | FU4: 1 | FV4: -2 | FW4: -1 | FX4: -4 | FY4: 1 | FZ4: -1 | GA4: -1 | GB4: 1 | GC4: -1 | GD4: -1 | GE4: 1 | GF4: 1 | GG4: 1 | GH4: -2 | GI4: 1 | GJ4: -1 | GK4: 2 | GL4: -1 | GM4: -1 | GN4: -1 | GO4: -1 | GP4: -1 | GQ4: -1 | GR4: -4 | GS4: -2 | GT4: 1 | GU4: 1 | GV4: 1 | GW4: 1 | GX4: 1 | GY4: -1 | GZ4: 1 | HA4: -4 | HB4: 4 | HC4: -2 | HD4: -1 | HE4: 1 | HF4: -1 | HG4: 1 | HH4: -1 | HI4: 1 | HJ4: -2 | HK4: -2 | HL4: 4 | HM4: -1 | HN4: 1 | HO4: -2 | HP4: -1 | HQ4: -1 | HR4: -1 | HS4: 2 | HT4: 1 | HU4: 1 | HV4: -1 | HW4: -2 | HX4: 1 | HY4: 1 | HZ4: -1 | IA4: -1 | IB4: 1 | IC4: -1 | ID4: -1 | IE4: 2 | IF4: -1 | IG4: -1 | IH4: -1 | II4: -1 | IJ4: -2 | IK4: 1 | IL4: 1 | IM4: -2 | IN4: -1 | IO4: -1 | IP4: 1 | IQ4: -1 | IR4: 1 | IS4: -1 | IT4: -1 | IU4: -1 | IV4: -2 | IW4: 1 | IX4: 1 | IY4: -1 | IZ4: 1 | JA4: 2 | JB4: 4 | JC4: 1 | JD4: 1 | JE4: -1 | JF4: -1 | JG4: -1 | JH4: -1 | JI4: -1 | JJ4: -2 | JK4: 1 | JL4: 2 | JM4: 1 | JN4: 1 | JO4: 1 | JP4: -2 | JQ4: -1 | JR4: -2 | JS4: 1 | JT4: -1 | JU4: -2 | JV4: 1 | JW4: -1 | JX4: 1 | JY4: -1 | JZ4: 1 | KA4: 1 | KB4: 2 | KC4: 1 | KD4: -2 | KE4: 2 | KF4: -1 | KG4: 1 | KH4: 1 | KI4: -1 | KJ4: 2 | KK4: 2 | KL4: -1 | KM4: -1 | KN4: -1 | KO4: -1 | KP4: 1 | KQ4: -1 | KR4: -2 | KS4: 1 | KT4: -1 | KU4: 1 | KV4: -2 | KW4: -2 | KX4: -2 | KY4: 1 | KZ4: -1 | LA4: 2 | LB4: -4 | LC4: -1 | LD4: 1 | LE4: -1 | LF4: -2 | LG4: -1 | LH4: -1 | LI4: -1 | LJ4: -4 | LK4: 1 | LL4: 1 | LM4: -1 | LN4: 1 | LO4: -1 | LP4: -1 | LQ4: 2 | LR4: 1 | LS4: -1 | LT4: 1 | LU4: -1 | LV4: -1 | LW4: -1 | LX4: 1 | LY4: -1 | LZ4: 1 | MA4: -1 | MB4: -1 | MC4: -1 | MD4: -1 | ME4: 2 | MF4: 1 | MG4: -2 | MH4: -1 | MI4: 1 | MJ4: 1 | MK4: -1 | ML4: -1 | MM4: 2 | MN4: -1 | MO4: -1 | MP4: -1 | MQ4: -1 | MR4: 1 | MS4: -1 | MT4: -2 | MU4: -2 | MV4: 1 | MW4: 1 | MX4: 2 | MY4: -1 | MZ4: -1 | NA4: -2 | NB4: 1 | NC4: -1 | ND4: 1 | NE4: -1 | NF4: 1 | NG4: 1 | NH4: 1 | NI4: 1 | NJ4: -1 | NK4: -1 | NL4: -1 | NM4: -1 | NN4: -1 | NO4: -1 | NP4: 2 | NQ4: 1 | NR4: -1 | NS4: -1 | NT4: 1 | NU4: 1 | NV4: -1 | NW4: -2 | NX4: -1 | NY4: -1 | NZ4: 1 | OA4: -1 | OB4: -1 | OC4: -1 | OD4: -1 | OE4: 1 | OF4: 1 | OG4: 1 | OH4: 1 | OI4: -1 | OJ4: 1 | OK4: -1 | OL4: 1 | OM4: -1 | ON4: -1 | OO4: -1 | OP4: 1 | OQ4: -2 | OR4: -1 | OS4: -1 | OT4: -4 | OU4: -2 | OV4: 2 | OW4: -1 | OX4: 1 | OY4: -1 | OZ4: 1 | PA4: -1 | PB4: -1 | PC4: -1 | PD4: -1 | PE4: -1 | PF4: 1 | PG4: -2 | PH4: -1 | PI4: -1 | PJ4: -1 | PK4: 1 | PL4: -1 | PM4: -1 | PN4: 1 | PO4: -1 | PP4: -1 | PQ4: -1 | PR4: -2 | PS4: -2 | PT4: -1 | PU4: -1 | PV4: 1 | PW4: 1 | PX4: -1 | PY4: -1 | PZ4: -1 | QA4: -1 | QB4: -1 | QC4: -1 | QD4: 1 | QE4: -1 | QF4: -2 | QG4: 1 | QH4: -1 | QI4: -1 | QJ4: -1 | QK4: 1 | QL4: -1 | QM4: -2 | QN4: -1 | QO4: -1 | QP4: -1 | QQ4: 1 | QR4: -1 | QS4: -2 | QT4: -1 | QU4: 1 | QV4: -2 | QW4: -1 | QX4: -2 | QY4: -1 | QZ4: 1 | RA4: -1 | RB4: 1 | RC4: -1 | RD4: 1 | RE4: -1 | RF4: -1 | RG4: 1 | RH4: -1 | RI4: 2 | RJ4: -1 | RK4: 1 | RL4: -1 | RM4: -1 | RN4: -1 | RO4: -1 | RP4: 1 | RQ4: -1 | RR4: 1 | RS4: -1 | RT4: 1 | RU4: -2 | RV4: -1 | RW4: 2 | RX4: -1 | RY4: -2 | RZ4: -2 | SA4: -4 | SB4: -1 | SC4: 1 | SD4: 1 | SE4: -1 | SF4: 1 | SG4: -1 | SH4: -1 | SI4: 1 | SJ4: -2 | SK4: 1 | SL4: 1 | SM4: -2 | SN4: -1 | SO4: -2 | SP4: -1 | SQ4: -1 | SR4: -1 | SS4: 2 | ST4: -1 | SU4: 1 | SV4: -1 | SW4: 1 | SX4: -1 | SY4: -1 | SZ4: -1 | TA4: -1 | TB4: -1 | TC4: -2 | TD4: -1 | TE4: 1 | TF4: -1 | TG4: -1 | TH4: -1 | TI4: 1 | TJ4: -1 | TK4: -1 | TL4: -1 | TM4: 1 | TN4: -1 | TO4: -2 | TP4: 1 | TQ4: -2 | TR4: 4 | TS4: -2 | TT4: -1 | TU4: -2 | TV4: -2 | TW4: -1 | TX4: -1 | TY4: -2 | TZ4: -1 | UA4: -1 | UB4: 1 | UC4: -1 | UD4: -1 | UE4: -1 | UF4: 1 | UG4: 1 | UH4: 1 | UI4: -1 | UJ4: -1 | UK4: 1 | UL4: -1 | UM4: -1 | UN4: -1 | UO4: 1 | UP4: -1 | UQ4: -1 | UR4: 1 | US4: -1 | UT4: 2 | UU4: -1 | UV4: -1 | UW4: 2 | UX4: -1 | UY4: 1 | UZ4: -1 | VA4: -1 | VB4: 1 | VC4: -1 | VD4: 1 | VE4: 1 | VF4: 1 | VG4: -2 | VH4: -1 | VI4: -1 | VJ4: 1 | VK4: 1 | VL4: 1 | VM4: 1 | VN4: 1 | VO4: 1 | VP4: -2 | VQ4: -2 | VR4: 1 | VS4: 1 | VT4: -1 | VU4: -1 | VV4: -1 | VW4: -2 | VX4: -1 | VY4: -1 | VZ4: -1 | WA4: -2 | WB4: 1 | WC4: 1 | WD4: 1 | WE4: -2 | WF4: 1 | WG4: 1 | WH4: 1 | WI4: 1 | WJ4: -2 | WK4: -4 | WL4: -1 | WM4: -1 | WN4: 1 | WO4: -1 | WP4: -1 | WQ4: -2 | WR4: 1 | WS4: -1 | WT4: -1 | WU4: -1 | WV4: 1 | WW4: 1 | WX4: 1 | WY4: 1 | WZ4: -1 | XA4: -1 | XB4: -1 | XC4: -1 | XD4: -1 | XE4: -1 | XF4: 1 | XG4: -1 | XH4: -1 | XI4: 1 | XJ4: 2 | XK4: 1 | XL4: -2 | XM4: -1 | XN4: 1 | XO4: -1 | XP4: 1 | XQ4: 1 | XR4: -2 | XS4: 2 | XT4: -1 | XU4: -1 | XV4: -2 | XW4: -1 | XX4: -1 | XY4: -1 | XZ4: 2 | YA4: -2 | YB4: -1 | YC4: 1 | YD4: 2 | YE4: -1 | YF4: -1 | YG4: 2 | YH4: -1 | YI4: 1 | YJ4: 1 | YK4: 1 | YL4: -1 | YM4: -2 | YN4: 2 | YO4: 2 | YP4: 1 | YQ4: 2 | YR4: 1 | YS4: 1 | YT4: -1 | YU4: -2 | YV4: 1 | YW4: 1 | YX4: -1 | YY4: 1 | YZ4: -1 | ZA4: 1 | ZB4: -1 | ZC4: -1 | ZD4: 2 | ZE4: -2 | ZF4: 1 | ZG4: 1 | ZH4: 1 | ZI4: 1 | ZJ4: -2 | ZK4: -2 | ZL4: 1 | ZM4: -1 | ZN4: -2 | ZO4: 1 | ZP4: -1 | ZQ4: -2 | ZR4: -1 | ZS4: -1 | ZT4: -1 | ZU4: -1 | ZV4: 2 | ZW4: -1 | ZX4: -1 | ZY4: 1 | ZZ4: 1 | AAA4: 1 | AAB4: -2 | AAC4: -1 | AAD4: -2 | AAE4: -1 | AAF4: -1 | AAG4: 1 | AAH4: -1 | AAI4: -1 | AAJ4: 1 | AAK4: -1 | AAL4: -1 | AAM4: 1 | AAN4: -1 | AAO4: -1 | AAP4: -1 | AAQ4: 1 | AAR4: 1 | AAS4: -2 | AAT4: -2 | AAU4: 1 | AAV4: 1 | AAW4: 1 | AAX4: 2 | AAY4: 1 | AAZ4: -1 | ABA4: -2 | ABB4: -1 | ABC4: 2 | ABD4: -1 | ABE4: 1 | ABF4: 1 | ABG4: 1 | ABH4: -1 | ABI4: -1 | ABJ4: 1 | ABK4: -1 | ABL4: 1 | ABM4: 1 | ABN4: -1 | ABO4: -1 | ABP4: -1 | ABQ4: -1 | ABR4: -1 | ABS4: -1 | ABT4: 1 | ABU4: 1 | ABV4: 1 | ABW4: -1 | ABX4: 1 | ABY4: -2 | ABZ4: -1 | ACA4: -1 | ACB4: -2 | ACC4: 1 | ACD4: -1 | ACE4: 1 | ACF4: -1 | ACG4: 1 | ACH4: -1 | ACI4: 1 | ACJ4: -1 | ACK4: 1 | ACL4: -4 | ACM4: 1 | ACN4: -1 | ACO4: -1 | ACP4: 1 | ACQ4: 1 | ACR4: 1 | ACS4: -1 | ACT4: -1 | ACU4: -2 | ACV4: 1 | ACW4: -2 | ACX4: -1 | ACY4: 1 | ACZ4: 2 | ADA4: 1 | ADB4: -1 | ADC4: -1 | ADD4: 2 | ADE4: -2 | ADF4: -2 | ADG4: -1 | ADH4: -1 | ADI4: 1 | ADJ4: -1 | ADK4: 1 | ADL4: 1 | ADM4: -2 | ADN4: -1 | ADO4: 1 | ADP4: -1 | ADQ4: -1 | ADR4: -1 | ADS4: -1 | ADT4: -1 | ADU4: -1 | ADV4: -1 | ADW4: -1 | ADX4: -1 | ADY4: -1 | ADZ4: 1 | AEA4: -1 | AEB4: -1 | AEC4: -1 | AED4: -1 | AEE4: -1 | AEF4: 1 | AEG4: -1 | AEH4: -1 | AEI4: -1 | AEJ4: -1 | AEK4: -1 | AEL4: 1 | AEM4: -2 | AEN4: -2 | AEO4: 1 | AEP4: -2 | AEQ4: 1 | AER4: 1 | AES4: -1 | AET4: -2 | AEU4: 1 | AEV4: -1 | AEW4: 1 | AEX4: -1 | AEY4: 1 | AEZ4: -1 | AFA4: -1 | AFB4: -1 | AFC4: 2 | AFD4: 1 | AFE4: -1 | AFF4: 1 | AFG4: -1 | AFH4: -1 | AFI4: 2 | AFJ4: 1 | AFK4: -1 | AFL4: -2 | AFM4: -1 | AFN4: -1 | AFO4: 1 | AFP4: -1 | AFQ4: 1 | AFR4: 1 | AFS4: 1 | AFT4: 1 | AFU4: 1 | AFV4: 1 | AFW4: 2 | AFX4: -1 | AFY4: 1 | AFZ4: -1 | AGA4: 2 | AGB4: 1 | AGC4: 1 | AGD4: -1 | AGE4: 1 | AGF4: -2 | AGG4: -2 | AGH4: 1 | AGI4: -1 | AGJ4: 1 | AGK4: -1 | AGL4: -2 | AGM4: -1 | AGN4: -1 | AGO4: -1 | AGP4: -1 | AGQ4: 1 | AGR4: -2 | AGS4: 1 | AGT4: -2 | AGU4: -1 | AGV4: -2 | AGW4: -1 | AGX4: -1 | AGY4: -1 | AGZ4: -1 | AHA4: 1 | AHB4: 1 | AHC4: 1 | AHD4: -2 | AHE4: 1 | AHF4: 1 | AHG4: -1 | AHH4: 1 | AHI4: -1 | AHJ4: -1 | AHK4: 1 | AHL4: -1 | AHM4: 2 | AHN4: 1 | AHO4: 1 | AHP4: -1 | AHQ4: -1 | AHR4: -1 | AHS4: -1 | AHT4: 1 | AHU4: -4 | AHV4: 1 | AHW4: 2 | AHX4: 2 | AHY4: -1 | AHZ4: -1 | AIA4: 2 | AIB4: 2 | AIC4: -1 | AID4: -2 | AIE4: -1 | AIF4: 1 | AIG4: -1 | AIH4: -2 | AII4: -1 | AIJ4: -1 | AIK4: -1 | AIL4: -1 | AIM4: 1 | AIN4: -2 | AIO4: -1 | AIP4: 4 | AIQ4: -1 | AIR4: -1 | AIS4: -2 | AIT4: 1 | AIU4: -1 | AIV4: 1 | AIW4: 1 | AIX4: -2 | AIY4: 1 | AIZ4: -1 | AJA4: -1 | AJB4: 1 | AJC4: -2 | AJD4: 1 | AJE4: 2 | AJF4: 2 | AJG4: -2 | AJH4: 1 | AJI4: 4 | AJJ4: 1 | AJK4: 1 | AJL4: 1 | AJM4: -1 | AJN4: 1 | AJO4: -1 | AJP4: 1 | AJQ4: -1 | AJR4: 1 | AJS4: -2 | AJT4: -2 | AJU4: -1 | AJV4: -1 | AJW4: 1 | AJX4: 1 | AJY4: -1 | AJZ4: -1 | AKA4: -1 | AKB4: 1 | AKC4: -1 | AKD4: -1 | AKE4: -2 | AKF4: -2 | AKG4: 1 | AKH4: 2 | AKI4: -1 | AKJ4: -1 | AKK4: -1 | AKL4: 1 | AKM4: 1 | AKN4: 1 | AKO4: 2 | AKP4: -2 | AKQ4: -1 | AKR4: 1 | AKS4: -2 | AKT4: 1 | AKU4: 2 | AKV4: -1 | AKW4: -1 | AKX4: 1 | AKY4: 1 | AKZ4: -1 | ALA4: 1 | ALB4: -1 | ALC4: -1 | ALD4: 1 | ALE4: 1 | ALF4: 1 | ALG4: 1 | ALH4: -1 | ALI4: -1 | ALJ4: 1 | ALK4: -1 | ALL4: -1 | ALM4: -2 | ALN4: -1 | ALO4: -1 | ALP4: -2 | ALQ4: 1 | ALR4: -1 | ALS4: -1 | ALT4: 1 | ALU4: -1 | ALV4: -1 | ALW4: 1 | ALX4: 1 | ALY4: 1 | ALZ4: -1 | AMA4: -2 | AMB4: -1 | AMC4: -1 | AMD4: -1 | AME4: -1 | AMF4: -2 | AMG4: 2 | AMH4: -2 | AMI4: -1 | AMJ4: -1
A5: -2 | B5: 1 | C5: -2 | D5: 1 | E5: -1 | F5: 1 | G5: -2 | H5: 2 | I5: 1 | J5: -2 | K5: -2 | L5: 1 | M5: -1 | N5: 1 | O5: -1 | P5: -1 | Q5: -1 | R5: -1 | S5: 1 | T5: -2 | U5: -1 | V5: 1 | W5: -1 | X5: -1 | Y5: 1 | Z5: 4 | AA5: 1 | AB5: -1 | AC5: -1 | AD5: 1 | AE5: -1 | AF5: 1 | AG5: 1 | AH5: 1 | AI5: -1 | AJ5: -2 | AK5: -1 | AL5: 1 | AM5: 1 | AN5: -1 | AO5: -1 | AP5: 1 | AQ5: 1 | AR5: 2 | AS5: -4 | AT5: -1 | AU5: 1 | AV5: -1 | AW5: 1 | AX5: 1 | AY5: 1 | AZ5: -1 | BA5: -1 | BB5: -4 | BC5: -1 | BD5: -1 | BE5: 1 | BF5: -1 | BG5: -1 | BH5: -1 | BI5: 1 | BJ5: -1 | BK5: -1 | BL5: -2 | BM5: -1 | BN5: 1 | BO5: 1 | BP5: 1 | BQ5: -1 | BR5: -1 | BS5: -1 | BT5: 2 | BU5: -1 | BV5: -1 | BW5: -1 | BX5: -1 | BY5: 1 | BZ5: -2 | CA5: -1 | CB5: -1 | CC5: -1 | CD5: 2 | CE5: 2 | CF5: 1 | CG5: -2 | CH5: -1 | CI5: -1 | CJ5: 1 | CK5: 4 | CL5: -1 | CM5: 1 | CN5: -2 | CO5: 1 | CP5: -1 | CQ5: -1 | CR5: -1 | CS5: -1 | CT5: 1 | CU5: 1 | CV5: -1 | CW5: 2 | CX5: 1 | CY5: -1 | CZ5: 1 | DA5: 2 | DB5: -1 | DC5: 2 | DD5: -1 | DE5: -1 | DF5: 1 | DG5: -1 | DH5: -2 | DI5: -1 | DJ5: -1 | DK5: 1 | DL5: -1 | DM5: -1 | DN5: 2 | DO5: 1 | DP5: 1 | DQ5: 1 | DR5: -1 | DS5: -1 | DT5: -1 | DU5: 1 | DV5: -1 | DW5: -1 | DX5: -1 | DY5: 2 | DZ5: -1 | EA5: 1 | EB5: 1 | EC5: -2 | ED5: -2 | EE5: 1 | EF5: 1 | EG5: 1 | EH5: 1 | EI5: 1 | EJ5: -1 | EK5: 4 | EL5: 2 | EM5: 2 | EN5: 1 | EO5: -1 | EP5: 1 | EQ5: -1 | ER5: 1 | ES5: 1 | ET5: 1 | EU5: 1 | EV5: -2 | EW5: 1 | EX5: -1 | EY5: -2 | EZ5: 1 | FA5: -2 | FB5: -1 | FC5: -2 | FD5: -2 | FE5: 1 | FF5: -1 | FG5: 1 | FH5: 1 | FI5: 2 | FJ5: -1 | FK5: -1 | FL5: 2 | FM5: -2 | FN5: -1 | FO5: -1 | FP5: 2 | FQ5: -1 | FR5: -1 | FS5: 1 | FT5: -4 | FU5: -2 | FV5: -1 | FW5: 2 | FX5: -2 | FY5: -1 | FZ5: -1 | GA5: 2 | GB5: -2 | GC5: 2 | GD5: 1 | GE5: 2 | GF5: 1 | GG5: -1 | GH5: -1 | GI5: 1 | GJ5: 1 | GK5: -1 | GL5: 1 | GM5: -1 | GN5: -1 | GO5: -1 | GP5: 1 | GQ5: -2 | GR5: 2 | GS5: 1 | GT5: -1 | GU5: 2 | GV5: 4 | GW5: 1 | GX5: -1 | GY5: -2 | GZ5: -2 | HA5: 1 | HB5: -1 | HC5: 1 | HD5: -1 | HE5: -1 | HF5: 1 | HG5: 2 | HH5: -1 | HI5: 1 | HJ5: -1 | HK5: -1 | HL5: 2 | HM5: -1 | HN5: 1 | HO5: 1 | HP5: 1 | HQ5: 1 | HR5: -1 | HS5: 2 | HT5: 2 | HU5: 1 | HV5: -2 | HW5: -2 | HX5: 1 | HY5: -1 | HZ5: -2 | IA5: 1 | IB5: -1 | IC5: -1 | ID5: -2 | IE5: 1 | IF5: -4 | IG5: 1 | IH5: -1 | II5: -2 | IJ5: -1 | IK5: -1 | IL5: 1 | IM5: -1 | IN5: 1 | IO5: -1 | IP5: 1 | IQ5: -2 | IR5: -1 | IS5: -1 | IT5: -1 | IU5: -1 | IV5: -1 | IW5: 1 | IX5: -1 | IY5: -2 | IZ5: 2 | JA5: 1 | JB5: 1 | JC5: 1 | JD5: -2 | JE5: -1 | JF5: -1 | JG5: -1 | JH5: 1 | JI5: -1 | JJ5: -1 | JK5: -1 | JL5: 1 | JM5: 1 | JN5: -2 | JO5: -1 | JP5: -1 | JQ5: 1 | JR5: -2 | JS5: -2 | JT5: 1 | JU5: 2 | JV5: 1 | JW5: 1 | JX5: -1 | JY5: -2 | JZ5: 1 | KA5: 4 | KB5: 2 | KC5: 1 | KD5: -1 | KE5: 4 | KF5: -1 | KG5: -2 | KH5: -1 | KI5: 1 | KJ5: 2 | KK5: 2 | KL5: -1 | KM5: -2 | KN5: -2 | KO5: -2 | KP5: 1 | KQ5: 1 | KR5: -1 | KS5: -2 | KT5: -1 | KU5: -1 | KV5: -1 | KW5: -1 | KX5: -1 | KY5: 2 | KZ5: -1 | LA5: 2 | LB5: -1 | LC5: -1 | LD5: -1 | LE5: 1 | LF5: -2 | LG5: 1 | LH5: 1 | LI5: -2 | LJ5: -1 | LK5: 1 | LL5: -1 | LM5: 1 | LN5: 1 | LO5: 1 | LP5: -1 | LQ5: 1 | LR5: -2 | LS5: -1 | LT5: 1 | LU5: 4 | LV5: 1 | LW5: -1 | LX5: 1 | LY5: 1 | LZ5: -1 | MA5: -2 | MB5: 1 | MC5: 1 | MD5: 1 | ME5: 1 | MF5: -2 | MG5: -1 | MH5: 2 | MI5: -1 | MJ5: 1 | MK5: 1 | ML5: -1 | MM5: -2 | MN5: -1 | MO5: -1 | MP5: -1 | MQ5: -2 | MR5: -1 | MS5: -1 | MT5: -1 | MU5: 2 | MV5: -1 | MW5: -2 | MX5: -1 | MY5: 1 | MZ5: 1 | NA5: 1 | NB5: 1 | NC5: -1 | ND5: -4 | NE5: -1 | NF5: 1 | NG5: 1 | NH5: 2 | NI5: -1 | NJ5: 4 | NK5: -2 | NL5: 2 | NM5: -1 | NN5: -2 | NO5: -1 | NP5: 1 | NQ5: 4 | NR5: 1 | NS5: 4 | NT5: -2 | NU5: 1 | NV5: -1 | NW5: 1 | NX5: -1 | NY5: -1 | NZ5: -1 | OA5: -1 | OB5: -1 | OC5: 1 | OD5: -2 | OE5: -1 | OF5: 1 | OG5: 2 | OH5: -2 | OI5: 1 | OJ5: 4 | OK5: 1 | OL5: -1 | OM5: 1 | ON5: -1 | OO5: -1 | OP5: 1 | OQ5: -1 | OR5: -1 | OS5: -1 | OT5: -2 | OU5: -2 | OV5: -2 | OW5: -1 | OX5: -1 | OY5: -1 | OZ5: -1 | PA5: 2 | PB5: 2 | PC5: 1 | PD5: 1 | PE5: -2 | PF5: 2 | PG5: -1 | PH5: 1 | PI5: -2 | PJ5: 1 | PK5: 2 | PL5: -1 | PM5: 1 | PN5: -1 | PO5: 2 | PP5: -1 | PQ5: -2 | PR5: -2 | PS5: -2 | PT5: -1 | PU5: -1 | PV5: -1 | PW5: -2 | PX5: -1 | PY5: -2 | PZ5: 1 | QA5: 1 | QB5: 2 | QC5: -1 | QD5: -1 | QE5: 2 | QF5: -1 | QG5: 2 | QH5: 1 | QI5: -2 | QJ5: 1 | QK5: -1 | QL5: -1 | QM5: -1 | QN5: -1 | QO5: -1 | QP5: -1 | QQ5: 1 | QR5: 2 | QS5: -1 | QT5: -1 | QU5: 4 | QV5: -2 | QW5: -2 | QX5: -1 | QY5: -1 | QZ5: -1 | RA5: 1 | RB5: -1 | RC5: -1 | RD5: -2 | RE5: 1 | RF5: -1 | RG5: 1 | RH5: 1 | RI5: 1 | RJ5: 2 | RK5: 2 | RL5: 1 | RM5: 1 | RN5: 1 | RO5: -1 | RP5: 1 | RQ5: 1 | RR5: 1 | RS5: 4 | RT5: 1 | RU5: -1 | RV5: -2 | RW5: 1 | RX5: -1 | RY5: -2 | RZ5: -2 | SA5: -4 | SB5: 4 | SC5: -1 | SD5: -1 | SE5: -1 | SF5: 1 | SG5: -2 | SH5: 1 | SI5: 1 | SJ5: -1 | SK5: -1 | SL5: 1 | SM5: -1 | SN5: -4 | SO5: -2 | SP5: -1 | SQ5: 1 | SR5: 2 | SS5: 2 | ST5: -1 | SU5: 1 | SV5: -1 | SW5: -1 | SX5: 1 | SY5: 1 | SZ5: -2 | TA5: 2 | TB5: 2 | TC5: -1 | TD5: 2 | TE5: -1 | TF5: 1 | TG5: -2 | TH5: 1 | TI5: 1 | TJ5: -1 | TK5: 2 | TL5: -1 | TM5: -2 | TN5: 2 | TO5: -1 | TP5: -4 | TQ5: -1 | TR5: -1 | TS5: -1 | TT5: 2 | TU5: -2 | TV5: -2 | TW5: -1 | TX5: -2 | TY5: 1 | TZ5: -1 | UA5: -1 | UB5: -1 | UC5: -1 | UD5: 1 | UE5: -2 | UF5: -1 | UG5: -1 | UH5: -1 | UI5: 1 | UJ5: -1 | UK5: -1 | UL5: -1 | UM5: -1 | UN5: -2 | UO5: -2 | UP5: 1 | UQ5: -1 | UR5: -1 | US5: -1 | UT5: 2 | UU5: 1 | UV5: 1 | UW5: 2 | UX5: -1 | UY5: 2 | UZ5: 1 | VA5: 1 | VB5: 2 | VC5: 1 | VD5: 1 | VE5: -1 | VF5: -2 | VG5: -1 | VH5: 1 | VI5: 1 | VJ5: 2 | VK5: 1 | VL5: -1 | VM5: -2 | VN5: -1 | VO5: -1 | VP5: -1 | VQ5: -1 | VR5: -1 | VS5: -1 | VT5: 2 | VU5: -2 | VV5: -1 | VW5: -1 | VX5: -2 | VY5: 1 | VZ5: 1 | WA5: -1 | WB5: -1 | WC5: -1 | WD5: 1 | WE5: -2 | WF5: -1 | WG5: 1 | WH5: -1 | WI5: 1 | WJ5: -1 | WK5: -2 | WL5: -2 | WM5: -2 | WN5: -4 | WO5: -1 | WP5: -2 | WQ5: -2 | WR5: 2 | WS5: 1 | WT5: 2 | WU5: -1 | WV5: 1 | WW5: 1 | WX5: -1 | WY5: -1 | WZ5: 1 | XA5: -1 | XB5: 1 | XC5: -1 | XD5: -1 | XE5: -2 | XF5: 1 | XG5: -1 | XH5: -1 | XI5: 1 | XJ5: -1 | XK5: 1 | XL5: -2 | XM5: 2 | XN5: -1 | XO5: -1 | XP5: -2 | XQ5: -1 | XR5: -2 | XS5: 4 | XT5: -1 | XU5: -2 | XV5: -1 | XW5: 1 | XX5: 1 | XY5: -1 | XZ5: 1 | YA5: -1 | YB5: 1 | YC5: 2 | YD5: -1 | YE5: 1 | YF5: 1 | YG5: -4 | YH5: -1 | YI5: 1 | YJ5: 1 | YK5: -2 | YL5: -2 | YM5: 2 | YN5: 1 | YO5: -2 | YP5: 1 | YQ5: 2 | YR5: 4 | YS5: -1 | YT5: 1 | YU5: -1 | YV5: 2 | YW5: -1 | YX5: -1 | YY5: -1 | YZ5: -1 | ZA5: -2 | ZB5: -1 | ZC5: 1 | ZD5: -1 | ZE5: -1 | ZF5: -1 | ZG5: -1 | ZH5: 1 | ZI5: -4 | ZJ5: 1 | ZK5: -1 | ZL5: -1 | ZM5: 1 | ZN5: 1 | ZO5: 2 | ZP5: -2 | ZQ5: -2 | ZR5: -1 | ZS5: -1 | ZT5: -2 | ZU5: -1 | ZV5: 1 | ZW5: 1 | ZX5: 2 | ZY5: -1 | ZZ5: 2 | AAA5: -1 | AAB5: 1 | AAC5: 1 | AAD5: -1 | AAE5: -1 | AAF5: -2 | AAG5: -1 | AAH5: 2 | AAI5: -2 | AAJ5: 1 | AAK5: -1 | AAL5: -2 | AAM5: -2 | AAN5: -2 | AAO5: 1 | AAP5: 1 | AAQ5: 1 | AAR5: 1 | AAS5: -2 | AAT5: -1 | AAU5: 1 | AAV5: 1 | AAW5: -2 | AAX5: 1 | AAY5: 1 | AAZ5: -2 | ABA5: 2 | ABB5: -1 | ABC5: 1 | ABD5: 1 | ABE5: -4 | ABF5: -2 | ABG5: -1 | ABH5: -1 | ABI5: 1 | ABJ5: 2 | ABK5: 1 | ABL5: 1 | ABM5: -1 | ABN5: -1 | ABO5: -1 | ABP5: -2 | ABQ5: -1 | ABR5: 1 | ABS5: -1 | ABT5: -1 | ABU5: 1 | ABV5: -1 | ABW5: -2 | ABX5: -1 | ABY5: 2 | ABZ5: 1 | ACA5: -1 | ACB5: -1 | ACC5: -1 | ACD5: -2 | ACE5: -1 | ACF5: -1 | ACG5: -1 | ACH5: -1 | ACI5: -1 | ACJ5: -1 | ACK5: -1 | ACL5: -1 | ACM5: 2 | ACN5: -1 | ACO5: 1 | ACP5: -1 | ACQ5: 1 | ACR5: -1 | ACS5: 1 | ACT5: -1 | ACU5: 2 | ACV5: -1 | ACW5: -1 | ACX5: -1 | ACY5: 1 | ACZ5: 1 | ADA5: -1 | ADB5: 1 | ADC5: -1 | ADD5: 1 | ADE5: -1 | ADF5: 4 | ADG5: 1 | ADH5: -2 | ADI5: -1 | ADJ5: -4 | ADK5: -1 | ADL5: 2 | ADM5: 2 | ADN5: 1 | ADO5: 1 | ADP5: 1 | ADQ5: -1 | ADR5: -1 | ADS5: -4 | ADT5: 1 | ADU5: -1 | ADV5: 2 | ADW5: -4 | ADX5: -1 | ADY5: 1 | ADZ5: 4 | AEA5: -1 | AEB5: -2 | AEC5: -1 | AED5: -1 | AEE5: -1 | AEF5: 1 | AEG5: 1 | AEH5: 1 | AEI5: 1 | AEJ5: 1 | AEK5: -1 | AEL5: -1 | AEM5: -1 | AEN5: -2 | AEO5: 1 | AEP5: -1 | AEQ5: 1 | AER5: -1 | AES5: -1 | AET5: -2 | AEU5: 1 | AEV5: 1 | AEW5: 1 | AEX5: -2 | AEY5: -2 | AEZ5: 1 | AFA5: -1 | AFB5: -1 | AFC5: 1 | AFD5: 1 | AFE5: -1 | AFF5: -2 | AFG5: -2 | AFH5: -1 | AFI5: -1 | AFJ5: -4 | AFK5: -1 | AFL5: 2 | AFM5: 1 | AFN5: -1 | AFO5: -1 | AFP5: 1 | AFQ5: 1 | AFR5: 4 | AFS5: -1 | AFT5: 2 | AFU5: 1 | AFV5: 2 | AFW5: -1 | AFX5: -1 | AFY5: -1 | AFZ5: 1 | AGA5: 1 | AGB5: 2 | AGC5: 1 | AGD5: -1 | AGE5: -1 | AGF5: -1 | AGG5: -1 | AGH5: -2 | AGI5: -1 | AGJ5: -1 | AGK5: -1 | AGL5: -1 | AGM5: 1 | AGN5: -1 | AGO5: 4 | AGP5: 2 | AGQ5: -1 | AGR5: 2 | AGS5: 1 | AGT5: -2 | AGU5: 1 | AGV5: 1 | AGW5: -2 | AGX5: 1 | AGY5: -1 | AGZ5: -1 | AHA5: -2 | AHB5: 1 | AHC5: -2 | AHD5: 1 | AHE5: -1 | AHF5: 1 | AHG5: -1 | AHH5: -1 | AHI5: -1 | AHJ5: 4 | AHK5: 1 | AHL5: 1 | AHM5: 1 | AHN5: 2 | AHO5: 1 | AHP5: 2 | AHQ5: -2 | AHR5: -4 | AHS5: -2 | AHT5: -1 | AHU5: 1 | AHV5: 1 | AHW5: 1 | AHX5: -1 | AHY5: 1 | AHZ5: -2 | AIA5: 1 | AIB5: -1 | AIC5: 1 | AID5: 1 | AIE5: -1 | AIF5: -1 | AIG5: -1 | AIH5: 1 | AII5: 1 | AIJ5: -1 | AIK5: -1 | AIL5: -1 | AIM5: 2 | AIN5: 2 | AIO5: 1 | AIP5: -1 | AIQ5: -1 | AIR5: 2 | AIS5: -1 | AIT5: -1 | AIU5: -1 | AIV5: 1 | AIW5: -2 | AIX5: 1 | AIY5: -1 | AIZ5: -1 | AJA5: -2 | AJB5: -1 | AJC5: -1 | AJD5: -1 | AJE5: 1 | AJF5: -1 | AJG5: -1 | AJH5: 1 | AJI5: 4 | AJJ5: -1 | AJK5: 4 | AJL5: -2 | AJM5: -1 | AJN5: -2 | AJO5: -1 | AJP5: -1 | AJQ5: -1 | AJR5: -1 | AJS5: -1 | AJT5: -1 | AJU5: -1 | AJV5: 1 | AJW5: 4 | AJX5: -2 | AJY5: 1 | AJZ5: 2 | AKA5: -1 | AKB5: 2 | AKC5: 2 | AKD5: 1 | AKE5: -1 | AKF5: -1 | AKG5: -4 | AKH5: 1 | AKI5: 1 | AKJ5: -1 | AKK5: -1 | AKL5: 1 | AKM5: 1 | AKN5: -1 | AKO5: 1 | AKP5: 1 | AKQ5: 1 | AKR5: -1 | AKS5: -2 | AKT5: 1 | AKU5: -1 | AKV5: 1 | AKW5: -1 | AKX5: 1 | AKY5: 1 | AKZ5: -1 | ALA5: 2 | ALB5: -1 | ALC5: 1 | ALD5: -1 | ALE5: 2 | ALF5: -1 | ALG5: -1 | ALH5: -1 | ALI5: 1 | ALJ5: 1 | ALK5: 1 | ALL5: 1 | ALM5: -1 | ALN5: -1 | ALO5: -2 | ALP5: -2 | ALQ5: 1 | ALR5: -1 | ALS5: -1 | ALT5: -2 | ALU5: 1 | ALV5: 4 | ALW5: -1 | ALX5: -1 | ALY5: -1 | ALZ5: -1 | AMA5: -1 | AMB5: 2 | AMC5: -1 | AMD5: -1 | AME5: -2 | AMF5: -4 | AMG5: -1 | AMH5: -1 | AMI5: 1 | AMJ5: -1
A6: 1 | B6: -1 | C6: 1 | D6: 1 | E6: 1 | F6: -1 | G6: -1 | H6: 1 | I6: 1 | J6: 1 | K6: 1 | L6: 1 | M6: 1 | N6: -1 | O6: -1 | P6: -1 | Q6: -1 | R6: -1 | S6: -1 | T6: 1 | U6: -1 | V6: 1 | W6: -1 | X6: -1 | Y6: 1 | Z6: 1 | AA6: -1 | AB6: -1 | AC6: -1 | AD6: -1 | AE6: 1 | AF6: -1 | AG6: 1 | AH6: -1 | AI6: -1 | AJ6: -1 | AK6: -1 | AL6: -1 | AM6: 1 | AN6: -1 | AO6: 1 | AP6: 2 | AQ6: 1 | AR6: 1 | AS6: -1 | AT6: 1 | AU6: -1 | AV6: 1 | AW6: -1 | AX6: 1 | AY6: 1 | AZ6: -1 | BA6: -1 | BB6: -1 | BC6: -1 | BD6: -1 | BE6: -1 | BF6: -1 | BG6: -1 | BH6: 1 | BI6: -1 | BJ6: 1 | BK6: -1 | BL6: 1 | BM6: -1 | BN6: -1 | BO6: -1 | BP6: -1 | BQ6: 1 | BR6: 1 | BS6: 1 | BT6: 1 | BU6: 1 | BV6: 1 | BW6: 1 | BX6: 1 | BY6: -1 | BZ6: -1 | CA6: -1 | CB6: 1 | CC6: 1 | CD6: 1 | CE6: -2 | CF6: -1 | CG6: 2 | CH6: 1 | CI6: 1 | CJ6: 1 | CK6: 1 | CL6: 1 | CM6: 1 | CN6: -1 | CO6: -1 | CP6: 1 | CQ6: -1 | CR6: -1 | CS6: -1 | CT6: -1 | CU6: -1 | CV6: -1 | CW6: -1 | CX6: -1 | CY6: 1 | CZ6: 1 | DA6: 1 | DB6: -1 | DC6: -1 | DD6: -1 | DE6: 1 | DF6: 1 | DG6: 1 | DH6: -1 | DI6: -1 | DJ6: -1 | DK6: 2 | DL6: -1 | DM6: 1 | DN6: -2 | DO6: 1 | DP6: -1 | DQ6: -1 | DR6: 1 | DS6: 1 | DT6: -1 | DU6: 1 | DV6: 1 | DW6: 1 | DX6: -1 | DY6: 1 | DZ6: -1 | EA6: 1 | EB6: -1 | EC6: -1 | ED6: 1 | EE6: 1 | EF6: -1 | EG6: -1 | EH6: 2 | EI6: -1 | EJ6: -1 | EK6: 2 | EL6: 1 | EM6: 1 | EN6: -1 | EO6: 1 | EP6: -1 | EQ6: 1 | ER6: -1 | ES6: 1 | ET6: 1 | EU6: 1 | EV6: 1 | EW6: -2 | EX6: 1 | EY6: 1 | EZ6: -2 | FA6: 1 | FB6: 1 | FC6: -1 | FD6: 1 | FE6: -1 | FF6: 1 | FG6: 1 | FH6: -1 | FI6: 1 | FJ6: -1 | FK6: 1 | FL6: -1 | FM6: 1 | FN6: 1 | FO6: 1 | FP6: -1 | FQ6: -1 | FR6: 1 | FS6: 1 | FT6: 1 | FU6: -1 | FV6: 1 | FW6: -1 | FX6: 1 | FY6: -1 | FZ6: 2 | GA6: -1 | GB6: -1 | GC6: -1 | GD6: -1 | GE6: -1 | GF6: -1 | GG6: 1 | GH6: 1 | GI6: -1 | GJ6: 1 | GK6: 1 | GL6: 1 | GM6: -1 | GN6: 1 | GO6: 1 | GP6: 1 | GQ6: -1 | GR6: -1 | GS6: 1 | GT6: -2 | GU6: 1 | GV6: 1 | GW6: 1 | GX6: -1 | GY6: 1 | GZ6: 1 | HA6: 4 | HB6: -1 | HC6: -1 | HD6: 2 | HE6: -1 | HF6: 1 | HG6: 1 | HH6: 1 | HI6: 1 | HJ6: 1 | HK6: -1 | HL6: -1 | HM6: 1 | HN6: 1 | HO6: -1 | HP6: 1 | HQ6: -1 | HR6: 1 | HS6: -1 | HT6: 1 | HU6: -1 | HV6: 1 | HW6: -1 | HX6: -1 | HY6: 1 | HZ6: 1 | IA6: -1 | IB6: 1 | IC6: 1 | ID6: 1 | IE6: -1 | IF6: 1 | IG6: -1 | IH6: 1 | II6: -2 | IJ6: 1 | IK6: -1 | IL6: 1 | IM6: 1 | IN6: 1 | IO6: 1 | IP6: -1 | IQ6: 1 | IR6: 2 | IS6: -1 | IT6: 1 | IU6: -1 | IV6: -1 | IW6: -1 | IX6: 1 | IY6: -1 | IZ6: -1 | JA6: -1 | JB6: -1 | JC6: 1 | JD6: 2 | JE6: -1 | JF6: 1 | JG6: 1 | JH6: -1 | JI6: -1 | JJ6: 1 | JK6: -1 | JL6: 1 | JM6: 1 | JN6: -1 | JO6: -1 | JP6: 1 | JQ6: -1 | JR6: 2 | JS6: -1 | JT6: 1 | JU6: -1 | JV6: -1 | JW6: 1 | JX6: 1 | JY6: 1 | JZ6: -1 | KA6: 1 | KB6: -1 | KC6: 1 | KD6: -1 | KE6: -1 | KF6: 1 | KG6: -1 | KH6: -1 | KI6: 1 | KJ6: 1 | KK6: 1 | KL6: -1 | KM6: 1 | KN6: 2 | KO6: 1 | KP6: -1 | KQ6: -1 | KR6: 1 | KS6: 1 | KT6: 2 | KU6: 1 | KV6: 1 | KW6: 1 | KX6: -1 | KY6: -1 | KZ6: -2 | LA6: -2 | LB6: -1 | LC6: 1 | LD6: -1 | LE6: 1 | LF6: -1 | LG6: 1 | LH6: 1 | LI6: 1 | LJ6: -1 | LK6: -2 | LL6: -1 | LM6: 1 | LN6: 1 | LO6: -1 | LP6: 1 | LQ6: 1 | LR6: 1 | LS6: 1 | LT6: 1 | LU6: -1 | LV6: 1 | LW6: -1 | LX6: -1 | LY6: 1 | LZ6: 1 | MA6: 1 | MB6: 2 | MC6: -1 | MD6: -1 | ME6: -1 | MF6: 1 | MG6: 1 | MH6: -1 | MI6: 1 | MJ6: -1 | MK6: 1 | ML6: 1 | MM6: 1 | MN6: 1 | MO6: -1 | MP6: 1 | MQ6: 1 | MR6: -1 | MS6: -1 | MT6: -1 | MU6: -1 | MV6: -1 | MW6: 1 | MX6: -1 | MY6: 1 | MZ6: -1 | NA6: 1 | NB6: 1 | NC6: 1 | ND6: 1 | NE6: 1 | NF6: 1 | NG6: -1 | NH6: -1 | NI6: -1 | NJ6: 1 | NK6: 1 | NL6: -1 | NM6: 1 | NN6: -1 | NO6: -1 | NP6: -1 | NQ6: -1 | NR6: -1 | NS6: -1 | NT6: 1 | NU6: -1 | NV6: 1 | NW6: 1 | NX6: 1 | NY6: -1 | NZ6: -1 | OA6: -1 | OB6: 1 | OC6: 1 | OD6: -1 | OE6: -1 | OF6: 1 | OG6: 1 | OH6: -1 | OI6: -1 | OJ6: -1 | OK6: 1 | OL6: 1 | OM6: 1 | ON6: 1 | OO6: -1 | OP6: -1 | OQ6: -1 | OR6: 1 | OS6: -1 | OT6: -1 | OU6: -1 | OV6: 2 | OW6: -1 | OX6: -1 | OY6: -1 | OZ6: 1 | PA6: 1 | PB6: -1 | PC6: -2 | PD6: -1 | PE6: 1 | PF6: 2 | PG6: 2 | PH6: -1 | PI6: -1 | PJ6: -1 | PK6: -1 | PL6: -1 | PM6: -1 | PN6: 1 | PO6: 1 | PP6: 1 | PQ6: -2 | PR6: 1 | PS6: 1 | PT6: 1 | PU6: -1 | PV6: -1 | PW6: -2 | PX6: 1 | PY6: -1 | PZ6: 1 | QA6: -1 | QB6: 1 | QC6: 1 | QD6: -1 | QE6: -1 | QF6: 1 | QG6: -1 | QH6: -1 | QI6: -1 | QJ6: -1 | QK6: -1 | QL6: 1 | QM6: -1 | QN6: -2 | QO6: 1 | QP6: 1 | QQ6: -1 | QR6: -1 | QS6: 1 | QT6: 1 | QU6: 1 | QV6: -1 | QW6: 1 | QX6: 2 | QY6: -2 | QZ6: -1 | RA6: -1 | RB6: -1 | RC6: -1 | RD6: -1 | RE6: 1 | RF6: -1 | RG6: -1 | RH6: -2 | RI6: -1 | RJ6: 1 | RK6: -1 | RL6: -1 | RM6: -1 | RN6: 2 | RO6: -1 | RP6: -1 | RQ6: 1 | RR6: 1 | RS6: 1 | RT6: 1 | RU6: 1 | RV6: -1 | RW6: -1 | RX6: 1 | RY6: -1 | RZ6: -1 | SA6: -1 | SB6: 1 | SC6: 1 | SD6: 1 | SE6: 1 | SF6: -1 | SG6: -1 | SH6: -1 | SI6: -1 | SJ6: 1 | SK6: 1 | SL6: 1 | SM6: -1 | SN6: 2 | SO6: -1 | SP6: -2 | SQ6: -1 | SR6: -1 | SS6: -1 | ST6: -1 | SU6: 1 | SV6: -1 | SW6: 1 | SX6: 1 | SY6: -1 | SZ6: -1 | TA6: -1 | TB6: 1 | TC6: 1 | TD6: -1 | TE6: -1 | TF6: -1 | TG6: 1 | TH6: -1 | TI6: -1 | TJ6: -1 | TK6: 1 | TL6: 1 | TM6: 1 | TN6: -1 | TO6: 1 | TP6: -1 | TQ6: 1 | TR6: -1 | TS6: 1 | TT6: -1 | TU6: 1 | TV6: -1 | TW6: 1 | TX6: 1 | TY6: -1 | TZ6: 1 | UA6: 1 | UB6: 1 | UC6: 1 | UD6: -1 | UE6: 1 | UF6: 1 | UG6: -1 | UH6: 1 | UI6: -2 | UJ6: 1 | UK6: 1 | UL6: 1 | UM6: -2 | UN6: -1 | UO6: -1 | UP6: 1 | UQ6: -1 | UR6: 1 | US6: 1 | UT6: -1 | UU6: -2 | UV6: 1 | UW6: 2 | UX6: -1 | UY6: 1 | UZ6: -1 | VA6: 1 | VB6: 1 | VC6: 1 | VD6: 1 | VE6: 1 | VF6: 1 | VG6: 2 | VH6: -1 | VI6: 1 | VJ6: 1 | VK6: -1 | VL6: 1 | VM6: 1 | VN6: 1 | VO6: -1 | VP6: -1 | VQ6: -1 | VR6: -1 | VS6: 1 | VT6: -1 | VU6: -1 | VV6: -1 | VW6: -1 | VX6: -1 | VY6: 1 | VZ6: -1 | WA6: -1 | WB6: 1 | WC6: -1 | WD6: 1 | WE6: -1 | WF6: 1 | WG6: -1 | WH6: 1 | WI6: -1 | WJ6: -1 | WK6: -1 | WL6: -1 | WM6: 1 | WN6: -1 | WO6: 1 | WP6: 1 | WQ6: 1 | WR6: 1 | WS6: -1 | WT6: -1 | WU6: -1 | WV6: -1 | WW6: 1 | WX6: -1 | WY6: -2 | WZ6: 2 | XA6: 1 | XB6: -2 | XC6: -1 | XD6: -1 | XE6: -2 | XF6: -1 | XG6: -1 | XH6: -1 | XI6: 1 | XJ6: 1 | XK6: -1 | XL6: -2 | XM6: 1 | XN6: 1 | XO6: 1 | XP6: 1 | XQ6: 1 | XR6: 1 | XS6: 1 | XT6: -1 | XU6: 1 | XV6: 1 | XW6: -1 | XX6: -1 | XY6: 1 | XZ6: 1 | YA6: -1 | YB6: -1 | YC6: 1 | YD6: -1 | YE6: -2 | YF6: 1 | YG6: -1 | YH6: 1 | YI6: -1 | YJ6: 1 | YK6: 1 | YL6: 1 | YM6: 1 | YN6: -1 | YO6: -1 | YP6: -1 | YQ6: 1 | YR6: -1 | YS6: -1 | YT6: -1 | YU6: 1 | YV6: -1 | YW6: 2 | YX6: 1 | YY6: -1 | YZ6: 1 | ZA6: -1 | ZB6: -1 | ZC6: -1 | ZD6: 1 | ZE6: -2 | ZF6: 1 | ZG6: 1 | ZH6: -1 | ZI6: 1 | ZJ6: 1 | ZK6: -1 | ZL6: 1 | ZM6: -2 | ZN6: -1 | ZO6: -1 | ZP6: 1 | ZQ6: -1 | ZR6: 1 | ZS6: 1 | ZT6: -1 | ZU6: -1 | ZV6: 1 | ZW6: 1 | ZX6: 1 | ZY6: 1 | ZZ6: 1 | AAA6: 1 | AAB6: 2 | AAC6: -1 | AAD6: -1 | AAE6: 1 | AAF6: -1 | AAG6: 1 | AAH6: -1 | AAI6: 1 | AAJ6: 1 | AAK6: 1 | AAL6: -1 | AAM6: 1 | AAN6: -1 | AAO6: 1 | AAP6: -1 | AAQ6: 1 | AAR6: 1 | AAS6: -1 | AAT6: -1 | AAU6: -1 | AAV6: 1 | AAW6: -1 | AAX6: -1 | AAY6: -1 | AAZ6: -1 | ABA6: -1 | ABB6: -1 | ABC6: -1 | ABD6: -1 | ABE6: 1 | ABF6: 1 | ABG6: 1 | ABH6: -1 | ABI6: 1 | ABJ6: 1 | ABK6: -1 | ABL6: 1 | ABM6: 1 | ABN6: 1 | ABO6: -1 | ABP6: 1 | ABQ6: 2 | ABR6: -1 | ABS6: -1 | ABT6: 1 | ABU6: -1 | ABV6: -2 | ABW6: -1 | ABX6: -1 | ABY6: 1 | ABZ6: -1 | ACA6: 1 | ACB6: 1 | ACC6: 1 | ACD6: -1 | ACE6: -1 | ACF6: -1 | ACG6: -1 | ACH6: 1 | ACI6: -1 | ACJ6: -1 | ACK6: -1 | ACL6: 1 | ACM6: 1 | ACN6: -1 | ACO6: 1 | ACP6: -1 | ACQ6: -2 | ACR6: 1 | ACS6: 1 | ACT6: 1 | ACU6: -1 | ACV6: 1 | ACW6: 1 | ACX6: 1 | ACY6: -1 | ACZ6: 1 | ADA6: 1 | ADB6: 1 | ADC6: 1 | ADD6: -1 | ADE6: 1 | ADF6: 1 | ADG6: 1 | ADH6: -1 | ADI6: -1 | ADJ6: -1 | ADK6: -1 | ADL6: 2 | ADM6: 1 | ADN6: 1 | ADO6: -1 | ADP6: -2 | ADQ6: -1 | ADR6: 1 | ADS6: 1 | ADT6: -1 | ADU6: -1 | ADV6: 2 | ADW6: -1 | ADX6: 1 | ADY6: -1 | ADZ6: -1 | AEA6: -1 | AEB6: 1 | AEC6: -1 | AED6: -1 | AEE6: -1 | AEF6: -1 | AEG6: 1 | AEH6: 1 | AEI6: 1 | AEJ6: -1 | AEK6: 1 | AEL6: 1 | AEM6: -1 | AEN6: -1 | AEO6: 1 | AEP6: -1 | AEQ6: 1 | AER6: -2 | AES6: 1 | AET6: -1 | AEU6: 1 | AEV6: 1 | AEW6: -1 | AEX6: 1 | AEY6: -1 | AEZ6: 1 | AFA6: 1 | AFB6: 1 | AFC6: -1 | AFD6: 1 | AFE6: 1 | AFF6: 1 | AFG6: 1 | AFH6: -1 | AFI6: 1 | AFJ6: -1 | AFK6: -1 | AFL6: -1 | AFM6: -1 | AFN6: 1 | AFO6: 1 | AFP6: -2 | AFQ6: -1 | AFR6: 1 | AFS6: 1 | AFT6: -1 | AFU6: -1 | AFV6: -1 | AFW6: 1 | AFX6: -1 | AFY6: 1 | AFZ6: 1 | AGA6: 1 | AGB6: -1 | AGC6: -1 | AGD6: -1 | AGE6: -1 | AGF6: 1 | AGG6: -1 | AGH6: -1 | AGI6: 1 | AGJ6: -1 | AGK6: -1 | AGL6: 1 | AGM6: 1 | AGN6: -1 | AGO6: -1 | AGP6: 1 | AGQ6: -1 | AGR6: -1 | AGS6: -1 | AGT6: 1 | AGU6: 1 | AGV6: 1 | AGW6: -1 | AGX6: 1 | AGY6: 1 | AGZ6: 1 | AHA6: -1 | AHB6: -2 | AHC6: -1 | AHD6: 1 | AHE6: -1 | AHF6: 1 | AHG6: 1 | AHH6: 2 | AHI6: -1 | AHJ6: 1 | AHK6: 1 | AHL6: 1 | AHM6: -1 | AHN6: 1 | AHO6: -2 | AHP6: -1 | AHQ6: 1 | AHR6: 2 | AHS6: -2 | AHT6: -1 | AHU6: -1 | AHV6: -1 | AHW6: 1 | AHX6: -1 | AHY6: 1 | AHZ6: 1 | AIA6: -1 | AIB6: -1 | AIC6: 2 | AID6: -1 | AIE6: 1 | AIF6: -1 | AIG6: 1 | AIH6: 1 | AII6: 1 | AIJ6: 1 | AIK6: -1 | AIL6: 1 | AIM6: 1 | AIN6: -1 | AIO6: -1 | AIP6: -1 | AIQ6: 1 | AIR6: -1 | AIS6: -1 | AIT6: 1 | AIU6: 1 | AIV6: -1 | AIW6: 1 | AIX6: -1 | AIY6: 1 | AIZ6: 1 | AJA6: -1 | AJB6: 1 | AJC6: 1 | AJD6: 1 | AJE6: -1 | AJF6: 1 | AJG6: -1 | AJH6: 1 | AJI6: 1 | AJJ6: 1 | AJK6: -1 | AJL6: -1 | AJM6: -1 | AJN6: -1 | AJO6: -1 | AJP6: -1 | AJQ6: -1 | AJR6: -1 | AJS6: 1 | AJT6: 1 | AJU6: 1 | AJV6: 1 | AJW6: 1 | AJX6: -1 | AJY6: -1 | AJZ6: 1 | AKA6: -1 | AKB6: -1 | AKC6: 1 | AKD6: 1 | AKE6: 1 | AKF6: 1 | AKG6: -1 | AKH6: -1 | AKI6: -2 | AKJ6: -1 | AKK6: 1 | AKL6: 1 | AKM6: -2 | AKN6: 1 | AKO6: -1 | AKP6: -1 | AKQ6: 1 | AKR6: 1 | AKS6: -1 | AKT6: -1 | AKU6: 1 | AKV6: 1 | AKW6: -1 | AKX6: 1 | AKY6: -1 | AKZ6: -1 | ALA6: -1 | ALB6: -1 | ALC6: 1 | ALD6: -1 | ALE6: -1 | ALF6: -1 | ALG6: 1 | ALH6: -1 | ALI6: 2 | ALJ6: -1 | ALK6: 1 | ALL6: -1 | ALM6: -1 | ALN6: -1 | ALO6: 1 | ALP6: 1 | ALQ6: -2 | ALR6: 1 | ALS6: -1 | ALT6: -1 | ALU6: 2 | ALV6: 1 | ALW6: -1 | ALX6: -1 | ALY6: -1 | ALZ6: 1 | AMA6: 1 | AMB6: 1 | AMC6: 1 | AMD6: -1 | AME6: -1 | AMF6: -1 | AMG6: 1 | AMH6: 2 | AMI6: -1 | AMJ6: -1
A7: -1 | B7: 2 | C7: -1 | D7: 1 | E7: -1 | F7: 1 | G7: -1 | H7: 1 | I7: -1 | J7: -4 | K7: 1 | L7: 2 | M7: -2 | N7: 1 | O7: -1 | P7: 1 | Q7: 2 | R7: 1 | S7: 1 | T7: 1 | U7: -4 | V7: -2 | W7: -2 | X7: 1 | Y7: 2 | Z7: -1 | AA7: 1 | AB7: -1 | AC7: -1 | AD7: -1 | AE7: 2 | AF7: 2 | AG7: 1 | AH7: 1 | AI7: 1 | AJ7: -1 | AK7: -1 | AL7: 1 | AM7: -1 | AN7: -1 | AO7: -2 | AP7: 2 | AQ7: 1 | AR7: -1 | AS7: 1 | AT7: -1 | AU7: 1 | AV7: -1 | AW7: -1 | AX7: 1 | AY7: -1 | AZ7: -1 | BA7: -2 | BB7: -1 | BC7: 1 | BD7: -1 | BE7: -1 | BF7: -1 | BG7: 4 | BH7: 1 | BI7: -1 | BJ7: -1 | BK7: 1 | BL7: 1 | BM7: 4 | BN7: 4 | BO7: -2 | BP7: -1 | BQ7: 1 | BR7: -1 | BS7: -2 | BT7: 4 | BU7: -1 | BV7: 2 | BW7: 1 | BX7: -4 | BY7: -1 | BZ7: -4 | CA7: -1 | CB7: -2 | CC7: -2 | CD7: 1 | CE7: 1 | CF7: -2 | CG7: -4 | CH7: -1 | CI7: 1 | CJ7: 1 | CK7: -1 | CL7: 1 | CM7: 1 | CN7: -1 | CO7: -1 | CP7: -1 | CQ7: -1 | CR7: -1 | CS7: 1 | CT7: -1 | CU7: -2 | CV7: 1 | CW7: -1 | CX7: 2 | CY7: -1 | CZ7: -1 | DA7: 2 | DB7: -1 | DC7: 1 | DD7: -1 | DE7: -2 | DF7: 2 | DG7: -1 | DH7: -2 | DI7: -2 | DJ7: 1 | DK7: -1 | DL7: -1 | DM7: -1 | DN7: -1 | DO7: -2 | DP7: 1 | DQ7: 4 | DR7: -2 | DS7: 1 | DT7: -1 | DU7: 1 | DV7: 1 | DW7: 2 | DX7: -1 | DY7: 2 | DZ7: -2 | EA7: -1 | EB7: 2 | EC7: -1 | ED7: 4 | EE7: -1 | EF7: 1 | EG7: -2 | EH7: -1 | EI7: -1 | EJ7: 1 | EK7: 4 | EL7: 1 | EM7: 1 | EN7: 1 | EO7: 2 | EP7: 1 | EQ7: 1 | ER7: -1 | ES7: 1 | ET7: 2 | EU7: 1 | EV7: -1 | EW7: -1 | EX7: 4 | EY7: 2 | EZ7: -1 | FA7: 2 | FB7: -1 | FC7: -4 | FD7: -1 | FE7: 4 | FF7: -1 | FG7: -4 | FH7: 1 | FI7: 4 | FJ7: 2 | FK7: -1 | FL7: -1 | FM7: -4 | FN7: -2 | FO7: 1 | FP7: -1 | FQ7: -1 | FR7: -1 | FS7: 2 | FT7: -4 | FU7: -1 | FV7: -1 | FW7: -2 | FX7: -1 | FY7: 1 | FZ7: 1 | GA7: 1 | GB7: -1 | GC7: 1 | GD7: -1 | GE7: -2 | GF7: -1 | GG7: 1 | GH7: -1 | GI7: -1 | GJ7: -1 | GK7: 1 | GL7: 1 | GM7: -1 | GN7: -1 | GO7: -1 | GP7: -2 | GQ7: 1 | GR7: 2 | GS7: -2 | GT7: 1 | GU7: 2 | GV7: -1 | GW7: 1 | GX7: 2 | GY7: 2 | GZ7: -2 | HA7: 1 | HB7: 2 | HC7: -2 | HD7: 2 | HE7: 4 | HF7: -1 | HG7: 2 | HH7: -1 | HI7: -1 | HJ7: 1 | HK7: -1 | HL7: 2 | HM7: 1 | HN7: 2 | HO7: -1 | HP7: -2 | HQ7: -1 | HR7: 1 | HS7: -1 | HT7: -4 | HU7: -1 | HV7: -2 | HW7: -2 | HX7: 1 | HY7: -2 | HZ7: -1 | IA7: -1 | IB7: 1 | IC7: -1 | ID7: -2 | IE7: 4 | IF7: -2 | IG7: 2 | IH7: 1 | II7: 2 | IJ7: -2 | IK7: -1 | IL7: -4 | IM7: -2 | IN7: 2 | IO7: 4 | IP7: 2 | IQ7: -1 | IR7: -1 | IS7: -1 | IT7: 1 | IU7: 2 | IV7: 1 | IW7: 4 | IX7: 2 | IY7: -2 | IZ7: -1 | JA7: 2 | JB7: 4 | JC7: -1 | JD7: -1 | JE7: -1 | JF7: -4 | JG7: -1 | JH7: 1 | JI7: 1 | JJ7: -2 | JK7: 4 | JL7: 1 | JM7: -1 | JN7: -1 | JO7: -1 | JP7: -1 | JQ7: 1 | JR7: -2 | JS7: 2 | JT7: -1 | JU7: -1 | JV7: 1 | JW7: -1 | JX7: -2 | JY7: -2 | JZ7: -1 | KA7: 2 | KB7: 2 | KC7: -2 | KD7: -1 | KE7: 2 | KF7: -1 | KG7: 4 | KH7: 2 | KI7: -1 | KJ7: 2 | KK7: 1 | KL7: 1 | KM7: -2 | KN7: -1 | KO7: 2 | KP7: 1 | KQ7: 2 | KR7: -1 | KS7: -1 | KT7: -1 | KU7: 1 | KV7: -2 | KW7: -2 | KX7: -1 | KY7: -4 | KZ7: -1 | LA7: -1 | LB7: 2 | LC7: -1 | LD7: -1 | LE7: -1 | LF7: 1 | LG7: -1 | LH7: 2 | LI7: -4 | LJ7: 1 | LK7: 1 | LL7: -1 | LM7: 1 | LN7: -1 | LO7: -1 | LP7: 1 | LQ7: -2 | LR7: -1 | LS7: 1 | LT7: 1 | LU7: 1 | LV7: 1 | LW7: 1 | LX7: 4 | LY7: -1 | LZ7: 1 | MA7: 1 | MB7: -1 | MC7: 1 | MD7: -1 | ME7: 2 | MF7: -1 | MG7: -2 | MH7: 2 | MI7: 1 | MJ7: 2 | MK7: -1 | ML7: -1 | MM7: 1 | MN7: 1 | MO7: 1 | MP7: -1 | MQ7: 1 | MR7: -2 | MS7: -1 | MT7: 1 | MU7: 1 | MV7: -1 | MW7: -2 | MX7: -2 | MY7: 2 | MZ7: -1 | NA7: -2 | NB7: 1 | NC7: -2 | ND7: -2 | NE7: -2 | NF7: 1 | NG7: 1 | NH7: 2 | NI7: -1 | NJ7: 1 | NK7: -1 | NL7: -2 | NM7: -1 | NN7: 1 | NO7: 1 | NP7: 2 | NQ7: -1 | NR7: -1 | NS7: 2 | NT7: -1 | NU7: -1 | NV7: -1 | NW7: 1 | NX7: -1 | NY7: 1 | NZ7: 1 | OA7: 1 | OB7: -1 | OC7: -2 | OD7: 1 | OE7: -1 | OF7: -1 | OG7: 2 | OH7: 2 | OI7: -1 | OJ7: 4 | OK7: -1 | OL7: 1 | OM7: 1 | ON7: 1 | OO7: 1 | OP7: -1 | OQ7: -1 | OR7: -2 | OS7: 1 | OT7: -4 | OU7: -1 | OV7: 1 | OW7: -1 | OX7: 1 | OY7: 1 | OZ7: -1 | PA7: -4 | PB7: 1 | PC7: -4 | PD7: -2 | PE7: 1 | PF7: -2 | PG7: -1 | PH7: -1 | PI7: -1 | PJ7: 2 | PK7: 4 | PL7: -4 | PM7: -1 | PN7: -2 | PO7: 2 | PP7: -2 | PQ7: -2 | PR7: -1 | PS7: -1 | PT7: 2 | PU7: -1 | PV7: 1 | PW7: -1 | PX7: 1 | PY7: 2 | PZ7: 2 | QA7: -1 | QB7: 2 | QC7: -2 | QD7: -2 | QE7: -1 | QF7: -1 | QG7: 2 | QH7: -2 | QI7: 2 | QJ7: 1 | QK7: -1 | QL7: -1 | QM7: -1 | QN7: 1 | QO7: 1 | QP7: -1 | QQ7: -1 | QR7: 2 | QS7: -1 | QT7: -1 | QU7: 1 | QV7: -2 | QW7: 1 | QX7: -1 | QY7: 1 | QZ7: 1 | RA7: 1 | RB7: -1 | RC7: -1 | RD7: 1 | RE7: -1 | RF7: -1 | RG7: 2 | RH7: -1 | RI7: 2 | RJ7: 1 | RK7: 1 | RL7: -1 | RM7: 2 | RN7: 1 | RO7: -1 | RP7: -1 | RQ7: -1 | RR7: -1 | RS7: -1 | RT7: -2 | RU7: -2 | RV7: 1 | RW7: 4 | RX7: -1 | RY7: 1 | RZ7: -2 | SA7: -4 | SB7: -1 | SC7: -1 | SD7: 2 | SE7: 1 | SF7: 1 | SG7: 1 | SH7: -2 | SI7: 1 | SJ7: -2 | SK7: -1 | SL7: 1 | SM7: 1 | SN7: -2 | SO7: -2 | SP7: -1 | SQ7: -2 | SR7: 2 | SS7: 4 | ST7: -1 | SU7: -1 | SV7: -2 | SW7: 2 | SX7: -1 | SY7: -1 | SZ7: 1 | TA7: -1 | TB7: -2 | TC7: -2 | TD7: -1 | TE7: -1 | TF7: 1 | TG7: -4 | TH7: 1 | TI7: 2 | TJ7: 2 | TK7: 2 | TL7: 2 | TM7: 1 | TN7: 1 | TO7: 1 | TP7: 2 | TQ7: 1 | TR7: 2 | TS7: -2 | TT7: 1 | TU7: -4 | TV7: -4 | TW7: -1 | TX7: 2 | TY7: -2 | TZ7: 1 | UA7: 1 | UB7: -2 | UC7: -1 | UD7: -1 | UE7: -2 | UF7: -2 | UG7: 1 | UH7: 1 | UI7: 1 | UJ7: -1 | UK7: -2 | UL7: -1 | UM7: -1 | UN7: -2 | UO7: 1 | UP7: -2 | UQ7: 2 | UR7: 2 | US7: -1 | UT7: -1 | UU7: -1 | UV7: 1 | UW7: 1 | UX7: -1 | UY7: -1 | UZ7: -1 | VA7: 1 | VB7: -1 | VC7: 1 | VD7: 2 | VE7: -2 | VF7: -1 | VG7: -2 | VH7: 1 | VI7: 1 | VJ7: 1 | VK7: -2 | VL7: 2 | VM7: 1 | VN7: 2 | VO7: 4 | VP7: -2 | VQ7: -1 | VR7: 1 | VS7: 2 | VT7: 1 | VU7: -1 | VV7: -1 | VW7: -1 | VX7: -1 | VY7: -1 | VZ7: -1 | WA7: -1 | WB7: 2 | WC7: -1 | WD7: -1 | WE7: -4 | WF7: -1 | WG7: 4 | WH7: 1 | WI7: -2 | WJ7: -2 | WK7: -1 | WL7: -4 | WM7: 2 | WN7: 1 | WO7: -2 | WP7: -1 | WQ7: -1 | WR7: -1 | WS7: -1 | WT7: 1 | WU7: 1 | WV7: -1 | WW7: -1 | WX7: -1 | WY7: 1 | WZ7: 1 | XA7: 4 | XB7: 2 | XC7: -1 | XD7: -2 | XE7: -1 | XF7: 1 | XG7: -1 | XH7: 2 | XI7: 1 | XJ7: -1 | XK7: 1 | XL7: -2 | XM7: 1 | XN7: 1 | XO7: -2 | XP7: 1 | XQ7: 1 | XR7: -4 | XS7: 2 | XT7: -1 | XU7: 1 | XV7: -4 | XW7: -1 | XX7: -1 | XY7: -1 | XZ7: 4 | YA7: -2 | YB7: -1 | YC7: -1 | YD7: 2 | YE7: 1 | YF7: -2 | YG7: 4 | YH7: -1 | YI7: -1 | YJ7: 2 | YK7: -1 | YL7: -2 | YM7: 1 | YN7: 4 | YO7: 2 | YP7: 1 | YQ7: 1 | YR7: 2 | YS7: 1 | YT7: -2 | YU7: 1 | YV7: 4 | YW7: 2 | YX7: -1 | YY7: 1 | YZ7: 1 | ZA7: 2 | ZB7: -1 | ZC7: -1 | ZD7: -2 | ZE7: -1 | ZF7: 2 | ZG7: 2 | ZH7: 1 | ZI7: -1 | ZJ7: -1 | ZK7: -1 | ZL7: 2 | ZM7: -1 | ZN7: -2 | ZO7: 1 | ZP7: 2 | ZQ7: -1 | ZR7: -2 | ZS7: -1 | ZT7: 1 | ZU7: -2 | ZV7: 1 | ZW7: -2 | ZX7: 4 | ZY7: -2 | ZZ7: -1 | AAA7: 2 | AAB7: -1 | AAC7: -1 | AAD7: -1 | AAE7: 1 | AAF7: -1 | AAG7: -1 | AAH7: 2 | AAI7: 1 | AAJ7: -1 | AAK7: 2 | AAL7: 2 | AAM7: -1 | AAN7: -1 | AAO7: -2 | AAP7: -1 | AAQ7: -1 | AAR7: 2 | AAS7: -4 | AAT7: -1 | AAU7: -1 | AAV7: -1 | AAW7: 1 | AAX7: 1 | AAY7: -1 | AAZ7: 1 | ABA7: 1 | ABB7: 1 | ABC7: 1 | ABD7: -1 | ABE7: -1 | ABF7: 1 | ABG7: -1 | ABH7: -1 | ABI7: -1 | ABJ7: 2 | ABK7: 1 | ABL7: 1 | ABM7: -1 | ABN7: 1 | ABO7: -1 | ABP7: -1 | ABQ7: -1 | ABR7: -2 | ABS7: 1 | ABT7: -2 | ABU7: 1 | ABV7: -2 | ABW7: 1 | ABX7: 1 | ABY7: -2 | ABZ7: -1 | ACA7: -1 | ACB7: 2 | ACC7: -2 | ACD7: -2 | ACE7: 1 | ACF7: -1 | ACG7: 2 | ACH7: 1 | ACI7: 1 | ACJ7: 2 | ACK7: -1 | ACL7: 1 | ACM7: 2 | ACN7: 2 | ACO7: 1 | ACP7: -1 | ACQ7: -1 | ACR7: 2 | ACS7: 1 | ACT7: 1 | ACU7: -1 | ACV7: 2 | ACW7: 1 | ACX7: -2 | ACY7: 1 | ACZ7: 4 | ADA7: -1 | ADB7: 2 | ADC7: 1 | ADD7: 1 | ADE7: -1 | ADF7: -2 | ADG7: -2 | ADH7: -1 | ADI7: 1 | ADJ7: 4 | ADK7: -1 | ADL7: 2 | ADM7: -1 | ADN7: -2 | ADO7: -2 | ADP7: -1 | ADQ7: 1 | ADR7: -2 | ADS7: -2 | ADT7: -1 | ADU7: -1 | ADV7: -1 | ADW7: -2 | ADX7: 1 | ADY7: -1 | ADZ7: 1 | AEA7: 1 | AEB7: 1 | AEC7: -1 | AED7: -2 | AEE7: -2 | AEF7: 1 | AEG7: -1 | AEH7: 1 | AEI7: -4 | AEJ7: -1 | AEK7: -1 | AEL7: 1 | AEM7: 1 | AEN7: -1 | AEO7: 2 | AEP7: 1 | AEQ7: -1 | AER7: 2 | AES7: 1 | AET7: -1 | AEU7: -1 | AEV7: -1 | AEW7: -1 | AEX7: -2 | AEY7: -1 | AEZ7: 1 | AFA7: -1 | AFB7: 1 | AFC7: 1 | AFD7: 1 | AFE7: 1 | AFF7: -1 | AFG7: -1 | AFH7: 1 | AFI7: 1 | AFJ7: 2 | AFK7: -1 | AFL7: 1 | AFM7: 1 | AFN7: -1 | AFO7: 1 | AFP7: -1 | AFQ7: 1 | AFR7: -1 | AFS7: 1 | AFT7: 1 | AFU7: -1 | AFV7: 1 | AFW7: 4 | AFX7: -2 | AFY7: -1 | AFZ7: -1 | AGA7: 1 | AGB7: 1 | AGC7: 1 | AGD7: -2 | AGE7: 1 | AGF7: -4 | AGG7: -1 | AGH7: -2 | AGI7: 2 | AGJ7: 1 | AGK7: 1 | AGL7: -2 | AGM7: 1 | AGN7: -4 | AGO7: -1 | AGP7: -1 | AGQ7: -1 | AGR7: 1 | AGS7: -1 | AGT7: 1 | AGU7: -2 | AGV7: -2 | AGW7: -1 | AGX7: -1 | AGY7: 1 | AGZ7: -1 | AHA7: 1 | AHB7: -1 | AHC7: -1 | AHD7: -1 | AHE7: 1 | AHF7: 1 | AHG7: 1 | AHH7: 1 | AHI7: -2 | AHJ7: -1 | AHK7: 2 | AHL7: 2 | AHM7: 1 | AHN7: 1 | AHO7: -1 | AHP7: 1 | AHQ7: 1 | AHR7: -2 | AHS7: -1 | AHT7: 1 | AHU7: 1 | AHV7: 1 | AHW7: 1 | AHX7: 1 | AHY7: -2 | AHZ7: -2 | AIA7: 1 | AIB7: 4 | AIC7: -1 | AID7: -1 | AIE7: -4 | AIF7: 1 | AIG7: -1 | AIH7: -2 | AII7: 1 | AIJ7: -1 | AIK7: 1 | AIL7: 1 | AIM7: -1 | AIN7: 2 | AIO7: 1 | AIP7: -1 | AIQ7: 1 | AIR7: -1 | AIS7: -1 | AIT7: -1 | AIU7: 1 | AIV7: -2 | AIW7: 4 | AIX7: -1 | AIY7: -1 | AIZ7: -1 | AJA7: -1 | AJB7: 1 | AJC7: -1 | AJD7: -1 | AJE7: 2 | AJF7: 2 | AJG7: -2 | AJH7: -1 | AJI7: 4 | AJJ7: -1 | AJK7: 2 | AJL7: -4 | AJM7: -1 | AJN7: 1 | AJO7: 1 | AJP7: -1 | AJQ7: 1 | AJR7: -1 | AJS7: 4 | AJT7: -1 | AJU7: -1 | AJV7: 1 | AJW7: -1 | AJX7: 4 | AJY7: -1 | AJZ7: -1 | AKA7: -2 | AKB7: 4 | AKC7: -2 | AKD7: -4 | AKE7: -1 | AKF7: -1 | AKG7: -1 | AKH7: 2 | AKI7: -1 | AKJ7: -2 | AKK7: 1 | AKL7: -1 | AKM7: 1 | AKN7: -1 | AKO7: 1 | AKP7: -1 | AKQ7: 1 | AKR7: 1 | AKS7: -1 | AKT7: -1 | AKU7: 2 | AKV7: -1 | AKW7: 1 | AKX7: -2 | AKY7: 2 | AKZ7: -4 | ALA7: 2 | ALB7: 2 | ALC7: 2 | ALD7: -1 | ALE7: -1 | ALF7: -2 | ALG7: 2 | ALH7: 1 | ALI7: 4 | ALJ7: -1 | ALK7: -1 | ALL7: -2 | ALM7: -1 | ALN7: 4 | ALO7: 2 | ALP7: -2 | ALQ7: -4 | ALR7: -1 | ALS7: -1 | ALT7: 1 | ALU7: -2 | ALV7: -1 | ALW7: 1 | ALX7: -1 | ALY7: -1 | ALZ7: 1 | AMA7: 1 | AMB7: -2 | AMC7: -1 | AMD7: -1 | AME7: -2 | AMF7: -2 | AMG7: 1 | AMH7: -4 | AMI7: -1 | AMJ7: -2
A8: -1 | B8: -1 | C8: -1 | D8: -1 | E8: -4 | F8: -2 | G8: -1 | H8: -1 | I8: -1 | J8: -1 | K8: 1 | L8: -1 | M8: 1 | N8: 2 | O8: -1 | P8: 1 | Q8: 1 | R8: 1 | S8: 1 | T8: -1 | U8: -1 | V8: 1 | W8: -2 | X8: -1 | Y8: 1 | Z8: -2 | AA8: -1 | AB8: -1 | AC8: -1 | AD8: -1 | AE8: -1 | AF8: -1 | AG8: 1 | AH8: 1 | AI8: 2 | AJ8: -1 | AK8: -1 | AL8: -1 | AM8: -1 | AN8: -1 | AO8: -1 | AP8: -1 | AQ8: -1 | AR8: 1 | AS8: -1 | AT8: -1 | AU8: -1 | AV8: 1 | AW8: -1 | AX8: 1 | AY8: -1 | AZ8: -1 | BA8: -2 | BB8: -1 | BC8: -1 | BD8: -1 | BE8: -1 | BF8: -1 | BG8: -1 | BH8: 1 | BI8: 1 | BJ8: 1 | BK8: 1 | BL8: 1 | BM8: 1 | BN8: 1 | BO8: 1 | BP8: -1 | BQ8: -1 | BR8: 4 | BS8: -1 | BT8: 1 | BU8: -4 | BV8: 1 | BW8: -2 | BX8: -2 | BY8: 1 | BZ8: -1 | CA8: -1 | CB8: -1 | CC8: -2 | CD8: -1 | CE8: -1 | CF8: -1 | CG8: -1 | CH8: -2 | CI8: -2 | CJ8: -1 | CK8: -1 | CL8: 1 | CM8: -4 | CN8: -1 | CO8: -1 | CP8: -1 | CQ8: -1 | CR8: -1 | CS8: -1 | CT8: -1 | CU8: 1 | CV8: -1 | CW8: -1 | CX8: 1 | CY8: -2 | CZ8: -2 | DA8: -1 | DB8: -1 | DC8: 1 | DD8: -1 | DE8: 1 | DF8: -1 | DG8: -1 | DH8: -2 | DI8: 2 | DJ8: 1 | DK8: -1 | DL8: -1 | DM8: -1 | DN8: -2 | DO8: -1 | DP8: 1 | DQ8: 4 | DR8: 1 | DS8: -1 | DT8: -1 | DU8: -1 | DV8: -1 | DW8: -1 | DX8: 1 | DY8: 1 | DZ8: -1 | EA8: -2 | EB8: 2 | EC8: -2 | ED8: -1 | EE8: -1 | EF8: -1 | EG8: -1 | EH8: 4 | EI8: -1 | EJ8: 1 | EK8: -1 | EL8: -1 | EM8: 1 | EN8: -1 | EO8: 2 | EP8: 1 | EQ8: -1 | ER8: -2 | ES8: -1 | ET8: 1 | EU8: -1 | EV8: -1 | EW8: 1 | EX8: 1 | EY8: 1 | EZ8: -1 | FA8: 1 | FB8: -1 | FC8: -1 | FD8: -2 | FE8: -1 | FF8: -1 | FG8: -1 | FH8: -2 | FI8: -1 | FJ8: -1 | FK8: -1 | FL8: 1 | FM8: -1 | FN8: 1 | FO8: -1 | FP8: 1 | FQ8: -1 | FR8: 1 | FS8: 1 | FT8: -2 | FU8: -1 | FV8: -1 | FW8: -1 | FX8: -1 | FY8: -2 | FZ8: 1 | GA8: 1 | GB8: -1 | GC8: 2 | GD8: -1 | GE8: -1 | GF8: -2 | GG8: -1 | GH8: 1 | GI8: -1 | GJ8: -4 | GK8: 1 | GL8: 1 | GM8: -1 | GN8: -2 | GO8: -2 | GP8: -1 | GQ8: -2 | GR8: -1 | GS8: -1 | GT8: 1 | GU8: -1 | GV8: 1 | GW8: -1 | GX8: -2 | GY8: 1 | GZ8: 1 | HA8: 1 | HB8: -1 | HC8: -1 | HD8: -1 | HE8: -1 | HF8: 1 | HG8: 2 | HH8: 1 | HI8: -1 | HJ8: -1 | HK8: 1 | HL8: -2 | HM8: 1 | HN8: 2 | HO8: -1 | HP8: -2 | HQ8: -1 | HR8: -1 | HS8: -1 | HT8: -1 | HU8: -1 | HV8: -1 | HW8: -1 | HX8: -1 | HY8: -1 | HZ8: 1 | IA8: 1 | IB8: 1 | IC8: -2 | ID8: -1 | IE8: -2 | IF8: 1 | IG8: 1 | IH8: 1 | II8: -1 | IJ8: -1 | IK8: -1 | IL8: -2 | IM8: -1 | IN8: -1 | IO8: -1 | IP8: 1 | IQ8: -1 | IR8: -2 | IS8: 1 | IT8: 2 | IU8: 1 | IV8: -1 | IW8: 1 | IX8: -1 | IY8: -1 | IZ8: -1 | JA8: -1 | JB8: -1 | JC8: -1 | JD8: -1 | JE8: -1 | JF8: 2 | JG8: 2 | JH8: 1 | JI8: 1 | JJ8: 1 | JK8: 1 | JL8: 1 | JM8: 1 | JN8: 1 | JO8: -1 | JP8: 1 | JQ8: 1 | JR8: -1 | JS8: 1 | JT8: -1 | JU8: 1 | JV8: -1 | JW8: -1 | JX8: 1 | JY8: -2 | JZ8: -1 | KA8: -2 | KB8: -1 | KC8: 1 | KD8: -2 | KE8: -1 | KF8: -1 | KG8: 1 | KH8: -1 | KI8: -1 | KJ8: 1 | KK8: 1 | KL8: -2 | KM8: 1 | KN8: -2 | KO8: 2 | KP8: 2 | KQ8: -2 | KR8: -1 | KS8: 1 | KT8: 1 | KU8: -4 | KV8: 2 | KW8: -1 | KX8: 1 | KY8: -2 | KZ8: -2 | LA8: 1 | LB8: 1 | LC8: 1 | LD8: -1 | LE8: -1 | LF8: 1 | LG8: 1 | LH8: -1 | LI8: -2 | LJ8: 1 | LK8: 1 | LL8: -1 | LM8: -1 | LN8: -1 | LO8: 1 | LP8: 1 | LQ8: -1 | LR8: 1 | LS8: 1 | LT8: -1 | LU8: 1 | LV8: 1 | LW8: -1 | LX8: -1 | LY8: -1 | LZ8: -1 | MA8: 1 | MB8: 1 | MC8: -1 | MD8: 1 | ME8: -1 | MF8: 1 | MG8: -2 | MH8: 1 | MI8: -1 | MJ8: 1 | MK8: -2 | ML8: 1 | MM8: 2 | MN8: 2 | MO8: -1 | MP8: 1 | MQ8: 1 | MR8: -1 | MS8: 1 | MT8: -1 | MU8: -1 | MV8: -1 | MW8: -1 | MX8: -1 | MY8: 1 | MZ8: -1 | NA8: -1 | NB8: 1 | NC8: 1 | ND8: -1 | NE8: -1 | NF8: 1 | NG8: -1 | NH8: 1 | NI8: -1 | NJ8: -1 | NK8: -1 | NL8: -1 | NM8: -1 | NN8: -1 | NO8: 1 | NP8: -1 | NQ8: -2 | NR8: -2 | NS8: -2 | NT8: -1 | NU8: -1 | NV8: -1 | NW8: -1 | NX8: -1 | NY8: 1 | NZ8: -1 | OA8: -1 | OB8: -1 | OC8: -2 | OD8: 1 | OE8: -1 | OF8: -1 | OG8: 1 | OH8: 1 | OI8: 1 | OJ8: 1 | OK8: -1 | OL8: -1 | OM8: -1 | ON8: 1 | OO8: -1 | OP8: 1 | OQ8: -1 | OR8: -1 | OS8: 1 | OT8: -1 | OU8: -1 | OV8: 1 | OW8: -1 | OX8: -1 | OY8: 1 | OZ8: -1 | PA8: -2 | PB8: -1 | PC8: -1 | PD8: -2 | PE8: -1 | PF8: -2 | PG8: -1 | PH8: -1 | PI8: -1 | PJ8: -1 | PK8: -1 | PL8: 1 | PM8: -2 | PN8: -4 | PO8: -2 | PP8: -1 | PQ8: -1 | PR8: -1 | PS8: -1 | PT8: -1 | PU8: -1 | PV8: 1 | PW8: -4 | PX8: 1 | PY8: -1 | PZ8: -1 | QA8: -1 | QB8: -1 | QC8: -2 | QD8: 1 | QE8: 2 | QF8: -4 | QG8: -2 | QH8: -1 | QI8: -1 | QJ8: 1 | QK8: -1 | QL8: 1 | QM8: -1 | QN8: 1 | QO8: 1 | QP8: -1 | QQ8: 1 | QR8: 2 | QS8: -1 | QT8: -1 | QU8: 1 | QV8: -2 | QW8: -1 | QX8: -1 | QY8: -1 | QZ8: 1 | RA8: -1 | RB8: 1 | RC8: -1 | RD8: -1 | RE8: -1 | RF8: -2 | RG8: -1 | RH8: 1 | RI8: -1 | RJ8: -1 | RK8: -1 | RL8: 1 | RM8: 1 | RN8: -1 | RO8: -1 | RP8: -1 | RQ8: -1 | RR8: -1 | RS8: -1 | RT8: -1 | RU8: -1 | RV8: -2 | RW8: 1 | RX8: -1 | RY8: 1 | RZ8: -1 | SA8: -2 | SB8: -1 | SC8: 1 | SD8: 1 | SE8: -1 | SF8: 1 | SG8: -2 | SH8: -1 | SI8: -1 | SJ8: -1 | SK8: 1 | SL8: -1 | SM8: -1 | SN8: -1 | SO8: 1 | SP8: -1 | SQ8: -2 | SR8: 1 | SS8: 1 | ST8: -1 | SU8: -1 | SV8: 1 | SW8: -1 | SX8: -1 | SY8: -2 | SZ8: -2 | TA8: -1 | TB8: -1 | TC8: 1 | TD8: -1 | TE8: -1 | TF8: 2 | TG8: -1 | TH8: -1 | TI8: 1 | TJ8: -1 | TK8: 2 | TL8: -1 | TM8: 1 | TN8: -1 | TO8: -1 | TP8: -1 | TQ8: 1 | TR8: -1 | TS8: -1 | TT8: -2 | TU8: -1 | TV8: -2 | TW8: -1 | TX8: 2 | TY8: 1 | TZ8: 2 | UA8: 1 | UB8: 1 | UC8: 2 | UD8: -1 | UE8: -1 | UF8: -1 | UG8: -1 | UH8: -2 | UI8: -1 | UJ8: -1 | UK8: -2 | UL8: 1 | UM8: 1 | UN8: -1 | UO8: -1 | UP8: -2 | UQ8: -1 | UR8: -1 | US8: -1 | UT8: -1 | UU8: -1 | UV8: 1 | UW8: -1 | UX8: -1 | UY8: -1 | UZ8: -4 | VA8: -2 | VB8: -2 | VC8: -2 | VD8: -1 | VE8: -2 | VF8: -2 | VG8: -1 | VH8: -2 | VI8: -1 | VJ8: 1 | VK8: -2 | VL8: -1 | VM8: -2 | VN8: 1 | VO8: 1 | VP8: 1 | VQ8: -1 | VR8: -1 | VS8: 1 | VT8: -1 | VU8: -1 | VV8: -1 | VW8: -1 | VX8: -1 | VY8: 2 | VZ8: -1 | WA8: -1 | WB8: 1 | WC8: -2 | WD8: -1 | WE8: -2 | WF8: 1 | WG8: 1 | WH8: 1 | WI8: -1 | WJ8: -2 | WK8: -2 | WL8: 1 | WM8: -1 | WN8: 1 | WO8: -2 | WP8: -1 | WQ8: -1 | WR8: 1 | WS8: -1 | WT8: -1 | WU8: 1 | WV8: -1 | WW8: 1 | WX8: -1 | WY8: 1 | WZ8: -1 | XA8: 1 | XB8: 2 | XC8: -1 | XD8: -1 | XE8: 1 | XF8: -2 | XG8: -1 | XH8: -1 | XI8: 2 | XJ8: -2 | XK8: -2 | XL8: 1 | XM8: 1 | XN8: -1 | XO8: -1 | XP8: -1 | XQ8: -1 | XR8: -2 | XS8: 1 | XT8: 1 | XU8: -1 | XV8: -1 | XW8: -2 | XX8: -2 | XY8: -1 | XZ8: -1 | YA8: 1 | YB8: -2 | YC8: -1 | YD8: 1 | YE8: 1 | YF8: -1 | YG8: 1 | YH8: -2 | YI8: 1 | YJ8: 4 | YK8: -1 | YL8: 1 | YM8: -1 | YN8: -1 | YO8: 1 | YP8: 1 | YQ8: -2 | YR8: -1 | YS8: 1 | YT8: 1 | YU8: -1 | YV8: 1 | YW8: 1 | YX8: -1 | YY8: -1 | YZ8: -1 | ZA8: 1 | ZB8: -1 | ZC8: -1 | ZD8: 1 | ZE8: -1 | ZF8: 4 | ZG8: 1 | ZH8: -1 | ZI8: -1 | ZJ8: -1 | ZK8: -1 | ZL8: -1 | ZM8: -1 | ZN8: -1 | ZO8: 1 | ZP8: -2 | ZQ8: 1 | ZR8: -1 | ZS8: -1 | ZT8: -1 | ZU8: -1 | ZV8: -1 | ZW8: -1 | ZX8: 1 | ZY8: 1 | ZZ8: -1 | AAA8: 4 | AAB8: -1 | AAC8: -1 | AAD8: -1 | AAE8: 1 | AAF8: -1 | AAG8: -1 | AAH8: -1 | AAI8: -1 | AAJ8: 1 | AAK8: 1 | AAL8: 1 | AAM8: -2 | AAN8: 1 | AAO8: -1 | AAP8: 1 | AAQ8: -1 | AAR8: 1 | AAS8: -1 | AAT8: 1 | AAU8: -1 | AAV8: -1 | AAW8: -1 | AAX8: -1 | AAY8: -1 | AAZ8: -1 | ABA8: 1 | ABB8: 1 | ABC8: -1 | ABD8: -1 | ABE8: -1 | ABF8: 1 | ABG8: 1 | ABH8: -1 | ABI8: 1 | ABJ8: 1 | ABK8: -2 | ABL8: 1 | ABM8: -1 | ABN8: -1 | ABO8: -1 | ABP8: -1 | ABQ8: -1 | ABR8: 1 | ABS8: 1 | ABT8: -1 | ABU8: -1 | ABV8: -2 | ABW8: -1 | ABX8: -2 | ABY8: -1 | ABZ8: 1 | ACA8: -1 | ACB8: -1 | ACC8: -1 | ACD8: -2 | ACE8: -2 | ACF8: -1 | ACG8: 2 | ACH8: 1 | ACI8: -1 | ACJ8: 1 | ACK8: -1 | ACL8: -1 | ACM8: 2 | ACN8: 1 | ACO8: -1 | ACP8: -1 | ACQ8: -1 | ACR8: -1 | ACS8: 1 | ACT8: -1 | ACU8: -1 | ACV8: 1 | ACW8: -1 | ACX8: 1 | ACY8: 1 | ACZ8: -1 | ADA8: -1 | ADB8: 4 | ADC8: 1 | ADD8: -1 | ADE8: 1 | ADF8: -1 | ADG8: -2 | ADH8: -1 | ADI8: -1 | ADJ8: 1 | ADK8: -1 | ADL8: 2 | ADM8: 1 | ADN8: -2 | ADO8: 1 | ADP8: -1 | ADQ8: 1 | ADR8: 1 | ADS8: -1 | ADT8: -1 | ADU8: -1 | ADV8: 1 | ADW8: -1 | ADX8: -1 | ADY8: -1 | ADZ8: -1 | AEA8: 1 | AEB8: 1 | AEC8: -4 | AED8: -1 | AEE8: -1 | AEF8: -1 | AEG8: -1 | AEH8: 1 | AEI8: -1 | AEJ8: -2 | AEK8: 1 | AEL8: 1 | AEM8: 1 | AEN8: -1 | AEO8: -1 | AEP8: 1 | AEQ8: -2 | AER8: -1 | AES8: -1 | AET8: -1 | AEU8: -2 | AEV8: 1 | AEW8: 1 | AEX8: -1 | AEY8: 1 | AEZ8: -1 | AFA8: -1 | AFB8: 1 | AFC8: 1 | AFD8: 1 | AFE8: -1 | AFF8: -1 | AFG8: -2 | AFH8: -1 | AFI8: -1 | AFJ8: -1 | AFK8: -1 | AFL8: -1 | AFM8: -2 | AFN8: -4 | AFO8: 1 | AFP8: 2 | AFQ8: 1 | AFR8: 1 | AFS8: 1 | AFT8: -4 | AFU8: -1 | AFV8: 1 | AFW8: -1 | AFX8: -1 | AFY8: -1 | AFZ8: -1 | AGA8: -1 | AGB8: -1 | AGC8: -1 | AGD8: -2 | AGE8: -1 | AGF8: 1 | AGG8: -1 | AGH8: -1 | AGI8: -1 | AGJ8: -1 | AGK8: -1 | AGL8: 2 | AGM8: 1 | AGN8: -2 | AGO8: 1 | AGP8: -1 | AGQ8: -1 | AGR8: -1 | AGS8: 1 | AGT8: 1 | AGU8: -2 | AGV8: -1 | AGW8: -2 | AGX8: -1 | AGY8: -1 | AGZ8: -1 | AHA8: -2 | AHB8: -1 | AHC8: -2 | AHD8: 1 | AHE8: -1 | AHF8: -1 | AHG8: 1 | AHH8: -2 | AHI8: -1 | AHJ8: 1 | AHK8: 1 | AHL8: -1 | AHM8: 1 | AHN8: -1 | AHO8: -1 | AHP8: -1 | AHQ8: 1 | AHR8: -1 | AHS8: -2 | AHT8: -1 | AHU8: -1 | AHV8: 1 | AHW8: -1 | AHX8: 1 | AHY8: -1 | AHZ8: -1 | AIA8: -2 | AIB8: 1 | AIC8: 2 | AID8: -1 | AIE8: 1 | AIF8: 1 | AIG8: 1 | AIH8: 1 | AII8: -1 | AIJ8: -1 | AIK8: -1 | AIL8: -1 | AIM8: 1 | AIN8: 1 | AIO8: 1 | AIP8: -1 | AIQ8: -1 | AIR8: -1 | AIS8: -1 | AIT8: -1 | AIU8: 1 | AIV8: -2 | AIW8: 1 | AIX8: -1 | AIY8: -1 | AIZ8: -1 | AJA8: -1 | AJB8: -1 | AJC8: -2 | AJD8: 1 | AJE8: -1 | AJF8: 2 | AJG8: -2 | AJH8: -2 | AJI8: 1 | AJJ8: 1 | AJK8: 1 | AJL8: -2 | AJM8: 1 | AJN8: -2 | AJO8: -2 | AJP8: 2 | AJQ8: 1 | AJR8: -2 | AJS8: -2 | AJT8: -2 | AJU8: 2 | AJV8: 1 | AJW8: -4 | AJX8: -1 | AJY8: -2 | AJZ8: 1 | AKA8: -2 | AKB8: 2 | AKC8: -1 | AKD8: -1 | AKE8: -1 | AKF8: -2 | AKG8: -1 | AKH8: 1 | AKI8: 1 | AKJ8: -1 | AKK8: 1 | AKL8: -1 | AKM8: 1 | AKN8: 1 | AKO8: 1 | AKP8: -2 | AKQ8: 1 | AKR8: 1 | AKS8: -1 | AKT8: -4 | AKU8: 1 | AKV8: -1 | AKW8: -1 | AKX8: -1 | AKY8: -2 | AKZ8: -4 | ALA8: 1 | ALB8: -1 | ALC8: 2 | ALD8: 1 | ALE8: -1 | ALF8: -4 | ALG8: 1 | ALH8: -1 | ALI8: 1 | ALJ8: -2 | ALK8: -1 | ALL8: -1 | ALM8: 1 | ALN8: -1 | ALO8: 1 | ALP8: -1 | ALQ8: -1 | ALR8: -1 | ALS8: -1 | ALT8: 1 | ALU8: -1 | ALV8: -2 | ALW8: -1 | ALX8: 1 | ALY8: 1 | ALZ8: 1 | AMA8: 1 | AMB8: -1 | AMC8: -1 | AMD8: -1 | AME8: 1 | AMF8: -1 | AMG8: 2 | AMH8: -1 | AMI8: -1 | AMJ8: -1
A9: -4 | B9: -1 | C9: -4 | D9: 4 | E9: 1 | F9: 4 | G9: -1 | H9: -4 | I9: 1 | J9: -1 | K9: -2 | L9: -1 | M9: -1 | N9: 2 | O9: 2 | P9: 1 | Q9: -2 | R9: -2 | S9: 2 | T9: 4 | U9: 1 | V9: -1 | W9: -2 | X9: -4 | Y9: 4 | Z9: -4 | AA9: -1 | AB9: 2 | AC9: -2 | AD9: 2 | AE9: 16 | AF9: -2 | AG9: -1 | AH9: -1 | AI9: 1 | AJ9: -2 | AK9: -2 | AL9: 4 | AM9: -4 | AN9: -2 | AO9: -1 | AP9: 2 | AQ9: 1 | AR9: 4 | AS9: 2 | AT9: 2 | AU9: -1 | AV9: -2 | AW9: -1 | AX9: 1 | AY9: 1 | AZ9: -4 | BA9: 4 | BB9: -4 | BC9: -1 | BD9: -4 | BE9: -1 | BF9: -1 | BG9: 4 | BH9: 1 | BI9: -4 | BJ9: -2 | BK9: 4 | BL9: 1 | BM9: 1 | BN9: 1 | BO9: -2 | BP9: 2 | BQ9: 2 | BR9: 1 | BS9: -1 | BT9: -2 | BU9: -1 | BV9: 2 | BW9: -4 | BX9: 4 | BY9: 1 | BZ9: 1 | CA9: 2 | CB9: -1 | CC9: -1 | CD9: 2 | CE9: -4 | CF9: -2 | CG9: 1 | CH9: -1 | CI9: -1 | CJ9: 2 | CK9: -2 | CL9: -2 | CM9: -4 | CN9: -1 | CO9: -1 | CP9: 4 | CQ9: -2 | CR9: -1 | CS9: -2 | CT9: 2 | CU9: -2 | CV9: -2 | CW9: 4 | CX9: 2 | CY9: -4 | CZ9: 1 | DA9: -1 | DB9: -1 | DC9: -1 | DD9: -4 | DE9: -4 | DF9: -2 | DG9: -1 | DH9: 1 | DI9: -1 | DJ9: 1 | DK9: -1 | DL9: 1 | DM9: -4 | DN9: 1 | DO9: 1 | DP9: 2 | DQ9: -1 | DR9: -2 | DS9: 2 | DT9: -2 | DU9: 2 | DV9: 4 | DW9: 2 | DX9: 4 | DY9: -1 | DZ9: -1 | EA9: -4 | EB9: -4 | EC9: -1 | ED9: 2 | EE9: -1 | EF9: 2 | EG9: -1 | EH9: -1 | EI9: -1 | EJ9: 1 | EK9: -4 | EL9: -1 | EM9: -1 | EN9: -1 | EO9: 2 | EP9: -2 | EQ9: 16 | ER9: 2 | ES9: 1 | ET9: 4 | EU9: 1 | EV9: -4 | EW9: -4 | EX9: 4 | EY9: 1 | EZ9: 1 | FA9: 1 | FB9: 2 | FC9: 1 | FD9: -1 | FE9: 4 | FF9: -1 | FG9: 1 | FH9: -1 | FI9: 2 | FJ9: -4 | FK9: 1 | FL9: -1 | FM9: -2 | FN9: -2 | FO9: -4 | FP9: 4 | FQ9: -1 | FR9: -2 | FS9: -1 | FT9: 2 | FU9: -2 | FV9: 4 | FW9: 4 | FX9: -2 | FY9: -4 | FZ9: 4 | GA9: -2 | GB9: -4 | GC9: 4 | GD9: -4 | GE9: 2 | GF9: -1 | GG9: 2 | GH9: 2 | GI9: 1 | GJ9: 1 | GK9: -4 | GL9: -1 | GM9: -1 | GN9: 2 | GO9: -2 | GP9: -2 | GQ9: -2 | GR9: -16 | GS9: -1 | GT9: 1 | GU9: 1 | GV9: -1 | GW9: 1 | GX9: -1 | GY9: -2 | GZ9: 2 | HA9: -1 | HB9: 4 | HC9: -2 | HD9: 4 | HE9: 4 | HF9: -1 | HG9: 4 | HH9: -2 | HI9: 1 | HJ9: -1 | HK9: -1 | HL9: -2 | HM9: -1 | HN9: -2 | HO9: -2 | HP9: -2 | HQ9: -4 | HR9: -1 | HS9: -2 | HT9: -4 | HU9: 1 | HV9: -1 | HW9: -1 | HX9: -2 | HY9: -1 | HZ9: 1 | IA9: 2 | IB9: -1 | IC9: -2 | ID9: -2 | IE9: 4 | IF9: 2 | IG9: -2 | IH9: 1 | II9: 2 | IJ9: -4 | IK9: -1 | IL9: 1 | IM9: -1 | IN9: 4 | IO9: 1 | IP9: -2 | IQ9: -2 | IR9: 1 | IS9: -1 | IT9: -2 | IU9: -16 | IV9: -4 | IW9: 1 | IX9: 2 | IY9: -2 | IZ9: 2 | JA9: 4 | JB9: 2 | JC9: -4 | JD9: -2 | JE9: 1 | JF9: 1 | JG9: -1 | JH9: -1 | JI9: 2 | JJ9: -1 | JK9: 2 | JL9: 2 | JM9: -1 | JN9: 1 | JO9: -4 | JP9: -1 | JQ9: 2 | JR9: -2 | JS9: 4 | JT9: 1 | JU9: 2 | JV9: 1 | JW9: 2 | JX9: -1 | JY9: -1 | JZ9: -1 | KA9: -4 | KB9: -2 | KC9: 4 | KD9: -2 | KE9: 2 | KF9: 2 | KG9: 1 | KH9: 4 | KI9: 4 | KJ9: -1 | KK9: -1 | KL9: -4 | KM9: -1 | KN9: 1 | KO9: 1 | KP9: -1 | KQ9: -4 | KR9: -1 | KS9: 1 | KT9: -1 | KU9: 1 | KV9: -1 | KW9: -1 | KX9: 1 | KY9: 1 | KZ9: -1 | LA9: -1 | LB9: -1 | LC9: -2 | LD9: 2 | LE9: -1 | LF9: -1 | LG9: -2 | LH9: 4 | LI9: 1 | LJ9: -1 | LK9: -4 | LL9: -4 | LM9: -1 | LN9: -1 | LO9: -2 | LP9: -2 | LQ9: -4 | LR9: -1 | LS9: -2 | LT9: 2 | LU9: 2 | LV9: -2 | LW9: -1 | LX9: -1 | LY9: -1 | LZ9: -2 | MA9: -1 | MB9: -2 | MC9: -2 | MD9: 1 | ME9: -1 | MF9: -2 | MG9: -1 | MH9: -16 | MI9: 1 | MJ9: 2 | MK9: -2 | ML9: 2 | MM9: 1 | MN9: -1 | MO9: -4 | MP9: -1 | MQ9: -4 | MR9: -2 | MS9: -2 | MT9: -1 | MU9: -1 | MV9: -2 | MW9: -2 | MX9: -4 | MY9: -1 | MZ9: -1 | NA9: 1 | NB9: -2 | NC9: -4 | ND9: -2 | NE9: -4 | NF9: -4 | NG9: -2 | NH9: -1 | NI9: 1 | NJ9: -1 | NK9: 4 | NL9: 2 | NM9: -1 | NN9: -2 | NO9: -2 | NP9: 4 | NQ9: 4 | NR9: -4 | NS9: 1 | NT9: -1 | NU9: -4 | NV9: -2 | NW9: -4 | NX9: -4 | NY9: -2 | NZ9: -2 | OA9: 1 | OB9: -1 | OC9: 1 | OD9: 2 | OE9: 1 | OF9: -2 | OG9: 4 | OH9: -1 | OI9: -1 | OJ9: 16 | OK9: -4 | OL9: -4 | OM9: 1 | ON9: 1 | OO9: -2 | OP9: -2 | OQ9: -2 | OR9: -16 | OS9: 2 | OT9: -1 | OU9: 2 | OV9: -2 | OW9: 1 | OX9: 4 | OY9: -1 | OZ9: -2 | PA9: -2 | PB9: -2 | PC9: -2 | PD9: -1 | PE9: -2 | PF9: -2 | PG9: -1 | PH9: -2 | PI9: 2 | PJ9: -1 | PK9: -4 | PL9: -1 | PM9: 1 | PN9: 4 | PO9: -1 | PP9: 4 | PQ9: 2 | PR9: -2 | PS9: -4 | PT9: 4 | PU9: 1 | PV9: 1 | PW9: -2 | PX9: -1 | PY9: 4 | PZ9: 4 | QA9: -2 | QB9: -1 | QC9: 2 | QD9: 1 | QE9: -1 | QF9: 4 | QG9: -1 | QH9: -1 | QI9: -4 | QJ9: 1 | QK9: -4 | QL9: 1 | QM9: -1 | QN9: 1 | QO9: -2 | QP9: -2 | QQ9: 1 | QR9: 1 | QS9: -2 | QT9: 1 | QU9: -1 | QV9: -4 | QW9: -1 | QX9: -1 | QY9: -4 | QZ9: -1 | RA9: 1 | RB9: -1 | RC9: -4 | RD9: -1 | RE9: -1 | RF9: -2 | RG9: -1 | RH9: -2 | RI9: 2 | RJ9: -4 | RK9: -1 | RL9: -1 | RM9: -1 | RN9: 16 | RO9: -1 | RP9: 4 | RQ9: -4 | RR9: -1 | RS9: -4 | RT9: 2 | RU9: -4 | RV9: -2 | RW9: 4 | RX9: 2 | RY9: 1 | RZ9: 1 | SA9: -1 | SB9: 2 | SC9: -1 | SD9: 16 | SE9: -1 | SF9: -1 | SG9: -2 | SH9: -4 | SI9: 1 | SJ9: -1 | SK9: 2 | SL9: -1 | SM9: -4 | SN9: 1 | SO9: 2 | SP9: 1 | SQ9: -1 | SR9: -4 | SS9: 1 | ST9: 1 | SU9: 1 | SV9: 1 | SW9: -2 | SX9: -4 | SY9: 1 | SZ9: -1 | TA9: 1 | TB9: 2 | TC9: 1 | TD9: -2 | TE9: 2 | TF9: 2 | TG9: -2 | TH9: 1 | TI9: -16 | TJ9: 1 | TK9: -1 | TL9: -2 | TM9: -2 | TN9: 1 | TO9: 2 | TP9: -2 | TQ9: -1 | TR9: 1 | TS9: -1 | TT9: 1 | TU9: 1 | TV9: 1 | TW9: -1 | TX9: 4 | TY9: -2 | TZ9: -1 | UA9: -1 | UB9: 1 | UC9: -4 | UD9: 1 | UE9: -1 | UF9: -1 | UG9: -2 | UH9: -1 | UI9: -4 | UJ9: 1 | UK9: -4 | UL9: -4 | UM9: -1 | UN9: 1 | UO9: 1 | UP9: -2 | UQ9: 1 | UR9: 2 | US9: 1 | UT9: 4 | UU9: -4 | UV9: 2 | UW9: 1 | UX9: -1 | UY9: -1 | UZ9: 2 | VA9: -2 | VB9: 1 | VC9: -4 | VD9: -2 | VE9: -1 | VF9: -1 | VG9: 2 | VH9: -1 | VI9: 1 | VJ9: -1 | VK9: -2 | VL9: -4 | VM9: 2 | VN9: 1 | VO9: 4 | VP9: -2 | VQ9: -1 | VR9: 1 | VS9: 1 | VT9: 1 | VU9: 1 | VV9: -1 | VW9: -1 | VX9: -1 | VY9: 1 | VZ9: -4 | WA9: 1 | WB9: 2 | WC9: -1 | WD9: 2 | WE9: 4 | WF9: 2 | WG9: 2 | WH9: -1 | WI9: 4 | WJ9: -1 | WK9: 2 | WL9: -1 | WM9: -16 | WN9: 1 | WO9: 1 | WP9: -4 | WQ9: 2 | WR9: 2 | WS9: 1 | WT9: 2 | WU9: -2 | WV9: 1 | WW9: 2 | WX9: -1 | WY9: 1 | WZ9: -1 | XA9: 1 | XB9: 1 | XC9: -1 | XD9: -1 | XE9: 1 | XF9: -2 | XG9: -1 | XH9: -1 | XI9: -2 | XJ9: 4 | XK9: 2 | XL9: 2 | XM9: 1 | XN9: -4 | XO9: -2 | XP9: -1 | XQ9: 1 | XR9: -4 | XS9: 4 | XT9: -1 | XU9: 4 | XV9: 1 | XW9: 2 | XX9: -2 | XY9: -16 | XZ9: 1 | YA9: 1 | YB9: -4 | YC9: 1 | YD9: -1 | YE9: -1 | YF9: -4 | YG9: 2 | YH9: 1 | YI9: -1 | YJ9: 1 | YK9: -2 | YL9: 1 | YM9: -4 | YN9: 1 | YO9: -2 | YP9: 4 | YQ9: 2 | YR9: 4 | YS9: -1 | YT9: -2 | YU9: -1 | YV9: 1 | YW9: 1 | YX9: -2 | YY9: -1 | YZ9: -1 | ZA9: 1 | ZB9: -1 | ZC9: 2 | ZD9: 4 | ZE9: -1 | ZF9: 1 | ZG9: 4 | ZH9: -1 | ZI9: 2 | ZJ9: -4 | ZK9: -2 | ZL9: 4 | ZM9: -4 | ZN9: -1 | ZO9: 16 | ZP9: 1 | ZQ9: -1 | ZR9: 2 | ZS9: -16 | ZT9: 1 | ZU9: -1 | ZV9: 1 | ZW9: -1 | ZX9: -4 | ZY9: -2 | ZZ9: 4 | AAA9: 2 | AAB9: -2 | AAC9: 1 | AAD9: -2 | AAE9: -2 | AAF9: -1 | AAG9: 1 | AAH9: 1 | AAI9: 2 | AAJ9: 2 | AAK9: -4 | AAL9: -1 | AAM9: -4 | AAN9: -2 | AAO9: -4 | AAP9: -1 | AAQ9: -4 | AAR9: -1 | AAS9: -1 | AAT9: -1 | AAU9: -1 | AAV9: 2 | AAW9: 16 | AAX9: -2 | AAY9: 1 | AAZ9: 2 | ABA9: -1 | ABB9: -1 | ABC9: 1 | ABD9: 1 | ABE9: 1 | ABF9: -2 | ABG9: -2 | ABH9: -2 | ABI9: -2 | ABJ9: 1 | ABK9: -1 | ABL9: -2 | ABM9: -1 | ABN9: -16 | ABO9: 4 | ABP9: 1 | ABQ9: 2 | ABR9: 2 | ABS9: -4 | ABT9: 2 | ABU9: 2 | ABV9: 4 | ABW9: 2 | ABX9: 2 | ABY9: -4 | ABZ9: -2 | ACA9: -2 | ACB9: 2 | ACC9: -2 | ACD9: 4 | ACE9: -4 | ACF9: 2 | ACG9: -2 | ACH9: -1 | ACI9: -4 | ACJ9: -2 | ACK9: -2 | ACL9: -16 | ACM9: -1 | ACN9: 2 | ACO9: 4 | ACP9: -2 | ACQ9: -2 | ACR9: 1 | ACS9: -1 | ACT9: -2 | ACU9: -4 | ACV9: -2 | ACW9: -1 | ACX9: -1 | ACY9: -1 | ACZ9: 4 | ADA9: -1 | ADB9: -2 | ADC9: 2 | ADD9: -2 | ADE9: -1 | ADF9: -16 | ADG9: 4 | ADH9: -1 | ADI9: 4 | ADJ9: 4 | ADK9: 1 | ADL9: -2 | ADM9: 2 | ADN9: -4 | ADO9: 2 | ADP9: 1 | ADQ9: -2 | ADR9: -4 | ADS9: -2 | ADT9: -1 | ADU9: -1 | ADV9: -1 | ADW9: -4 | ADX9: -1 | ADY9: -1 | ADZ9: 1 | AEA9: 2 | AEB9: -2 | AEC9: -2 | AED9: -2 | AEE9: -4 | AEF9: -2 | AEG9: -1 | AEH9: 1 | AEI9: 1 | AEJ9: 1 | AEK9: -1 | AEL9: 1 | AEM9: -1 | AEN9: -4 | AEO9: -1 | AEP9: -2 | AEQ9: 16 | AER9: 16 | AES9: -1 | AET9: -2 | AEU9: 4 | AEV9: -1 | AEW9: -2 | AEX9: -1 | AEY9: -1 | AEZ9: 1 | AFA9: -4 | AFB9: 1 | AFC9: 4 | AFD9: 1 | AFE9: -1 | AFF9: 1 | AFG9: 1 | AFH9: 1 | AFI9: 2 | AFJ9: 4 | AFK9: -4 | AFL9: -1 | AFM9: 1 | AFN9: -1 | AFO9: 4 | AFP9: -2 | AFQ9: -2 | AFR9: 1 | AFS9: -1 | AFT9: -1 | AFU9: -1 | AFV9: -2 | AFW9: 4 | AFX9: -1 | AFY9: 16 | AFZ9: -4 | AGA9: 2 | AGB9: -2 | AGC9: 4 | AGD9: -1 | AGE9: -1 | AGF9: -4 | AGG9: -2 | AGH9: -1 | AGI9: -2 | AGJ9: -1 | AGK9: 1 | AGL9: -1 | AGM9: -1 | AGN9: 2 | AGO9: -2 | AGP9: 2 | AGQ9: -2 | AGR9: 1 | AGS9: 1 | AGT9: -1 | AGU9: -1 | AGV9: -1 | AGW9: 1 | AGX9: -4 | AGY9: -16 | AGZ9: -4 | AHA9: 2 | AHB9: 1 | AHC9: -1 | AHD9: 2 | AHE9: -1 | AHF9: -2 | AHG9: -1 | AHH9: 4 | AHI9: 1 | AHJ9: 1 | AHK9: 2 | AHL9: -4 | AHM9: -2 | AHN9: 4 | AHO9: 2 | AHP9: 1 | AHQ9: -4 | AHR9: -1 | AHS9: -2 | AHT9: -1 | AHU9: -4 | AHV9: -2 | AHW9: 2 | AHX9: 16 | AHY9: -2 | AHZ9: 2 | AIA9: -1 | AIB9: -2 | AIC9: -2 | AID9: -1 | AIE9: -2 | AIF9: -2 | AIG9: 16 | AIH9: 4 | AII9: -1 | AIJ9: -2 | AIK9: -4 | AIL9: 4 | AIM9: 2 | AIN9: 4 | AIO9: -1 | AIP9: -1 | AIQ9: -1 | AIR9: -4 | AIS9: -4 | AIT9: -1 | AIU9: 2 | AIV9: -1 | AIW9: 4 | AIX9: 1 | AIY9: -1 | AIZ9: 1 | AJA9: 4 | AJB9: 1 | AJC9: 1 | AJD9: 1 | AJE9: 1 | AJF9: -1 | AJG9: 1 | AJH9: -2 | AJI9: -4 | AJJ9: -1 | AJK9: -2 | AJL9: -2 | AJM9: 1 | AJN9: -2 | AJO9: 2 | AJP9: 2 | AJQ9: 1 | AJR9: -2 | AJS9: -1 | AJT9: -1 | AJU9: -1 | AJV9: -2 | AJW9: -2 | AJX9: -4 | AJY9: -1 | AJZ9: 1 | AKA9: -1 | AKB9: -2 | AKC9: -2 | AKD9: -1 | AKE9: -4 | AKF9: -2 | AKG9: 1 | AKH9: -2 | AKI9: -1 | AKJ9: 2 | AKK9: -1 | AKL9: 2 | AKM9: -4 | AKN9: -4 | AKO9: 1 | AKP9: -2 | AKQ9: 2 | AKR9: 2 | AKS9: -2 | AKT9: -2 | AKU9: 4 | AKV9: 1 | AKW9: -1 | AKX9: 4 | AKY9: -2 | AKZ9: -1 | ALA9: 1 | ALB9: -2 | ALC9: -2 | ALD9: 1 | ALE9: 1 | ALF9: 16 | ALG9: -1 | ALH9: -2 | ALI9: 1 | ALJ9: -2 | ALK9: -4 | ALL9: 2 | ALM9: 2 | ALN9: 1 | ALO9: 4 | ALP9: 1 | ALQ9: -1 | ALR9: -2 | ALS9: 1 | ALT9: -1 | ALU9: -1 | ALV9: -1 | ALW9: -2 | ALX9: -2 | ALY9: -4 | ALZ9: 4 | AMA9: -2 | AMB9: -2 | AMC9: -2 | AMD9: -1 | AME9: 1 | AMF9: -1 | AMG9: -4 | AMH9: -4 | AMI9: -2 | AMJ9: 2
A10: -1 | B10: 1 | C10: 1 | D10: 1 | E10: -1 | F10: -1 | G10: -1 | H10: -1 | I10: -1 | J10: -2 | K10: -1 | L10: -1 | M10: -1 | N10: -1 | O10: -1 | P10: -1 | Q10: 1 | R10: -2 | S10: -1 | T10: -1 | U10: 1 | V10: -1 | W10: -1 | X10: -1 | Y10: -1 | Z10: 1 | AA10: -1 | AB10: -1 | AC10: -1 | AD10: -1 | AE10: -1 | AF10: -1 | AG10: 1 | AH10: 1 | AI10: 1 | AJ10: -1 | AK10: -1 | AL10: 1 | AM10: -1 | AN10: -1 | AO10: -2 | AP10: -1 | AQ10: -2 | AR10: 1 | AS10: -1 | AT10: -1 | AU10: -1 | AV10: 1 | AW10: -1 | AX10: 1 | AY10: -4 | AZ10: 1 | BA10: 1 | BB10: -1 | BC10: -1 | BD10: -1 | BE10: -1 | BF10: -1 | BG10: -1 | BH10: 1 | BI10: -1 | BJ10: -1 | BK10: 1 | BL10: -1 | BM10: 1 | BN10: -1 | BO10: 1 | BP10: -1 | BQ10: 1 | BR10: -1 | BS10: 1 | BT10: 1 | BU10: -1 | BV10: -1 | BW10: -1 | BX10: -1 | BY10: -2 | BZ10: 1 | CA10: 1 | CB10: -1 | CC10: 1 | CD10: -1 | CE10: -1 | CF10: -1 | CG10: 1 | CH10: -1 | CI10: 1 | CJ10: -1 | CK10: -1 | CL10: 1 | CM10: -1 | CN10: -1 | CO10: 1 | CP10: -2 | CQ10: 2 | CR10: -1 | CS10: -1 | CT10: 1 | CU10: 1 | CV10: -2 | CW10: -1 | CX10: 1 | CY10: -1 | CZ10: -1 | DA10: -1 | DB10: -1 | DC10: 2 | DD10: 1 | DE10: 1 | DF10: 2 | DG10: -1 | DH10: -1 | DI10: 1 | DJ10: -1 | DK10: 1 | DL10: -1 | DM10: -1 | DN10: -1 | DO10: 1 | DP10: 1 | DQ10: 1 | DR10: -2 | DS10: -1 | DT10: -1 | DU10: -1 | DV10: -1 | DW10: -1 | DX10: -1 | DY10: -1 | DZ10: -2 | EA10: -1 | EB10: 2 | EC10: -1 | ED10: -1 | EE10: -1 | EF10: -1 | EG10: -1 | EH10: 1 | EI10: -1 | EJ10: -4 | EK10: -1 | EL10: -2 | EM10: -1 | EN10: -1 | EO10: -1 | EP10: -1 | EQ10: 1 | ER10: -1 | ES10: 2 | ET10: -1 | EU10: 1 | EV10: 1 | EW10: -1 | EX10: 1 | EY10: -1 | EZ10: 1 | FA10: -2 | FB10: -1 | FC10: 1 | FD10: 1 | FE10: 1 | FF10: -1 | FG10: -1 | FH10: -1 | FI10: 1 | FJ10: -1 | FK10: 1 | FL10: 1 | FM10: 1 | FN10: 1 | FO10: -1 | FP10: -1 | FQ10: -1 | FR10: 1 | FS10: 1 | FT10: -1 | FU10: -1 | FV10: -1 | FW10: -1 | FX10: -4 | FY10: -2 | FZ10: -1 | GA10: -4 | GB10: -1 | GC10: -2 | GD10: 1 | GE10: -1 | GF10: 4 | GG10: -1 | GH10: -1 | GI10: 1 | GJ10: -1 | GK10: -1 | GL10: -1 | GM10: -1 | GN10: -1 | GO10: -1 | GP10: -1 | GQ10: 1 | GR10: -1 | GS10: -1 | GT10: 1 | GU10: 1 | GV10: -1 | GW10: 1 | GX10: -2 | GY10: -1 | GZ10: -2 | HA10: -2 | HB10: 1 | HC10: -1 | HD10: 1 | HE10: -1 | HF10: -1 | HG10: -1 | HH10: 1 | HI10: 1 | HJ10: -2 | HK10: -2 | HL10: 1 | HM10: -1 | HN10: -1 | HO10: 1 | HP10: -1 | HQ10: -1 | HR10: -1 | HS10: -1 | HT10: -1 | HU10: -1 | HV10: 1 | HW10: -1 | HX10: -1 | HY10: -1 | HZ10: 1 | IA10: 1 | IB10: -1 | IC10: -1 | ID10: -1 | IE10: -1 | IF10: -1 | IG10: 1 | IH10: 1 | II10: -1 | IJ10: -1 | IK10: 1 | IL10: 1 | IM10: -1 | IN10: 1 | IO10: -1 | IP10: -1 | IQ10: 2 | IR10: 1 | IS10: -1 | IT10: 1 | IU10: -1 | IV10: 1 | IW10: 1 | IX10: -1 | IY10: 1 | IZ10: -1 | JA10: -1 | JB10: 1 | JC10: -1 | JD10: -1 | JE10: -1 | JF10: -1 | JG10: 1 | JH10: -1 | JI10: -1 | JJ10: -1 | JK10: 1 | JL10: -1 | JM10: -1 | JN10: 1 | JO10: 1 | JP10: 1 | JQ10: -1 | JR10: -1 | JS10: 2 | JT10: -1 | JU10: -1 | JV10: -1 | JW10: 1 | JX10: 1 | JY10: 1 | JZ10: 1 | KA10: -1 | KB10: 1 | KC10: 1 | KD10: -2 | KE10: -1 | KF10: -1 | KG10: -1 | KH10: -2 | KI10: -1 | KJ10: 1 | KK10: -1 | KL10: 1 | KM10: 2 | KN10: 2 | KO10: -1 | KP10: 1 | KQ10: 1 | KR10: -1 | KS10: -1 | KT10: -1 | KU10: -1 | KV10: -2 | KW10: 1 | KX10: -1 | KY10: 2 | KZ10: -2 | LA10: 1 | LB10: -4 | LC10: -1 | LD10: -1 | LE10: -1 | LF10: -4 | LG10: -1 | LH10: 1 | LI10: -1 | LJ10: -4 | LK10: 1 | LL10: 1 | LM10: -1 | LN10: 1 | LO10: 1 | LP10: 1 | LQ10: -1 | LR10: -1 | LS10: 1 | LT10: -1 | LU10: -1 | LV10: 1 | LW10: -1 | LX10: 1 | LY10: 1 | LZ10: 1 | MA10: -1 | MB10: -1 | MC10: -1 | MD10: 1 | ME10: -1 | MF10: -1 | MG10: -2 | MH10: -1 | MI10: -1 | MJ10: -2 | MK10: -2 | ML10: -2 | MM10: 1 | MN10: 2 | MO10: 1 | MP10: 1 | MQ10: -1 | MR10: 2 | MS10: -1 | MT10: -2 | MU10: 1 | MV10: 4 | MW10: 2 | MX10: 1 | MY10: 2 | MZ10: -1 | NA10: -1 | NB10: 1 | NC10: 1 | ND10: 1 | NE10: -1 | NF10: 1 | NG10: 1 | NH10: 2 | NI10: 1 | NJ10: 1 | NK10: 1 | NL10: 1 | NM10: -1 | NN10: 1 | NO10: 1 | NP10: 1 | NQ10: -1 | NR10: -1 | NS10: -1 | NT10: -1 | NU10: -1 | NV10: -1 | NW10: -2 | NX10: -1 | NY10: -1 | NZ10: -1 | OA10: 1 | OB10: -1 | OC10: -1 | OD10: -1 | OE10: -1 | OF10: -1 | OG10: -1 | OH10: 1 | OI10: 1 | OJ10: 1 | OK10: 1 | OL10: -1 | OM10: -1 | ON10: -2 | OO10: -2 | OP10: 1 | OQ10: -1 | OR10: -1 | OS10: -1 | OT10: -4 | OU10: -1 | OV10: 2 | OW10: -1 | OX10: -1 | OY10: -1 | OZ10: -1 | PA10: -1 | PB10: -1 | PC10: 1 | PD10: -1 | PE10: -1 | PF10: -1 | PG10: -1 | PH10: -1 | PI10: 1 | PJ10: -1 | PK10: -1 | PL10: -1 | PM10: -1 | PN10: 1 | PO10: 1 | PP10: -1 | PQ10: -1 | PR10: 1 | PS10: -1 | PT10: 1 | PU10: -1 | PV10: 1 | PW10: -1 | PX10: 1 | PY10: -1 | PZ10: -1 | QA10: -2 | QB10: 1 | QC10: -1 | QD10: 1 | QE10: -1 | QF10: -2 | QG10: 1 | QH10: -1 | QI10: 1 | QJ10: -1 | QK10: 1 | QL10: -1 | QM10: 4 | QN10: 1 | QO10: 1 | QP10: -1 | QQ10: 1 | QR10: -1 | QS10: -1 | QT10: -1 | QU10: -1 | QV10: -1 | QW10: -1 | QX10: -1 | QY10: 1 | QZ10: -1 | RA10: -1 | RB10: -1 | RC10: 2 | RD10: 1 | RE10: -1 | RF10: -1 | RG10: -1 | RH10: -1 | RI10: 1 | RJ10: -1 | RK10: -2 | RL10: -1 | RM10: -1 | RN10: 1 | RO10: -1 | RP10: 1 | RQ10: -1 | RR10: -1 | RS10: -1 | RT10: -1 | RU10: 1 | RV10: -1 | RW10: 1 | RX10: 1 | RY10: 1 | RZ10: 1 | SA10: -1 | SB10: 1 | SC10: 1 | SD10: 1 | SE10: 2 | SF10: -1 | SG10: -2 | SH10: 1 | SI10: -2 | SJ10: -1 | SK10: -1 | SL10: 1 | SM10: -1 | SN10: -1 | SO10: 1 | SP10: 2 | SQ10: -1 | SR10: -1 | SS10: 1 | ST10: -1 | SU10: -1 | SV10: -1 | SW10: 2 | SX10: -1 | SY10: -1 | SZ10: -1 | TA10: -1 | TB10: 1 | TC10: -1 | TD10: 1 | TE10: 1 | TF10: 1 | TG10: -1 | TH10: -1 | TI10: -1 | TJ10: 1 | TK10: 2 | TL10: -1 | TM10: -1 | TN10: -1 | TO10: 1 | TP10: 1 | TQ10: -2 | TR10: -1 | TS10: 1 | TT10: 1 | TU10: 1 | TV10: 1 | TW10: -1 | TX10: -1 | TY10: 2 | TZ10: 1 | UA10: 1 | UB10: -1 | UC10: 1 | UD10: -1 | UE10: -1 | UF10: -1 | UG10: 1 | UH10: 1 | UI10: -1 | UJ10: 1 | UK10: -1 | UL10: -1 | UM10: 1 | UN10: 1 | UO10: 1 | UP10: 1 | UQ10: -1 | UR10: -2 | US10: -1 | UT10: -2 | UU10: 1 | UV10: -2 | UW10: 1 | UX10: -1 | UY10: -1 | UZ10: -1 | VA10: 1 | VB10: 1 | VC10: 1 | VD10: 1 | VE10: 4 | VF10: 1 | VG10: -1 | VH10: -1 | VI10: -1 | VJ10: 1 | VK10: -1 | VL10: -1 | VM10: -1 | VN10: 1 | VO10: -1 | VP10: 1 | VQ10: -1 | VR10: 1 | VS10: 1 | VT10: -1 | VU10: -1 | VV10: -1 | VW10: -1 | VX10: -1 | VY10: 1 | VZ10: -1 | WA10: -1 | WB10: -1 | WC10: 1 | WD10: -1 | WE10: 1 | WF10: -1 | WG10: 1 | WH10: 1 | WI10: -1 | WJ10: 1 | WK10: -1 | WL10: 1 | WM10: 1 | WN10: -1 | WO10: -1 | WP10: -1 | WQ10: -1 | WR10: 1 | WS10: 1 | WT10: -1 | WU10: 1 | WV10: -1 | WW10: 1 | WX10: 1 | WY10: -1 | WZ10: 1 | XA10: -1 | XB10: 1 | XC10: 1 | XD10: -2 | XE10: -1 | XF10: 1 | XG10: -1 | XH10: 1 | XI10: 2 | XJ10: -1 | XK10: -1 | XL10: -1 | XM10: 2 | XN10: 1 | XO10: 2 | XP10: -1 | XQ10: -2 | XR10: -2 | XS10: -1 | XT10: 2 | XU10: -1 | XV10: -1 | XW10: -1 | XX10: 1 | XY10: 1 | XZ10: -1 | YA10: 1 | YB10: 1 | YC10: -1 | YD10: 1 | YE10: -1 | YF10: -1 | YG10: -1 | YH10: -1 | YI10: 1 | YJ10: 4 | YK10: -1 | YL10: 1 | YM10: -1 | YN10: -1 | YO10: 1 | YP10: -1 | YQ10: -1 | YR10: 1 | YS10: 1 | YT10: -1 | YU10: -1 | YV10: -1 | YW10: -1 | YX10: 1 | YY10: -1 | YZ10: 1 | ZA10: -1 | ZB10: 1 | ZC10: -1 | ZD10: 1 | ZE10: -1 | ZF10: 1 | ZG10: -1 | ZH10: -1 | ZI10: -1 | ZJ10: 1 | ZK10: -1 | ZL10: -1 | ZM10: -1 | ZN10: -1 | ZO10: -2 | ZP10: 1 | ZQ10: 1 | ZR10: -1 | ZS10: -1 | ZT10: -1 | ZU10: 1 | ZV10: -1 | ZW10: -1 | ZX10: 2 | ZY10: 1 | ZZ10: -1 | AAA10: -1 | AAB10: -1 | AAC10: -1 | AAD10: -1 | AAE10: -1 | AAF10: -1 | AAG10: -1 | AAH10: -2 | AAI10: 1 | AAJ10: 1 | AAK10: 1 | AAL10: 1 | AAM10: -1 | AAN10: 1 | AAO10: 1 | AAP10: -1 | AAQ10: -1 | AAR10: -1 | AAS10: 1 | AAT10: 1 | AAU10: -1 | AAV10: 2 | AAW10: 1 | AAX10: 2 | AAY10: -1 | AAZ10: 1 | ABA10: 1 | ABB10: -1 | ABC10: -2 | ABD10: -1 | ABE10: 1 | ABF10: 1 | ABG10: -1 | ABH10: 1 | ABI10: -1 | ABJ10: -1 | ABK10: -1 | ABL10: 2 | ABM10: -1 | ABN10: -1 | ABO10: -1 | ABP10: -1 | ABQ10: -1 | ABR10: 1 | ABS10: 1 | ABT10: -1 | ABU10: 1 | ABV10: -2 | ABW10: -1 | ABX10: 1 | ABY10: 1 | ABZ10: 1 | ACA10: -1 | ACB10: -1 | ACC10: -1 | ACD10: -1 | ACE10: 4 | ACF10: 1 | ACG10: 1 | ACH10: 1 | ACI10: -1 | ACJ10: 1 | ACK10: 1 | ACL10: -1 | ACM10: 1 | ACN10: 1 | ACO10: -1 | ACP10: 1 | ACQ10: 1 | ACR10: -1 | ACS10: -1 | ACT10: -1 | ACU10: -1 | ACV10: -1 | ACW10: -2 | ACX10: 1 | ACY10: -1 | ACZ10: 1 | ADA10: 1 | ADB10: 1 | ADC10: -1 | ADD10: -1 | ADE10: -1 | ADF10: -2 | ADG10: 1 | ADH10: -1 | ADI10: 1 | ADJ10: 1 | ADK10: 1 | ADL10: 1 | ADM10: -1 | ADN10: -1 | ADO10: -1 | ADP10: -1 | ADQ10: -2 | ADR10: -1 | ADS10: -1 | ADT10: 1 | ADU10: -1 | ADV10: 1 | ADW10: -1 | ADX10: -1 | ADY10: -1 | ADZ10: 1 | AEA10: -1 | AEB10: 1 | AEC10: 1 | AED10: 1 | AEE10: 1 | AEF10: 2 | AEG10: 1 | AEH10: -1 | AEI10: -1 | AEJ10: -1 | AEK10: -2 | AEL10: 1 | AEM10: 1 | AEN10: 1 | AEO10: 1 | AEP10: -2 | AEQ10: -1 | AER10: -1 | AES10: 2 | AET10: -1 | AEU10: -1 | AEV10: -1 | AEW10: -1 | AEX10: -1 | AEY10: 1 | AEZ10: 1 | AFA10: 2 | AFB10: -1 | AFC10: 1 | AFD10: -1 | AFE10: 1 | AFF10: 1 | AFG10: -1 | AFH10: -1 | AFI10: -1 | AFJ10: -2 | AFK10: -1 | AFL10: -1 | AFM10: 1 | AFN10: -1 | AFO10: -2 | AFP10: -2 | AFQ10: 2 | AFR10: -1 | AFS10: -1 | AFT10: 1 | AFU10: -1 | AFV10: -1 | AFW10: -1 | AFX10: -1 | AFY10: -1 | AFZ10: -1 | AGA10: 1 | AGB10: -1 | AGC10: 1 | AGD10: -1 | AGE10: -1 | AGF10: -1 | AGG10: -1 | AGH10: 1 | AGI10: -1 | AGJ10: -1 | AGK10: 1 | AGL10: -1 | AGM10: -1 | AGN10: -1 | AGO10: -1 | AGP10: 1 | AGQ10: 2 | AGR10: 1 | AGS10: -1 | AGT10: -1 | AGU10: -1 | AGV10: -2 | AGW10: -1 | AGX10: 1 | AGY10: -1 | AGZ10: -1 | AHA10: 1 | AHB10: -2 | AHC10: 1 | AHD10: 1 | AHE10: 2 | AHF10: -1 | AHG10: -1 | AHH10: -1 | AHI10: -1 | AHJ10: -1 | AHK10: 1 | AHL10: 1 | AHM10: -1 | AHN10: 1 | AHO10: -1 | AHP10: -1 | AHQ10: 1 | AHR10: -1 | AHS10: -2 | AHT10: -1 | AHU10: -2 | AHV10: 1 | AHW10: -1 | AHX10: -1 | AHY10: -1 | AHZ10: 1 | AIA10: -2 | AIB10: 1 | AIC10: 1 | AID10: -2 | AIE10: -1 | AIF10: 1 | AIG10: -1 | AIH10: -1 | AII10: 1 | AIJ10: 1 | AIK10: -1 | AIL10: -1 | AIM10: 1 | AIN10: 1 | AIO10: -1 | AIP10: -1 | AIQ10: -1 | AIR10: -2 | AIS10: -1 | AIT10: -1 | AIU10: 1 | AIV10: 1 | AIW10: -1 | AIX10: -1 | AIY10: -1 | AIZ10: -1 | AJA10: -1 | AJB10: 1 | AJC10: -1 | AJD10: -1 | AJE10: -1 | AJF10: 1 | AJG10: 1 | AJH10: -1 | AJI10: 1 | AJJ10: -1 | AJK10: -1 | AJL10: -1 | AJM10: -1 | AJN10: 1 | AJO10: -2 | AJP10: -1 | AJQ10: 1 | AJR10: 1 | AJS10: -2 | AJT10: -1 | AJU10: 1 | AJV10: 1 | AJW10: 1 | AJX10: 1 | AJY10: 1 | AJZ10: -1 | AKA10: 1 | AKB10: 2 | AKC10: -2 | AKD10: -1 | AKE10: -1 | AKF10: -2 | AKG10: -1 | AKH10: 1 | AKI10: -1 | AKJ10: -1 | AKK10: 2 | AKL10: -1 | AKM10: -1 | AKN10: -1 | AKO10: 1 | AKP10: 1 | AKQ10: -1 | AKR10: 1 | AKS10: -1 | AKT10: -1 | AKU10: 1 | AKV10: -1 | AKW10: 1 | AKX10: 1 | AKY10: -1 | AKZ10: -1 | ALA10: -1 | ALB10: 1 | ALC10: 4 | ALD10: 1 | ALE10: -1 | ALF10: -2 | ALG10: 1 | ALH10: -1 | ALI10: -1 | ALJ10: 1 | ALK10: 1 | ALL10: 1 | ALM10: -2 | ALN10: -1 | ALO10: -1 | ALP10: -1 | ALQ10: -1 | ALR10: 1 | ALS10: -1 | ALT10: 1 | ALU10: 1 | ALV10: -1 | ALW10: -1 | ALX10: -1 | ALY10: -1 | ALZ10: -1 | AMA10: 1 | AMB10: -1 | AMC10: -1 | AMD10: 2 | AME10: 1 | AMF10: 1 | AMG10: -1 | AMH10: -1 | AMI10: -1 | AMJ10: -1
A11: 1 | B11: -1 | C11: 1 | D11: -1 | E11: -1 | F11: -1 | G11: -2 | H11: -1 | I11: -2 | J11: -1 | K11: 1 | L11: 1 | M11: 1 | N11: -1 | O11: 1 | P11: -1 | Q11: 1 | R11: -1 | S11: 2 | T11: -2 | U11: -1 | V11: 1 | W11: 1 | X11: -2 | Y11: 2 | Z11: -1 | AA11: -1 | AB11: 2 | AC11: -1 | AD11: 1 | AE11: 2 | AF11: 1 | AG11: 1 | AH11: -1 | AI11: 1 | AJ11: -1 | AK11: -1 | AL11: 1 | AM11: 1 | AN11: -1 | AO11: 1 | AP11: -1 | AQ11: -1 | AR11: 2 | AS11: 1 | AT11: 1 | AU11: 2 | AV11: -1 | AW11: -1 | AX11: 2 | AY11: -1 | AZ11: -1 | BA11: 1 | BB11: -1 | BC11: -1 | BD11: -1 | BE11: 1 | BF11: -1 | BG11: 1 | BH11: -1 | BI11: -1 | BJ11: 1 | BK11: -1 | BL11: -1 | BM11: -1 | BN11: 1 | BO11: 2 | BP11: 2 | BQ11: -1 | BR11: 1 | BS11: -1 | BT11: -1 | BU11: -1 | BV11: 1 | BW11: -2 | BX11: 1 | BY11: -1 | BZ11: 1 | CA11: 1 | CB11: -1 | CC11: -1 | CD11: -1 | CE11: -1 | CF11: -1 | CG11: 1 | CH11: -1 | CI11: -1 | CJ11: -1 | CK11: -1 | CL11: 1 | CM11: -2 | CN11: -1 | CO11: -1 | CP11: -1 | CQ11: -1 | CR11: 1 | CS11: -2 | CT11: -1 | CU11: 1 | CV11: -1 | CW11: 1 | CX11: -1 | CY11: -1 | CZ11: -1 | DA11: -1 | DB11: 1 | DC11: -1 | DD11: -1 | DE11: 1 | DF11: 1 | DG11: 1 | DH11: 1 | DI11: 2 | DJ11: -1 | DK11: -1 | DL11: 1 | DM11: 1 | DN11: -1 | DO11: -1 | DP11: -1 | DQ11: 1 | DR11: -1 | DS11: 1 | DT11: 1 | DU11: -1 | DV11: -2 | DW11: 1 | DX11: -2 | DY11: 1 | DZ11: 1 | EA11: -2 | EB11: -1 | EC11: 1 | ED11: -1 | EE11: -2 | EF11: -1 | EG11: -1 | EH11: -1 | EI11: -1 | EJ11: -1 | EK11: -1 | EL11: -1 | EM11: 1 | EN11: -1 | EO11: 1 | EP11: -1 | EQ11: 1 | ER11: -1 | ES11: 1 | ET11: -2 | EU11: -1 | EV11: 1 | EW11: 1 | EX11: -1 | EY11: 1 | EZ11: -1 | FA11: 1 | FB11: 1 | FC11: -1 | FD11: -1 | FE11: -1 | FF11: 1 | FG11: 1 | FH11: 2 | FI11: 1 | FJ11: 2 | FK11: 1 | FL11: 1 | FM11: 1 | FN11: -1 | FO11: -1 | FP11: 2 | FQ11: -1 | FR11: -1 | FS11: -2 | FT11: 1 | FU11: -1 | FV11: 1 | FW11: 1 | FX11: 1 | FY11: 1 | FZ11: 2 | GA11: 1 | GB11: -1 | GC11: 1 | GD11: -1 | GE11: 1 | GF11: -1 | GG11: 1 | GH11: 1 | GI11: 1 | GJ11: 1 | GK11: -1 | GL11: -1 | GM11: 1 | GN11: -1 | GO11: 2 | GP11: 1 | GQ11: 2 | GR11: 1 | GS11: -1 | GT11: 1 | GU11: -1 | GV11: 2 | GW11: -1 | GX11: -1 | GY11: -1 | GZ11: -1 | HA11: 4 | HB11: -1 | HC11: 1 | HD11: 1 | HE11: -1 | HF11: -1 | HG11: -1 | HH11: 1 | HI11: -1 | HJ11: -1 | HK11: -1 | HL11: 1 | HM11: -1 | HN11: 1 | HO11: -1 | HP11: -1 | HQ11: -1 | HR11: 1 | HS11: -1 | HT11: 1 | HU11: 1 | HV11: 1 | HW11: -1 | HX11: 1 | HY11: -1 | HZ11: 1 | IA11: 1 | IB11: 1 | IC11: -1 | ID11: -1 | IE11: 1 | IF11: -1 | IG11: -1 | IH11: 2 | II11: -1 | IJ11: -1 | IK11: -1 | IL11: -1 | IM11: -1 | IN11: 4 | IO11: 1 | IP11: 1 | IQ11: 1 | IR11: 1 | IS11: -1 | IT11: -1 | IU11: 1 | IV11: -2 | IW11: -1 | IX11: 1 | IY11: 1 | IZ11: 1 | JA11: 1 | JB11: -1 | JC11: -1 | JD11: 1 | JE11: 1 | JF11: 1 | JG11: -1 | JH11: -1 | JI11: 2 | JJ11: -1 | JK11: -1 | JL11: -1 | JM11: 1 | JN11: -1 | JO11: 1 | JP11: 1 | JQ11: 1 | JR11: 1 | JS11: -1 | JT11: -1 | JU11: -1 | JV11: -1 | JW11: 1 | JX11: 1 | JY11: 1 | JZ11: 1 | KA11: 1 | KB11: -1 | KC11: 1 | KD11: -1 | KE11: -1 | KF11: -1 | KG11: -1 | KH11: -1 | KI11: -1 | KJ11: -1 | KK11: -1 | KL11: -1 | KM11: 1 | KN11: -1 | KO11: -1 | KP11: 2 | KQ11: 1 | KR11: 1 | KS11: 1 | KT11: -1 | KU11: -1 | KV11: 1 | KW11: -1 | KX11: 1 | KY11: -2 | KZ11: 1 | LA11: -1 | LB11: 1 | LC11: 1 | LD11: 1 | LE11: -1 | LF11: 1 | LG11: 1 | LH11: -1 | LI11: -1 | LJ11: 1 | LK11: 1 | LL11: -1 | LM11: -1 | LN11: 1 | LO11: 1 | LP11: -1 | LQ11: 1 | LR11: 1 | LS11: 1 | LT11: 1 | LU11: 1 | LV11: 1 | LW11: -1 | LX11: 1 | LY11: -1 | LZ11: 1 | MA11: -1 | MB11: 1 | MC11: -1 | MD11: 1 | ME11: 1 | MF11: 1 | MG11: -1 | MH11: 1 | MI11: 1 | MJ11: 1 | MK11: -1 | ML11: 1 | MM11: 1 | MN11: 1 | MO11: 1 | MP11: 1 | MQ11: 1 | MR11: -1 | MS11: -1 | MT11: -2 | MU11: 1 | MV11: -1 | MW11: -1 | MX11: -1 | MY11: 1 | MZ11: -1 | NA11: 2 | NB11: -1 | NC11: -1 | ND11: -1 | NE11: 1 | NF11: -1 | NG11: 1 | NH11: 1 | NI11: 1 | NJ11: -1 | NK11: 2 | NL11: 1 | NM11: -1 | NN11: 1 | NO11: -1 | NP11: -1 | NQ11: 1 | NR11: 1 | NS11: -1 | NT11: 1 | NU11: 1 | NV11: 2 | NW11: 1 | NX11: 1 | NY11: -2 | NZ11: 1 | OA11: 1 | OB11: 1 | OC11: -1 | OD11: -1 | OE11: -1 | OF11: -1 | OG11: -1 | OH11: 1 | OI11: 1 | OJ11: 1 | OK11: -1 | OL11: 2 | OM11: -1 | ON11: 1 | OO11: -1 | OP11: -1 | OQ11: -1 | OR11: -1 | OS11: -1 | OT11: -1 | OU11: -1 | OV11: 1 | OW11: 1 | OX11: -1 | OY11: -1 | OZ11: -1 | PA11: 1 | PB11: 1 | PC11: 1 | PD11: -1 | PE11: 1 | PF11: 2 | PG11: -1 | PH11: 1 | PI11: 1 | PJ11: 1 | PK11: -1 | PL11: -1 | PM11: 1 | PN11: 1 | PO11: -1 | PP11: 1 | PQ11: -1 | PR11: -2 | PS11: 1 | PT11: 1 | PU11: 1 | PV11: 1 | PW11: -1 | PX11: 1 | PY11: 2 | PZ11: 1 | QA11: -1 | QB11: -1 | QC11: 1 | QD11: 1 | QE11: 1 | QF11: 1 | QG11: 1 | QH11: 1 | QI11: -1 | QJ11: 1 | QK11: 1 | QL11: -1 | QM11: -1 | QN11: 1 | QO11: -1 | QP11: 1 | QQ11: 1 | QR11: 1 | QS11: -1 | QT11: 1 | QU11: 1 | QV11: 1 | QW11: 1 | QX11: -1 | QY11: -1 | QZ11: 1 | RA11: -1 | RB11: 1 | RC11: -1 | RD11: -1 | RE11: 1 | RF11: 2 | RG11: -1 | RH11: 1 | RI11: 1 | RJ11: -1 | RK11: 1 | RL11: -1 | RM11: -1 | RN11: 1 | RO11: 1 | RP11: -1 | RQ11: -1 | RR11: 1 | RS11: -2 | RT11: 1 | RU11: -2 | RV11: 1 | RW11: 1 | RX11: 1 | RY11: 1 | RZ11: -1 | SA11: 1 | SB11: -1 | SC11: 1 | SD11: 1 | SE11: 1 | SF11: 1 | SG11: -1 | SH11: -1 | SI11: -1 | SJ11: -1 | SK11: -1 | SL11: -1 | SM11: 1 | SN11: -1 | SO11: 1 | SP11: -1 | SQ11: 1 | SR11: -1 | SS11: 1 | ST11: -1 | SU11: 1 | SV11: 1 | SW11: 1 | SX11: -1 | SY11: -1 | SZ11: 1 | TA11: -1 | TB11: -2 | TC11: 1 | TD11: -1 | TE11: 1 | TF11: 1 | TG11: -1 | TH11: -1 | TI11: 2 | TJ11: 1 | TK11: 1 | TL11: -2 | TM11: 2 | TN11: 1 | TO11: -2 | TP11: 1 | TQ11: -1 | TR11: 1 | TS11: 1 | TT11: 1 | TU11: 1 | TV11: -1 | TW11: 1 | TX11: -1 | TY11: 1 | TZ11: -1 | UA11: 1 | UB11: 1 | UC11: -1 | UD11: -1 | UE11: -1 | UF11: 1 | UG11: 1 | UH11: -1 | UI11: 1 | UJ11: -1 | UK11: -1 | UL11: 1 | UM11: -1 | UN11: 1 | UO11: -1 | UP11: -1 | UQ11: -1 | UR11: -1 | US11: 1 | UT11: -1 | UU11: -2 | UV11: 1 | UW11: 2 | UX11: 1 | UY11: -1 | UZ11: -1 | VA11: -1 | VB11: 1 | VC11: 1 | VD11: -1 | VE11: 1 | VF11: 1 | VG11: 1 | VH11: -1 | VI11: 1 | VJ11: 1 | VK11: -1 | VL11: -1 | VM11: -1 | VN11: -1 | VO11: -1 | VP11: -1 | VQ11: -1 | VR11: -1 | VS11: 1 | VT11: -1 | VU11: 1 | VV11: -1 | VW11: 1 | VX11: -1 | VY11: 1 | VZ11: -1 | WA11: -1 | WB11: 1 | WC11: 2 | WD11: -1 | WE11: -1 | WF11: -1 | WG11: -1 | WH11: -2 | WI11: -1 | WJ11: 1 | WK11: 1 | WL11: 1 | WM11: 2 | WN11: -1 | WO11: 1 | WP11: -1 | WQ11: 1 | WR11: -1 | WS11: -1 | WT11: 1 | WU11: -1 | WV11: 1 | WW11: -1 | WX11: 2 | WY11: 1 | WZ11: 1 | XA11: 1 | XB11: 1 | XC11: -1 | XD11: -2 | XE11: 1 | XF11: -1 | XG11: 1 | XH11: -1 | XI11: 1 | XJ11: 2 | XK11: 1 | XL11: 1 | XM11: -1 | XN11: 1 | XO11: 1 | XP11: 1 | XQ11: -1 | XR11: 1 | XS11: 2 | XT11: -1 | XU11: 1 | XV11: 1 | XW11: 1 | XX11: 1 | XY11: 1 | XZ11: -1 | YA11: -1 | YB11: -1 | YC11: 1 | YD11: -1 | YE11: -1 | YF11: 1 | YG11: -1 | YH11: 2 | YI11: -1 | YJ11: -1 | YK11: -1 | YL11: 1 | YM11: -1 | YN11: 1 | YO11: 1 | YP11: -1 | YQ11: 1 | YR11: -1 | YS11: 1 | YT11: -1 | YU11: 1 | YV11: 1 | YW11: 1 | YX11: -1 | YY11: -1 | YZ11: 1 | ZA11: -1 | ZB11: 1 | ZC11: 1 | ZD11: 1 | ZE11: 1 | ZF11: -1 | ZG11: -1 | ZH11: 1 | ZI11: -2 | ZJ11: 1 | ZK11: 1 | ZL11: -1 | ZM11: 2 | ZN11: -1 | ZO11: 2 | ZP11: -1 | ZQ11: -1 | ZR11: 1 | ZS11: 1 | ZT11: -1 | ZU11: 1 | ZV11: -1 | ZW11: -1 | ZX11: 1 | ZY11: -1 | ZZ11: -1 | AAA11: -1 | AAB11: -1 | AAC11: 1 | AAD11: -1 | AAE11: -2 | AAF11: -1 | AAG11: -1 | AAH11: 1 | AAI11: -1 | AAJ11: -1 | AAK11: -1 | AAL11: 1 | AAM11: 1 | AAN11: -2 | AAO11: 1 | AAP11: -1 | AAQ11: -1 | AAR11: -1 | AAS11: 1 | AAT11: 1 | AAU11: 1 | AAV11: -2 | AAW11: 1 | AAX11: -1 | AAY11: 1 | AAZ11: -1 | ABA11: -1 | ABB11: 1 | ABC11: 1 | ABD11: 1 | ABE11: 1 | ABF11: 1 | ABG11: 1 | ABH11: 2 | ABI11: -1 | ABJ11: -1 | ABK11: 1 | ABL11: 1 | ABM11: -1 | ABN11: -1 | ABO11: 1 | ABP11: -1 | ABQ11: 1 | ABR11: -1 | ABS11: -1 | ABT11: 1 | ABU11: -1 | ABV11: -1 | ABW11: -1 | ABX11: -1 | ABY11: 1 | ABZ11: 1 | ACA11: 2 | ACB11: 1 | ACC11: 1 | ACD11: 1 | ACE11: 1 | ACF11: 1 | ACG11: -1 | ACH11: -1 | ACI11: 1 | ACJ11: -2 | ACK11: -1 | ACL11: -2 | ACM11: -1 | ACN11: 1 | ACO11: -1 | ACP11: 1 | ACQ11: 1 | ACR11: 1 | ACS11: -1 | ACT11: 2 | ACU11: 1 | ACV11: -1 | ACW11: -2 | ACX11: 2 | ACY11: -1 | ACZ11: 1 | ADA11: 1 | ADB11: -1 | ADC11: 2 | ADD11: 1 | ADE11: 2 | ADF11: 1 | ADG11: 1 | ADH11: -2 | ADI11: 1 | ADJ11: 2 | ADK11: -1 | ADL11: 1 | ADM11: -1 | ADN11: -1 | ADO11: 1 | ADP11: 1 | ADQ11: -1 | ADR11: -1 | ADS11: -1 | ADT11: -1 | ADU11: -1 | ADV11: 1 | ADW11: 1 | ADX11: -1 | ADY11: 1 | ADZ11: 1 | AEA11: 1 | AEB11: 1 | AEC11: -1 | AED11: 1 | AEE11: -1 | AEF11: 1 | AEG11: -1 | AEH11: 1 | AEI11: 1 | AEJ11: -1 | AEK11: 1 | AEL11: -1 | AEM11: 1 | AEN11: -1 | AEO11: -1 | AEP11: 1 | AEQ11: -1 | AER11: -1 | AES11: 1 | AET11: -1 | AEU11: 1 | AEV11: -1 | AEW11: -1 | AEX11: 1 | AEY11: 1 | AEZ11: -1 | AFA11: 1 | AFB11: 1 | AFC11: 1 | AFD11: -1 | AFE11: -1 | AFF11: 1 | AFG11: -1 | AFH11: 1 | AFI11: 1 | AFJ11: 1 | AFK11: -1 | AFL11: -1 | AFM11: -1 | AFN11: 1 | AFO11: 1 | AFP11: -1 | AFQ11: -1 | AFR11: 1 | AFS11: -1 | AFT11: 1 | AFU11: 1 | AFV11: -1 | AFW11: 1 | AFX11: 1 | AFY11: -2 | AFZ11: -1 | AGA11: -1 | AGB11: 1 | AGC11: 1 | AGD11: 1 | AGE11: 1 | AGF11: -2 | AGG11: -1 | AGH11: 1 | AGI11: 1 | AGJ11: 1 | AGK11: 1 | AGL11: -1 | AGM11: -1 | AGN11: 1 | AGO11: 1 | AGP11: -1 | AGQ11: 1 | AGR11: -1 | AGS11: 2 | AGT11: 1 | AGU11: 1 | AGV11: 1 | AGW11: 1 | AGX11: -1 | AGY11: 2 | AGZ11: -1 | AHA11: 1 | AHB11: -1 | AHC11: 1 | AHD11: -1 | AHE11: 1 | AHF11: 1 | AHG11: -1 | AHH11: 1 | AHI11: -1 | AHJ11: 1 | AHK11: 1 | AHL11: 1 | AHM11: -1 | AHN11: 1 | AHO11: -1 | AHP11: 2 | AHQ11: 1 | AHR11: -1 | AHS11: 1 | AHT11: -1 | AHU11: 1 | AHV11: 1 | AHW11: 2 | AHX11: 1 | AHY11: -1 | AHZ11: 1 | AIA11: 1 | AIB11: 1 | AIC11: -1 | AID11: -1 | AIE11: -1 | AIF11: 1 | AIG11: 1 | AIH11: -1 | AII11: 1 | AIJ11: 1 | AIK11: -1 | AIL11: 1 | AIM11: -1 | AIN11: 2 | AIO11: -1 | AIP11: -1 | AIQ11: -1 | AIR11: -1 | AIS11: -1 | AIT11: 1 | AIU11: 1 | AIV11: 1 | AIW11: -1 | AIX11: -1 | AIY11: 1 | AIZ11: -1 | AJA11: -1 | AJB11: -2 | AJC11: 1 | AJD11: 1 | AJE11: -1 | AJF11: 1 | AJG11: -1 | AJH11: 1 | AJI11: 1 | AJJ11: -1 | AJK11: -1 | AJL11: 1 | AJM11: -1 | AJN11: -1 | AJO11: -1 | AJP11: 2 | AJQ11: 1 | AJR11: 1 | AJS11: 4 | AJT11: -1 | AJU11: -1 | AJV11: 1 | AJW11: -2 | AJX11: 1 | AJY11: 1 | AJZ11: -1 | AKA11: 1 | AKB11: -1 | AKC11: -1 | AKD11: 1 | AKE11: -1 | AKF11: -1 | AKG11: -1 | AKH11: 1 | AKI11: -1 | AKJ11: -1 | AKK11: 1 | AKL11: 1 | AKM11: -1 | AKN11: 1 | AKO11: -1 | AKP11: -2 | AKQ11: 1 | AKR11: -1 | AKS11: -1 | AKT11: 1 | AKU11: 2 | AKV11: 1 | AKW11: -1 | AKX11: 1 | AKY11: -1 | AKZ11: -1 | ALA11: -1 | ALB11: 1 | ALC11: -1 | ALD11: -1 | ALE11: -2 | ALF11: 1 | ALG11: -1 | ALH11: 1 | ALI11: -1 | ALJ11: 1 | ALK11: 1 | ALL11: -2 | ALM11: -1 | ALN11: -1 | ALO11: -1 | ALP11: -1 | ALQ11: 1 | ALR11: 1 | ALS11: -1 | ALT11: 1 | ALU11: 1 | ALV11: -1 | ALW11: -1 | ALX11: -1 | ALY11: 1 | ALZ11: 1 | AMA11: 1 | AMB11: -1 | AMC11: -1 | AMD11: -1 | AME11: -1 | AMF11: 1 | AMG11: -1 | AMH11: 1 | AMI11: -1 | AMJ11: -1
A12: -1 | B12: -2 | C12: -2 | D12: 1 | E12: 1 | F12: 4 | G12: 1 | H12: 4 | I12: -4 | J12: -2 | K12: -4 | L12: 1 | M12: -1 | N12: 1 | O12: 1 | P12: 1 | Q12: 4 | R12: -1 | S12: 1 | T12: -2 | U12: 4 | V12: 1 | W12: 1 | X12: 2 | Y12: -4 | Z12: 2 | AA12: 1 | AB12: 1 | AC12: -1 | AD12: -2 | AE12: -4 | AF12: 16 | AG12: -2 | AH12: -2 | AI12: -1 | AJ12: 4 | AK12: -4 | AL12: 2 | AM12: -2 | AN12: 1 | AO12: -1 | AP12: 2 | AQ12: 1 | AR12: -2 | AS12: -4 | AT12: -2 | AU12: -2 | AV12: -2 | AW12: 2 | AX12: -4 | AY12: 1 | AZ12: 1 | BA12: -2 | BB12: 1 | BC12: -1 | BD12: -2 | BE12: 4 | BF12: -2 | BG12: -1 | BH12: -1 | BI12: 1 | BJ12: -2 | BK12: -1 | BL12: -2 | BM12: 2 | BN12: 1 | BO12: -4 | BP12: 1 | BQ12: -2 | BR12: -2 | BS12: -1 | BT12: 4 | BU12: 1 | BV12: -2 | BW12: -4 | BX12: -2 | BY12: 1 | BZ12: -4 | CA12: -1 | CB12: 1 | CC12: 1 | CD12: -2 | CE12: -1 | CF12: 1 | CG12: -4 | CH12: -1 | CI12: -2 | CJ12: 1 | CK12: 4 | CL12: -4 | CM12: 2 | CN12: -1 | CO12: 1 | CP12: -1 | CQ12: -4 | CR12: -2 | CS12: -2 | CT12: -2 | CU12: 4 | CV12: -2 | CW12: -2 | CX12: 4 | CY12: -4 | CZ12: 4 | DA12: 2 | DB12: -2 | DC12: 1 | DD12: 2 | DE12: -4 | DF12: 1 | DG12: 4 | DH12: -2 | DI12: -2 | DJ12: -1 | DK12: 1 | DL12: -1 | DM12: -1 | DN12: 4 | DO12: -2 | DP12: -1 | DQ12: 1 | DR12: 2 | DS12: 1 | DT12: 1 | DU12: -1 | DV12: -1 | DW12: -2 | DX12: -2 | DY12: 4 | DZ12: -4 | EA12: 4 | EB12: 1 | EC12: 1 | ED12: 4 | EE12: 1 | EF12: -1 | EG12: -1 | EH12: -2 | EI12: -1 | EJ12: -1 | EK12: 4 | EL12: -1 | EM12: 2 | EN12: 1 | EO12: -4 | EP12: -4 | EQ12: -4 | ER12: -1 | ES12: -1 | ET12: 2 | EU12: 1 | EV12: -4 | EW12: -4 | EX12: -4 | EY12: 2 | EZ12: -2 | FA12: 2 | FB12: 1 | FC12: -1 | FD12: -1 | FE12: 1 | FF12: -2 | FG12: 1 | FH12: 4 | FI12: -1 | FJ12: -4 | FK12: -1 | FL12: 1 | FM12: -4 | FN12: -1 | FO12: -4 | FP12: -4 | FQ12: 1 | FR12: -2 | FS12: -1 | FT12: 1 | FU12: 2 | FV12: -4 | FW12: -4 | FX12: -1 | FY12: -4 | FZ12: -2 | GA12: 1 | GB12: -1 | GC12: -4 | GD12: 1 | GE12: 1 | GF12: -1 | GG12: -1 | GH12: -4 | GI12: 1 | GJ12: -2 | GK12: 16 | GL12: -2 | GM12: 1 | GN12: -2 | GO12: 1 | GP12: -1 | GQ12: -4 | GR12: 1 | GS12: -2 | GT12: -2 | GU12: -4 | GV12: 4 | GW12: 2 | GX12: -2 | GY12: 2 | GZ12: -1 | HA12: -4 | HB12: 1 | HC12: -2 | HD12: -1 | HE12: -1 | HF12: 2 | HG12: 2 | HH12: -2 | HI12: -1 | HJ12: -2 | HK12: -1 | HL12: 4 | HM12: -1 | HN12: 4 | HO12: 1 | HP12: 2 | HQ12: 2 | HR12: -2 | HS12: -1 | HT12: 1 | HU12: 1 | HV12: -2 | HW12: -4 | HX12: -1 | HY12: -1 | HZ12: 1 | IA12: -1 | IB12: 4 | IC12: 2 | ID12: -4 | IE12: 4 | IF12: -16 | IG12: 1 | IH12: 1 | II12: 2 | IJ12: 1 | IK12: -4 | IL12: 2 | IM12: -4 | IN12: -1 | IO12: 1 | IP12: 1 | IQ12: -2 | IR12: -2 | IS12: -4 | IT12: 2 | IU12: -1 | IV12: -1 | IW12: 1 | IX12: -4 | IY12: -1 | IZ12: -4 | JA12: -1 | JB12: 2 | JC12: 4 | JD12: 1 | JE12: 1 | JF12: 2 | JG12: -1 | JH12: -4 | JI12: -1 | JJ12: -4 | JK12: 2 | JL12: -2 | JM12: 1 | JN12: -4 | JO12: 1 | JP12: -4 | JQ12: -1 | JR12: -2 | JS12: -2 | JT12: 2 | JU12: 1 | JV12: -1 | JW12: 1 | JX12: -2 | JY12: -4 | JZ12: -2 | KA12: 2 | KB12: 2 | KC12: -2 | KD12: -1 | KE12: -1 | KF12: -4 | KG12: -2 | KH12: -4 | KI12: 1 | KJ12: 4 | KK12: 1 | KL12: -4 | KM12: -4 | KN12: -1 | KO12: -1 | KP12: 4 | KQ12: -2 | KR12: 1 | KS12: -4 | KT12: -1 | KU12: 1 | KV12: 1 | KW12: -1 | KX12: -1 | KY12: -4 | KZ12: -2 | LA12: 2 | LB12: 1 | LC12: -1 | LD12: -1 | LE12: -1 | LF12: -1 | LG12: 4 | LH12: -4 | LI12: -4 | LJ12: 1 | LK12: -2 | LL12: 2 | LM12: 2 | LN12: -4 | LO12: 4 | LP12: 1 | LQ12: 4 | LR12: -4 | LS12: 1 | LT12: 4 | LU12: -4 | LV12: -2 | LW12: -1 | LX12: -2 | LY12: -1 | LZ12: 16 | MA12: -2 | MB12: -4 | MC12: 1 | MD12: -1 | ME12: -2 | MF12: -2 | MG12: -2 | MH12: -4 | MI12: 1 | MJ12: 2 | MK12: 1 | ML12: -2 | MM12: -1 | MN12: -1 | MO12: -2 | MP12: -2 | MQ12: 4 | MR12: -1 | MS12: -2 | MT12: -1 | MU12: 2 | MV12: -1 | MW12: -2 | MX12: 4 | MY12: 1 | MZ12: -1 | NA12: 1 | NB12: -1 | NC12: 2 | ND12: 1 | NE12: -1 | NF12: -2 | NG12: 2 | NH12: -4 | NI12: 1 | NJ12: 1 | NK12: 1 | NL12: -1 | NM12: 1 | NN12: -1 | NO12: 1 | NP12: -1 | NQ12: 4 | NR12: -2 | NS12: -4 | NT12: -1 | NU12: 1 | NV12: -1 | NW12: 4 | NX12: -1 | NY12: 1 | NZ12: 1 | OA12: -1 | OB12: -2 | OC12: -2 | OD12: 4 | OE12: -4 | OF12: 4 | OG12: 1 | OH12: 2 | OI12: -1 | OJ12: 4 | OK12: 4 | OL12: 1 | OM12: -2 | ON12: -1 | OO12: -4 | OP12: -1 | OQ12: 4 | OR12: 2 | OS12: 1 | OT12: -4 | OU12: 1 | OV12: -1 | OW12: -1 | OX12: -2 | OY12: -2 | OZ12: 16 | PA12: 4 | PB12: -2 | PC12: -4 | PD12: -2 | PE12: -1 | PF12: 4 | PG12: -2 | PH12: 1 | PI12: 2 | PJ12: 2 | PK12: 1 | PL12: 2 | PM12: -4 | PN12: 2 | PO12: 2 | PP12: -4 | PQ12: -4 | PR12: -2 | PS12: 1 | PT12: -4 | PU12: -2 | PV12: -4 | PW12: -1 | PX12: 1 | PY12: -4 | PZ12: 4 | QA12: 1 | QB12: 4 | QC12: 1 | QD12: 1 | QE12: 1 | QF12: -2 | QG12: 2 | QH12: 1 | QI12: 2 | QJ12: 1 | QK12: 1 | QL12: -2 | QM12: -4 | QN12: 1 | QO12: -2 | QP12: 4 | QQ12: -4 | QR12: -1 | QS12: -2 | QT12: 2 | QU12: 4 | QV12: -1 | QW12: -2 | QX12: 1 | QY12: -1 | QZ12: -1 | RA12: -1 | RB12: -2 | RC12: -2 | RD12: -2 | RE12: -2 | RF12: -4 | RG12: 1 | RH12: -4 | RI12: -2 | RJ12: -2 | RK12: 1 | RL12: 2 | RM12: 4 | RN12: -2 | RO12: -1 | RP12: 4 | RQ12: 1 | RR12: 1 | RS12: -1 | RT12: 2 | RU12: 4 | RV12: -1 | RW12: 4 | RX12: 1 | RY12: -1 | RZ12: -1 | SA12: -4 | SB12: -1 | SC12: -1 | SD12: -4 | SE12: -1 | SF12: -2 | SG12: -1 | SH12: -1 | SI12: 2 | SJ12: 1 | SK12: -4 | SL12: -1 | SM12: 1 | SN12: 4 | SO12: 2 | SP12: -2 | SQ12: -2 | SR12: -4 | SS12: 1 | ST12: -1 | SU12: -1 | SV12: 4 | SW12: 2 | SX12: -4 | SY12: -2 | SZ12: -4 | TA12: 2 | TB12: 1 | TC12: -2 | TD12: 4 | TE12: 2 | TF12: -1 | TG12: -1 | TH12: 1 | TI12: -2 | TJ12: 16 | TK12: -1 | TL12: 2 | TM12: 4 | TN12: 1 | TO12: 1 | TP12: -2 | TQ12: -1 | TR12: 2 | TS12: -1 | TT12: 1 | TU12: -4 | TV12: -4 | TW12: -1 | TX12: -1 | TY12: -4 | TZ12: 1 | UA12: 1 | UB12: -4 | UC12: -1 | UD12: 1 | UE12: -2 | UF12: -4 | UG12: 4 | UH12: -1 | UI12: -1 | UJ12: -1 | UK12: 1 | UL12: -2 | UM12: -1 | UN12: -2 | UO12: 1 | UP12: 4 | UQ12: 2 | UR12: -4 | US12: -1 | UT12: 1 | UU12: 1 | UV12: -2 | UW12: 4 | UX12: -2 | UY12: -2 | UZ12: -4 | VA12: 4 | VB12: -1 | VC12: 2 | VD12: 1 | VE12: -4 | VF12: -1 | VG12: 1 | VH12: 1 | VI12: 4 | VJ12: 2 | VK12: 1 | VL12: -1 | VM12: -1 | VN12: -1 | VO12: 4 | VP12: -1 | VQ12: 4 | VR12: 2 | VS12: 4 | VT12: 4 | VU12: 4 | VV12: -1 | VW12: 1 | VX12: -1 | VY12: 1 | VZ12: -1 | WA12: -4 | WB12: 4 | WC12: -1 | WD12: -4 | WE12: -16 | WF12: 1 | WG12: -2 | WH12: -2 | WI12: -2 | WJ12: -4 | WK12: -4 | WL12: -4 | WM12: 1 | WN12: -1 | WO12: -1 | WP12: 2 | WQ12: -4 | WR12: 4 | WS12: -2 | WT12: -2 | WU12: -1 | WV12: 4 | WW12: -4 | WX12: -4 | WY12: -1 | WZ12: 2 | XA12: -2 | XB12: -4 | XC12: -2 | XD12: 1 | XE12: -1 | XF12: -2 | XG12: 4 | XH12: -1 | XI12: -2 | XJ12: 1 | XK12: -1 | XL12: -4 | XM12: -1 | XN12: -1 | XO12: -4 | XP12: -1 | XQ12: -1 | XR12: -4 | XS12: 4 | XT12: -2 | XU12: 1 | XV12: 4 | XW12: -2 | XX12: -2 | XY12: -4 | XZ12: -1 | YA12: 1 | YB12: 4 | YC12: -1 | YD12: 2 | YE12: 1 | YF12: 1 | YG12: -2 | YH12: -4 | YI12: -2 | YJ12: 1 | YK12: -4 | YL12: -2 | YM12: 4 | YN12: -2 | YO12: -1 | YP12: -2 | YQ12: -4 | YR12: 2 | YS12: 1 | YT12: -2 | YU12: -1 | YV12: 4 | YW12: -1 | YX12: 1 | YY12: -1 | YZ12: -2 | ZA12: 1 | ZB12: 1 | ZC12: 1 | ZD12: -2 | ZE12: -4 | ZF12: 1 | ZG12: -2 | ZH12: 2 | ZI12: -1 | ZJ12: 1 | ZK12: -2 | ZL12: -1 | ZM12: -1 | ZN12: 1 | ZO12: -1 | ZP12: -4 | ZQ12: -1 | ZR12: -2 | ZS12: -4 | ZT12: 1 | ZU12: -1 | ZV12: 1 | ZW12: 2 | ZX12: -1 | ZY12: 1 | ZZ12: -2 | AAA12: 1 | AAB12: -4 | AAC12: -1 | AAD12: -2 | AAE12: -4 | AAF12: -4 | AAG12: 1 | AAH12: -1 | AAI12: -2 | AAJ12: 2 | AAK12: -2 | AAL12: -1 | AAM12: 4 | AAN12: -4 | AAO12: 4 | AAP12: -1 | AAQ12: 2 | AAR12: 4 | AAS12: -4 | AAT12: -4 | AAU12: -1 | AAV12: -1 | AAW12: -4 | AAX12: 1 | AAY12: -2 | AAZ12: -2 | ABA12: -1 | ABB12: -2 | ABC12: -1 | ABD12: -2 | ABE12: -4 | ABF12: -1 | ABG12: 2 | ABH12: 1 | ABI12: 1 | ABJ12: -1 | ABK12: -2 | ABL12: 2 | ABM12: -2 | ABN12: -2 | ABO12: 4 | ABP12: -1 | ABQ12: -2 | ABR12: -4 | ABS12: -1 | ABT12: -4 | ABU12: -4 | ABV12: 2 | ABW12: 1 | ABX12: -4 | ABY12: 1 | ABZ12: -2 | ACA12: 2 | ACB12: -1 | ACC12: 1 | ACD12: -2 | ACE12: -4 | ACF12: 4 | ACG12: 1 | ACH12: 1 | ACI12: -4 | ACJ12: -1 | ACK12: -2 | ACL12: 2 | ACM12: -2 | ACN12: -4 | ACO12: -1 | ACP12: -1 | ACQ12: 2 | ACR12: 4 | ACS12: 4 | ACT12: -2 | ACU12: -4 | ACV12: 2 | ACW12: -1 | ACX12: -1 | ACY12: 2 | ACZ12: -1 | ADA12: 4 | ADB12: -1 | ADC12: -4 | ADD12: -1 | ADE12: -2 | ADF12: -2 | ADG12: 2 | ADH12: -1 | ADI12: 1 | ADJ12: 1 | ADK12: -2 | ADL12: -1 | ADM12: -4 | ADN12: -2 | ADO12: 2 | ADP12: 1 | ADQ12: -2 | ADR12: -2 | ADS12: -1 | ADT12: -1 | ADU12: -1 | ADV12: -2 | ADW12: 1 | ADX12: -1 | ADY12: 1 | ADZ12: 2 | AEA12: -2 | AEB12: -1 | AEC12: -1 | AED12: -1 | AEE12: -4 | AEF12: -2 | AEG12: -1 | AEH12: 1 | AEI12: 1 | AEJ12: 2 | AEK12: 1 | AEL12: -4 | AEM12: -1 | AEN12: 4 | AEO12: 1 | AEP12: 2 | AEQ12: 1 | AER12: -2 | AES12: -2 | AET12: 1 | AEU12: -2 | AEV12: -1 | AEW12: -1 | AEX12: 2 | AEY12: -2 | AEZ12: -4 | AFA12: 4 | AFB12: -1 | AFC12: 1 | AFD12: 1 | AFE12: -4 | AFF12: -4 | AFG12: 2 | AFH12: 1 | AFI12: -1 | AFJ12: -2 | AFK12: -1 | AFL12: 2 | AFM12: -1 | AFN12: -4 | AFO12: -4 | AFP12: 1 | AFQ12: -2 | AFR12: 4 | AFS12: -2 | AFT12: 2 | AFU12: -1 | AFV12: 1 | AFW12: 4 | AFX12: -4 | AFY12: 1 | AFZ12: -2 | AGA12: 1 | AGB12: 1 | AGC12: -1 | AGD12: -1 | AGE12: -2 | AGF12: -1 | AGG12: -4 | AGH12: 1 | AGI12: -4 | AGJ12: 4 | AGK12: -2 | AGL12: -1 | AGM12: 2 | AGN12: -4 | AGO12: -1 | AGP12: -1 | AGQ12: -1 | AGR12: -2 | AGS12: 1 | AGT12: -1 | AGU12: -4 | AGV12: -2 | AGW12: -1 | AGX12: -1 | AGY12: 1 | AGZ12: -4 | AHA12: 2 | AHB12: -1 | AHC12: -2 | AHD12: -16 | AHE12: -1 | AHF12: 2 | AHG12: 2 | AHH12: -4 | AHI12: -4 | AHJ12: -2 | AHK12: 2 | AHL12: -2 | AHM12: 4 | AHN12: 4 | AHO12: -1 | AHP12: 2 | AHQ12: -2 | AHR12: -4 | AHS12: -1 | AHT12: 1 | AHU12: 1 | AHV12: -4 | AHW12: -4 | AHX12: -2 | AHY12: -1 | AHZ12: 2 | AIA12: 1 | AIB12: 1 | AIC12: -1 | AID12: 1 | AIE12: -4 | AIF12: 2 | AIG12: -1 | AIH12: 1 | AII12: -1 | AIJ12: -1 | AIK12: -1 | AIL12: -4 | AIM12: 4 | AIN12: 2 | AIO12: -1 | AIP12: -2 | AIQ12: -1 | AIR12: 1 | AIS12: 4 | AIT12: 1 | AIU12: 2 | AIV12: 4 | AIW12: 2 | AIX12: 1 | AIY12: 2 | AIZ12: -2 | AJA12: -2 | AJB12: 1 | AJC12: -2 | AJD12: -2 | AJE12: -1 | AJF12: -1 | AJG12: -2 | AJH12: 1 | AJI12: 2 | AJJ12: 4 | AJK12: 4 | AJL12: -2 | AJM12: 2 | AJN12: 2 | AJO12: -1 | AJP12: -1 | AJQ12: -1 | AJR12: -4 | AJS12: -4 | AJT12: -1 | AJU12: -1 | AJV12: 1 | AJW12: 2 | AJX12: 2 | AJY12: -4 | AJZ12: -4 | AKA12: -2 | AKB12: 4 | AKC12: 2 | AKD12: 1 | AKE12: 2 | AKF12: 2 | AKG12: -2 | AKH12: 1 | AKI12: -2 | AKJ12: -1 | AKK12: -1 | AKL12: 1 | AKM12: -4 | AKN12: 1 | AKO12: 1 | AKP12: 1 | AKQ12: 1 | AKR12: -2 | AKS12: -2 | AKT12: -1 | AKU12: 16 | AKV12: -4 | AKW12: 1 | AKX12: 1 | AKY12: 1 | AKZ12: -2 | ALA12: -1 | ALB12: -2 | ALC12: -1 | ALD12: -2 | ALE12: 4 | ALF12: -1 | ALG12: 2 | ALH12: 4 | ALI12: 1 | ALJ12: 4 | ALK12: 2 | ALL12: -4 | ALM12: 1 | ALN12: -1 | ALO12: 1 | ALP12: 4 | ALQ12: 2 | ALR12: -4 | ALS12: 1 | ALT12: -2 | ALU12: -1 | ALV12: 1 | ALW12: 1 | ALX12: -2 | ALY12: 2 | ALZ12: -1 | AMA12: -1 | AMB12: 4 | AMC12: -2 | AMD12: -2 | AME12: -1 | AMF12: -4 | AMG12: 16 | AMH12: 2 | AMI12: 4 | AMJ12: -4
A13: -1 | B13: -1 | C13: 2 | D13: 1 | E13: -2 | F13: 2 | G13: 1 | H13: -2 | I13: 1 | J13: 1 | K13: 4 | L13: 1 | M13: 4 | N13: 2 | O13: -1 | P13: -2 | Q13: -2 | R13: -2 | S13: -4 | T13: 1 | U13: -4 | V13: -2 | W13: -1 | X13: -1 | Y13: 4 | Z13: -16 | AA13: -1 | AB13: 1 | AC13: 1 | AD13: -4 | AE13: -4 | AF13: 4 | AG13: 1 | AH13: -1 | AI13: -4 | AJ13: -1 | AK13: -2 | AL13: -1 | AM13: -4 | AN13: -2 | AO13: -2 | AP13: 1 | AQ13: -2 | AR13: -2 | AS13: -4 | AT13: -2 | AU13: 2 | AV13: 1 | AW13: -2 | AX13: 4 | AY13: -2 | AZ13: -1 | BA13: 1 | BB13: -1 | BC13: 2 | BD13: -2 | BE13: -4 | BF13: -2 | BG13: 4 | BH13: -1 | BI13: -4 | BJ13: -2 | BK13: 1 | BL13: -1 | BM13: -1 | BN13: 2 | BO13: 1 | BP13: 1 | BQ13: 2 | BR13: -2 | BS13: -4 | BT13: -1 | BU13: -2 | BV13: -1 | BW13: 2 | BX13: -1 | BY13: -2 | BZ13: -1 | CA13: -4 | CB13: -2 | CC13: -4 | CD13: -4 | CE13: -4 | CF13: -1 | CG13: -1 | CH13: -1 | CI13: -2 | CJ13: 1 | CK13: -1 | CL13: 2 | CM13: -4 | CN13: -1 | CO13: -1 | CP13: 4 | CQ13: 1 | CR13: 1 | CS13: 1 | CT13: 2 | CU13: -4 | CV13: -4 | CW13: 1 | CX13: 1 | CY13: 1 | CZ13: -1 | DA13: -1 | DB13: -1 | DC13: -1 | DD13: -4 | DE13: -16 | DF13: 2 | DG13: -2 | DH13: 1 | DI13: 1 | DJ13: 1 | DK13: 1 | DL13: -1 | DM13: 4 | DN13: -1 | DO13: -1 | DP13: -1 | DQ13: 4 | DR13: -2 | DS13: 2 | DT13: -1 | DU13: 1 | DV13: 1 | DW13: 2 | DX13: -2 | DY13: 4 | DZ13: -4 | EA13: 4 | EB13: 2 | EC13: -1 | ED13: -1 | EE13: -2 | EF13: -2 | EG13: -2 | EH13: 2 | EI13: -2 | EJ13: -4 | EK13: -2 | EL13: -2 | EM13: -2 | EN13: 4 | EO13: 4 | EP13: 4 | EQ13: 4 | ER13: -2 | ES13: 4 | ET13: 4 | EU13: -1 | EV13: -4 | EW13: 1 | EX13: 4 | EY13: 2 | EZ13: -2 | FA13: 1 | FB13: -2 | FC13: -1 | FD13: -1 | FE13: 1 | FF13: -1 | FG13: -4 | FH13: -4 | FI13: -4 | FJ13: 16 | FK13: -2 | FL13: -1 | FM13: -2 | FN13: -4 | FO13: -4 | FP13: -1 | FQ13: 1 | FR13: -1 | FS13: 1 | FT13: 1 | FU13: -2 | FV13: 1 | FW13: -4 | FX13: -4 | FY13: 4 | FZ13: 2 | GA13: -2 | GB13: -4 | GC13: 2 | GD13: -2 | GE13: -4 | GF13: 1 | GG13: 2 | GH13: -2 | GI13: 4 | GJ13: -2 | GK13: -4 | GL13: -2 | GM13: -2 | GN13: -1 | GO13: -4 | GP13: -1 | GQ13: -1 | GR13: 1 | GS13: -2 | GT13: 1 | GU13: -2 | GV13: -4 | GW13: -2 | GX13: 2 | GY13: -2 | GZ13: 1 | HA13: -2 | HB13: 4 | HC13: -4 | HD13: 2 | HE13: 4 | HF13: -2 | HG13: -1 | HH13: -2 | HI13: -1 | HJ13: -2 | HK13: -2 | HL13: 4 | HM13: 1 | HN13: -2 | HO13: -4 | HP13: 2 | HQ13: 1 | HR13: -1 | HS13: -2 | HT13: -1 | HU13: -1 | HV13: -4 | HW13: 1 | HX13: -1 | HY13: -2 | HZ13: -1 | IA13: -1 | IB13: 2 | IC13: 2 | ID13: -2 | IE13: 1 | IF13: 1 | IG13: 1 | IH13: 1 | II13: -2 | IJ13: -2 | IK13: 4 | IL13: -1 | IM13: -1 | IN13: 2 | IO13: 2 | IP13: 1 | IQ13: -1 | IR13: 1 | IS13: -4 | IT13: -1 | IU13: 4 | IV13: -4 | IW13: 2 | IX13: 4 | IY13: -2 | IZ13: -4 | JA13: 4 | JB13: 4 | JC13: 1 | JD13: -4 | JE13: -1 | JF13: 1 | JG13: -1 | JH13: -1 | JI13: -1 | JJ13: 2 | JK13: 1 | JL13: 1 | JM13: 1 | JN13: 4 | JO13: 1 | JP13: 1 | JQ13: 1 | JR13: 1 | JS13: 2 | JT13: -1 | JU13: -2 | JV13: 4 | JW13: 2 | JX13: -2 | JY13: -1 | JZ13: -1 | KA13: 16 | KB13: -1 | KC13: 1 | KD13: -1 | KE13: -1 | KF13: 1 | KG13: 4 | KH13: 2 | KI13: -2 | KJ13: 2 | KK13: 1 | KL13: 4 | KM13: 2 | KN13: 1 | KO13: 2 | KP13: 1 | KQ13: -1 | KR13: -2 | KS13: 4 | KT13: -2 | KU13: -2 | KV13: -1 | KW13: 1 | KX13: -1 | KY13: -4 | KZ13: -4 | LA13: -1 | LB13: -4 | LC13: 1 | LD13: -1 | LE13: -4 | LF13: -4 | LG13: -4 | LH13: 1 | LI13: -1 | LJ13: -2 | LK13: -2 | LL13: 2 | LM13: -1 | LN13: -4 | LO13: 2 | LP13: 1 | LQ13: -1 | LR13: 1 | LS13: -1 | LT13: 2 | LU13: -2 | LV13: 4 | LW13: -1 | LX13: 4 | LY13: -4 | LZ13: 1 | MA13: -2 | MB13: -2 | MC13: -2 | MD13: 2 | ME13: 4 | MF13: -2 | MG13: -2 | MH13: 4 | MI13: 2 | MJ13: -1 | MK13: -2 | ML13: -2 | MM13: 2 | MN13: 2 | MO13: 2 | MP13: 1 | MQ13: -1 | MR13: 2 | MS13: -4 | MT13: -4 | MU13: -4 | MV13: 1 | MW13: 2 | MX13: -4 | MY13: -4 | MZ13: -1 | NA13: -1 | NB13: 4 | NC13: 1 | ND13: -1 | NE13: -1 | NF13: 4 | NG13: -1 | NH13: 4 | NI13: 1 | NJ13: -2 | NK13: -2 | NL13: 2 | NM13: -1 | NN13: 1 | NO13: 4 | NP13: -2 | NQ13: 4 | NR13: -1 | NS13: -2 | NT13: -1 | NU13: 2 | NV13: 1 | NW13: -2 | NX13: -2 | NY13: -1 | NZ13: 1 | OA13: -1 | OB13: 2 | OC13: -1 | OD13: 2 | OE13: 1 | OF13: 1 | OG13: 1 | OH13: 1 | OI13: -2 | OJ13: -4 | OK13: -4 | OL13: 2 | OM13: -1 | ON13: -1 | OO13: -4 | OP13: 2 | OQ13: -4 | OR13: 2 | OS13: -4 | OT13: -4 | OU13: -1 | OV13: 2 | OW13: -1 | OX13: 1 | OY13: 1 | OZ13: -2 | PA13: -4 | PB13: -1 | PC13: -4 | PD13: -1 | PE13: -1 | PF13: -1 | PG13: 4 | PH13: -4 | PI13: -1 | PJ13: -1 | PK13: 2 | PL13: 4 | PM13: -1 | PN13: -1 | PO13: -2 | PP13: -2 | PQ13: -1 | PR13: -2 | PS13: -2 | PT13: 4 | PU13: -1 | PV13: -1 | PW13: -4 | PX13: -1 | PY13: -1 | PZ13: -1 | QA13: -1 | QB13: -1 | QC13: -4 | QD13: 1 | QE13: 1 | QF13: -4 | QG13: 2 | QH13: -4 | QI13: -1 | QJ13: -1 | QK13: -4 | QL13: 1 | QM13: -1 | QN13: -2 | QO13: -1 | QP13: -4 | QQ13: 1 | QR13: 1 | QS13: -4 | QT13: -4 | QU13: 1 | QV13: -4 | QW13: -2 | QX13: -4 | QY13: 2 | QZ13: 1 | RA13: -4 | RB13: 2 | RC13: 1 | RD13: 1 | RE13: 1 | RF13: -2 | RG13: 1 | RH13: -1 | RI13: 1 | RJ13: -4 | RK13: -1 | RL13: 1 | RM13: 1 | RN13: 2 | RO13: -1 | RP13: 2 | RQ13: -1 | RR13: -1 | RS13: 1 | RT13: -4 | RU13: 1 | RV13: -1 | RW13: 2 | RX13: -2 | RY13: -2 | RZ13: -1 | SA13: -2 | SB13: -1 | SC13: -1 | SD13: 2 | SE13: -1 | SF13: 1 | SG13: -2 | SH13: -4 | SI13: -1 | SJ13: -1 | SK13: -1 | SL13: -1 | SM13: -1 | SN13: 1 | SO13: 1 | SP13: 1 | SQ13: -2 | SR13: -4 | SS13: 1 | ST13: -1 | SU13: 1 | SV13: 2 | SW13: -2 | SX13: -2 | SY13: 1 | SZ13: -1 | TA13: -1 | TB13: -2 | TC13: -4 | TD13: -4 | TE13: 1 | TF13: 2 | TG13: 2 | TH13: 1 | TI13: -1 | TJ13: -1 | TK13: 2 | TL13: 1 | TM13: 2 | TN13: -1 | TO13: -2 | TP13: 1 | TQ13: -4 | TR13: -1 | TS13: -4 | TT13: 1 | TU13: -1 | TV13: -2 | TW13: -1 | TX13: -1 | TY13: -4 | TZ13: 1 | UA13: -1 | UB13: -2 | UC13: -1 | UD13: -2 | UE13: 2 | UF13: 2 | UG13: -4 | UH13: -4 | UI13: 4 | UJ13: 1 | UK13: -2 | UL13: -1 | UM13: 1 | UN13: -2 | UO13: -1 | UP13: -2 | UQ13: -2 | UR13: 4 | US13: -1 | UT13: 2 | UU13: -4 | UV13: -4 | UW13: -1 | UX13: -1 | UY13: -2 | UZ13: 1 | VA13: -1 | VB13: 1 | VC13: -4 | VD13: 2 | VE13: 1 | VF13: 1 | VG13: -1 | VH13: -1 | VI13: 1 | VJ13: -1 | VK13: -2 | VL13: 1 | VM13: 1 | VN13: 2 | VO13: 1 | VP13: -4 | VQ13: 1 | VR13: 1 | VS13: -1 | VT13: 1 | VU13: -1 | VV13: -1 | VW13: -1 | VX13: -1 | VY13: 4 | VZ13: -1 | WA13: 4 | WB13: 1 | WC13: 1 | WD13: -1 | WE13: -4 | WF13: -2 | WG13: -1 | WH13: 16 | WI13: -1 | WJ13: 1 | WK13: 4 | WL13: 1 | WM13: 4 | WN13: -4 | WO13: -2 | WP13: -2 | WQ13: 4 | WR13: -4 | WS13: 1 | WT13: -2 | WU13: -1 | WV13: -1 | WW13: 1 | WX13: -1 | WY13: 1 | WZ13: 1 | XA13: 1 | XB13: -2 | XC13: -1 | XD13: -2 | XE13: -2 | XF13: 1 | XG13: -2 | XH13: -2 | XI13: -1 | XJ13: 4 | XK13: 1 | XL13: -2 | XM13: 16 | XN13: -4 | XO13: 1 | XP13: 2 | XQ13: 1 | XR13: -4 | XS13: 4 | XT13: -2 | XU13: 4 | XV13: -2 | XW13: 1 | XX13: 2 | XY13: -16 | XZ13: 2 | YA13: -4 | YB13: -2 | YC13: -2 | YD13: 1 | YE13: -4 | YF13: -4 | YG13: 2 | YH13: 1 | YI13: 4 | YJ13: 2 | YK13: -16 | YL13: -2 | YM13: -4 | YN13: 1 | YO13: -1 | YP13: -1 | YQ13: -1 | YR13: 2 | YS13: -1 | YT13: 1 | YU13: -2 | YV13: 4 | YW13: 1 | YX13: -2 | YY13: -2 | YZ13: 2 | ZA13: 1 | ZB13: -2 | ZC13: -2 | ZD13: -1 | ZE13: -1 | ZF13: 1 | ZG13: 4 | ZH13: -4 | ZI13: 1 | ZJ13: -4 | ZK13: -1 | ZL13: 4 | ZM13: 4 | ZN13: 1 | ZO13: 1 | ZP13: 1 | ZQ13: -2 | ZR13: -1 | ZS13: -2 | ZT13: -1 | ZU13: -2 | ZV13: -1 | ZW13: -2 | ZX13: 1 | ZY13: -4 | ZZ13: -4 | AAA13: -1 | AAB13: -1 | AAC13: -1 | AAD13: -2 | AAE13: -1 | AAF13: 2 | AAG13: -1 | AAH13: -1 | AAI13: -1 | AAJ13: -4 | AAK13: 4 | AAL13: -1 | AAM13: 4 | AAN13: -1 | AAO13: -4 | AAP13: 2 | AAQ13: -1 | AAR13: 1 | AAS13: 2 | AAT13: 2 | AAU13: 2 | AAV13: -2 | AAW13: 1 | AAX13: 2 | AAY13: 1 | AAZ13: -2 | ABA13: -2 | ABB13: -4 | ABC13: 1 | ABD13: 1 | ABE13: 1 | ABF13: 1 | ABG13: -1 | ABH13: 2 | ABI13: -1 | ABJ13: 16 | ABK13: 4 | ABL13: -1 | ABM13: -4 | ABN13: -4 | ABO13: -1 | ABP13: 2 | ABQ13: -2 | ABR13: -2 | ABS13: -2 | ABT13: -1 | ABU13: 2 | ABV13: -1 | ABW13: -1 | ABX13: -4 | ABY13: -4 | ABZ13: 2 | ACA13: -1 | ACB13: -1 | ACC13: -2 | ACD13: 4 | ACE13: 2 | ACF13: -1 | ACG13: -1 | ACH13: -1 | ACI13: 4 | ACJ13: 1 | ACK13: -1 | ACL13: -1 | ACM13: 1 | ACN13: 1 | ACO13: -2 | ACP13: -1 | ACQ13: -1 | ACR13: -4 | ACS13: -2 | ACT13: -1 | ACU13: -1 | ACV13: 1 | ACW13: -2 | ACX13: -1 | ACY13: -2 | ACZ13: 4 | ADA13: -2 | ADB13: 2 | ADC13: 2 | ADD13: -1 | ADE13: 1 | ADF13: -4 | ADG13: -4 | ADH13: -1 | ADI13: -4 | ADJ13: 4 | ADK13: 2 | ADL13: 2 | ADM13: 2 | ADN13: -1 | ADO13: 1 | ADP13: -1 | ADQ13: 4 | ADR13: 1 | ADS13: 1 | ADT13: -1 | ADU13: -1 | ADV13: -1 | ADW13: -4 | ADX13: -2 | ADY13: -4 | ADZ13: -2 | AEA13: 1 | AEB13: -4 | AEC13: -1 | AED13: 1 | AEE13: -1 | AEF13: 1 | AEG13: -2 | AEH13: -1 | AEI13: 2 | AEJ13: -2 | AEK13: -4 | AEL13: 1 | AEM13: -1 | AEN13: 4 | AEO13: 2 | AEP13: -4 | AEQ13: -4 | AER13: 2 | AES13: 2 | AET13: -1 | AEU13: -4 | AEV13: -1 | AEW13: -1 | AEX13: -4 | AEY13: 1 | AEZ13: -2 | AFA13: -1 | AFB13: 1 | AFC13: 4 | AFD13: -1 | AFE13: -4 | AFF13: -4 | AFG13: 1 | AFH13: 1 | AFI13: -1 | AFJ13: 1 | AFK13: -2 | AFL13: -1 | AFM13: -1 | AFN13: -2 | AFO13: 2 | AFP13: -2 | AFQ13: -1 | AFR13: 2 | AFS13: 2 | AFT13: 1 | AFU13: -4 | AFV13: -2 | AFW13: 4 | AFX13: -4 | AFY13: -4 | AFZ13: 4 | AGA13: 1 | AGB13: -2 | AGC13: 2 | AGD13: -2 | AGE13: -1 | AGF13: -4 | AGG13: -2 | AGH13: -2 | AGI13: 4 | AGJ13: -1 | AGK13: 2 | AGL13: -4 | AGM13: -4 | AGN13: -1 | AGO13: -4 | AGP13: 4 | AGQ13: -1 | AGR13: -4 | AGS13: -2 | AGT13: -1 | AGU13: -2 | AGV13: -1 | AGW13: 1 | AGX13: -4 | AGY13: 4 | AGZ13: -1 | AHA13: 2 | AHB13: -2 | AHC13: -4 | AHD13: -1 | AHE13: 1 | AHF13: -1 | AHG13: -2 | AHH13: 2 | AHI13: 1 | AHJ13: 4 | AHK13: 1 | AHL13: 1 | AHM13: -2 | AHN13: -1 | AHO13: -1 | AHP13: -1 | AHQ13: -4 | AHR13: -1 | AHS13: 1 | AHT13: 1 | AHU13: -4 | AHV13: -1 | AHW13: 4 | AHX13: 4 | AHY13: 2 | AHZ13: -2 | AIA13: -2 | AIB13: 1 | AIC13: -2 | AID13: -4 | AIE13: -1 | AIF13: 1 | AIG13: 2 | AIH13: -4 | AII13: -1 | AIJ13: 1 | AIK13: -2 | AIL13: 2 | AIM13: 4 | AIN13: -1 | AIO13: -2 | AIP13: 1 | AIQ13: -1 | AIR13: -2 | AIS13: -2 | AIT13: 2 | AIU13: -1 | AIV13: 1 | AIW13: 4 | AIX13: 2 | AIY13: -1 | AIZ13: 1 | AJA13: -1 | AJB13: 1 | AJC13: -4 | AJD13: -1 | AJE13: 1 | AJF13: 1 | AJG13: -2 | AJH13: -2 | AJI13: 4 | AJJ13: 1 | AJK13: -4 | AJL13: 1 | AJM13: 1 | AJN13: -1 | AJO13: -1 | AJP13: 2 | AJQ13: -2 | AJR13: -1 | AJS13: -1 | AJT13: 1 | AJU13: 2 | AJV13: -2 | AJW13: -4 | AJX13: 2 | AJY13: -2 | AJZ13: 1 | AKA13: 1 | AKB13: 2 | AKC13: -1 | AKD13: -16 | AKE13: -2 | AKF13: -4 | AKG13: 1 | AKH13: 4 | AKI13: 1 | AKJ13: -4 | AKK13: 1 | AKL13: 1 | AKM13: 1 | AKN13: 2 | AKO13: 1 | AKP13: -1 | AKQ13: -1 | AKR13: -2 | AKS13: -1 | AKT13: -2 | AKU13: -1 | AKV13: 1 | AKW13: -2 | AKX13: -16 | AKY13: -4 | AKZ13: -4 | ALA13: 1 | ALB13: -2 | ALC13: 4 | ALD13: -1 | ALE13: 4 | ALF13: -4 | ALG13: 1 | ALH13: -2 | ALI13: -1 | ALJ13: -4 | ALK13: -4 | ALL13: 1 | ALM13: -2 | ALN13: 2 | ALO13: -1 | ALP13: -4 | ALQ13: 1 | ALR13: 2 | ALS13: -1 | ALT13: -1 | ALU13: 1 | ALV13: -1 | ALW13: 1 | ALX13: 1 | ALY13: -2 | ALZ13: -1 | AMA13: -1 | AMB13: 2 | AMC13: -1 | AMD13: -1 | AME13: 1 | AMF13: -1 | AMG13: 16 | AMH13: -4 | AMI13: -2 | AMJ13: -1
A14: 1 | B14: 1 | C14: 4 | D14: -2 | E14: -1 | F14: 4 | G14: -1 | H14: 1 | I14: -4 | J14: -1 | K14: -1 | L14: 2 | M14: -2 | N14: 1 | O14: -1 | P14: -1 | Q14: 1 | R14: -1 | S14: 4 | T14: -1 | U14: -1 | V14: 4 | W14: 1 | X14: -1 | Y14: 2 | Z14: 2 | AA14: 2 | AB14: 1 | AC14: 1 | AD14: -1 | AE14: -2 | AF14: -1 | AG14: -1 | AH14: 1 | AI14: -1 | AJ14: 1 | AK14: -1 | AL14: 1 | AM14: 4 | AN14: -1 | AO14: -1 | AP14: -2 | AQ14: -1 | AR14: -1 | AS14: -2 | AT14: 2 | AU14: 1 | AV14: 1 | AW14: 1 | AX14: 4 | AY14: -1 | AZ14: 1 | BA14: -2 | BB14: -2 | BC14: 1 | BD14: -1 | BE14: 4 | BF14: -1 | BG14: 1 | BH14: 1 | BI14: -1 | BJ14: -1 | BK14: -2 | BL14: 1 | BM14: -2 | BN14: -1 | BO14: 1 | BP14: -1 | BQ14: 1 | BR14: -1 | BS14: -2 | BT14: 1 | BU14: 1 | BV14: 1 | BW14: 4 | BX14: -1 | BY14: 1 | BZ14: -1 | CA14: -1 | CB14: -1 | CC14: -1 | CD14: -2 | CE14: -2 | CF14: 2 | CG14: 1 | CH14: 1 | CI14: -2 | CJ14: -1 | CK14: 1 | CL14: 1 | CM14: -2 | CN14: -1 | CO14: -1 | CP14: -2 | CQ14: -1 | CR14: -1 | CS14: 1 | CT14: 1 | CU14: -1 | CV14: -1 | CW14: -1 | CX14: -1 | CY14: -1 | CZ14: 2 | DA14: 1 | DB14: 1 | DC14: -2 | DD14: 1 | DE14: 4 | DF14: 2 | DG14: 2 | DH14: 2 | DI14: -1 | DJ14: -1 | DK14: 1 | DL14: -1 | DM14: 1 | DN14: -2 | DO14: -2 | DP14: 1 | DQ14: -1 | DR14: 2 | DS14: 1 | DT14: -1 | DU14: 1 | DV14: 1 | DW14: 4 | DX14: 2 | DY14: 1 | DZ14: -1 | EA14: 4 | EB14: 1 | EC14: 1 | ED14: 2 | EE14: 1 | EF14: 1 | EG14: 2 | EH14: 1 | EI14: 1 | EJ14: -1 | EK14: -1 | EL14: 1 | EM14: 1 | EN14: 1 | EO14: 4 | EP14: -1 | EQ14: 2 | ER14: -1 | ES14: 1 | ET14: 2 | EU14: 2 | EV14: -2 | EW14: 1 | EX14: -2 | EY14: -1 | EZ14: -1 | FA14: -1 | FB14: -2 | FC14: -1 | FD14: 2 | FE14: 2 | FF14: 1 | FG14: -2 | FH14: -1 | FI14: 2 | FJ14: 1 | FK14: 1 | FL14: 1 | FM14: -1 | FN14: -1 | FO14: 2 | FP14: -1 | FQ14: -1 | FR14: 2 | FS14: 1 | FT14: 2 | FU14: -1 | FV14: 4 | FW14: -2 | FX14: -2 | FY14: 1 | FZ14: -1 | GA14: 4 | GB14: -1 | GC14: 2 | GD14: 1 | GE14: 1 | GF14: -1 | GG14: -1 | GH14: -4 | GI14: 2 | GJ14: -1 | GK14: 1 | GL14: 1 | GM14: -1 | GN14: -1 | GO14: 1 | GP14: -4 | GQ14: -2 | GR14: -1 | GS14: -2 | GT14: -1 | GU14: 1 | GV14: 2 | GW14: 1 | GX14: -1 | GY14: -1 | GZ14: -2 | HA14: 4 | HB14: -1 | HC14: 2 | HD14: -1 | HE14: 1 | HF14: -1 | HG14: -4 | HH14: -1 | HI14: 1 | HJ14: -1 | HK14: -1 | HL14: 1 | HM14: -1 | HN14: 1 | HO14: -1 | HP14: -1 | HQ14: -1 | HR14: 1 | HS14: 2 | HT14: 4 | HU14: 1 | HV14: -1 | HW14: -1 | HX14: 1 | HY14: 1 | HZ14: -1 | IA14: 1 | IB14: -1 | IC14: 1 | ID14: -1 | IE14: 4 | IF14: 1 | IG14: -1 | IH14: 4 | II14: -1 | IJ14: -2 | IK14: 4 | IL14: -1 | IM14: 2 | IN14: 1 | IO14: 2 | IP14: -1 | IQ14: 1 | IR14: 1 | IS14: -1 | IT14: -1 | IU14: 2 | IV14: -2 | IW14: -1 | IX14: 1 | IY14: 2 | IZ14: 2 | JA14: 1 | JB14: 4 | JC14: -2 | JD14: 2 | JE14: -2 | JF14: 2 | JG14: -1 | JH14: 2 | JI14: -1 | JJ14: -1 | JK14: 1 | JL14: -2 | JM14: -2 | JN14: -1 | JO14: -2 | JP14: 1 | JQ14: 2 | JR14: 1 | JS14: 1 | JT14: -1 | JU14: 2 | JV14: -1 | JW14: -1 | JX14: -1 | JY14: -1 | JZ14: -1 | KA14: -1 | KB14: 2 | KC14: -1 | KD14: 1 | KE14: -1 | KF14: 1 | KG14: -2 | KH14: 2 | KI14: 1 | KJ14: -1 | KK14: -1 | KL14: 1 | KM14: 1 | KN14: 1 | KO14: -1 | KP14: 1 | KQ14: 1 | KR14: 1 | KS14: -2 | KT14: -1 | KU14: -1 | KV14: -1 | KW14: 1 | KX14: -1 | KY14: 1 | KZ14: -1 | LA14: 1 | LB14: 1 | LC14: -1 | LD14: 2 | LE14: -1 | LF14: -1 | LG14: 1 | LH14: 1 | LI14: -2 | LJ14: 1 | LK14: 1 | LL14: -1 | LM14: -2 | LN14: -1 | LO14: -2 | LP14: 1 | LQ14: 1 | LR14: -2 | LS14: 1 | LT14: -1 | LU14: 1 | LV14: 1 | LW14: 1 | LX14: 4 | LY14: 2 | LZ14: 1 | MA14: 1 | MB14: -1 | MC14: 1 | MD14: 2 | ME14: 1 | MF14: 1 | MG14: -1 | MH14: 2 | MI14: 2 | MJ14: 1 | MK14: 1 | ML14: -2 | MM14: 4 | MN14: 1 | MO14: 1 | MP14: 1 | MQ14: 2 | MR14: -1 | MS14: -1 | MT14: -2 | MU14: -1 | MV14: -1 | MW14: -2 | MX14: -1 | MY14: 1 | MZ14: -1 | NA14: -1 | NB14: 1 | NC14: -1 | ND14: 2 | NE14: 1 | NF14: 4 | NG14: -1 | NH14: 1 | NI14: 1 | NJ14: 1 | NK14: -2 | NL14: 2 | NM14: 1 | NN14: 2 | NO14: 2 | NP14: -1 | NQ14: 4 | NR14: -1 | NS14: -1 | NT14: 1 | NU14: 1 | NV14: 1 | NW14: 1 | NX14: -2 | NY14: -1 | NZ14: 1 | OA14: 2 | OB14: 4 | OC14: -1 | OD14: 2 | OE14: 2 | OF14: 2 | OG14: 4 | OH14: 4 | OI14: 1 | OJ14: -1 | OK14: 1 | OL14: 2 | OM14: -1 | ON14: -1 | OO14: 1 | OP14: -1 | OQ14: 1 | OR14: -1 | OS14: 1 | OT14: 1 | OU14: 1 | OV14: -1 | OW14: 2 | OX14: -1 | OY14: 1 | OZ14: 4 | PA14: -4 | PB14: 2 | PC14: -1 | PD14: -1 | PE14: -2 | PF14: 2 | PG14: 1 | PH14: 2 | PI14: 2 | PJ14: 2 | PK14: -2 | PL14: -2 | PM14: -2 | PN14: -2 | PO14: 1 | PP14: 1 | PQ14: 2 | PR14: -1 | PS14: 2 | PT14: 2 | PU14: 1 | PV14: -1 | PW14: -1 | PX14: 1 | PY14: -1 | PZ14: -1 | QA14: 1 | QB14: 1 | QC14: -2 | QD14: 1 | QE14: -1 | QF14: 2 | QG14: 1 | QH14: -1 | QI14: 4 | QJ14: -1 | QK14: 1 | QL14: -1 | QM14: -1 | QN14: 2 | QO14: 1 | QP14: 1 | QQ14: 1 | QR14: 1 | QS14: 1 | QT14: -1 | QU14: 2 | QV14: 1 | QW14: 1 | QX14: -1 | QY14: 1 | QZ14: 1 | RA14: 1 | RB14: 2 | RC14: 1 | RD14: 4 | RE14: -2 | RF14: -1 | RG14: 1 | RH14: -2 | RI14: 1 | RJ14: -1 | RK14: 1 | RL14: -1 | RM14: -2 | RN14: -1 | RO14: -1 | RP14: -1 | RQ14: -1 | RR14: -2 | RS14: -1 | RT14: -2 | RU14: -1 | RV14: 2 | RW14: -2 | RX14: 1 | RY14: 2 | RZ14: -2 | SA14: 1 | SB14: -2 | SC14: 1 | SD14: -2 | SE14: 1 | SF14: -2 | SG14: -1 | SH14: -1 | SI14: 4 | SJ14: -1 | SK14: 4 | SL14: -1 | SM14: 1 | SN14: -1 | SO14: -1 | SP14: 1 | SQ14: -2 | SR14: 1 | SS14: -1 | ST14: -2 | SU14: 4 | SV14: 2 | SW14: 1 | SX14: -2 | SY14: -1 | SZ14: 1 | TA14: -1 | TB14: -1 | TC14: 1 | TD14: -2 | TE14: -1 | TF14: -1 | TG14: 1 | TH14: 2 | TI14: 1 | TJ14: 4 | TK14: -1 | TL14: 1 | TM14: 1 | TN14: -2 | TO14: 1 | TP14: -1 | TQ14: -1 | TR14: 2 | TS14: -2 | TT14: 4 | TU14: -1 | TV14: -2 | TW14: 1 | TX14: 1 | TY14: -1 | TZ14: 2 | UA14: -1 | UB14: 2 | UC14: 1 | UD14: 2 | UE14: 1 | UF14: -1 | UG14: 2 | UH14: -2 | UI14: -1 | UJ14: 1 | UK14: -1 | UL14: 1 | UM14: 1 | UN14: -1 | UO14: 1 | UP14: 1 | UQ14: 2 | UR14: 1 | US14: -1 | UT14: 2 | UU14: 1 | UV14: 4 | UW14: 2 | UX14: -1 | UY14: -1 | UZ14: 1 | VA14: 1 | VB14: -2 | VC14: -1 | VD14: 2 | VE14: -1 | VF14: 1 | VG14: 1 | VH14: 1 | VI14: -2 | VJ14: -1 | VK14: -1 | VL14: -1 | VM14: 1 | VN14: -1 | VO14: 2 | VP14: 1 | VQ14: 1 | VR14: -2 | VS14: -1 | VT14: 1 | VU14: 2 | VV14: -1 | VW14: -1 | VX14: 2 | VY14: 1 | VZ14: -2 | WA14: 1 | WB14: 1 | WC14: 2 | WD14: 1 | WE14: -4 | WF14: -2 | WG14: 4 | WH14: 1 | WI14: 1 | WJ14: 1 | WK14: 2 | WL14: -1 | WM14: -1 | WN14: -1 | WO14: 4 | WP14: -1 | WQ14: -4 | WR14: -1 | WS14: -1 | WT14: 1 | WU14: 1 | WV14: -1 | WW14: -2 | WX14: 2 | WY14: -2 | WZ14: -2 | XA14: -1 | XB14: -1 | XC14: -2 | XD14: -1 | XE14: 1 | XF14: 4 | XG14: 1 | XH14: 1 | XI14: -1 | XJ14: -1 | XK14: -1 | XL14: 1 | XM14: 1 | XN14: -1 | XO14: -1 | XP14: 1 | XQ14: -1 | XR14: -2 | XS14: 2 | XT14: -2 | XU14: 2 | XV14: 1 | XW14: -2 | XX14: 1 | XY14: 2 | XZ14: 1 | YA14: -1 | YB14: 2 | YC14: -1 | YD14: -1 | YE14: 1 | YF14: -1 | YG14: -2 | YH14: 1 | YI14: 1 | YJ14: -1 | YK14: -2 | YL14: 2 | YM14: 1 | YN14: 2 | YO14: 2 | YP14: 4 | YQ14: 2 | YR14: 1 | YS14: -1 | YT14: 1 | YU14: 1 | YV14: 4 | YW14: 2 | YX14: -1 | YY14: 1 | YZ14: 2 | ZA14: 4 | ZB14: -1 | ZC14: 2 | ZD14: 1 | ZE14: -1 | ZF14: -1 | ZG14: 1 | ZH14: 1 | ZI14: -1 | ZJ14: -1 | ZK14: -1 | ZL14: 2 | ZM14: -1 | ZN14: -1 | ZO14: -1 | ZP14: -1 | ZQ14: -1 | ZR14: 1 | ZS14: -1 | ZT14: 4 | ZU14: -2 | ZV14: 1 | ZW14: 1 | ZX14: 1 | ZY14: 1 | ZZ14: -2 | AAA14: 1 | AAB14: -1 | AAC14: -1 | AAD14: -1 | AAE14: -1 | AAF14: -2 | AAG14: 1 | AAH14: 4 | AAI14: -1 | AAJ14: -2 | AAK14: -1 | AAL14: -2 | AAM14: -4 | AAN14: -1 | AAO14: -1 | AAP14: -1 | AAQ14: -1 | AAR14: 1 | AAS14: 1 | AAT14: 1 | AAU14: 2 | AAV14: 1 | AAW14: 1 | AAX14: -1 | AAY14: -1 | AAZ14: -2 | ABA14: -2 | ABB14: 1 | ABC14: 1 | ABD14: -1 | ABE14: -1 | ABF14: 1 | ABG14: 1 | ABH14: 4 | ABI14: 2 | ABJ14: -1 | ABK14: 1 | ABL14: -1 | ABM14: 1 | ABN14: 2 | ABO14: 1 | ABP14: -1 | ABQ14: 1 | ABR14: -1 | ABS14: -1 | ABT14: 2 | ABU14: 1 | ABV14: 1 | ABW14: 2 | ABX14: -1 | ABY14: -1 | ABZ14: 1 | ACA14: -1 | ACB14: 2 | ACC14: -1 | ACD14: -4 | ACE14: -1 | ACF14: -1 | ACG14: -2 | ACH14: 1 | ACI14: 1 | ACJ14: -1 | ACK14: -1 | ACL14: -4 | ACM14: -1 | ACN14: 1 | ACO14: -1 | ACP14: -2 | ACQ14: 1 | ACR14: -1 | ACS14: 1 | ACT14: 1 | ACU14: -1 | ACV14: -1 | ACW14: -1 | ACX14: 1 | ACY14: -1 | ACZ14: 4 | ADA14: 1 | ADB14: -1 | ADC14: -2 | ADD14: 1 | ADE14: 2 | ADF14: -1 | ADG14: 1 | ADH14: 1 | ADI14: 2 | ADJ14: 1 | ADK14: 1 | ADL14: -2 | ADM14: -1 | ADN14: 1 | ADO14: 1 | ADP14: 1 | ADQ14: 4 | ADR14: 1 | ADS14: 2 | ADT14: -1 | ADU14: -2 | ADV14: -1 | ADW14: -1 | ADX14: -1 | ADY14: -1 | ADZ14: 4 | AEA14: 4 | AEB14: 4 | AEC14: -1 | AED14: -1 | AEE14: -2 | AEF14: 1 | AEG14: 4 | AEH14: 2 | AEI14: -2 | AEJ14: -1 | AEK14: -1 | AEL14: 1 | AEM14: 1 | AEN14: 1 | AEO14: 1 | AEP14: 1 | AEQ14: -1 | AER14: 4 | AES14: 1 | AET14: 1 | AEU14: -1 | AEV14: -1 | AEW14: -1 | AEX14: 2 | AEY14: 2 | AEZ14: -1 | AFA14: -2 | AFB14: 1 | AFC14: -1 | AFD14: -1 | AFE14: -1 | AFF14: -1 | AFG14: 1 | AFH14: -1 | AFI14: -1 | AFJ14: 2 | AFK14: 1 | AFL14: 1 | AFM14: -1 | AFN14: -1 | AFO14: 1 | AFP14: -1 | AFQ14: 1 | AFR14: -1 | AFS14: -1 | AFT14: 1 | AFU14: 2 | AFV14: -4 | AFW14: -2 | AFX14: 1 | AFY14: -2 | AFZ14: 4 | AGA14: 2 | AGB14: 1 | AGC14: -1 | AGD14: -2 | AGE14: 1 | AGF14: -1 | AGG14: -1 | AGH14: 1 | AGI14: 1 | AGJ14: -2 | AGK14: -1 | AGL14: 1 | AGM14: 1 | AGN14: -1 | AGO14: -2 | AGP14: 1 | AGQ14: -1 | AGR14: 1 | AGS14: -2 | AGT14: 1 | AGU14: 1 | AGV14: 2 | AGW14: -1 | AGX14: 2 | AGY14: 4 | AGZ14: 1 | AHA14: 2 | AHB14: -1 | AHC14: 1 | AHD14: -2 | AHE14: -1 | AHF14: 4 | AHG14: 1 | AHH14: -1 | AHI14: -1 | AHJ14: -1 | AHK14: 1 | AHL14: -1 | AHM14: 1 | AHN14: 2 | AHO14: -1 | AHP14: 1 | AHQ14: 2 | AHR14: 1 | AHS14: 1 | AHT14: 1 | AHU14: 2 | AHV14: 4 | AHW14: 2 | AHX14: -1 | AHY14: -2 | AHZ14: 2 | AIA14: -1 | AIB14: 2 | AIC14: -1 | AID14: 1 | AIE14: 1 | AIF14: -1 | AIG14: -1 | AIH14: -1 | AII14: -2 | AIJ14: -1 | AIK14: 1 | AIL14: 1 | AIM14: 4 | AIN14: 4 | AIO14: 1 | AIP14: 1 | AIQ14: 1 | AIR14: -1 | AIS14: 2 | AIT14: 2 | AIU14: 1 | AIV14: -2 | AIW14: 4 | AIX14: -1 | AIY14: -1 | AIZ14: -1 | AJA14: 1 | AJB14: -1 | AJC14: -1 | AJD14: -1 | AJE14: -1 | AJF14: 1 | AJG14: -1 | AJH14: 1 | AJI14: 2 | AJJ14: 1 | AJK14: 2 | AJL14: -1 | AJM14: 1 | AJN14: -1 | AJO14: -1 | AJP14: -1 | AJQ14: 1 | AJR14: 1 | AJS14: 2 | AJT14: 1 | AJU14: -2 | AJV14: 1 | AJW14: 1 | AJX14: 1 | AJY14: -2 | AJZ14: 2 | AKA14: 1 | AKB14: -2 | AKC14: -1 | AKD14: 4 | AKE14: -1 | AKF14: -1 | AKG14: -2 | AKH14: -1 | AKI14: -1 | AKJ14: -2 | AKK14: -1 | AKL14: -2 | AKM14: -2 | AKN14: 1 | AKO14: -1 | AKP14: -2 | AKQ14: 2 | AKR14: -1 | AKS14: -2 | AKT14: -1 | AKU14: 2 | AKV14: -1 | AKW14: -1 | AKX14: 4 | AKY14: 1 | AKZ14: -1 | ALA14: -1 | ALB14: 4 | ALC14: -1 | ALD14: -1 | ALE14: 1 | ALF14: -4 | ALG14: -1 | ALH14: -1 | ALI14: -1 | ALJ14: -1 | ALK14: 4 | ALL14: -1 | ALM14: -1 | ALN14: 2 | ALO14: 4 | ALP14: 1 | ALQ14: 2 | ALR14: 2 | ALS14: -1 | ALT14: 4 | ALU14: 1 | ALV14: 4 | ALW14: 1 | ALX14: -1 | ALY14: 1 | ALZ14: -1 | AMA14: -1 | AMB14: 1 | AMC14: 1 | AMD14: -1 | AME14: 4 | AMF14: -1 | AMG14: -2 | AMH14: 1 | AMI14: 1 | AMJ14: 2
A15: -4 | B15: -2 | C15: -4 | D15: -1 | E15: -1 | F15: -1 | G15: 1 | H15: 2 | I15: -2 | J15: 1 | K15: 4 | L15: -2 | M15: -4 | N15: 2 | O15: -1 | P15: -2 | Q15: -1 | R15: -1 | S15: 1 | T15: -1 | U15: 1 | V15: 1 | W15: -2 | X15: 1 | Y15: 4 | Z15: 1 | AA15: -1 | AB15: -1 | AC15: -1 | AD15: 4 | AE15: -2 | AF15: 1 | AG15: 1 | AH15: -1 | AI15: -1 | AJ15: -2 | AK15: 4 | AL15: -4 | AM15: -1 | AN15: 1 | AO15: 1 | AP15: 4 | AQ15: 4 | AR15: 4 | AS15: 1 | AT15: -16 | AU15: 2 | AV15: -2 | AW15: -2 | AX15: -16 | AY15: 1 | AZ15: -1 | BA15: 1 | BB15: 4 | BC15: -4 | BD15: 4 | BE15: -2 | BF15: -1 | BG15: 4 | BH15: -2 | BI15: -1 | BJ15: 4 | BK15: 1 | BL15: -1 | BM15: 2 | BN15: 1 | BO15: 1 | BP15: -2 | BQ15: -1 | BR15: 1 | BS15: -1 | BT15: 2 | BU15: -1 | BV15: 1 | BW15: 4 | BX15: 1 | BY15: -1 | BZ15: -4 | CA15: -2 | CB15: -1 | CC15: -1 | CD15: 16 | CE15: 1 | CF15: 2 | CG15: 2 | CH15: 1 | CI15: -2 | CJ15: -1 | CK15: -1 | CL15: 1 | CM15: 4 | CN15: -1 | CO15: -1 | CP15: -4 | CQ15: -1 | CR15: 4 | CS15: -1 | CT15: 1 | CU15: 2 | CV15: -1 | CW15: 2 | CX15: 4 | CY15: 4 | CZ15: 2 | DA15: -1 | DB15: 4 | DC15: -4 | DD15: -1 | DE15: 16 | DF15: 1 | DG15: -2 | DH15: -4 | DI15: -1 | DJ15: 1 | DK15: -4 | DL15: -1 | DM15: -1 | DN15: 2 | DO15: 1 | DP15: -1 | DQ15: 1 | DR15: 2 | DS15: -1 | DT15: -2 | DU15: -1 | DV15: 1 | DW15: 1 | DX15: 2 | DY15: 2 | DZ15: -1 | EA15: 4 | EB15: -2 | EC15: -1 | ED15: 2 | EE15: -1 | EF15: -2 | EG15: -1 | EH15: -2 | EI15: -4 | EJ15: -1 | EK15: -4 | EL15: -1 | EM15: -1 | EN15: -1 | EO15: -4 | EP15: 1 | EQ15: -1 | ER15: -4 | ES15: -2 | ET15: 4 | EU15: -1 | EV15: -1 | EW15: -4 | EX15: 1 | EY15: 2 | EZ15: -16 | FA15: 1 | FB15: -1 | FC15: 2 | FD15: 2 | FE15: -1 | FF15: 1 | FG15: 1 | FH15: 2 | FI15: -4 | FJ15: -16 | FK15: 1 | FL15: 1 | FM15: -1 | FN15: -2 | FO15: -1 | FP15: -4 | FQ15: -1 | FR15: -1 | FS15: 1 | FT15: 1 | FU15: 1 | FV15: -2 | FW15: 4 | FX15: -1 | FY15: 1 | FZ15: -1 | GA15: -1 | GB15: 1 | GC15: 4 | GD15: -2 | GE15: 16 | GF15: -2 | GG15: -1 | GH15: 4 | GI15: 4 | GJ15: 4 | GK15: 1 | GL15: -2 | GM15: -1 | GN15: -16 | GO15: -2 | GP15: 4 | GQ15: -2 | GR15: 16 | GS15: 2 | GT15: -1 | GU15: 1 | GV15: 1 | GW15: -1 | GX15: -1 | GY15: -1 | GZ15: -2 | HA15: 2 | HB15: 2 | HC15: 4 | HD15: -4 | HE15: 2 | HF15: -1 | HG15: -1 | HH15: -1 | HI15: 2 | HJ15: -1 | HK15: -1 | HL15: -1 | HM15: -1 | HN15: -1 | HO15: -1 | HP15: 1 | HQ15: 16 | HR15: 1 | HS15: -1 | HT15: 2 | HU15: -1 | HV15: -4 | HW15: 1 | HX15: -1 | HY15: -1 | HZ15: -1 | IA15: -1 | IB15: -1 | IC15: -4 | ID15: 1 | IE15: 1 | IF15: 4 | IG15: -1 | IH15: -4 | II15: 1 | IJ15: -4 | IK15: 4 | IL15: 1 | IM15: -1 | IN15: 1 | IO15: -1 | IP15: -1 | IQ15: -1 | IR15: 2 | IS15: -2 | IT15: -2 | IU15: 2 | IV15: 4 | IW15: 1 | IX15: 4 | IY15: -2 | IZ15: -1 | JA15: -1 | JB15: -2 | JC15: -1 | JD15: 1 | JE15: 2 | JF15: -1 | JG15: 1 | JH15: -1 | JI15: 1 | JJ15: 1 | JK15: 4 | JL15: 2 | JM15: -16 | JN15: -16 | JO15: -1 | JP15: 1 | JQ15: 2 | JR15: 4 | JS15: 1 | JT15: -1 | JU15: -4 | JV15: -2 | JW15: 1 | JX15: -1 | JY15: -1 | JZ15: -1 | KA15: -4 | KB15: 4 | KC15: 1 | KD15: -1 | KE15: 16 | KF15: -2 | KG15: 4 | KH15: -4 | KI15: -1 | KJ15: 2 | KK15: 1 | KL15: -4 | KM15: -1 | KN15: -1 | KO15: 2 | KP15: 1 | KQ15: 4 | KR15: -2 | KS15: -1 | KT15: -1 | KU15: 1 | KV15: 1 | KW15: -2 | KX15: -1 | KY15: 4 | KZ15: -2 | LA15: -4 | LB15: -1 | LC15: -1 | LD15: -2 | LE15: -4 | LF15: -1 | LG15: -1 | LH15: 1 | LI15: -1 | LJ15: -1 | LK15: -2 | LL15: 1 | LM15: -4 | LN15: 2 | LO15: -2 | LP15: -4 | LQ15: 2 | LR15: -1 | LS15: 1 | LT15: 4 | LU15: 4 | LV15: 1 | LW15: -1 | LX15: 2 | LY15: 1 | LZ15: 2 | MA15: 4 | MB15: -1 | MC15: -1 | MD15: 2 | ME15: 1 | MF15: -1 | MG15: 1 | MH15: 16 | MI15: 1 | MJ15: 1 | MK15: 2 | ML15: 1 | MM15: 2 | MN15: 1 | MO15: 2 | MP15: 1 | MQ15: 2 | MR15: -1 | MS15: -1 | MT15: -1 | MU15: -2 | MV15: -1 | MW15: -2 | MX15: 2 | MY15: -2 | MZ15: -4 | NA15: -2 | NB15: 4 | NC15: 2 | ND15: -1 | NE15: 1 | NF15: -4 | NG15: -1 | NH15: -1 | NI15: 2 | NJ15: -2 | NK15: -4 | NL15: 2 | NM15: -2 | NN15: -4 | NO15: -2 | NP15: -4 | NQ15: 2 | NR15: -1 | NS15: 2 | NT15: 1 | NU15: 4 | NV15: -2 | NW15: -4 | NX15: -1 | NY15: 1 | NZ15: -1 | OA15: -1 | OB15: -4 | OC15: 1 | OD15: 2 | OE15: 1 | OF15: -4 | OG15: -4 | OH15: -1 | OI15: -4 | OJ15: -4 | OK15: -4 | OL15: 2 | OM15: -1 | ON15: -1 | OO15: 4 | OP15: 1 | OQ15: -1 | OR15: 16 | OS15: -1 | OT15: 1 | OU15: 2 | OV15: 1 | OW15: 4 | OX15: -2 | OY15: -1 | OZ15: 2 | PA15: -4 | PB15: 4 | PC15: 2 | PD15: 1 | PE15: 1 | PF15: 2 | PG15: -1 | PH15: 2 | PI15: 1 | PJ15: 1 | PK15: 16 | PL15: 1 | PM15: 1 | PN15: 2 | PO15: -2 | PP15: 1 | PQ15: -2 | PR15: 4 | PS15: -2 | PT15: 4 | PU15: -1 | PV15: -1 | PW15: -1 | PX15: -1 | PY15: -2 | PZ15: 4 | QA15: -4 | QB15: 1 | QC15: -4 | QD15: 1 | QE15: 4 | QF15: 1 | QG15: 2 | QH15: 2 | QI15: -2 | QJ15: -4 | QK15: -2 | QL15: 4 | QM15: -1 | QN15: 1 | QO15: 2 | QP15: 2 | QQ15: 1 | QR15: -4 | QS15: 1 | QT15: -1 | QU15: -4 | QV15: -2 | QW15: 1 | QX15: -2 | QY15: -4 | QZ15: -1 | RA15: -1 | RB15: -1 | RC15: -1 | RD15: 1 | RE15: 1 | RF15: -1 | RG15: -1 | RH15: 1 | RI15: -1 | RJ15: 1 | RK15: -1 | RL15: -1 | RM15: 1 | RN15: -4 | RO15: -1 | RP15: -1 | RQ15: -2 | RR15: -4 | RS15: 1 | RT15: 4 | RU15: -1 | RV15: 1 | RW15: -4 | RX15: -4 | RY15: -1 | RZ15: -2 | SA15: -1 | SB15: 2 | SC15: 1 | SD15: -1 | SE15: 1 | SF15: -1 | SG15: -1 | SH15: -1 | SI15: -1 | SJ15: -1 | SK15: 4 | SL15: -2 | SM15: -2 | SN15: -2 | SO15: -2 | SP15: 1 | SQ15: 1 | SR15: 4 | SS15: 2 | ST15: 2 | SU15: 1 | SV15: 1 | SW15: -1 | SX15: 4 | SY15: -4 | SZ15: 4 | TA15: -4 | TB15: 2 | TC15: 2 | TD15: -1 | TE15: -2 | TF15: 1 | TG15: -4 | TH15: -1 | TI15: 4 | TJ15: 4 | TK15: 1 | TL15: 2 | TM15: -4 | TN15: -16 | TO15: 1 | TP15: -4 | TQ15: -1 | TR15: 1 | TS15: -4 | TT15: 4 | TU15: -1 | TV15: -2 | TW15: -1 | TX15: 4 | TY15: -1 | TZ15: -2 | UA15: -1 | UB15: 1 | UC15: -1 | UD15: -1 | UE15: -1 | UF15: 4 | UG15: -1 | UH15: 4 | UI15: -4 | UJ15: -1 | UK15: -2 | UL15: 2 | UM15: 4 | UN15: -1 | UO15: -1 | UP15: -2 | UQ15: 2 | UR15: 2 | US15: 1 | UT15: -1 | UU15: -2 | UV15: -1 | UW15: 4 | UX15: -4 | UY15: -4 | UZ15: 2 | VA15: 4 | VB15: -2 | VC15: 4 | VD15: 1 | VE15: 1 | VF15: -4 | VG15: -4 | VH15: 1 | VI15: 1 | VJ15: 4 | VK15: -1 | VL15: 1 | VM15: 1 | VN15: 2 | VO15: -1 | VP15: 1 | VQ15: -2 | VR15: -1 | VS15: 1 | VT15: 2 | VU15: 2 | VV15: -1 | VW15: -1 | VX15: -1 | VY15: 1 | VZ15: 2 | WA15: 4 | WB15: 4 | WC15: -1 | WD15: 1 | WE15: 1 | WF15: -1 | WG15: -1 | WH15: -2 | WI15: -4 | WJ15: -1 | WK15: -16 | WL15: 1 | WM15: -16 | WN15: -1 | WO15: 2 | WP15: 2 | WQ15: -1 | WR15: -4 | WS15: 4 | WT15: 1 | WU15: 2 | WV15: -1 | WW15: -4 | WX15: -1 | WY15: -2 | WZ15: 4 | XA15: 2 | XB15: 4 | XC15: -1 | XD15: 1 | XE15: 1 | XF15: -2 | XG15: -1 | XH15: -1 | XI15: 1 | XJ15: -1 | XK15: -4 | XL15: -1 | XM15: -16 | XN15: -16 | XO15: -2 | XP15: -4 | XQ15: -1 | XR15: 4 | XS15: -1 | XT15: -1 | XU15: -2 | XV15: 2 | XW15: 1 | XX15: -1 | XY15: 2 | XZ15: -1 | YA15: 1 | YB15: -2 | YC15: -1 | YD15: -1 | YE15: 2 | YF15: -1 | YG15: -2 | YH15: -4 | YI15: -4 | YJ15: -2 | YK15: -1 | YL15: -4 | YM15: 1 | YN15: -1 | YO15: -1 | YP15: 2 | YQ15: -4 | YR15: -1 | YS15: -1 | YT15: -1 | YU15: 1 | YV15: 1 | YW15: -4 | YX15: -1 | YY15: -1 | YZ15: -1 | ZA15: 1 | ZB15: 1 | ZC15: 1 | ZD15: -4 | ZE15: 1 | ZF15: -1 | ZG15: 1 | ZH15: -16 | ZI15: -2 | ZJ15: 1 | ZK15: -1 | ZL15: -1 | ZM15: -16 | ZN15: 1 | ZO15: -4 | ZP15: 2 | ZQ15: -2 | ZR15: -1 | ZS15: 2 | ZT15: -2 | ZU15: 1 | ZV15: 1 | ZW15: -1 | ZX15: 4 | ZY15: 4 | ZZ15: -1 | AAA15: -1 | AAB15: -1 | AAC15: 2 | AAD15: -1 | AAE15: 4 | AAF15: 4 | AAG15: -1 | AAH15: -4 | AAI15: -4 | AAJ15: 16 | AAK15: 16 | AAL15: -1 | AAM15: -2 | AAN15: -4 | AAO15: -2 | AAP15: 1 | AAQ15: 1 | AAR15: 2 | AAS15: -2 | AAT15: 1 | AAU15: 4 | AAV15: 1 | AAW15: -2 | AAX15: -2 | AAY15: 2 | AAZ15: 1 | ABA15: -2 | ABB15: 4 | ABC15: -4 | ABD15: -4 | ABE15: 2 | ABF15: -1 | ABG15: -1 | ABH15: 2 | ABI15: -1 | ABJ15: 1 | ABK15: 1 | ABL15: 1 | ABM15: 2 | ABN15: 16 | ABO15: -2 | ABP15: -4 | ABQ15: 1 | ABR15: 2 | ABS15: 4 | ABT15: 4 | ABU15: -1 | ABV15: 4 | ABW15: 1 | ABX15: -2 | ABY15: -1 | ABZ15: -1 | ACA15: 1 | ACB15: 1 | ACC15: -1 | ACD15: -1 | ACE15: 1 | ACF15: -1 | ACG15: -2 | ACH15: -2 | ACI15: 4 | ACJ15: -1 | ACK15: -2 | ACL15: 4 | ACM15: -1 | ACN15: -4 | ACO15: 4 | ACP15: -1 | ACQ15: -1 | ACR15: -1 | ACS15: 4 | ACT15: 1 | ACU15: -1 | ACV15: -1 | ACW15: -1 | ACX15: 1 | ACY15: -1 | ACZ15: -1 | ADA15: -2 | ADB15: -1 | ADC15: 1 | ADD15: -4 | ADE15: -1 | ADF15: 4 | ADG15: -1 | ADH15: 2 | ADI15: -4 | ADJ15: -1 | ADK15: -1 | ADL15: 1 | ADM15: -4 | ADN15: 2 | ADO15: -2 | ADP15: -2 | ADQ15: -4 | ADR15: -4 | ADS15: -2 | ADT15: -1 | ADU15: 1 | ADV15: -1 | ADW15: 1 | ADX15: -4 | ADY15: 4 | ADZ15: -4 | AEA15: -1 | AEB15: -16 | AEC15: -1 | AED15: -2 | AEE15: -2 | AEF15: -1 | AEG15: -1 | AEH15: -1 | AEI15: -2 | AEJ15: -1 | AEK15: -1 | AEL15: 4 | AEM15: 1 | AEN15: 4 | AEO15: -1 | AEP15: -2 | AEQ15: -16 | AER15: 2 | AES15: -1 | AET15: -1 | AEU15: -1 | AEV15: -1 | AEW15: -1 | AEX15: -4 | AEY15: 2 | AEZ15: 4 | AFA15: 2 | AFB15: 1 | AFC15: -4 | AFD15: 1 | AFE15: 1 | AFF15: 1 | AFG15: -1 | AFH15: -4 | AFI15: 4 | AFJ15: -4 | AFK15: -2 | AFL15: -4 | AFM15: -2 | AFN15: 2 | AFO15: -1 | AFP15: -1 | AFQ15: -2 | AFR15: -1 | AFS15: 1 | AFT15: 2 | AFU15: -2 | AFV15: -1 | AFW15: 4 | AFX15: -4 | AFY15: -4 | AFZ15: -4 | AGA15: 1 | AGB15: -2 | AGC15: -1 | AGD15: -1 | AGE15: -1 | AGF15: 2 | AGG15: -1 | AGH15: -1 | AGI15: 4 | AGJ15: 1 | AGK15: -4 | AGL15: -4 | AGM15: -1 | AGN15: -1 | AGO15: -1 | AGP15: -1 | AGQ15: -2 | AGR15: 1 | AGS15: -1 | AGT15: 2 | AGU15: -1 | AGV15: 2 | AGW15: 2 | AGX15: -4 | AGY15: 2 | AGZ15: 1 | AHA15: -4 | AHB15: 1 | AHC15: -16 | AHD15: -1 | AHE15: -2 | AHF15: 16 | AHG15: -2 | AHH15: -2 | AHI15: -2 | AHJ15: -2 | AHK15: -1 | AHL15: -1 | AHM15: 1 | AHN15: 1 | AHO15: -1 | AHP15: -4 | AHQ15: 2 | AHR15: -2 | AHS15: -1 | AHT15: -1 | AHU15: -1 | AHV15: -1 | AHW15: -1 | AHX15: 2 | AHY15: -4 | AHZ15: 2 | AIA15: 2 | AIB15: 4 | AIC15: -4 | AID15: -1 | AIE15: -16 | AIF15: 1 | AIG15: -2 | AIH15: -1 | AII15: -1 | AIJ15: -2 | AIK15: 1 | AIL15: -4 | AIM15: -4 | AIN15: 1 | AIO15: -2 | AIP15: -4 | AIQ15: -1 | AIR15: -2 | AIS15: -2 | AIT15: -2 | AIU15: 2 | AIV15: -4 | AIW15: 1 | AIX15: 2 | AIY15: 2 | AIZ15: 1 | AJA15: -4 | AJB15: 1 | AJC15: -4 | AJD15: 1 | AJE15: 4 | AJF15: 1 | AJG15: -1 | AJH15: 4 | AJI15: 4 | AJJ15: 4 | AJK15: 2 | AJL15: -2 | AJM15: -1 | AJN15: -1 | AJO15: -1 | AJP15: -1 | AJQ15: 1 | AJR15: -4 | AJS15: 1 | AJT15: 1 | AJU15: -2 | AJV15: -1 | AJW15: 1 | AJX15: 1 | AJY15: 1 | AJZ15: 4 | AKA15: -1 | AKB15: 1 | AKC15: -1 | AKD15: -16 | AKE15: -1 | AKF15: -1 | AKG15: -1 | AKH15: 4 | AKI15: -1 | AKJ15: -4 | AKK15: -2 | AKL15: 1 | AKM15: 1 | AKN15: 4 | AKO15: 1 | AKP15: 4 | AKQ15: 1 | AKR15: -1 | AKS15: -2 | AKT15: 4 | AKU15: 2 | AKV15: 2 | AKW15: -1 | AKX15: 1 | AKY15: -4 | AKZ15: -2 | ALA15: 2 | ALB15: -2 | ALC15: -1 | ALD15: -2 | ALE15: 4 | ALF15: -16 | ALG15: -2 | ALH15: 2 | ALI15: 4 | ALJ15: 1 | ALK15: -2 | ALL15: 2 | ALM15: -2 | ALN15: -4 | ALO15: 1 | ALP15: 1 | ALQ15: 2 | ALR15: -1 | ALS15: -2 | ALT15: -1 | ALU15: 1 | ALV15: -4 | ALW15: 1 | ALX15: -1 | ALY15: -2 | ALZ15: 4 | AMA15: -2 | AMB15: -4 | AMC15: -2 | AMD15: -2 | AME15: 1 | AMF15: -2 | AMG15: 2 | AMH15: 1 | AMI15: -1 | AMJ15: 1
... 17 more rows

Sheet im2colAll_W15
A1: -1 | B1: -23 | C1: -7 | D1: -3 | E1: -9 | F1: -3 | G1: 0 | H1: 18 | I1: -62 | J1: -20 | K1: -33 | L1: -7 | M1: -6 | N1: -10 | O1: 20 | P1: -12 | Q1: 3 | R1: -20 | S1: -16 | T1: -47 | U1: 15 | V1: -14 | W1: -1 | X1: 0 | Y1: -15 | Z1: 18 | AA1: 3 | AB1: -38 | AC1: -15 | AD1: -11 | AE1: 24 | AF1: -5 | AG1: -7 | AH1: -1 | AI1: -4 | AJ1: -7 | AK1: 1 | AL1: 1 | AM1: 4 | AN1: -20 | AO1: -14 | AP1: 21 | AQ1: 19 | AR1: 9 | AS1: -13 | AT1: 0 | AU1: -17 | AV1: -8 | AW1: -6 | AX1: -16 | AY1: -12 | AZ1: -16 | BA1: -8 | BB1: 1 | BC1: 9 | BD1: -4 | BE1: 5 | BF1: -8 | BG1: -36 | BH1: -21 | BI1: -2 | BJ1: 5 | BK1: -32 | BL1: 14 | BM1: -22 | BN1: 0 | BO1: -12 | BP1: 13 | BQ1: -9 | BR1: -7 | BS1: -14 | BT1: -18 | BU1: -11 | BV1: 6 | BW1: 9 | BX1: 26 | BY1: -5 | BZ1: -6 | CA1: 6 | CB1: 8 | CC1: -24 | CD1: 22 | CE1: 0 | CF1: -7 | CG1: -17 | CH1: -18 | CI1: -17 | CJ1: 15 | CK1: -12 | CL1: -27 | CM1: -13 | CN1: -1 | CO1: -12 | CP1: -6 | CQ1: -22 | CR1: 16 | CS1: -19 | CT1: -12 | CU1: 3 | CV1: -33 | CW1: -18 | CX1: -3 | CY1: 3 | CZ1: 15 | DA1: 9 | DB1: 33 | DC1: -5 | DD1: -27 | DE1: 4 | DF1: -10 | DG1: -3 | DH1: -12 | DI1: -30 | DJ1: -13 | DK1: 0 | DL1: -8 | DM1: -17 | DN1: 3 | DO1: 4 | DP1: -5 | DQ1: -10 | DR1: -7 | DS1: -34 | DT1: -7 | DU1: -2 | DV1: -18 | DW1: -11 | DX1: 2 | DY1: 9 | DZ1: -25 | EA1: -8 | EB1: -25 | EC1: -12 | ED1: -17 | EE1: 10 | EF1: 8 | EG1: -7 | EH1: -11 | EI1: -2 | EJ1: -38 | EK1: -13 | EL1: -1 | EM1: -3 | EN1: -15 | EO1: 0 | EP1: -3 | EQ1: 1 | ER1: 16 | ES1: -19 | ET1: -17 | EU1: 5 | EV1: 11 | EW1: -18 | EX1: -16 | EY1: 21 | EZ1: -8 | FA1: -5 | FB1: -10 | FC1: -13 | FD1: 0 | FE1: -3 | FF1: -4 | FG1: -10 | FH1: 2 | FI1: -2 | FJ1: -40 | FK1: 2 | FL1: 7 | FM1: -27 | FN1: -12 | FO1: -3 | FP1: 20 | FQ1: -2 | FR1: -7 | FS1: -25 | FT1: -4 | FU1: -9 | FV1: 7 | FW1: 5 | FX1: -40 | FY1: -18 | FZ1: 10 | GA1: 3 | GB1: -17 | GC1: -21 | GD1: -10 | GE1: 7 | GF1: -12 | GG1: -8 | GH1: -9 | GI1: -22 | GJ1: -5 | GK1: -2 | GL1: 1 | GM1: -12 | GN1: -3 | GO1: 3 | GP1: 18 | GQ1: -8 | GR1: 11 | GS1: -15 | GT1: -11 | GU1: 7 | GV1: 9 | GW1: -2 | GX1: -27 | GY1: -13 | GZ1: -32 | HA1: -22 | HB1: -27 | HC1: -26 | HD1: 7 | HE1: -10 | HF1: -11 | HG1: -31 | HH1: -24 | HI1: -12 | HJ1: -24 | HK1: -18 | HL1: 1 | HM1: -20 | HN1: -6 | HO1: -21 | HP1: -24 | HQ1: -6 | HR1: -1 | HS1: 16 | HT1: 15 | HU1: 14 | HV1: -18 | HW1: -19 | HX1: -15 | HY1: -17 | HZ1: -16 | IA1: -9 | IB1: 2 | IC1: 1 | ID1: -18 | IE1: -21 | IF1: -33 | IG1: -10 | IH1: 4 | II1: -11 | IJ1: 7 | IK1: 21 | IL1: 7 | IM1: -9 | IN1: -6 | IO1: -25 | IP1: -13 | IQ1: -35 | IR1: -9 | IS1: -7 | IT1: -8 | IU1: -19 | IV1: -16 | IW1: -18 | IX1: -6 | IY1: -4 | IZ1: 14 | JA1: -6 | JB1: -8 | JC1: -15 | JD1: -2 | JE1: 7 | JF1: 5 | JG1: -19 | JH1: -11 | JI1: -1 | JJ1: -5 | JK1: -8 | JL1: -11 | JM1: -12 | JN1: -23 | JO1: -28 | JP1: -14 | JQ1: -8 | JR1: 7 | JS1: -40 | JT1: 5 | JU1: -1 | JV1: 1 | JW1: -6 | JX1: -17 | JY1: -17 | JZ1: -7 | KA1: -14 | KB1: -21 | KC1: 33 | KD1: -16 | KE1: 12 | KF1: -18 | KG1: 2 | KH1: -18 | KI1: -34 | KJ1: -5 | KK1: -9 | KL1: -24 | KM1: -19 | KN1: -14 | KO1: -26 | KP1: -1 | KQ1: 25 | KR1: 15 | KS1: 5 | KT1: -12 | KU1: -11 | KV1: -10 | KW1: -10 | KX1: -12 | KY1: -9 | KZ1: 8 | LA1: -17 | LB1: -27 | LC1: 6 | LD1: 2 | LE1: -7 | LF1: -26 | LG1: -9 | LH1: -9 | LI1: -21 | LJ1: -34 | LK1: 0 | LL1: -2 | LM1: -15 | LN1: -9 | LO1: -6 | LP1: -7 | LQ1: -17 | LR1: -21 | LS1: -6 | LT1: -21 | LU1: -7 | LV1: -12 | LW1: -2 | LX1: 1 | LY1: -8 | LZ1: 7 | MA1: -17 | MB1: -9 | MC1: -9 | MD1: -18 | ME1: -1 | MF1: -29 | MG1: -6 | MH1: -32 | MI1: -22 | MJ1: -10 | MK1: -10 | ML1: 15 | MM1: -24 | MN1: -17 | MO1: -6 | MP1: -12 | MQ1: -18 | MR1: 11 | MS1: -23 | MT1: -3 | MU1: -15 | MV1: -10 | MW1: -28 | MX1: -10 | MY1: 9 | MZ1: 14 | NA1: -3 | NB1: -8 | NC1: 17 | ND1: -31 | NE1: -8 | NF1: 12 | NG1: -2 | NH1: -3 | NI1: -1 | NJ1: -3 | NK1: -5 | NL1: -15 | NM1: 0 | NN1: -4 | NO1: -17 | NP1: -16 | NQ1: -14 | NR1: -1 | NS1: -7 | NT1: -1 | NU1: -5 | NV1: 10 | NW1: 2 | NX1: -18 | NY1: -14 | NZ1: -6 | OA1: 8 | OB1: -18 | OC1: 0 | OD1: -1 | OE1: 9 | OF1: 20 | OG1: -9 | OH1: 9 | OI1: 8 | OJ1: 3 | OK1: -3 | OL1: -23 | OM1: -7 | ON1: -14 | OO1: -15 | OP1: -8 | OQ1: -6 | OR1: -29 | OS1: -7 | OT1: -45 | OU1: 10 | OV1: -13 | OW1: -11 | OX1: -16 | OY1: -17 | OZ1: 3 | PA1: -27 | PB1: -25 | PC1: 2 | PD1: -12 | PE1: -18 | PF1: 16 | PG1: -20 | PH1: -9 | PI1: 5 | PJ1: 7 | PK1: -2 | PL1: 16 | PM1: 5 | PN1: -19 | PO1: -5 | PP1: -39 | PQ1: -2 | PR1: -16 | PS1: -13 | PT1: 12 | PU1: -10 | PV1: -5 | PW1: -11 | PX1: -12 | PY1: -9 | PZ1: -16 | QA1: -13 | QB1: 11 | QC1: 31 | QD1: 5 | QE1: -2 | QF1: 31 | QG1: 2 | QH1: 4 | QI1: -3 | QJ1: -13 | QK1: -11 | QL1: -7 | QM1: -22 | QN1: -6 | QO1: -12 | QP1: 16 | QQ1: -22 | QR1: 10 | QS1: -6 | QT1: 14 | QU1: 15 | QV1: 2 | QW1: -7 | QX1: -15 | QY1: -34 | QZ1: -5 | RA1: 12 | RB1: -4 | RC1: -13 | RD1: -26 | RE1: -12 | RF1: -15 | RG1: -4 | RH1: 5 | RI1: -13 | RJ1: -32 | RK1: -6 | RL1: -11 | RM1: 8 | RN1: -4 | RO1: -16 | RP1: -18 | RQ1: -8 | RR1: 20 | RS1: -2 | RT1: 20 | RU1: 8 | RV1: -13 | RW1: 12 | RX1: -28 | RY1: -11 | RZ1: -17 | SA1: -21 | SB1: -5 | SC1: -8 | SD1: 21 | SE1: -11 | SF1: 9 | SG1: -15 | SH1: 2 | SI1: 3 | SJ1: -9 | SK1: -18 | SL1: -18 | SM1: -13 | SN1: 4 | SO1: -8 | SP1: -8 | SQ1: 2 | SR1: 27 | SS1: 15 | ST1: -9 | SU1: -17 | SV1: -3 | SW1: -17 | SX1: 5 | SY1: -1 | SZ1: -2 | TA1: -2 | TB1: -4 | TC1: -20 | TD1: -12 | TE1: -10 | TF1: -9 | TG1: -4 | TH1: 1 | TI1: -16 | TJ1: -6 | TK1: -20 | TL1: -3 | TM1: -4 | TN1: 9 | TO1: -22 | TP1: 13 | TQ1: -20 | TR1: -1 | TS1: -1 | TT1: -12 | TU1: -18 | TV1: -15 | TW1: -22 | TX1: -9 | TY1: 5 | TZ1: -20 | UA1: 1 | UB1: -15 | UC1: 8 | UD1: -8 | UE1: -6 | UF1: 8 | UG1: 12 | UH1: -8 | UI1: -9 | UJ1: -17 | UK1: -2 | UL1: -15 | UM1: 3 | UN1: -17 | UO1: -12 | UP1: 10 | UQ1: -7 | UR1: -10 | US1: 1 | UT1: -29 | UU1: -4 | UV1: 10 | UW1: -17 | UX1: -20 | UY1: 11 | UZ1: 7 | VA1: -10 | VB1: -24 | VC1: 11 | VD1: -10 | VE1: -18 | VF1: -26 | VG1: -3 | VH1: -20 | VI1: 11 | VJ1: 9 | VK1: 9 | VL1: -4 | VM1: -23 | VN1: -27 | VO1: -35 | VP1: -10 | VQ1: -7 | VR1: -3 | VS1: -4 | VT1: -24 | VU1: 5 | VV1: -14 | VW1: -15 | VX1: -3 | VY1: -16 | VZ1: 3 | WA1: -7 | WB1: 17 | WC1: 11 | WD1: -14 | WE1: -44 | WF1: -14 | WG1: -13 | WH1: -1 | WI1: -1 | WJ1: -14 | WK1: -25 | WL1: -9 | WM1: -37 | WN1: -27 | WO1: 11 | WP1: 21 | WQ1: -20 | WR1: -5 | WS1: 18 | WT1: -12 | WU1: -9 | WV1: -11 | WW1: 8 | WX1: -16 | WY1: 10 | WZ1: -6 | XA1: 5 | XB1: -1 | XC1: -19 | XD1: 1 | XE1: 8 | XF1: -15 | XG1: -6 | XH1: -6 | XI1: -11 | XJ1: 5 | XK1: -3 | XL1: -8 | XM1: -6 | XN1: 9 | XO1: -15 | XP1: 0 | XQ1: -1 | XR1: -6 | XS1: -3 | XT1: -12 | XU1: 9 | XV1: 29 | XW1: -1 | XX1: -9 | XY1: 8 | XZ1: -15 | YA1: -9 | YB1: -1 | YC1: -15 | YD1: -13 | YE1: -8 | YF1: -21 | YG1: 2 | YH1: -9 | YI1: -7 | YJ1: -16 | YK1: -26 | YL1: -5 | YM1: -2 | YN1: -15 | YO1: -12 | YP1: -2 | YQ1: 15 | YR1: 6 | YS1: -21 | YT1: -17 | YU1: -24 | YV1: 24 | YW1: -9 | YX1: -21 | YY1: 16 | YZ1: -7 | ZA1: -23 | ZB1: 0 | ZC1: -7 | ZD1: -3 | ZE1: -16 | ZF1: -2 | ZG1: 4 | ZH1: -5 | ZI1: -50 | ZJ1: -1 | ZK1: -7 | ZL1: -4 | ZM1: -5 | ZN1: -20 | ZO1: 26 | ZP1: -7 | ZQ1: -19 | ZR1: -31 | ZS1: 11 | ZT1: -12 | ZU1: -24 | ZV1: 16 | ZW1: -20 | ZX1: -15 | ZY1: 0 | ZZ1: 56 | AAA1: 3 | AAB1: -17 | AAC1: -11 | AAD1: -25 | AAE1: 8 | AAF1: -29 | AAG1: -3 | AAH1: 7 | AAI1: 5 | AAJ1: 24 | AAK1: -7 | AAL1: -25 | AAM1: -11 | AAN1: -7 | AAO1: 7 | AAP1: -18 | AAQ1: -6 | AAR1: -2 | AAS1: -2 | AAT1: -26 | AAU1: 8 | AAV1: -6 | AAW1: 14 | AAX1: -13 | AAY1: -15 | AAZ1: 4 | ABA1: -3 | ABB1: -9 | ABC1: -8 | ABD1: -13 | ABE1: -16 | ABF1: -3 | ABG1: -8 | ABH1: -23 | ABI1: -4 | ABJ1: -5 | ABK1: 16 | ABL1: 8 | ABM1: -22 | ABN1: -13 | ABO1: 6 | ABP1: 3 | ABQ1: -5 | ABR1: -5 | ABS1: -13 | ABT1: -5 | ABU1: -22 | ABV1: -10 | ABW1: -18 | ABX1: -10 | ABY1: 10 | ABZ1: -17 | ACA1: -16 | ACB1: -1 | ACC1: -8 | ACD1: -9 | ACE1: -31 | ACF1: 27 | ACG1: -22 | ACH1: -16 | ACI1: 28 | ACJ1: -16 | ACK1: -15 | ACL1: -44 | ACM1: -15 | ACN1: -19 | ACO1: 21 | ACP1: -9 | ACQ1: -13 | ACR1: -6 | ACS1: -12 | ACT1: -10 | ACU1: 4 | ACV1: -10 | ACW1: -18 | ACX1: 10 | ACY1: 0 | ACZ1: -36 | ADA1: -7 | ADB1: -15 | ADC1: -2 | ADD1: -10 | ADE1: -6 | ADF1: -11 | ADG1: 1 | ADH1: -13 | ADI1: 12 | ADJ1: -24 | ADK1: 1 | ADL1: -9 | ADM1: -17 | ADN1: -4 | ADO1: 5 | ADP1: -23 | ADQ1: 4 | ADR1: -20 | ADS1: -15 | ADT1: -16 | ADU1: -10 | ADV1: -17 | ADW1: -10 | ADX1: 13 | ADY1: -1 | ADZ1: 34 | AEA1: 1 | AEB1: 10 | AEC1: -12 | AED1: -42 | AEE1: 13 | AEF1: -24 | AEG1: 1 | AEH1: 2 | AEI1: 8 | AEJ1: -8 | AEK1: -25 | AEL1: -12 | AEM1: -17 | AEN1: 3 | AEO1: -16 | AEP1: 17 | AEQ1: 8 | AER1: -1 | AES1: -22 | AET1: -5 | AEU1: 33 | AEV1: -9 | AEW1: -15 | AEX1: 9 | AEY1: -8 | AEZ1: 3 | AFA1: -6 | AFB1: 7 | AFC1: 26 | AFD1: 17 | AFE1: -16 | AFF1: 25 | AFG1: -15 | AFH1: 3 | AFI1: 5 | AFJ1: 16 | AFK1: -13 | AFL1: -13 | AFM1: 7 | AFN1: 9 | AFO1: -6 | AFP1: -15 | AFQ1: -7 | AFR1: -3 | AFS1: -21 | AFT1: -10 | AFU1: 10 | AFV1: -1 | AFW1: -6 | AFX1: -7 | AFY1: 8 | AFZ1: 5 | AGA1: -19 | AGB1: -14 | AGC1: -7 | AGD1: -11 | AGE1: -2 | AGF1: -9 | AGG1: -22 | AGH1: -15 | AGI1: 0 | AGJ1: 7 | AGK1: -4 | AGL1: -21 | AGM1: -12 | AGN1: -14 | AGO1: 1 | AGP1: -16 | AGQ1: -12 | AGR1: -11 | AGS1: 1 | AGT1: -25 | AGU1: 4 | AGV1: -6 | AGW1: -5 | AGX1: 9 | AGY1: 1 | AGZ1: -10 | AHA1: -14 | AHB1: -4 | AHC1: -11 | AHD1: -28 | AHE1: -18 | AHF1: -22 | AHG1: 6 | AHH1: 7 | AHI1: -7 | AHJ1: 4 | AHK1: -9 | AHL1: -13 | AHM1: 2 | AHN1: 35 | AHO1: -7 | AHP1: 6 | AHQ1: -9 | AHR1: 3 | AHS1: -12 | AHT1: -12 | AHU1: -20 | AHV1: -17 | AHW1: -6 | AHX1: 15 | AHY1: -7 | AHZ1: 7 | AIA1: 0 | AIB1: -10 | AIC1: -8 | AID1: -24 | AIE1: 4 | AIF1: -16 | AIG1: 5 | AIH1: 4 | AII1: -3 | AIJ1: -2 | AIK1: -16 | AIL1: 20 | AIM1: -7 | AIN1: -11 | AIO1: -12 | AIP1: 1 | AIQ1: -13 | AIR1: 1 | AIS1: 9 | AIT1: -21 | AIU1: -13 | AIV1: 0 | AIW1: -37 | AIX1: -13 | AIY1: -11 | AIZ1: -9 | AJA1: 1 | AJB1: -5 | AJC1: 11 | AJD1: -15 | AJE1: -7 | AJF1: -4 | AJG1: -10 | AJH1: -28 | AJI1: -14 | AJJ1: 14 | AJK1: 6 | AJL1: -22 | AJM1: -26 | AJN1: -16 | AJO1: -16 | AJP1: 14 | AJQ1: 2 | AJR1: -9 | AJS1: -26 | AJT1: -11 | AJU1: -30 | AJV1: -3 | AJW1: 7 | AJX1: 13 | AJY1: 8 | AJZ1: -7 | AKA1: -6 | AKB1: -9 | AKC1: -13 | AKD1: 14 | AKE1: -23 | AKF1: -11 | AKG1: -39 | AKH1: -24 | AKI1: -9 | AKJ1: -26 | AKK1: -8 | AKL1: -6 | AKM1: -12 | AKN1: -18 | AKO1: 5 | AKP1: -7 | AKQ1: -10 | AKR1: -22 | AKS1: -23 | AKT1: -12 | AKU1: 26 | AKV1: 4 | AKW1: 10 | AKX1: 15 | AKY1: -17 | AKZ1: -13 | ALA1: -12 | ALB1: 5 | ALC1: -21 | ALD1: 1 | ALE1: 5 | ALF1: 33 | ALG1: -21 | ALH1: 7 | ALI1: -22 | ALJ1: -10 | ALK1: 2 | ALL1: -4 | ALM1: 9 | ALN1: -6 | ALO1: 16 | ALP1: -4 | ALQ1: -9 | ALR1: -5 | ALS1: -6 | ALT1: -29 | ALU1: 10 | ALV1: -18 | ALW1: -8 | ALX1: -20 | ALY1: -11 | ALZ1: 0 | AMA1: -18 | AMB1: 16 | AMC1: -6 | AMD1: -11 | AME1: 1 | AMF1: -10 | AMG1: -51 | AMH1: -6 | AMI1: -10 | AMJ1: -10
A2: -21 | B2: -41 | C2: 12 | D2: -27 | E2: -32 | F2: 5 | G2: -2 | H2: 26 | I2: -59 | J2: -47 | K2: -39 | L2: -17 | M2: -18 | N2: -5 | O2: -9 | P2: -9 | Q2: 27 | R2: -47 | S2: -27 | T2: -24 | U2: 7 | V2: -29 | W2: 6 | X2: 16 | Y2: -18 | Z2: 24 | AA2: -4 | AB2: -73 | AC2: -21 | AD2: -28 | AE2: -3 | AF2: 1 | AG2: -26 | AH2: -27 | AI2: -6 | AJ2: -8 | AK2: 20 | AL2: 13 | AM2: -1 | AN2: -20 | AO2: -32 | AP2: 33 | AQ2: 41 | AR2: 21 | AS2: -21 | AT2: -16 | AU2: -26 | AV2: -8 | AW2: -18 | AX2: -20 | AY2: -43 | AZ2: -20 | BA2: -25 | BB2: 16 | BC2: 14 | BD2: 4 | BE2: 0 | BF2: -30 | BG2: -65 | BH2: -27 | BI2: -13 | BJ2: 21 | BK2: -55 | BL2: -22 | BM2: -16 | BN2: -4 | BO2: -36 | BP2: 14 | BQ2: 3 | BR2: 1 | BS2: -36 | BT2: -28 | BU2: -44 | BV2: -14 | BW2: 35 | BX2: 28 | BY2: -37 | BZ2: -16 | CA2: 5 | CB2: 1 | CC2: -39 | CD2: 36 | CE2: 2 | CF2: -27 | CG2: -28 | CH2: -33 | CI2: -53 | CJ2: 32 | CK2: -16 | CL2: -47 | CM2: 29 | CN2: 0 | CO2: -21 | CP2: -40 | CQ2: -30 | CR2: 21 | CS2: -24 | CT2: -29 | CU2: -16 | CV2: -64 | CW2: -47 | CX2: -8 | CY2: 0 | CZ2: -8 | DA2: 38 | DB2: 8 | DC2: -10 | DD2: -22 | DE2: 9 | DF2: 4 | DG2: 4 | DH2: -18 | DI2: -63 | DJ2: -25 | DK2: 4 | DL2: -31 | DM2: -23 | DN2: -14 | DO2: -20 | DP2: -20 | DQ2: -20 | DR2: 1 | DS2: -50 | DT2: -3 | DU2: -2 | DV2: -40 | DW2: -28 | DX2: -4 | DY2: 9 | DZ2: -70 | EA2: 31 | EB2: -42 | EC2: -28 | ED2: -13 | EE2: -6 | EF2: -13 | EG2: -13 | EH2: -21 | EI2: -4 | EJ2: -98 | EK2: -33 | EL2: -15 | EM2: -1 | EN2: -9 | EO2: -1 | EP2: -3 | EQ2: -19 | ER2: 1 | ES2: -16 | ET2: -16 | EU2: -7 | EV2: -8 | EW2: -38 | EX2: 34 | EY2: 43 | EZ2: -16 | FA2: 2 | FB2: -9 | FC2: -36 | FD2: -21 | FE2: -13 | FF2: 3 | FG2: -18 | FH2: 7 | FI2: 11 | FJ2: -66 | FK2: -7 | FL2: 4 | FM2: -66 | FN2: -22 | FO2: 21 | FP2: 45 | FQ2: 6 | FR2: -15 | FS2: -39 | FT2: -19 | FU2: -8 | FV2: -10 | FW2: 8 | FX2: -73 | FY2: 19 | FZ2: -7 | GA2: 7 | GB2: -27 | GC2: -97 | GD2: -9 | GE2: 17 | GF2: -25 | GG2: -3 | GH2: -27 | GI2: -50 | GJ2: 19 | GK2: 4 | GL2: -15 | GM2: -9 | GN2: 16 | GO2: -11 | GP2: -10 | GQ2: -14 | GR2: 10 | GS2: -37 | GT2: -18 | GU2: 17 | GV2: 7 | GW2: 7 | GX2: -28 | GY2: -23 | GZ2: -29 | HA2: -39 | HB2: -52 | HC2: -37 | HD2: 13 | HE2: -47 | HF2: -24 | HG2: -30 | HH2: -50 | HI2: -24 | HJ2: -47 | HK2: -46 | HL2: 1 | HM2: -32 | HN2: 1 | HO2: -28 | HP2: -28 | HQ2: 6 | HR2: -21 | HS2: 16 | HT2: 34 | HU2: 24 | HV2: -38 | HW2: -28 | HX2: -36 | HY2: -31 | HZ2: -12 | IA2: -25 | IB2: 25 | IC2: -6 | ID2: -30 | IE2: -25 | IF2: -63 | IG2: -4 | IH2: -1 | II2: -11 | IJ2: 30 | IK2: -2 | IL2: 11 | IM2: -49 | IN2: -3 | IO2: -22 | IP2: -18 | IQ2: -47 | IR2: -37 | IS2: -4 | IT2: -7 | IU2: 9 | IV2: -46 | IW2: -38 | IX2: -47 | IY2: -16 | IZ2: -1 | JA2: -2 | JB2: 1 | JC2: -37 | JD2: -20 | JE2: 2 | JF2: -5 | JG2: -38 | JH2: -10 | JI2: 1 | JJ2: -20 | JK2: -50 | JL2: -16 | JM2: -3 | JN2: -49 | JO2: -61 | JP2: -29 | JQ2: -10 | JR2: -5 | JS2: -68 | JT2: 13 | JU2: 3 | JV2: 26 | JW2: 15 | JX2: -34 | JY2: -47 | JZ2: -2 | KA2: -13 | KB2: -28 | KC2: -5 | KD2: -22 | KE2: 23 | KF2: -41 | KG2: 2 | KH2: -26 | KI2: -73 | KJ2: 7 | KK2: -16 | KL2: -20 | KM2: -47 | KN2: -30 | KO2: -58 | KP2: 1 | KQ2: 25 | KR2: 40 | KS2: 13 | KT2: -29 | KU2: -30 | KV2: -18 | KW2: -23 | KX2: -41 | KY2: -9 | KZ2: 12 | LA2: -10 | LB2: -62 | LC2: 5 | LD2: -16 | LE2: 11 | LF2: -56 | LG2: -16 | LH2: -10 | LI2: -53 | LJ2: -67 | LK2: -8 | LL2: -4 | LM2: 5 | LN2: -48 | LO2: 2 | LP2: -10 | LQ2: -29 | LR2: -51 | LS2: 1 | LT2: -32 | LU2: -6 | LV2: -31 | LW2: 15 | LX2: -5 | LY2: -7 | LZ2: 3 | MA2: -25 | MB2: -16 | MC2: -19 | MD2: -34 | ME2: -6 | MF2: -57 | MG2: -26 | MH2: -25 | MI2: -43 | MJ2: -25 | MK2: 7 | ML2: -19 | MM2: -33 | MN2: -36 | MO2: 9 | MP2: -31 | MQ2: -5 | MR2: 20 | MS2: -42 | MT2: -18 | MU2: -25 | MV2: -20 | MW2: -43 | MX2: -25 | MY2: 7 | MZ2: 25 | NA2: -9 | NB2: -30 | NC2: 15 | ND2: -31 | NE2: -24 | NF2: 3 | NG2: 0 | NH2: -1 | NI2: -10 | NJ2: -8 | NK2: -15 | NL2: -75 | NM2: 47 | NN2: 22 | NO2: -29 | NP2: -9 | NQ2: -45 | NR2: -5 | NS2: -34 | NT2: 1 | NU2: 15 | NV2: 7 | NW2: 23 | NX2: -26 | NY2: -25 | NZ2: -28 | OA2: 5 | OB2: -24 | OC2: -12 | OD2: 3 | OE2: -23 | OF2: 41 | OG2: -24 | OH2: -5 | OI2: 9 | OJ2: -47 | OK2: 8 | OL2: -24 | OM2: 5 | ON2: -30 | OO2: -21 | OP2: -10 | OQ2: -14 | OR2: -38 | OS2: -21 | OT2: -84 | OU2: -8 | OV2: -10 | OW2: -11 | OX2: -45 | OY2: -22 | OZ2: 1 | PA2: -43 | PB2: -46 | PC2: 1 | PD2: -18 | PE2: -27 | PF2: 18 | PG2: -19 | PH2: -20 | PI2: -5 | PJ2: -2 | PK2: 27 | PL2: 10 | PM2: 12 | PN2: -59 | PO2: -22 | PP2: -87 | PQ2: -7 | PR2: -8 | PS2: -9 | PT2: 10 | PU2: -30 | PV2: -13 | PW2: -27 | PX2: -32 | PY2: -34 | PZ2: -39 | QA2: -41 | QB2: -21 | QC2: 21 | QD2: 3 | QE2: 2 | QF2: -17 | QG2: -24 | QH2: -2 | QI2: -6 | QJ2: -30 | QK2: -22 | QL2: -17 | QM2: -49 | QN2: -4 | QO2: -26 | QP2: 37 | QQ2: -35 | QR2: -1 | QS2: -16 | QT2: 16 | QU2: 4 | QV2: 14 | QW2: 3 | QX2: -36 | QY2: -33 | QZ2: -24 | RA2: 18 | RB2: -6 | RC2: -33 | RD2: -39 | RE2: -36 | RF2: -32 | RG2: -10 | RH2: 26 | RI2: -47 | RJ2: -34 | RK2: -19 | RL2: -13 | RM2: 17 | RN2: -30 | RO2: -23 | RP2: -67 | RQ2: -21 | RR2: 23 | RS2: 8 | RT2: 36 | RU2: 17 | RV2: 1 | RW2: 22 | RX2: -21 | RY2: -38 | RZ2: -40 | SA2: -52 | SB2: 3 | SC2: -16 | SD2: -2 | SE2: -27 | SF2: 4 | SG2: -16 | SH2: -15 | SI2: -8 | SJ2: -17 | SK2: -46 | SL2: -25 | SM2: -33 | SN2: -3 | SO2: 1 | SP2: -5 | SQ2: 3 | SR2: 81 | SS2: 37 | ST2: -23 | SU2: -38 | SV2: -10 | SW2: -8 | SX2: 21 | SY2: -15 | SZ2: -15 | TA2: -10 | TB2: 4 | TC2: -41 | TD2: -23 | TE2: -17 | TF2: -15 | TG2: -30 | TH2: -10 | TI2: 5 | TJ2: -24 | TK2: -30 | TL2: -7 | TM2: -10 | TN2: 36 | TO2: -16 | TP2: 17 | TQ2: -44 | TR2: -3 | TS2: 1 | TT2: -51 | TU2: -42 | TV2: -25 | TW2: -46 | TX2: -26 | TY2: 6 | TZ2: -28 | UA2: 5 | UB2: -16 | UC2: 5 | UD2: -18 | UE2: -20 | UF2: -8 | UG2: 7 | UH2: -5 | UI2: -14 | UJ2: -16 | UK2: -5 | UL2: -21 | UM2: -16 | UN2: -22 | UO2: -6 | UP2: 3 | UQ2: -10 | UR2: -30 | US2: -5 | UT2: -58 | UU2: -16 | UV2: 8 | UW2: -50 | UX2: -29 | UY2: 31 | UZ2: 32 | VA2: -28 | VB2: -59 | VC2: 24 | VD2: -24 | VE2: -46 | VF2: -15 | VG2: -18 | VH2: -49 | VI2: 19 | VJ2: -2 | VK2: 1 | VL2: 14 | VM2: -45 | VN2: -43 | VO2: -20 | VP2: -12 | VQ2: -30 | VR2: -9 | VS2: -2 | VT2: -56 | VU2: -5 | VV2: -29 | VW2: -31 | VX2: -36 | VY2: -37 | VZ2: 22 | WA2: -38 | WB2: 45 | WC2: 25 | WD2: -30 | WE2: -57 | WF2: -13 | WG2: -44 | WH2: -7 | WI2: -24 | WJ2: -33 | WK2: -56 | WL2: -25 | WM2: -36 | WN2: -54 | WO2: 12 | WP2: 43 | WQ2: -41 | WR2: -20 | WS2: 22 | WT2: -30 | WU2: -13 | WV2: -28 | WW2: -3 | WX2: -41 | WY2: -3 | WZ2: 22 | XA2: 15 | XB2: -20 | XC2: -34 | XD2: -3 | XE2: -3 | XF2: -26 | XG2: -16 | XH2: -10 | XI2: -15 | XJ2: -15 | XK2: -15 | XL2: -32 | XM2: -15 | XN2: 0 | XO2: -37 | XP2: 20 | XQ2: -13 | XR2: 19 | XS2: -24 | XT2: -18 | XU2: 16 | XV2: 26 | XW2: -10 | XX2: -11 | XY2: 53 | XZ2: -28 | YA2: -24 | YB2: -4 | YC2: -3 | YD2: -11 | YE2: 12 | YF2: -31 | YG2: -17 | YH2: -12 | YI2: 1 | YJ2: -27 | YK2: -39 | YL2: -11 | YM2: -16 | YN2: -24 | YO2: -20 | YP2: 2 | YQ2: 18 | YR2: -1 | YS2: -26 | YT2: -43 | YU2: -51 | YV2: 14 | YW2: -36 | YX2: -43 | YY2: -3 | YZ2: -19 | ZA2: -25 | ZB2: -21 | ZC2: -26 | ZD2: -36 | ZE2: -51 | ZF2: -13 | ZG2: -22 | ZH2: -13 | ZI2: -44 | ZJ2: 1 | ZK2: -25 | ZL2: -4 | ZM2: -15 | ZN2: -37 | ZO2: 17 | ZP2: -7 | ZQ2: -45 | ZR2: -28 | ZS2: 43 | ZT2: -16 | ZU2: -59 | ZV2: 5 | ZW2: -7 | ZX2: 15 | ZY2: -28 | ZZ2: 67 | AAA2: -1 | AAB2: -31 | AAC2: -46 | AAD2: -49 | AAE2: 22 | AAF2: -43 | AAG2: -13 | AAH2: -2 | AAI2: -2 | AAJ2: 40 | AAK2: -9 | AAL2: -28 | AAM2: 14 | AAN2: -22 | AAO2: 6 | AAP2: -27 | AAQ2: 6 | AAR2: -12 | AAS2: -3 | AAT2: -51 | AAU2: -24 | AAV2: -16 | AAW2: 14 | AAX2: -21 | AAY2: -25 | AAZ2: -1 | ABA2: -10 | ABB2: -30 | ABC2: -5 | ABD2: -10 | ABE2: -25 | ABF2: -12 | ABG2: -39 | ABH2: -28 | ABI2: 0 | ABJ2: -3 | ABK2: 42 | ABL2: 9 | ABM2: -30 | ABN2: 3 | ABO2: 0 | ABP2: -3 | ABQ2: -7 | ABR2: -24 | ABS2: -15 | ABT2: -26 | ABU2: -18 | ABV2: -49 | ABW2: -38 | ABX2: -7 | ABY2: 5 | ABZ2: -9 | ACA2: -27 | ACB2: -13 | ACC2: -16 | ACD2: -31 | ACE2: -37 | ACF2: 43 | ACG2: -32 | ACH2: -35 | ACI2: 29 | ACJ2: -34 | ACK2: -21 | ACL2: -47 | ACM2: -26 | ACN2: -19 | ACO2: 35 | ACP2: -17 | ACQ2: -8 | ACR2: -16 | ACS2: -34 | ACT2: -31 | ACU2: 21 | ACV2: -9 | ACW2: -35 | ACX2: -3 | ACY2: 3 | ACZ2: -94 | ADA2: -1 | ADB2: -28 | ADC2: -2 | ADD2: 1 | ADE2: -10 | ADF2: 10 | ADG2: 12 | ADH2: -26 | ADI2: -1 | ADJ2: -1 | ADK2: -9 | ADL2: -23 | ADM2: -31 | ADN2: 1 | ADO2: -12 | ADP2: -41 | ADQ2: -10 | ADR2: -18 | ADS2: -37 | ADT2: -24 | ADU2: -9 | ADV2: -34 | ADW2: 2 | ADX2: 6 | ADY2: 1 | ADZ2: -5 | AEA2: -26 | AEB2: 38 | AEC2: -28 | AED2: -16 | AEE2: 16 | AEF2: -23 | AEG2: -4 | AEH2: -4 | AEI2: -14 | AEJ2: -2 | AEK2: -45 | AEL2: -40 | AEM2: -42 | AEN2: 32 | AEO2: -35 | AEP2: 10 | AEQ2: 6 | AER2: -7 | AES2: -39 | AET2: -19 | AEU2: 13 | AEV2: -19 | AEW2: -37 | AEX2: 8 | AEY2: -36 | AEZ2: 8 | AFA2: 18 | AFB2: 1 | AFC2: 55 | AFD2: 8 | AFE2: -7 | AFF2: 8 | AFG2: -35 | AFH2: 5 | AFI2: 18 | AFJ2: 25 | AFK2: -6 | AFL2: -13 | AFM2: 6 | AFN2: 10 | AFO2: -66 | AFP2: -33 | AFQ2: -15 | AFR2: -28 | AFS2: -35 | AFT2: -16 | AFU2: -20 | AFV2: 9 | AFW2: -15 | AFX2: -10 | AFY2: 3 | AFZ2: -11 | AGA2: -7 | AGB2: -25 | AGC2: -55 | AGD2: -29 | AGE2: -18 | AGF2: -43 | AGG2: -37 | AGH2: -23 | AGI2: -12 | AGJ2: -5 | AGK2: -16 | AGL2: -25 | AGM2: -15 | AGN2: -50 | AGO2: -12 | AGP2: -28 | AGQ2: -25 | AGR2: -5 | AGS2: -4 | AGT2: -39 | AGU2: -10 | AGV2: -28 | AGW2: -18 | AGX2: 28 | AGY2: 11 | AGZ2: -18 | AHA2: -28 | AHB2: -20 | AHC2: -19 | AHD2: -29 | AHE2: -45 | AHF2: 0 | AHG2: 11 | AHH2: 10 | AHI2: 2 | AHJ2: 5 | AHK2: -5 | AHL2: -13 | AHM2: 17 | AHN2: 31 | AHO2: -36 | AHP2: 19 | AHQ2: -32 | AHR2: 6 | AHS2: -9 | AHT2: 0 | AHU2: -17 | AHV2: -35 | AHW2: -16 | AHX2: -12 | AHY2: -18 | AHZ2: 6 | AIA2: -2 | AIB2: -20 | AIC2: -16 | AID2: -49 | AIE2: -10 | AIF2: -19 | AIG2: -23 | AIH2: 1 | AII2: 9 | AIJ2: 6 | AIK2: -14 | AIL2: 17 | AIM2: 7 | AIN2: -42 | AIO2: -33 | AIP2: -7 | AIQ2: -16 | AIR2: 24 | AIS2: 7 | AIT2: -43 | AIU2: -31 | AIV2: 8 | AIW2: -28 | AIX2: -14 | AIY2: 2 | AIZ2: -30 | AJA2: -15 | AJB2: -16 | AJC2: 7 | AJD2: -40 | AJE2: -33 | AJF2: -17 | AJG2: -30 | AJH2: -42 | AJI2: -4 | AJJ2: -17 | AJK2: 28 | AJL2: -28 | AJM2: -40 | AJN2: -18 | AJO2: -27 | AJP2: -1 | AJQ2: 1 | AJR2: -30 | AJS2: -51 | AJT2: -29 | AJU2: -46 | AJV2: -12 | AJW2: 8 | AJX2: 29 | AJY2: 19 | AJZ2: -36 | AKA2: -21 | AKB2: -5 | AKC2: -31 | AKD2: -10 | AKE2: -33 | AKF2: -20 | AKG2: -74 | AKH2: -45 | AKI2: -31 | AKJ2: -26 | AKK2: -2 | AKL2: 3 | AKM2: -13 | AKN2: 2 | AKO2: 16 | AKP2: -24 | AKQ2: -12 | AKR2: -50 | AKS2: -45 | AKT2: -28 | AKU2: 11 | AKV2: -6 | AKW2: -3 | AKX2: 16 | AKY2: -18 | AKZ2: -47 | ALA2: -16 | ALB2: 28 | ALC2: -36 | ALD2: -9 | ALE2: -39 | ALF2: 25 | ALG2: -25 | ALH2: -1 | ALI2: -45 | ALJ2: -19 | ALK2: 4 | ALL2: -20 | ALM2: -8 | ALN2: -22 | ALO2: 3 | ALP2: 20 | ALQ2: 6 | ALR2: 2 | ALS2: -30 | ALT2: -45 | ALU2: 0 | ALV2: -13 | ALW2: -21 | ALX2: -34 | ALY2: -34 | ALZ2: 4 | AMA2: -26 | AMB2: 6 | AMC2: 9 | AMD2: -37 | AME2: 2 | AMF2: -37 | AMG2: -52 | AMH2: 0 | AMI2: -13 | AMJ2: -24
A3: -34 | B3: -70 | C3: 33 | D3: -56 | E3: -52 | F3: -45 | G3: 2 | H3: 56 | I3: -46 | J3: -70 | K3: -82 | L3: -32 | M3: -23 | N3: -22 | O3: -1 | P3: -17 | Q3: 25 | R3: -61 | S3: -54 | T3: -59 | U3: 4 | V3: -41 | W3: 28 | X3: 6 | Y3: 42 | Z3: 66 | AA3: 5 | AB3: -102 | AC3: -43 | AD3: -61 | AE3: 19 | AF3: 14 | AG3: -63 | AH3: -60 | AI3: 4 | AJ3: -13 | AK3: 20 | AL3: 0 | AM3: 22 | AN3: -39 | AO3: -56 | AP3: 42 | AQ3: 90 | AR3: 79 | AS3: -73 | AT3: -41 | AU3: -41 | AV3: -15 | AW3: -30 | AX3: -63 | AY3: -78 | AZ3: -1 | BA3: -58 | BB3: 27 | BC3: 33 | BD3: 10 | BE3: 4 | BF3: -65 | BG3: -103 | BH3: -67 | BI3: -5 | BJ3: 38 | BK3: -89 | BL3: -22 | BM3: -46 | BN3: -24 | BO3: -51 | BP3: 58 | BQ3: -4 | BR3: -22 | BS3: -57 | BT3: -35 | BU3: -68 | BV3: -21 | BW3: 60 | BX3: 78 | BY3: -41 | BZ3: -10 | CA3: 47 | CB3: -3 | CC3: -69 | CD3: 23 | CE3: 0 | CF3: -33 | CG3: -54 | CH3: -58 | CI3: -101 | CJ3: 34 | CK3: -28 | CL3: -77 | CM3: 35 | CN3: -3 | CO3: -40 | CP3: -69 | CQ3: -89 | CR3: 19 | CS3: -52 | CT3: -61 | CU3: -6 | CV3: -124 | CW3: -68 | CX3: 5 | CY3: -7 | CZ3: -20 | DA3: 93 | DB3: 58 | DC3: -54 | DD3: -36 | DE3: 38 | DF3: 39 | DG3: 22 | DH3: -32 | DI3: -95 | DJ3: -46 | DK3: -1 | DL3: -54 | DM3: -13 | DN3: -58 | DO3: -18 | DP3: -44 | DQ3: -53 | DR3: -16 | DS3: -96 | DT3: -10 | DU3: 4 | DV3: -75 | DW3: -33 | DX3: 1 | DY3: -7 | DZ3: -117 | EA3: -3 | EB3: -92 | EC3: -43 | ED3: -33 | EE3: 19 | EF3: -26 | EG3: -11 | EH3: -35 | EI3: 2 | EJ3: -116 | EK3: -33 | EL3: -7 | EM3: 8 | EN3: -77 | EO3: 31 | EP3: -49 | EQ3: -69 | ER3: 15 | ES3: -29 | ET3: -39 | EU3: -14 | EV3: 27 | EW3: -77 | EX3: 29 | EY3: 50 | EZ3: -30 | FA3: 29 | FB3: -33 | FC3: -60 | FD3: -30 | FE3: -32 | FF3: 9 | FG3: -33 | FH3: -13 | FI3: 41 | FJ3: -99 | FK3: -9 | FL3: -3 | FM3: -108 | FN3: -40 | FO3: 67 | FP3: 81 | FQ3: 7 | FR3: -25 | FS3: -86 | FT3: -16 | FU3: -19 | FV3: 28 | FW3: 10 | FX3: -114 | FY3: 47 | FZ3: -7 | GA3: 17 | GB3: -62 | GC3: -103 | GD3: -16 | GE3: 68 | GF3: -54 | GG3: -14 | GH3: -45 | GI3: -95 | GJ3: 55 | GK3: 13 | GL3: -26 | GM3: -23 | GN3: 16 | GO3: -8 | GP3: -11 | GQ3: -24 | GR3: 31 | GS3: -24 | GT3: -48 | GU3: 53 | GV3: 1 | GW3: 29 | GX3: -47 | GY3: -51 | GZ3: -33 | HA3: -76 | HB3: -98 | HC3: -65 | HD3: 4 | HE3: -98 | HF3: -42 | HG3: -49 | HH3: -99 | HI3: -43 | HJ3: -73 | HK3: -78 | HL3: -21 | HM3: -59 | HN3: 6 | HO3: -66 | HP3: -26 | HQ3: -13 | HR3: -27 | HS3: 40 | HT3: 43 | HU3: 14 | HV3: -51 | HW3: -49 | HX3: -55 | HY3: -76 | HZ3: -9 | IA3: -42 | IB3: 6 | IC3: -21 | ID3: -75 | IE3: -26 | IF3: -96 | IG3: -38 | IH3: -4 | II3: -34 | IJ3: 30 | IK3: 22 | IL3: 39 | IM3: -79 | IN3: -26 | IO3: -48 | IP3: -32 | IQ3: -110 | IR3: -70 | IS3: -41 | IT3: -23 | IU3: 22 | IV3: -102 | IW3: -84 | IX3: -63 | IY3: -37 | IZ3: 4 | JA3: -23 | JB3: -43 | JC3: -42 | JD3: -14 | JE3: 4 | JF3: -30 | JG3: -74 | JH3: -12 | JI3: -15 | JJ3: -63 | JK3: -96 | JL3: -21 | JM3: 41 | JN3: -85 | JO3: -90 | JP3: -31 | JQ3: 2 | JR3: 13 | JS3: -119 | JT3: 2 | JU3: -7 | JV3: 41 | JW3: -23 | JX3: -47 | JY3: -100 | JZ3: -13 | KA3: -18 | KB3: -76 | KC3: -13 | KD3: -24 | KE3: 58 | KF3: -52 | KG3: -27 | KH3: -31 | KI3: -132 | KJ3: 15 | KK3: -45 | KL3: -11 | KM3: -74 | KN3: -36 | KO3: -74 | KP3: -11 | KQ3: 53 | KR3: 89 | KS3: 32 | KT3: -38 | KU3: -60 | KV3: -39 | KW3: -33 | KX3: -52 | KY3: -21 | KZ3: -10 | LA3: 2 | LB3: -68 | LC3: -9 | LD3: -29 | LE3: -11 | LF3: -81 | LG3: -10 | LH3: -44 | LI3: -86 | LJ3: -77 | LK3: -14 | LL3: -10 | LM3: -24 | LN3: -55 | LO3: -27 | LP3: -34 | LQ3: -37 | LR3: -99 | LS3: -9 | LT3: -34 | LU3: -42 | LV3: -74 | LW3: 51 | LX3: 31 | LY3: -28 | LZ3: 36 | MA3: -60 | MB3: -40 | MC3: -33 | MD3: -45 | ME3: -32 | MF3: -96 | MG3: -52 | MH3: 20 | MI3: -86 | MJ3: -56 | MK3: 21 | ML3: -4 | MM3: -85 | MN3: -54 | MO3: 3 | MP3: -49 | MQ3: -32 | MR3: 25 | MS3: -59 | MT3: -29 | MU3: -47 | MV3: -49 | MW3: -97 | MX3: -72 | MY3: 39 | MZ3: 18 | NA3: -11 | NB3: -57 | NC3: 0 | ND3: -35 | NE3: -24 | NF3: 37 | NG3: -23 | NH3: 6 | NI3: -24 | NJ3: -8 | NK3: -33 | NL3: -121 | NM3: 66 | NN3: -1 | NO3: -60 | NP3: -31 | NQ3: -56 | NR3: 3 | NS3: -49 | NT3: -1 | NU3: -9 | NV3: 21 | NW3: 64 | NX3: -53 | NY3: -37 | NZ3: -32 | OA3: 15 | OB3: -17 | OC3: -31 | OD3: -7 | OE3: -5 | OF3: 64 | OG3: -16 | OH3: 31 | OI3: 25 | OJ3: -64 | OK3: 2 | OL3: -49 | OM3: -5 | ON3: -45 | OO3: 0 | OP3: -27 | OQ3: -21 | OR3: -58 | OS3: -57 | OT3: -130 | OU3: -16 | OV3: -33 | OW3: -29 | OX3: -88 | OY3: -29 | OZ3: -7 | PA3: -81 | PB3: -69 | PC3: 27 | PD3: -54 | PE3: -51 | PF3: 40 | PG3: -47 | PH3: -17 | PI3: -5 | PJ3: 41 | PK3: 40 | PL3: -6 | PM3: 2 | PN3: -45 | PO3: 4 | PP3: -150 | PQ3: 13 | PR3: -66 | PS3: -3 | PT3: 37 | PU3: -63 | PV3: -59 | PW3: -69 | PX3: -50 | PY3: -86 | PZ3: -52 | QA3: -59 | QB3: -11 | QC3: 35 | QD3: 2 | QE3: -13 | QF3: 5 | QG3: -45 | QH3: 15 | QI3: -1 | QJ3: -43 | QK3: -35 | QL3: -24 | QM3: -95 | QN3: -18 | QO3: -31 | QP3: 26 | QQ3: -72 | QR3: -40 | QS3: -41 | QT3: 31 | QU3: 9 | QV3: 32 | QW3: 16 | QX3: -57 | QY3: -66 | QZ3: -45 | RA3: 45 | RB3: -25 | RC3: -68 | RD3: -51 | RE3: -65 | RF3: -60 | RG3: -42 | RH3: 44 | RI3: -77 | RJ3: -64 | RK3: -28 | RL3: -30 | RM3: 27 | RN3: -63 | RO3: -56 | RP3: -81 | RQ3: -37 | RR3: 52 | RS3: 9 | RT3: 71 | RU3: 26 | RV3: 2 | RW3: 60 | RX3: -58 | RY3: -43 | RZ3: -76 | SA3: -83 | SB3: -9 | SC3: -38 | SD3: -17 | SE3: -42 | SF3: 4 | SG3: -45 | SH3: -30 | SI3: -28 | SJ3: -31 | SK3: -81 | SL3: -34 | SM3: -61 | SN3: 10 | SO3: -8 | SP3: -25 | SQ3: 5 | SR3: 148 | SS3: 35 | ST3: -51 | SU3: -69 | SV3: -56 | SW3: -49 | SX3: 31 | SY3: 6 | SZ3: -35 | TA3: -54 | TB3: 2 | TC3: -36 | TD3: -34 | TE3: -42 | TF3: -22 | TG3: -40 | TH3: -9 | TI3: 30 | TJ3: -25 | TK3: -68 | TL3: -54 | TM3: -18 | TN3: 24 | TO3: -48 | TP3: 33 | TQ3: -70 | TR3: -22 | TS3: 10 | TT3: -39 | TU3: -69 | TV3: -41 | TW3: -66 | TX3: -35 | TY3: 5 | TZ3: -54 | UA3: 7 | UB3: -35 | UC3: 22 | UD3: -32 | UE3: -76 | UF3: -2 | UG3: 15 | UH3: 2 | UI3: 9 | UJ3: -36 | UK3: -12 | UL3: -42 | UM3: -45 | UN3: -38 | UO3: -57 | UP3: 13 | UQ3: 14 | UR3: -67 | US3: -18 | UT3: -68 | UU3: -1 | UV3: 29 | UW3: -83 | UX3: -44 | UY3: 84 | UZ3: 66 | VA3: -39 | VB3: -71 | VC3: 30 | VD3: -52 | VE3: -81 | VF3: -13 | VG3: -27 | VH3: -56 | VI3: 38 | VJ3: -16 | VK3: -5 | VL3: 21 | VM3: -88 | VN3: -56 | VO3: -33 | VP3: -28 | VQ3: -48 | VR3: -35 | VS3: -5 | VT3: -68 | VU3: -27 | VV3: -46 | VW3: -41 | VX3: -63 | VY3: -90 | VZ3: 25 | WA3: -51 | WB3: 65 | WC3: 59 | WD3: -31 | WE3: -46 | WF3: -28 | WG3: -54 | WH3: -19 | WI3: -41 | WJ3: -55 | WK3: -91 | WL3: -62 | WM3: -1 | WN3: -69 | WO3: 35 | WP3: 86 | WQ3: -53 | WR3: -27 | WS3: 18 | WT3: -31 | WU3: -22 | WV3: -82 | WW3: -36 | WX3: -67 | WY3: -5 | WZ3: 34 | XA3: 17 | XB3: 3 | XC3: -72 | XD3: -8 | XE3: -20 | XF3: -21 | XG3: -5 | XH3: -6 | XI3: -34 | XJ3: -46 | XK3: -50 | XL3: -45 | XM3: -59 | XN3: -11 | XO3: -79 | XP3: 10 | XQ3: -38 | XR3: 20 | XS3: -44 | XT3: -61 | XU3: 42 | XV3: 29 | XW3: -14 | XX3: -36 | XY3: 131 | XZ3: -75 | YA3: -13 | YB3: 25 | YC3: -11 | YD3: -50 | YE3: 19 | YF3: -50 | YG3: -24 | YH3: -6 | YI3: -2 | YJ3: -48 | YK3: -50 | YL3: -28 | YM3: -14 | YN3: -33 | YO3: -48 | YP3: 18 | YQ3: 55 | YR3: 5 | YS3: -79 | YT3: -82 | YU3: -81 | YV3: 53 | YW3: -54 | YX3: -70 | YY3: -21 | YZ3: -21 | ZA3: -36 | ZB3: -15 | ZC3: -55 | ZD3: -69 | ZE3: -66 | ZF3: -47 | ZG3: -37 | ZH3: -23 | ZI3: -89 | ZJ3: -5 | ZK3: -54 | ZL3: -39 | ZM3: -53 | ZN3: -43 | ZO3: 18 | ZP3: -48 | ZQ3: -90 | ZR3: -26 | ZS3: 110 | ZT3: -34 | ZU3: -93 | ZV3: 8 | ZW3: -20 | ZX3: -3 | ZY3: 2 | ZZ3: 122 | AAA3: -17 | AAB3: -50 | AAC3: -78 | AAD3: -84 | AAE3: 36 | AAF3: -124 | AAG3: -38 | AAH3: 53 | AAI3: -11 | AAJ3: 80 | AAK3: -8 | AAL3: -53 | AAM3: -26 | AAN3: -30 | AAO3: -2 | AAP3: -46 | AAQ3: 16 | AAR3: -49 | AAS3: 7 | AAT3: -92 | AAU3: -25 | AAV3: -56 | AAW3: 12 | AAX3: -56 | AAY3: -47 | AAZ3: 24 | ABA3: -4 | ABB3: -27 | ABC3: 1 | ABD3: 5 | ABE3: -22 | ABF3: -24 | ABG3: -51 | ABH3: -42 | ABI3: -19 | ABJ3: -24 | ABK3: 62 | ABL3: 1 | ABM3: -53 | ABN3: 14 | ABO3: -12 | ABP3: 38 | ABQ3: -29 | ABR3: -27 | ABS3: -23 | ABT3: -50 | ABU3: -19 | ABV3: -56 | ABW3: -42 | ABX3: -13 | ABY3: 16 | ABZ3: -32 | ACA3: -44 | ACB3: 2 | ACC3: -30 | ACD3: -38 | ACE3: -98 | ACF3: 53 | ACG3: -64 | ACH3: -71 | ACI3: 26 | ACJ3: -65 | ACK3: -52 | ACL3: -108 | ACM3: -59 | ACN3: -74 | ACO3: 70 | ACP3: -27 | ACQ3: -30 | ACR3: 18 | ACS3: -52 | ACT3: -52 | ACU3: 54 | ACV3: -14 | ACW3: -66 | ACX3: -6 | ACY3: -3 | ACZ3: -113 | ADA3: 13 | ADB3: -62 | ADC3: 38 | ADD3: -17 | ADE3: -23 | ADF3: 48 | ADG3: 13 | ADH3: -75 | ADI3: 11 | ADJ3: -6 | ADK3: 2 | ADL3: -34 | ADM3: -64 | ADN3: 47 | ADO3: 28 | ADP3: -70 | ADQ3: 13 | ADR3: -20 | ADS3: -48 | ADT3: -54 | ADU3: -33 | ADV3: -65 | ADW3: 7 | ADX3: 3 | ADY3: 18 | ADZ3: 8 | AEA3: -37 | AEB3: 68 | AEC3: -69 | AED3: -54 | AEE3: 97 | AEF3: -49 | AEG3: 11 | AEH3: -17 | AEI3: -96 | AEJ3: -6 | AEK3: -75 | AEL3: -16 | AEM3: -70 | AEN3: 10 | AEO3: -61 | AEP3: 33 | AEQ3: -5 | AER3: -42 | AES3: -90 | AET3: -29 | AEU3: 40 | AEV3: -36 | AEW3: -69 | AEX3: -11 | AEY3: -65 | AEZ3: 11 | AFA3: -30 | AFB3: 5 | AFC3: 64 | AFD3: 17 | AFE3: 6 | AFF3: 52 | AFG3: -85 | AFH3: 6 | AFI3: 10 | AFJ3: 61 | AFK3: 33 | AFL3: -18 | AFM3: 20 | AFN3: 46 | AFO3: -138 | AFP3: -32 | AFQ3: -42 | AFR3: -22 | AFS3: -67 | AFT3: -38 | AFU3: -38 | AFV3: 10 | AFW3: -50 | AFX3: -22 | AFY3: 6 | AFZ3: 18 | AGA3: -32 | AGB3: -56 | AGC3: -68 | AGD3: -75 | AGE3: -24 | AGF3: -58 | AGG3: -91 | AGH3: -36 | AGI3: -46 | AGJ3: -24 | AGK3: -40 | AGL3: -45 | AGM3: -27 | AGN3: -64 | AGO3: 30 | AGP3: -41 | AGQ3: -61 | AGR3: -2 | AGS3: -20 | AGT3: -80 | AGU3: 8 | AGV3: 0 | AGW3: -4 | AGX3: 26 | AGY3: 47 | AGZ3: -19 | AHA3: -59 | AHB3: -36 | AHC3: -24 | AHD3: -45 | AHE3: -66 | AHF3: 23 | AHG3: 24 | AHH3: 1 | AHI3: -5 | AHJ3: -9 | AHK3: -32 | AHL3: -5 | AHM3: 5 | AHN3: 66 | AHO3: -58 | AHP3: 42 | AHQ3: -63 | AHR3: 25 | AHS3: -40 | AHT3: 7 | AHU3: 0 | AHV3: -54 | AHW3: -26 | AHX3: -22 | AHY3: 19 | AHZ3: -11 | AIA3: 12 | AIB3: -73 | AIC3: -53 | AID3: -94 | AIE3: 38 | AIF3: -30 | AIG3: -44 | AIH3: -3 | AII3: -1 | AIJ3: 38 | AIK3: -26 | AIL3: 16 | AIM3: 16 | AIN3: -63 | AIO3: -75 | AIP3: -21 | AIQ3: -35 | AIR3: 42 | AIS3: 16 | AIT3: -72 | AIU3: -47 | AIV3: 0 | AIW3: -92 | AIX3: -12 | AIY3: 0 | AIZ3: -23 | AJA3: -19 | AJB3: -23 | AJC3: 7 | AJD3: -92 | AJE3: -68 | AJF3: -44 | AJG3: -32 | AJH3: -75 | AJI3: -13 | AJJ3: -46 | AJK3: 53 | AJL3: -56 | AJM3: -99 | AJN3: -39 | AJO3: -22 | AJP3: 28 | AJQ3: -18 | AJR3: -1 | AJS3: -73 | AJT3: -39 | AJU3: -86 | AJV3: -36 | AJW3: 40 | AJX3: 45 | AJY3: 54 | AJZ3: 0 | AKA3: -34 | AKB3: -20 | AKC3: -36 | AKD3: 36 | AKE3: -49 | AKF3: -21 | AKG3: -147 | AKH3: -49 | AKI3: -71 | AKJ3: -63 | AKK3: -16 | AKL3: -19 | AKM3: -21 | AKN3: -21 | AKO3: 3 | AKP3: -20 | AKQ3: -30 | AKR3: -73 | AKS3: -85 | AKT3: -71 | AKU3: 29 | AKV3: -40 | AKW3: -13 | AKX3: 50 | AKY3: -20 | AKZ3: -77 | ALA3: -55 | ALB3: 76 | ALC3: -77 | ALD3: -6 | ALE3: -102 | ALF3: 1 | ALG3: -54 | ALH3: 5 | ALI3: -92 | ALJ3: -21 | ALK3: 22 | ALL3: -20 | ALM3: 12 | ALN3: -19 | ALO3: -27 | ALP3: -7 | ALQ3: -15 | ALR3: -18 | ALS3: -37 | ALT3: -56 | ALU3: 4 | ALV3: -38 | ALW3: -30 | ALX3: -53 | ALY3: -45 | ALZ3: -3 | AMA3: -71 | AMB3: 36 | AMC3: -6 | AMD3: -14 | AME3: -25 | AMF3: -55 | AMG3: -116 | AMH3: 26 | AMI3: -7 | AMJ3: -38
A4: -50 | B4: -86 | C4: 67 | D4: -100 | E4: -68 | F4: -55 | G4: -9 | H4: 59 | I4: 51 | J4: -90 | K4: -73 | L4: -71 | M4: -79 | N4: -67 | O4: 20 | P4: -13 | Q4: -16 | R4: -99 | S4: -58 | T4: -124 | U4: -2 | V4: -40 | W4: -33 | X4: -14 | Y4: 47 | Z4: 99 | AA4: -6 | AB4: -192 | AC4: -71 | AD4: -56 | AE4: 51 | AF4: -34 | AG4: -96 | AH4: -88 | AI4: 12 | AJ4: -5 | AK4: -19 | AL4: 110 | AM4: 23 | AN4: -68 | AO4: -81 | AP4: 56 | AQ4: 105 | AR4: 128 | AS4: -79 | AT4: -45 | AU4: -51 | AV4: -33 | AW4: -65 | AX4: -87 | AY4: -115 | AZ4: -13 | BA4: -91 | BB4: 2 | BC4: 32 | BD4: -5 | BE4: 17 | BF4: -100 | BG4: -94 | BH4: -108 | BI4: -56 | BJ4: 38 | BK4: -106 | BL4: 26 | BM4: -87 | BN4: -8 | BO4: -85 | BP4: 57 | BQ4: -45 | BR4: -51 | BS4: -67 | BT4: -25 | BU4: -104 | BV4: -28 | BW4: 74 | BX4: 45 | BY4: -56 | BZ4: -26 | CA4: 17 | CB4: -26 | CC4: -108 | CD4: 23 | CE4: 5 | CF4: -41 | CG4: -84 | CH4: -97 | CI4: -147 | CJ4: 10 | CK4: -7 | CL4: -92 | CM4: 31 | CN4: -14 | CO4: -55 | CP4: -88 | CQ4: -138 | CR4: 28 | CS4: -84 | CT4: -71 | CU4: -10 | CV4: -159 | CW4: -91 | CX4: 40 | CY4: -13 | CZ4: -4 | DA4: 119 | DB4: 96 | DC4: -88 | DD4: -16 | DE4: 41 | DF4: 11 | DG4: 28 | DH4: -67 | DI4: -91 | DJ4: -50 | DK4: 8 | DL4: -81 | DM4: -15 | DN4: -38 | DO4: -21 | DP4: -71 | DQ4: -54 | DR4: -18 | DS4: -100 | DT4: -18 | DU4: -27 | DV4: -123 | DW4: 10 | DX4: -7 | DY4: -14 | DZ4: -175 | EA4: -41 | EB4: -125 | EC4: -62 | ED4: -90 | EE4: 31 | EF4: 14 | EG4: -30 | EH4: -31 | EI4: -4 | EJ4: -161 | EK4: -60 | EL4: -3 | EM4: -7 | EN4: -118 | EO4: 115 | EP4: -119 | EQ4: -21 | ER4: 8 | ES4: -11 | ET4: -64 | EU4: -31 | EV4: 50 | EW4: -50 | EX4: -58 | EY4: 3 | EZ4: -63 | FA4: 36 | FB4: -5 | FC4: -80 | FD4: -32 | FE4: -51 | FF4: 6 | FG4: -44 | FH4: -60 | FI4: 51 | FJ4: -143 | FK4: 2 | FL4: -27 | FM4: -151 | FN4: -73 | FO4: 90 | FP4: 94 | FQ4: -13 | FR4: -55 | FS4: -108 | FT4: -50 | FU4: -22 | FV4: 49 | FW4: 42 | FX4: -132 | FY4: 85 | FZ4: -53 | GA4: 3 | GB4: -93 | GC4: -26 | GD4: -67 | GE4: 93 | GF4: -100 | GG4: -37 | GH4: -94 | GI4: -91 | GJ4: 101 | GK4: 17 | GL4: -32 | GM4: -36 | GN4: -8 | GO4: -52 | GP4: 39 | GQ4: -80 | GR4: 99 | GS4: -17 | GT4: -53 | GU4: 88 | GV4: -1 | GW4: 21 | GX4: -56 | GY4: -121 | GZ4: -61 | HA4: -96 | HB4: -109 | HC4: -75 | HD4: -3 | HE4: -56 | HF4: -48 | HG4: -36 | HH4: -150 | HI4: -73 | HJ4: -109 | HK4: -92 | HL4: -57 | HM4: -80 | HN4: -20 | HO4: -98 | HP4: -23 | HQ4: -36 | HR4: -41 | HS4: 20 | HT4: 80 | HU4: -5 | HV4: -57 | HW4: -70 | HX4: -44 | HY4: -116 | HZ4: -36 | IA4: -49 | IB4: 48 | IC4: -57 | ID4: -115 | IE4: -22 | IF4: -83 | IG4: -59 | IH4: -55 | II4: -63 | IJ4: 41 | IK4: 36 | IL4: 22 | IM4: -119 | IN4: -30 | IO4: -34 | IP4: -40 | IQ4: -157 | IR4: -13 | IS4: -48 | IT4: -21 | IU4: 24 | IV4: -150 | IW4: -90 | IX4: -38 | IY4: -75 | IZ4: 92 | JA4: -28 | JB4: -80 | JC4: -53 | JD4: 7 | JE4: -11 | JF4: 32 | JG4: -101 | JH4: -40 | JI4: -44 | JJ4: -81 | JK4: -18 | JL4: -61 | JM4: 22 | JN4: -138 | JO4: -167 | JP4: -33 | JQ4: -37 | JR4: -3 | JS4: -162 | JT4: -16 | JU4: -31 | JV4: 33 | JW4: -86 | JX4: -67 | JY4: -149 | JZ4: -36 | KA4: -57 | KB4: -110 | KC4: 14 | KD4: -58 | KE4: 77 | KF4: -70 | KG4: -50 | KH4: -28 | KI4: -152 | KJ4: -14 | KK4: -61 | KL4: -24 | KM4: -110 | KN4: -43 | KO4: -75 | KP4: -3 | KQ4: 71 | KR4: 103 | KS4: 42 | KT4: -40 | KU4: -96 | KV4: -50 | KW4: -71 | KX4: -76 | KY4: -70 | KZ4: -54 | LA4: -15 | LB4: -74 | LC4: -11 | LD4: -91 | LE4: -41 | LF4: -108 | LG4: -47 | LH4: -35 | LI4: -117 | LJ4: -98 | LK4: -15 | LL4: -41 | LM4: -17 | LN4: -75 | LO4: -22 | LP4: -34 | LQ4: -24 | LR4: -153 | LS4: -17 | LT4: 14 | LU4: 5 | LV4: -106 | LW4: 38 | LX4: 21 | LY4: -48 | LZ4: -3 | MA4: -73 | MB4: -67 | MC4: -76 | MD4: -31 | ME4: -40 | MF4: -129 | MG4: -90 | MH4: 43 | MI4: -102 | MJ4: -64 | MK4: -15 | ML4: 0 | MM4: -83 | MN4: -70 | MO4: -22 | MP4: -66 | MQ4: -26 | MR4: 28 | MS4: -104 | MT4: -28 | MU4: -60 | MV4: -56 | MW4: -143 | MX4: -89 | MY4: 84 | MZ4: 27 | NA4: -63 | NB4: -50 | NC4: -12 | ND4: -79 | NE4: -39 | NF4: 103 | NG4: -49 | NH4: 52 | NI4: -56 | NJ4: -37 | NK4: -63 | NL4: -127 | NM4: 78 | NN4: -34 | NO4: -85 | NP4: 7 | NQ4: 65 | NR4: 6 | NS4: -62 | NT4: -51 | NU4: -43 | NV4: -48 | NW4: 80 | NX4: -61 | NY4: -43 | NZ4: -26 | OA4: -14 | OB4: -17 | OC4: -38 | OD4: -5 | OE4: 18 | OF4: 67 | OG4: 101 | OH4: 18 | OI4: -20 | OJ4: 5 | OK4: -63 | OL4: -62 | OM4: 9 | ON4: -58 | OO4: -2 | OP4: -46 | OQ4: -33 | OR4: -109 | OS4: -69 | OT4: -149 | OU4: -45 | OV4: -47 | OW4: -33 | OX4: -79 | OY4: -54 | OZ4: -23 | PA4: -136 | PB4: -81 | PC4: 13 | PD4: -131 | PE4: -58 | PF4: 83 | PG4: -86 | PH4: -20 | PI4: -16 | PJ4: 14 | PK4: 53 | PL4: -15 | PM4: 1 | PN4: -94 | PO4: -24 | PP4: -182 | PQ4: 28 | PR4: -127 | PS4: -12 | PT4: 27 | PU4: -85 | PV4: -76 | PW4: -122 | PX4: -76 | PY4: -95 | PZ4: -86 | QA4: -84 | QB4: 23 | QC4: -3 | QD4: -24 | QE4: -22 | QF4: 28 | QG4: -70 | QH4: -9 | QI4: -14 | QJ4: -63 | QK4: -71 | QL4: -19 | QM4: -155 | QN4: -60 | QO4: -9 | QP4: 0 | QQ4: -113 | QR4: -17 | QS4: -59 | QT4: 5 | QU4: 116 | QV4: 10 | QW4: 20 | QX4: -91 | QY4: -100 | QZ4: -74 | RA4: 62 | RB4: -83 | RC4: -97 | RD4: -81 | RE4: -79 | RF4: -89 | RG4: -54 | RH4: 53 | RI4: -84 | RJ4: -110 | RK4: -40 | RL4: -52 | RM4: 45 | RN4: -79 | RO4: -81 | RP4: -71 | RQ4: -18 | RR4: 48 | RS4: 26 | RT4: 76 | RU4: 46 | RV4: 2 | RW4: 57 | RX4: -82 | RY4: -58 | RZ4: -97 | SA4: -120 | SB4: -12 | SC4: -55 | SD4: 27 | SE4: -64 | SF4: 2 | SG4: -61 | SH4: -63 | SI4: -63 | SJ4: -42 | SK4: -37 | SL4: -41 | SM4: -97 | SN4: 22 | SO4: 18 | SP4: -30 | SQ4: -31 | SR4: 236 | SS4: 14 | ST4: -83 | SU4: -57 | SV4: -122 | SW4: -76 | SX4: 51 | SY4: 8 | SZ4: -32 | TA4: -70 | TB4: -22 | TC4: -24 | TD4: -43 | TE4: -74 | TF4: -46 | TG4: 1 | TH4: -47 | TI4: 8 | TJ4: -20 | TK4: -75 | TL4: -47 | TM4: 35 | TN4: 28 | TO4: -110 | TP4: 54 | TQ4: -84 | TR4: -16 | TS4: -19 | TT4: -82 | TU4: -113 | TV4: -79 | TW4: -97 | TX4: -36 | TY4: -23 | TZ4: -80 | UA4: 3 | UB4: -66 | UC4: -3 | UD4: -63 | UE4: -68 | UF4: -26 | UG4: 9 | UH4: 14 | UI4: -17 | UJ4: -69 | UK4: -29 | UL4: -31 | UM4: -55 | UN4: -65 | UO4: -80 | UP4: -18 | UQ4: -9 | UR4: -59 | US4: -7 | UT4: -90 | UU4: -26 | UV4: 47 | UW4: -124 | UX4: -85 | UY4: 72 | UZ4: 9 | VA4: -4 | VB4: -77 | VC4: 7 | VD4: -45 | VE4: -110 | VF4: -29 | VG4: -43 | VH4: -86 | VI4: 16 | VJ4: 9 | VK4: -30 | VL4: -75 | VM4: -81 | VN4: -41 | VO4: -115 | VP4: -50 | VQ4: -90 | VR4: -62 | VS4: -57 | VT4: -20 | VU4: -7 | VV4: -63 | VW4: -49 | VX4: -84 | VY4: -66 | VZ4: 16 | WA4: -78 | WB4: 45 | WC4: 85 | WD4: -44 | WE4: 51 | WF4: -34 | WG4: -12 | WH4: -31 | WI4: -58 | WJ4: -84 | WK4: -133 | WL4: -84 | WM4: 24 | WN4: -72 | WO4: 28 | WP4: 100 | WQ4: -56 | WR4: -41 | WS4: 21 | WT4: -15 | WU4: -9 | WV4: -146 | WW4: -93 | WX4: -100 | WY4: -8 | WZ4: -10 | XA4: 39 | XB4: 83 | XC4: -117 | XD4: -32 | XE4: -60 | XF4: -16 | XG4: -32 | XH4: -11 | XI4: -36 | XJ4: -32 | XK4: -86 | XL4: -67 | XM4: -128 | XN4: -59 | XO4: -123 | XP4: 21 | XQ4: -75 | XR4: -17 | XS4: -19 | XT4: -106 | XU4: 80 | XV4: -83 | XW4: -23 | XX4: -56 | XY4: 209 | XZ4: -87 | YA4: -16 | YB4: 41 | YC4: -17 | YD4: -69 | YE4: 6 | YF4: -106 | YG4: -59 | YH4: -27 | YI4: -11 | YJ4: -76 | YK4: -88 | YL4: -89 | YM4: -15 | YN4: -32 | YO4: -90 | YP4: 68 | YQ4: 126 | YR4: 31 | YS4: -129 | YT4: -105 | YU4: -110 | YV4: 101 | YW4: -29 | YX4: -115 | YY4: -60 | YZ4: -25 | ZA4: -38 | ZB4: -23 | ZC4: -31 | ZD4: -81 | ZE4: -96 | ZF4: -74 | ZG4: -25 | ZH4: -63 | ZI4: -147 | ZJ4: -35 | ZK4: -91 | ZL4: -23 | ZM4: -84 | ZN4: -36 | ZO4: 67 | ZP4: -26 | ZQ4: -146 | ZR4: -85 | ZS4: 154 | ZT4: -24 | ZU4: -145 | ZV4: -44 | ZW4: -42 | ZX4: -76 | ZY4: 18 | ZZ4: 183 | AAA4: -10 | AAB4: -67 | AAC4: -155 | AAD4: -122 | AAE4: 15 | AAF4: -98 | AAG4: -56 | AAH4: 98 | AAI4: -38 | AAJ4: 118 | AAK4: -27 | AAL4: -74 | AAM4: -68 | AAN4: -50 | AAO4: -18 | AAP4: -60 | AAQ4: 39 | AAR4: -66 | AAS4: -20 | AAT4: -123 | AAU4: -94 | AAV4: -65 | AAW4: 42 | AAX4: -70 | AAY4: -86 | AAZ4: 18 | ABA4: -42 | ABB4: 21 | ABC4: -9 | ABD4: -8 | ABE4: -55 | ABF4: -18 | ABG4: -85 | ABH4: -59 | ABI4: -60 | ABJ4: -36 | ABK4: 82 | ABL4: 6 | ABM4: -90 | ABN4: -4 | ABO4: -8 | ABP4: 45 | ABQ4: -33 | ABR4: -11 | ABS4: -20 | ABT4: -80 | ABU4: -11 | ABV4: -107 | ABW4: -48 | ABX4: -51 | ABY4: 7 | ABZ4: -46 | ACA4: -50 | ACB4: 21 | ACC4: -81 | ACD4: -35 | ACE4: -162 | ACF4: 32 | ACG4: -101 | ACH4: -99 | ACI4: 25 | ACJ4: -84 | ACK4: -77 | ACL4: -170 | ACM4: -63 | ACN4: -71 | ACO4: 113 | ACP4: -73 | ACQ4: -52 | ACR4: 53 | ACS4: -90 | ACT4: -71 | ACU4: 84 | ACV4: -22 | ACW4: -98 | ACX4: -14 | ACY4: -8 | ACZ4: -40 | ADA4: -7 | ADB4: -74 | ADC4: 41 | ADD4: -12 | ADE4: -61 | ADF4: 31 | ADG4: 14 | ADH4: -121 | ADI4: 10 | ADJ4: -34 | ADK4: -32 | ADL4: -27 | ADM4: -86 | ADN4: 53 | ADO4: -9 | ADP4: -96 | ADQ4: 23 | ADR4: -60 | ADS4: -115 | ADT4: -97 | ADU4: -52 | ADV4: -90 | ADW4: -52 | ADX4: 3 | ADY4: 20 | ADZ4: -39 | AEA4: -85 | AEB4: 92 | AEC4: -101 | AED4: -99 | AEE4: 30 | AEF4: -59 | AEG4: 8 | AEH4: -7 | AEI4: -96 | AEJ4: -6 | AEK4: -107 | AEL4: 21 | AEM4: -96 | AEN4: 39 | AEO4: -78 | AEP4: 2 | AEQ4: 31 | AER4: -4 | AES4: -139 | AET4: -38 | AEU4: 7 | AEV4: -37 | AEW4: -102 | AEX4: -12 | AEY4: -77 | AEZ4: 8 | AFA4: -11 | AFB4: -9 | AFC4: 88 | AFD4: 12 | AFE4: -11 | AFF4: 66 | AFG4: -144 | AFH4: -14 | AFI4: 8 | AFJ4: 65 | AFK4: 22 | AFL4: -26 | AFM4: 5 | AFN4: 18 | AFO4: -16 | AFP4: -53 | AFQ4: -67 | AFR4: 9 | AFS4: -93 | AFT4: -62 | AFU4: -8 | AFV4: 1 | AFW4: 49 | AFX4: -68 | AFY4: -14 | AFZ4: 21 | AGA4: -83 | AGB4: -100 | AGC4: -107 | AGD4: -146 | AGE4: -15 | AGF4: 32 | AGG4: -143 | AGH4: -41 | AGI4: -68 | AGJ4: -35 | AGK4: -68 | AGL4: -113 | AGM4: -51 | AGN4: -89 | AGO4: 81 | AGP4: -25 | AGQ4: -117 | AGR4: -18 | AGS4: -36 | AGT4: -105 | AGU4: -99 | AGV4: 53 | AGW4: -23 | AGX4: -17 | AGY4: 33 | AGZ4: -49 | AHA4: -69 | AHB4: -53 | AHC4: -86 | AHD4: -89 | AHE4: -106 | AHF4: 50 | AHG4: -11 | AHH4: 0 | AHI4: 6 | AHJ4: 0 | AHK4: -54 | AHL4: -13 | AHM4: -6 | AHN4: 63 | AHO4: -77 | AHP4: 65 | AHQ4: -48 | AHR4: 47 | AHS4: -57 | AHT4: -24 | AHU4: -8 | AHV4: -33 | AHW4: 23 | AHX4: -12 | AHY4: -17 | AHZ4: -26 | AIA4: 16 | AIB4: -95 | AIC4: -76 | AID4: -133 | AIE4: 105 | AIF4: -68 | AIG4: -71 | AIH4: -24 | AII4: 1 | AIJ4: 33 | AIK4: -46 | AIL4: 11 | AIM4: 8 | AIN4: -76 | AIO4: -104 | AIP4: -35 | AIQ4: -45 | AIR4: 17 | AIS4: -12 | AIT4: -82 | AIU4: -40 | AIV4: 0 | AIW4: -61 | AIX4: -3 | AIY4: 8 | AIZ4: -19 | AJA4: -41 | AJB4: -40 | AJC4: -13 | AJD4: -160 | AJE4: -42 | AJF4: -45 | AJG4: -57 | AJH4: -106 | AJI4: -44 | AJJ4: -24 | AJK4: 63 | AJL4: -65 | AJM4: -101 | AJN4: -60 | AJO4: -87 | AJP4: 4 | AJQ4: -35 | AJR4: -13 | AJS4: -90 | AJT4: -25 | AJU4: -120 | AJV4: -64 | AJW4: 57 | AJX4: 35 | AJY4: 71 | AJZ4: 24 | AKA4: -61 | AKB4: -10 | AKC4: -35 | AKD4: 60 | AKE4: -89 | AKF4: -56 | AKG4: -190 | AKH4: -82 | AKI4: -87 | AKJ4: -52 | AKK4: -28 | AKL4: -13 | AKM4: -37 | AKN4: -84 | AKO4: 6 | AKP4: -34 | AKQ4: -82 | AKR4: -104 | AKS4: -54 | AKT4: -118 | AKU4: 0 | AKV4: -36 | AKW4: -23 | AKX4: 70 | AKY4: -62 | AKZ4: -131 | ALA4: -38 | ALB4: 70 | ALC4: -92 | ALD4: 16 | ALE4: -99 | ALF4: -88 | ALG4: -74 | ALH4: -7 | ALI4: -132 | ALJ4: -19 | ALK4: 42 | ALL4: -13 | ALM4: 41 | ALN4: -34 | ALO4: -3 | ALP4: -38 | ALQ4: -56 | ALR4: -79 | ALS4: -89 | ALT4: -54 | ALU4: 14 | ALV4: -63 | ALW4: -24 | ALX4: -64 | ALY4: -47 | ALZ4: -16 | AMA4: -107 | AMB4: 51 | AMC4: -59 | AMD4: 3 | AME4: -21 | AMF4: -90 | AMG4: -233 | AMH4: 41 | AMI4: -12 | AMJ4: -51
A5: -62 | B5: -73 | C5: 51 | D5: -122 | E5: -68 | F5: -26 | G5: 3 | H5: 81 | I5: -22 | J5: -99 | K5: -54 | L5: -56 | M5: -129 | N5: -94 | O5: -12 | P5: -2 | Q5: -47 | R5: -120 | S5: -57 | T5: -92 | U5: 47 | V5: -20 | W5: -22 | X5: -16 | Y5: 13 | Z5: 88 | AA5: -13 | AB5: -213 | AC5: -71 | AD5: -57 | AE5: 5 | AF5: -46 | AG5: -105 | AH5: -100 | AI5: 31 | AJ5: 2 | AK5: -15 | AL5: 181 | AM5: 32 | AN5: -60 | AO5: -77 | AP5: 96 | AQ5: 80 | AR5: 89 | AS5: -108 | AT5: -14 | AU5: -28 | AV5: -21 | AW5: -71 | AX5: -74 | AY5: -125 | AZ5: -6 | BA5: -107 | BB5: 43 | BC5: 37 | BD5: -6 | BE5: 19 | BF5: -106 | BG5: -113 | BH5: -112 | BI5: -49 | BJ5: 57 | BK5: -100 | BL5: 9 | BM5: -101 | BN5: -9 | BO5: -91 | BP5: 54 | BQ5: -38 | BR5: -50 | BS5: -95 | BT5: -28 | BU5: -97 | BV5: -43 | BW5: 93 | BX5: 71 | BY5: -59 | BZ5: -32 | CA5: 7 | CB5: -17 | CC5: -128 | CD5: 30 | CE5: 14 | CF5: -14 | CG5: -106 | CH5: -113 | CI5: -167 | CJ5: 47 | CK5: -13 | CL5: -105 | CM5: 15 | CN5: 16 | CO5: -47 | CP5: -96 | CQ5: -164 | CR5: -25 | CS5: -107 | CT5: -80 | CU5: -23 | CV5: -182 | CW5: -41 | CX5: 75 | CY5: -47 | CZ5: 40 | DA5: 120 | DB5: 70 | DC5: -94 | DD5: 15 | DE5: 23 | DF5: 24 | DG5: 38 | DH5: -46 | DI5: -86 | DJ5: -60 | DK5: 33 | DL5: -75 | DM5: 4 | DN5: -32 | DO5: -8 | DP5: -58 | DQ5: -65 | DR5: -17 | DS5: -64 | DT5: -42 | DU5: -35 | DV5: -139 | DW5: 90 | DX5: 19 | DY5: 11 | DZ5: -208 | EA5: -8 | EB5: -147 | EC5: -50 | ED5: -92 | EE5: 8 | EF5: -6 | EG5: -32 | EH5: -42 | EI5: 27 | EJ5: -194 | EK5: -26 | EL5: -24 | EM5: -1 | EN5: -85 | EO5: 128 | EP5: -154 | EQ5: -66 | ER5: 23 | ES5: -6 | ET5: -105 | EU5: -29 | EV5: -13 | EW5: 14 | EX5: -155 | EY5: -3 | EZ5: -49 | FA5: 5 | FB5: 42 | FC5: -85 | FD5: -30 | FE5: -40 | FF5: 3 | FG5: -40 | FH5: 19 | FI5: 24 | FJ5: -83 | FK5: 5 | FL5: -19 | FM5: -161 | FN5: -79 | FO5: 97 | FP5: 106 | FQ5: -20 | FR5: -52 | FS5: -136 | FT5: -71 | FU5: 8 | FV5: 71 | FW5: 40 | FX5: -159 | FY5: 32 | FZ5: -46 | GA5: -37 | GB5: -89 | GC5: -22 | GD5: -22 | GE5: 49 | GF5: -132 | GG5: -30 | GH5: -112 | GI5: -65 | GJ5: 86 | GK5: 28 | GL5: -27 | GM5: -20 | GN5: -9 | GO5: -46 | GP5: 56 | GQ5: -100 | GR5: 78 | GS5: -9 | GT5: -70 | GU5: 65 | GV5: 4 | GW5: 10 | GX5: -17 | GY5: -157 | GZ5: -92 | HA5: -81 | HB5: -151 | HC5: -36 | HD5: 5 | HE5: -51 | HF5: -37 | HG5: -5 | HH5: -158 | HI5: -74 | HJ5: -127 | HK5: -110 | HL5: -53 | HM5: -95 | HN5: -8 | HO5: -108 | HP5: -21 | HQ5: -70 | HR5: -45 | HS5: 21 | HT5: 75 | HU5: 52 | HV5: -51 | HW5: -81 | HX5: -16 | HY5: -125 | HZ5: -37 | IA5: -64 | IB5: 39 | IC5: -51 | ID5: -110 | IE5: -1 | IF5: -141 | IG5: -96 | IH5: -48 | II5: -40 | IJ5: 41 | IK5: 91 | IL5: 50 | IM5: -143 | IN5: -31 | IO5: -22 | IP5: -53 | IQ5: -172 | IR5: -4 | IS5: 5 | IT5: -34 | IU5: -8 | IV5: -106 | IW5: -117 | IX5: -19 | IY5: -80 | IZ5: 151 | JA5: -17 | JB5: -93 | JC5: -21 | JD5: 12 | JE5: -27 | JF5: 28 | JG5: -124 | JH5: -38 | JI5: -82 | JJ5: -92 | JK5: 19 | JL5: -44 | JM5: 5 | JN5: -161 | JO5: -209 | JP5: -22 | JQ5: -16 | JR5: -37 | JS5: -216 | JT5: -27 | JU5: 14 | JV5: 54 | JW5: -66 | JX5: -84 | JY5: -173 | JZ5: -34 | KA5: -77 | KB5: -80 | KC5: 25 | KD5: -27 | KE5: 123 | KF5: -88 | KG5: -91 | KH5: 19 | KI5: -153 | KJ5: 11 | KK5: -79 | KL5: -32 | KM5: -140 | KN5: -49 | KO5: -84 | KP5: -2 | KQ5: -2 | KR5: 110 | KS5: 60 | KT5: -43 | KU5: -101 | KV5: -35 | KW5: -80 | KX5: -96 | KY5: -15 | KZ5: -51 | LA5: 56 | LB5: -68 | LC5: 7 | LD5: -78 | LE5: -2 | LF5: -122 | LG5: -32 | LH5: -38 | LI5: -126 | LJ5: -89 | LK5: 0 | LL5: -59 | LM5: -16 | LN5: -132 | LO5: -25 | LP5: -29 | LQ5: 11 | LR5: -169 | LS5: -35 | LT5: 33 | LU5: -75 | LV5: -134 | LW5: 54 | LX5: 18 | LY5: -35 | LZ5: 27 | MA5: -67 | MB5: -78 | MC5: -68 | MD5: -5 | ME5: -64 | MF5: -142 | MG5: -86 | MH5: 51 | MI5: -114 | MJ5: -54 | MK5: 6 | ML5: -5 | MM5: -74 | MN5: -99 | MO5: -16 | MP5: -80 | MQ5: -10 | MR5: 69 | MS5: -113 | MT5: -19 | MU5: -54 | MV5: -86 | MW5: -159 | MX5: -93 | MY5: 76 | MZ5: 10 | NA5: -71 | NB5: -58 | NC5: 5 | ND5: -57 | NE5: -39 | NF5: 34 | NG5: -57 | NH5: 43 | NI5: -48 | NJ5: -2 | NK5: -47 | NL5: -111 | NM5: 165 | NN5: -23 | NO5: -91 | NP5: -27 | NQ5: 70 | NR5: 16 | NS5: -57 | NT5: -14 | NU5: -1 | NV5: -44 | NW5: 99 | NX5: -81 | NY5: -43 | NZ5: -27 | OA5: 32 | OB5: 27 | OC5: -48 | OD5: 26 | OE5: 2 | OF5: 91 | OG5: 108 | OH5: 15 | OI5: 2 | OJ5: -79 | OK5: -20 | OL5: -80 | OM5: 13 | ON5: -64 | OO5: -30 | OP5: -51 | OQ5: -64 | OR5: -143 | OS5: -98 | OT5: -161 | OU5: -43 | OV5: -49 | OW5: -59 | OX5: -143 | OY5: -25 | OZ5: 20 | PA5: -135 | PB5: -71 | PC5: -1 | PD5: -125 | PE5: -57 | PF5: 119 | PG5: -94 | PH5: -24 | PI5: 2 | PJ5: 16 | PK5: 8 | PL5: -30 | PM5: -6 | PN5: -94 | PO5: -12 | PP5: -198 | PQ5: 61 | PR5: -137 | PS5: 1 | PT5: 29 | PU5: -89 | PV5: -5 | PW5: -125 | PX5: -75 | PY5: -64 | PZ5: -103 | QA5: -96 | QB5: 22 | QC5: -1 | QD5: 0 | QE5: 31 | QF5: 31 | QG5: -39 | QH5: -13 | QI5: -6 | QJ5: -56 | QK5: -67 | QL5: -24 | QM5: -160 | QN5: -48 | QO5: -18 | QP5: 33 | QQ5: -106 | QR5: 8 | QS5: -39 | QT5: 50 | QU5: 144 | QV5: 33 | QW5: 12 | QX5: -90 | QY5: -135 | QZ5: -75 | RA5: 67 | RB5: -113 | RC5: -106 | RD5: -94 | RE5: -86 | RF5: -91 | RG5: -40 | RH5: 34 | RI5: -85 | RJ5: -67 | RK5: -16 | RL5: -54 | RM5: 52 | RN5: -74 | RO5: -81 | RP5: -93 | RQ5: -20 | RR5: 78 | RS5: 60 | RT5: 97 | RU5: 26 | RV5: 36 | RW5: 40 | RX5: -47 | RY5: -55 | RZ5: -106 | SA5: -122 | SB5: -22 | SC5: -86 | SD5: 16 | SE5: -77 | SF5: -47 | SG5: -71 | SH5: -49 | SI5: -47 | SJ5: -40 | SK5: -37 | SL5: -74 | SM5: -115 | SN5: 24 | SO5: 74 | SP5: -14 | SQ5: -30 | SR5: 271 | SS5: -31 | ST5: -80 | SU5: -10 | SV5: -105 | SW5: -108 | SX5: 45 | SY5: 3 | SZ5: -51 | TA5: -32 | TB5: 12 | TC5: -5 | TD5: -40 | TE5: -37 | TF5: -88 | TG5: -7 | TH5: -49 | TI5: -22 | TJ5: 48 | TK5: -116 | TL5: -44 | TM5: 21 | TN5: 11 | TO5: -103 | TP5: -24 | TQ5: -89 | TR5: 6 | TS5: -64 | TT5: -51 | TU5: -114 | TV5: -88 | TW5: -105 | TX5: -57 | TY5: -6 | TZ5: -87 | UA5: 10 | UB5: -82 | UC5: 34 | UD5: -30 | UE5: -16 | UF5: -41 | UG5: 27 | UH5: 0 | UI5: -23 | UJ5: -56 | UK5: -41 | UL5: -63 | UM5: -17 | UN5: -9 | UO5: -92 | UP5: 5 | UQ5: 0 | UR5: -45 | US5: 0 | UT5: -102 | UU5: -24 | UV5: 44 | UW5: -193 | UX5: -78 | UY5: 111 | UZ5: -18 | VA5: -22 | VB5: -86 | VC5: 19 | VD5: -13 | VE5: -155 | VF5: -26 | VG5: -33 | VH5: -113 | VI5: 32 | VJ5: 8 | VK5: -74 | VL5: -90 | VM5: -25 | VN5: -48 | VO5: -157 | VP5: -4 | VQ5: -60 | VR5: -58 | VS5: -65 | VT5: -45 | VU5: 4 | VV5: -57 | VW5: -47 | VX5: -63 | VY5: -21 | VZ5: 43 | WA5: -126 | WB5: 12 | WC5: 30 | WD5: -40 | WE5: -54 | WF5: -54 | WG5: 2 | WH5: -42 | WI5: -66 | WJ5: -92 | WK5: -154 | WL5: -107 | WM5: 36 | WN5: -57 | WO5: 42 | WP5: 122 | WQ5: -96 | WR5: -12 | WS5: 53 | WT5: -16 | WU5: 6 | WV5: -159 | WW5: -96 | WX5: -108 | WY5: -26 | WZ5: -19 | XA5: -16 | XB5: 74 | XC5: -147 | XD5: -21 | XE5: -43 | XF5: -38 | XG5: -13 | XH5: -13 | XI5: -56 | XJ5: -28 | XK5: -126 | XL5: -53 | XM5: -69 | XN5: -90 | XO5: -152 | XP5: 55 | XQ5: -72 | XR5: -72 | XS5: -20 | XT5: -131 | XU5: 95 | XV5: -29 | XW5: -21 | XX5: -76 | XY5: 207 | XZ5: -96 | YA5: -72 | YB5: 73 | YC5: -5 | YD5: -77 | YE5: 38 | YF5: -84 | YG5: -47 | YH5: -8 | YI5: -36 | YJ5: -85 | YK5: -114 | YL5: -74 | YM5: 9 | YN5: -26 | YO5: -141 | YP5: 14 | YQ5: 190 | YR5: 27 | YS5: -168 | YT5: -121 | YU5: -127 | YV5: 87 | YW5: -79 | YX5: -125 | YY5: -44 | YZ5: -10 | ZA5: -66 | ZB5: -12 | ZC5: -23 | ZD5: -57 | ZE5: -89 | ZF5: -91 | ZG5: -64 | ZH5: -33 | ZI5: -151 | ZJ5: -14 | ZK5: -116 | ZL5: 7 | ZM5: -90 | ZN5: -5 | ZO5: 18 | ZP5: -17 | ZQ5: -165 | ZR5: -143 | ZS5: 126 | ZT5: 6 | ZU5: -109 | ZV5: -122 | ZW5: -9 | ZX5: -105 | ZY5: 71 | ZZ5: 171 | AAA5: -27 | AAB5: -69 | AAC5: -122 | AAD5: -125 | AAE5: -15 | AAF5: -107 | AAG5: -51 | AAH5: 101 | AAI5: -56 | AAJ5: 86 | AAK5: -35 | AAL5: -109 | AAM5: -141 | AAN5: -75 | AAO5: 2 | AAP5: -70 | AAQ5: 50 | AAR5: -22 | AAS5: -21 | AAT5: -151 | AAU5: -111 | AAV5: -56 | AAW5: 42 | AAX5: -82 | AAY5: -92 | AAZ5: 8 | ABA5: -55 | ABB5: 11 | ABC5: -3 | ABD5: -24 | ABE5: -50 | ABF5: -35 | ABG5: -72 | ABH5: -44 | ABI5: 3 | ABJ5: -20 | ABK5: 57 | ABL5: -23 | ABM5: -93 | ABN5: 2 | ABO5: 21 | ABP5: 21 | ABQ5: -34 | ABR5: 10 | ABS5: -27 | ABT5: -74 | ABU5: 15 | ABV5: -64 | ABW5: -51 | ABX5: -27 | ABY5: 5 | ABZ5: 1 | ACA5: -57 | ACB5: 0 | ACC5: -63 | ACD5: -35 | ACE5: -193 | ACF5: 47 | ACG5: -126 | ACH5: -50 | ACI5: 8 | ACJ5: -102 | ACK5: -99 | ACL5: -232 | ACM5: -93 | ACN5: -77 | ACO5: 104 | ACP5: -62 | ACQ5: -69 | ACR5: 77 | ACS5: -106 | ACT5: -56 | ACU5: 114 | ACV5: -57 | ACW5: -121 | ACX5: -15 | ACY5: -11 | ACZ5: -58 | ADA5: 29 | ADB5: -90 | ADC5: 14 | ADD5: 10 | ADE5: -30 | ADF5: 0 | ADG5: 41 | ADH5: -83 | ADI5: 6 | ADJ5: -77 | ADK5: -34 | ADL5: -39 | ADM5: -93 | ADN5: 71 | ADO5: 13 | ADP5: -132 | ADQ5: -8 | ADR5: -73 | ADS5: -73 | ADT5: -130 | ADU5: -80 | ADV5: -111 | ADW5: -58 | ADX5: 23 | ADY5: 6 | ADZ5: 0 | AEA5: -80 | AEB5: 64 | AEC5: -110 | AED5: -23 | AEE5: -7 | AEF5: -45 | AEG5: 27 | AEH5: 60 | AEI5: -63 | AEJ5: -9 | AEK5: -125 | AEL5: 10 | AEM5: -101 | AEN5: 71 | AEO5: -95 | AEP5: 7 | AEQ5: 41 | AER5: -31 | AES5: -165 | AET5: -52 | AEU5: 59 | AEV5: -55 | AEW5: -142 | AEX5: -11 | AEY5: -65 | AEZ5: -6 | AFA5: -17 | AFB5: -34 | AFC5: 17 | AFD5: 6 | AFE5: -44 | AFF5: 34 | AFG5: -168 | AFH5: -104 | AFI5: 0 | AFJ5: 18 | AFK5: 8 | AFL5: -17 | AFM5: 7 | AFN5: 3 | AFO5: -2 | AFP5: -50 | AFQ5: -87 | AFR5: 38 | AFS5: -115 | AFT5: -29 | AFU5: 8 | AFV5: 28 | AFW5: 20 | AFX5: -9 | AFY5: -11 | AFZ5: 23 | AGA5: -71 | AGB5: -118 | AGC5: -102 | AGD5: -103 | AGE5: -23 | AGF5: 74 | AGG5: -177 | AGH5: -26 | AGI5: -60 | AGJ5: -73 | AGK5: -108 | AGL5: -83 | AGM5: -40 | AGN5: -75 | AGO5: 114 | AGP5: -29 | AGQ5: -146 | AGR5: -24 | AGS5: -27 | AGT5: -112 | AGU5: -69 | AGV5: 78 | AGW5: -45 | AGX5: 1 | AGY5: 48 | AGZ5: -42 | AHA5: -67 | AHB5: -54 | AHC5: -76 | AHD5: -67 | AHE5: -131 | AHF5: 90 | AHG5: -22 | AHH5: -9 | AHI5: -28 | AHJ5: -21 | AHK5: -86 | AHL5: -23 | AHM5: -13 | AHN5: 64 | AHO5: -62 | AHP5: 30 | AHQ5: -90 | AHR5: 38 | AHS5: -76 | AHT5: -20 | AHU5: 7 | AHV5: -28 | AHW5: 65 | AHX5: -41 | AHY5: 3 | AHZ5: -35 | AIA5: -2 | AIB5: -200 | AIC5: -97 | AID5: -137 | AIE5: 88 | AIF5: -56 | AIG5: -93 | AIH5: -35 | AII5: 15 | AIJ5: 51 | AIK5: -49 | AIL5: -4 | AIM5: 9 | AIN5: -57 | AIO5: -122 | AIP5: -1 | AIQ5: -49 | AIR5: 29 | AIS5: 3 | AIT5: -68 | AIU5: -40 | AIV5: 2 | AIW5: -26 | AIX5: -1 | AIY5: 27 | AIZ5: 19 | AJA5: -41 | AJB5: -14 | AJC5: 38 | AJD5: -173 | AJE5: -24 | AJF5: -74 | AJG5: -65 | AJH5: -115 | AJI5: -52 | AJJ5: -45 | AJK5: 48 | AJL5: -67 | AJM5: -109 | AJN5: -66 | AJO5: -95 | AJP5: -5 | AJQ5: -61 | AJR5: -4 | AJS5: -93 | AJT5: 9 | AJU5: -151 | AJV5: -69 | AJW5: 47 | AJX5: -13 | AJY5: 44 | AJZ5: 6 | AKA5: -59 | AKB5: -35 | AKC5: -22 | AKD5: 48 | AKE5: -74 | AKF5: -44 | AKG5: -201 | AKH5: -148 | AKI5: -97 | AKJ5: -44 | AKK5: -46 | AKL5: -17 | AKM5: -49 | AKN5: -69 | AKO5: 10 | AKP5: -17 | AKQ5: -99 | AKR5: -97 | AKS5: -69 | AKT5: -134 | AKU5: -2 | AKV5: -56 | AKW5: -19 | AKX5: 94 | AKY5: -74 | AKZ5: -135 | ALA5: -52 | ALB5: 71 | ALC5: -111 | ALD5: 12 | ALE5: -73 | ALF5: -120 | ALG5: -48 | ALH5: 24 | ALI5: -131 | ALJ5: -4 | ALK5: 95 | ALL5: -20 | ALM5: 61 | ALN5: -96 | ALO5: 25 | ALP5: 54 | ALQ5: -18 | ALR5: -56 | ALS5: -80 | ALT5: -31 | ALU5: 26 | ALV5: -32 | ALW5: -6 | ALX5: -51 | ALY5: -48 | ALZ5: -9 | AMA5: -137 | AMB5: 69 | AMC5: -28 | AMD5: 41 | AME5: -53 | AMF5: -113 | AMG5: -236 | AMH5: 76 | AMI5: 4 | AMJ5: -31
A6: -64 | B6: -77 | C6: -26 | D6: -109 | E6: -93 | F6: -30 | G6: -8 | H6: 123 | I6: -44 | J6: -123 | K6: -66 | L6: -37 | M6: -123 | N6: -79 | O6: -25 | P6: -13 | Q6: 11 | R6: -126 | S6: -82 | T6: -128 | U6: 39 | V6: -17 | W6: 27 | X6: -20 | Y6: 44 | Z6: 89 | AA6: -23 | AB6: -172 | AC6: -65 | AD6: -92 | AE6: -64 | AF6: 12 | AG6: -83 | AH6: -93 | AI6: 19 | AJ6: -7 | AK6: -12 | AL6: 98 | AM6: 10 | AN6: -52 | AO6: -81 | AP6: 117 | AQ6: 130 | AR6: 65 | AS6: -120 | AT6: -57 | AU6: -31 | AV6: -35 | AW6: -52 | AX6: -83 | AY6: -130 | AZ6: 17 | BA6: -92 | BB6: 66 | BC6: 50 | BD6: -53 | BE6: 13 | BF6: -96 | BG6: -172 | BH6: -112 | BI6: 29 | BJ6: 78 | BK6: -88 | BL6: -71 | BM6: -89 | BN6: -16 | BO6: -104 | BP6: 52 | BQ6: -23 | BR6: -41 | BS6: -70 | BT6: -6 | BU6: -89 | BV6: -64 | BW6: 108 | BX6: 131 | BY6: -47 | BZ6: -15 | CA6: 5 | CB6: -20 | CC6: -113 | CD6: 69 | CE6: 36 | CF6: 17 | CG6: -104 | CH6: -112 | CI6: -152 | CJ6: 23 | CK6: -8 | CL6: -90 | CM6: 52 | CN6: 40 | CO6: -50 | CP6: -85 | CQ6: -162 | CR6: -36 | CS6: -79 | CT6: -65 | CU6: -56 | CV6: -194 | CW6: -18 | CX6: 47 | CY6: -35 | CZ6: 11 | DA6: 104 | DB6: 28 | DC6: -78 | DD6: -26 | DE6: 44 | DF6: 47 | DG6: 34 | DH6: -46 | DI6: -115 | DJ6: -87 | DK6: 49 | DL6: -95 | DM6: -1 | DN6: -14 | DO6: -11 | DP6: -65 | DQ6: -82 | DR6: 20 | DS6: -78 | DT6: -34 | DU6: -27 | DV6: -132 | DW6: 35 | DX6: 34 | DY6: 97 | DZ6: -212 | EA6: -7 | EB6: -137 | EC6: -11 | ED6: -89 | EE6: -39 | EF6: -46 | EG6: -48 | EH6: -57 | EI6: 55 | EJ6: -210 | EK6: 3 | EL6: -58 | EM6: 14 | EN6: -92 | EO6: 98 | EP6: -139 | EQ6: -80 | ER6: 54 | ES6: -37 | ET6: -102 | EU6: -18 | EV6: 84 | EW6: -5 | EX6: -122 | EY6: -19 | EZ6: -32 | FA6: 8 | FB6: 53 | FC6: -73 | FD6: -4 | FE6: -79 | FF6: -28 | FG6: -31 | FH6: 31 | FI6: 28 | FJ6: -85 | FK6: 1 | FL6: -4 | FM6: -180 | FN6: -72 | FO6: 79 | FP6: 82 | FQ6: -17 | FR6: -36 | FS6: -117 | FT6: -71 | FU6: 33 | FV6: 47 | FW6: 17 | FX6: -165 | FY6: -2 | FZ6: -29 | GA6: -62 | GB6: -96 | GC6: -79 | GD6: 1 | GE6: 96 | GF6: -112 | GG6: -33 | GH6: -72 | GI6: -91 | GJ6: 86 | GK6: 59 | GL6: -63 | GM6: -25 | GN6: -48 | GO6: -11 | GP6: 103 | GQ6: -80 | GR6: 24 | GS6: -10 | GT6: -93 | GU6: 54 | GV6: 2 | GW6: -8 | GX6: -3 | GY6: -110 | GZ6: -110 | HA6: -130 | HB6: -202 | HC6: -60 | HD6: -31 | HE6: -68 | HF6: -54 | HG6: -27 | HH6: -187 | HI6: -81 | HJ6: -143 | HK6: -123 | HL6: -37 | HM6: -110 | HN6: 22 | HO6: -83 | HP6: -9 | HQ6: -64 | HR6: -23 | HS6: 14 | HT6: 95 | HU6: 64 | HV6: -52 | HW6: -96 | HX6: -43 | HY6: -135 | HZ6: -35 | IA6: -54 | IB6: 5 | IC6: 9 | ID6: -122 | IE6: -24 | IF6: -162 | IG6: -109 | IH6: -41 | II6: -79 | IJ6: -18 | IK6: 77 | IL6: 73 | IM6: -152 | IN6: -65 | IO6: -62 | IP6: -61 | IQ6: -188 | IR6: -7 | IS6: -42 | IT6: -34 | IU6: -47 | IV6: -41 | IW6: -131 | IX6: -63 | IY6: -72 | IZ6: 129 | JA6: -39 | JB6: -94 | JC6: -41 | JD6: -50 | JE6: 31 | JF6: 62 | JG6: -116 | JH6: -42 | JI6: -47 | JJ6: -96 | JK6: -57 | JL6: 1 | JM6: 2 | JN6: -124 | JO6: -158 | JP6: -24 | JQ6: 26 | JR6: -23 | JS6: -186 | JT6: -21 | JU6: 39 | JV6: 26 | JW6: -28 | JX6: -76 | JY6: -180 | JZ6: -30 | KA6: -39 | KB6: -61 | KC6: 23 | KD6: -22 | KE6: 141 | KF6: -114 | KG6: -92 | KH6: -47 | KI6: -118 | KJ6: 55 | KK6: -74 | KL6: -46 | KM6: -152 | KN6: -43 | KO6: -114 | KP6: 9 | KQ6: -56 | KR6: 139 | KS6: 51 | KT6: -57 | KU6: -111 | KV6: -50 | KW6: -81 | KX6: -128 | KY6: 5 | KZ6: -11 | LA6: 82 | LB6: -89 | LC6: 8 | LD6: -72 | LE6: 30 | LF6: -151 | LG6: -23 | LH6: -96 | LI6: -147 | LJ6: -112 | LK6: -16 | LL6: -29 | LM6: -41 | LN6: -100 | LO6: -7 | LP6: -60 | LQ6: 62 | LR6: -172 | LS6: -5 | LT6: -33 | LU6: -115 | LV6: -149 | LW6: 67 | LX6: -3 | LY6: -71 | LZ6: 32 | MA6: -97 | MB6: -93 | MC6: -64 | MD6: -40 | ME6: -72 | MF6: -149 | MG6: -90 | MH6: 35 | MI6: -129 | MJ6: -47 | MK6: 42 | ML6: 43 | MM6: -121 | MN6: -105 | MO6: -35 | MP6: -89 | MQ6: -10 | MR6: 84 | MS6: -84 | MT6: -27 | MU6: -88 | MV6: -107 | MW6: -153 | MX6: -59 | MY6: 66 | MZ6: -25 | NA6: -63 | NB6: -74 | NC6: 41 | ND6: -63 | NE6: -36 | NF6: -20 | NG6: -51 | NH6: 15 | NI6: -60 | NJ6: -13 | NK6: -31 | NL6: -77 | NM6: 115 | NN6: -55 | NO6: -102 | NP6: -102 | NQ6: -67 | NR6: 5 | NS6: -67 | NT6: 5 | NU6: 9 | NV6: -19 | NW6: 97 | NX6: -91 | NY6: -44 | NZ6: -59 | OA6: 62 | OB6: -9 | OC6: -22 | OD6: -1 | OE6: -5 | OF6: 52 | OG6: 31 | OH6: 22 | OI6: 1 | OJ6: -90 | OK6: 27 | OL6: -88 | OM6: 6 | ON6: -79 | OO6: -39 | OP6: -50 | OQ6: -43 | OR6: -75 | OS6: -162 | OT6: -192 | OU6: -26 | OV6: -69 | OW6: -73 | OX6: -152 | OY6: -17 | OZ6: 19 | PA6: -137 | PB6: -79 | PC6: 25 | PD6: -115 | PE6: -76 | PF6: 155 | PG6: -103 | PH6: -42 | PI6: 7 | PJ6: 42 | PK6: 17 | PL6: -11 | PM6: 2 | PN6: -79 | PO6: -1 | PP6: -206 | PQ6: 29 | PR6: -167 | PS6: 31 | PT6: -6 | PU6: -105 | PV6: -49 | PW6: -127 | PX6: -45 | PY6: -71 | PZ6: -79 | QA6: -116 | QB6: 5 | QC6: 31 | QD6: -1 | QE6: 60 | QF6: 16 | QG6: -52 | QH6: -6 | QI6: 11 | QJ6: -54 | QK6: -67 | QL6: -45 | QM6: -165 | QN6: -54 | QO6: -6 | QP6: 60 | QQ6: -102 | QR6: -45 | QS6: -35 | QT6: 39 | QU6: 26 | QV6: 35 | QW6: 33 | QX6: -99 | QY6: -86 | QZ6: -82 | RA6: 46 | RB6: -80 | RC6: -98 | RD6: -109 | RE6: -100 | RF6: -107 | RG6: -43 | RH6: 38 | RI6: -114 | RJ6: -36 | RK6: -11 | RL6: -38 | RM6: 57 | RN6: -84 | RO6: -89 | RP6: -107 | RQ6: -18 | RR6: 89 | RS6: 123 | RT6: 97 | RU6: 50 | RV6: -9 | RW6: 102 | RX6: -43 | RY6: -81 | RZ6: -106 | SA6: -128 | SB6: -7 | SC6: -88 | SD6: -19 | SE6: -59 | SF6: -29 | SG6: -82 | SH6: -19 | SI6: -55 | SJ6: -30 | SK6: -100 | SL6: -118 | SM6: -104 | SN6: 32 | SO6: 78 | SP6: -30 | SQ6: -15 | SR6: 215 | SS6: -27 | ST6: -84 | SU6: -108 | SV6: -109 | SW6: -116 | SX6: 53 | SY6: 6 | SZ6: -95 | TA6: 0 | TB6: 26 | TC6: -30 | TD6: -19 | TE6: -18 | TF6: -102 | TG6: 13 | TH6: -49 | TI6: 22 | TJ6: 16 | TK6: -129 | TL6: -48 | TM6: 5 | TN6: 44 | TO6: -98 | TP6: -16 | TQ6: -111 | TR6: 0 | TS6: 18 | TT6: -13 | TU6: -138 | TV6: -71 | TW6: -107 | TX6: -76 | TY6: -21 | TZ6: -76 | UA6: 6 | UB6: -63 | UC6: 54 | UD6: -51 | UE6: -17 | UF6: -5 | UG6: 2 | UH6: 11 | UI6: -3 | UJ6: -52 | UK6: -30 | UL6: -78 | UM6: 16 | UN6: -34 | UO6: -92 | UP6: 36 | UQ6: 14 | UR6: -64 | US6: 17 | UT6: -111 | UU6: 19 | UV6: 31 | UW6: -190 | UX6: -76 | UY6: 139 | UZ6: -62 | VA6: -77 | VB6: -118 | VC6: 57 | VD6: -21 | VE6: -126 | VF6: 34 | VG6: -36 | VH6: -80 | VI6: 42 | VJ6: 5 | VK6: -51 | VL6: -43 | VM6: -64 | VN6: -83 | VO6: -180 | VP6: 26 | VQ6: -43 | VR6: -50 | VS6: -73 | VT6: -76 | VU6: -32 | VV6: -67 | VW6: -70 | VX6: -64 | VY6: -31 | VZ6: 84 | WA6: -100 | WB6: 41 | WC6: 56 | WD6: -14 | WE6: -136 | WF6: -68 | WG6: -66 | WH6: -66 | WI6: -55 | WJ6: -106 | WK6: -131 | WL6: -122 | WM6: -8 | WN6: -83 | WO6: 75 | WP6: 136 | WQ6: -87 | WR6: -46 | WS6: 76 | WT6: -46 | WU6: 0 | WV6: -130 | WW6: -62 | WX6: -96 | WY6: -8 | WZ6: 17 | XA6: -10 | XB6: 17 | XC6: -161 | XD6: 15 | XE6: -3 | XF6: -28 | XG6: 7 | XH6: -5 | XI6: -66 | XJ6: -6 | XK6: -119 | XL6: -101 | XM6: -48 | XN6: -92 | XO6: -149 | XP6: 68 | XQ6: -73 | XR6: -49 | XS6: -40 | XT6: -101 | XU6: 88 | XV6: 21 | XW6: -2 | XX6: -86 | XY6: 227 | XZ6: -105 | YA6: -50 | YB6: 53 | YC6: 25 | YD6: -58 | YE6: -31 | YF6: -58 | YG6: -1 | YH6: -14 | YI6: -27 | YJ6: -71 | YK6: -110 | YL6: -66 | YM6: 34 | YN6: -50 | YO6: -97 | YP6: -21 | YQ6: 172 | YR6: -16 | YS6: -140 | YT6: -103 | YU6: -149 | YV6: 42 | YW6: -131 | YX6: -139 | YY6: -56 | YZ6: -34 | ZA6: -72 | ZB6: 1 | ZC6: -32 | ZD6: -12 | ZE6: -72 | ZF6: -80 | ZG6: -80 | ZH6: -15 | ZI6: -157 | ZJ6: -17 | ZK6: -110 | ZL6: -35 | ZM6: -56 | ZN6: 10 | ZO6: -31 | ZP6: -4 | ZQ6: -153 | ZR6: -174 | ZS6: 102 | ZT6: -1 | ZU6: -83 | ZV6: -52 | ZW6: 56 | ZX6: -28 | ZY6: 82 | ZZ6: 129 | AAA6: -65 | AAB6: -75 | AAC6: -95 | AAD6: -151 | AAE6: -29 | AAF6: -85 | AAG6: -31 | AAH6: 61 | AAI6: -43 | AAJ6: 29 | AAK6: -14 | AAL6: -156 | AAM6: -148 | AAN6: -43 | AAO6: 5 | AAP6: -72 | AAQ6: 82 | AAR6: -28 | AAS6: -21 | AAT6: -150 | AAU6: -92 | AAV6: -20 | AAW6: 14 | AAX6: -79 | AAY6: -90 | AAZ6: -41 | ABA6: -59 | ABB6: -25 | ABC6: -19 | ABD6: -33 | ABE6: -41 | ABF6: -14 | ABG6: -26 | ABH6: -67 | ABI6: 1 | ABJ6: -44 | ABK6: -3 | ABL6: -18 | ABM6: -69 | ABN6: 17 | ABO6: 14 | ABP6: 86 | ABQ6: -51 | ABR6: 20 | ABS6: -30 | ABT6: -67 | ABU6: -9 | ABV6: -46 | ABW6: -70 | ABX6: -5 | ABY6: 39 | ABZ6: -33 | ACA6: -40 | ACB6: -38 | ACC6: -55 | ACD6: -76 | ACE6: -200 | ACF6: 140 | ACG6: -97 | ACH6: -82 | ACI6: 25 | ACJ6: -111 | ACK6: -90 | ACL6: -226 | ACM6: -126 | ACN6: -55 | ACO6: 78 | ACP6: -58 | ACQ6: -67 | ACR6: 67 | ACS6: -64 | ACT6: -74 | ACU6: 85 | ACV6: -59 | ACW6: -120 | ACX6: 2 | ACY6: -22 | ACZ6: -153 | ADA6: 42 | ADB6: -103 | ADC6: 10 | ADD6: -15 | ADE6: -25 | ADF6: 53 | ADG6: 47 | ADH6: -90 | ADI6: 11 | ADJ6: -73 | ADK6: -32 | ADL6: -76 | ADM6: -105 | ADN6: 55 | ADO6: 51 | ADP6: -130 | ADQ6: -2 | ADR6: -56 | ADS6: -40 | ADT6: -135 | ADU6: -84 | ADV6: -114 | ADW6: -29 | ADX6: 4 | ADY6: -16 | ADZ6: 31 | AEA6: -98 | AEB6: 70 | AEC6: -95 | AED6: -42 | AEE6: 71 | AEF6: -76 | AEG6: 6 | AEH6: 34 | AEI6: -33 | AEJ6: -64 | AEK6: -135 | AEL6: -63 | AEM6: -119 | AEN6: 76 | AEO6: -112 | AEP6: 54 | AEQ6: -33 | AER6: -101 | AES6: -170 | AET6: -45 | AEU6: 3 | AEV6: -46 | AEW6: -148 | AEX6: -9 | AEY6: -103 | AEZ6: -21 | AFA6: 36 | AFB6: -26 | AFC6: 23 | AFD6: 4 | AFE6: -26 | AFF6: 21 | AFG6: -143 | AFH6: -74 | AFI6: -4 | AFJ6: 52 | AFK6: 54 | AFL6: -18 | AFM6: 27 | AFN6: 31 | AFO6: -57 | AFP6: -49 | AFQ6: -92 | AFR6: -16 | AFS6: -101 | AFT6: -17 | AFU6: -6 | AFV6: 53 | AFW6: -18 | AFX6: -47 | AFY6: 26 | AFZ6: -3 | AGA6: -121 | AGB6: -100 | AGC6: -75 | AGD6: -49 | AGE6: -44 | AGF6: 38 | AGG6: -182 | AGH6: -31 | AGI6: -44 | AGJ6: -53 | AGK6: -88 | AGL6: -87 | AGM6: -40 | AGN6: -86 | AGO6: 117 | AGP6: -60 | AGQ6: -128 | AGR6: -68 | AGS6: -28 | AGT6: -140 | AGU6: -51 | AGV6: 44 | AGW6: -41 | AGX6: -15 | AGY6: 95 | AGZ6: -71 | AHA6: -40 | AHB6: -79 | AHC6: -3 | AHD6: -121 | AHE6: -102 | AHF6: 97 | AHG6: -1 | AHH6: -1 | AHI6: -9 | AHJ6: -1 | AHK6: -72 | AHL6: -35 | AHM6: 0 | AHN6: 78 | AHO6: -42 | AHP6: 4 | AHQ6: -80 | AHR6: 90 | AHS6: -88 | AHT6: 42 | AHU6: 7 | AHV6: -49 | AHW6: -21 | AHX6: -52 | AHY6: 26 | AHZ6: -33 | AIA6: -3 | AIB6: -157 | AIC6: -80 | AID6: -154 | AIE6: 39 | AIF6: -10 | AIG6: -84 | AIH6: -21 | AII6: -15 | AIJ6: 67 | AIK6: -56 | AIL6: -30 | AIM6: 62 | AIN6: -106 | AIO6: -139 | AIP6: 5 | AIQ6: -61 | AIR6: 32 | AIS6: 15 | AIT6: -98 | AIU6: -40 | AIV6: 10 | AIW6: -126 | AIX6: 67 | AIY6: 26 | AIZ6: -20 | AJA6: -21 | AJB6: -10 | AJC6: 92 | AJD6: -172 | AJE6: -93 | AJF6: -75 | AJG6: -63 | AJH6: -106 | AJI6: -38 | AJJ6: 7 | AJK6: 25 | AJL6: -66 | AJM6: -105 | AJN6: -63 | AJO6: -92 | AJP6: 16 | AJQ6: -67 | AJR6: -4 | AJS6: -139 | AJT6: -19 | AJU6: -142 | AJV6: -60 | AJW6: 38 | AJX6: -44 | AJY6: 31 | AJZ6: -69 | AKA6: -46 | AKB6: -25 | AKC6: -18 | AKD6: 80 | AKE6: -49 | AKF6: -6 | AKG6: -218 | AKH6: -119 | AKI6: -63 | AKJ6: -90 | AKK6: -34 | AKL6: -50 | AKM6: -67 | AKN6: -21 | AKO6: 12 | AKP6: -8 | AKQ6: -119 | AKR6: -75 | AKS6: -52 | AKT6: -148 | AKU6: 6 | AKV6: -91 | AKW6: -20 | AKX6: 89 | AKY6: -58 | AKZ6: -126 | ALA6: -93 | ALB6: 110 | ALC6: -132 | ALD6: -23 | ALE6: -40 | ALF6: -61 | ALG6: -32 | ALH6: 58 | ALI6: -148 | ALJ6: 0 | ALK6: 69 | ALL6: -22 | ALM6: 48 | ALN6: -104 | ALO6: 19 | ALP6: 64 | ALQ6: 3 | ALR6: -13 | ALS6: -37 | ALT6: -47 | ALU6: 37 | ALV6: -55 | ALW6: -11 | ALX6: -52 | ALY6: -24 | ALZ6: -7 | AMA6: -145 | AMB6: 37 | AMC6: -1 | AMD6: 38 | AME6: -58 | AMF6: -122 | AMG6: -173 | AMH6: 79 | AMI6: 5 | AMJ6: -41
A7: -75 | B7: -99 | C7: -62 | D7: -143 | E7: -97 | F7: -4 | G7: -2 | H7: 144 | I7: -177 | J7: -126 | K7: -54 | L7: -25 | M7: -129 | N7: -17 | O7: -32 | P7: -13 | Q7: 57 | R7: -130 | S7: -101 | T7: -163 | U7: 48 | V7: -52 | W7: 77 | X7: -16 | Y7: -3 | Z7: 81 | AA7: -20 | AB7: -181 | AC7: -23 | AD7: -106 | AE7: -131 | AF7: 50 | AG7: -70 | AH7: -91 | AI7: 7 | AJ7: -8 | AK7: 9 | AL7: 54 | AM7: 38 | AN7: -45 | AO7: -87 | AP7: 161 | AQ7: 109 | AR7: -40 | AS7: -172 | AT7: -49 | AU7: -54 | AV7: -12 | AW7: -38 | AX7: -102 | AY7: -133 | AZ7: 21 | BA7: -81 | BB7: 63 | BC7: 48 | BD7: -17 | BE7: 19 | BF7: -107 | BG7: -245 | BH7: -121 | BI7: 89 | BJ7: 112 | BK7: -110 | BL7: -152 | BM7: -42 | BN7: -5 | BO7: -100 | BP7: 59 | BQ7: -4 | BR7: -6 | BS7: -65 | BT7: -53 | BU7: -102 | BV7: -91 | BW7: 109 | BX7: 99 | BY7: -68 | BZ7: -17 | CA7: -12 | CB7: -4 | CC7: -137 | CD7: 114 | CE7: -1 | CF7: -15 | CG7: -124 | CH7: -106 | CI7: -157 | CJ7: 46 | CK7: -11 | CL7: -123 | CM7: 25 | CN7: 40 | CO7: -51 | CP7: -94 | CQ7: -148 | CR7: -29 | CS7: -112 | CT7: -101 | CU7: -68 | CV7: -210 | CW7: -18 | CX7: 26 | CY7: -28 | CZ7: -5 | DA7: 74 | DB7: -16 | DC7: -94 | DD7: -26 | DE7: 14 | DF7: 62 | DG7: 50 | DH7: -9 | DI7: -165 | DJ7: -123 | DK7: 45 | DL7: -111 | DM7: -38 | DN7: -31 | DO7: -36 | DP7: -52 | DQ7: -82 | DR7: 24 | DS7: -93 | DT7: -51 | DU7: 0 | DV7: -192 | DW7: -29 | DX7: 28 | DY7: 136 | DZ7: -231 | EA7: 7 | EB7: -150 | EC7: -32 | ED7: -52 | EE7: -41 | EF7: -134 | EG7: -60 | EH7: -54 | EI7: 57 | EJ7: -234 | EK7: 43 | EL7: -52 | EM7: 16 | EN7: -44 | EO7: 53 | EP7: -199 | EQ7: -167 | ER7: 74 | ES7: -73 | ET7: -34 | EU7: -10 | EV7: 22 | EW7: -77 | EX7: -20 | EY7: 29 | EZ7: 8 | FA7: 55 | FB7: 50 | FC7: -78 | FD7: -31 | FE7: -105 | FF7: -57 | FG7: -42 | FH7: 59 | FI7: 22 | FJ7: -112 | FK7: 5 | FL7: 9 | FM7: -188 | FN7: -62 | FO7: 79 | FP7: 73 | FQ7: 23 | FR7: -46 | FS7: -148 | FT7: -86 | FU7: 32 | FV7: -7 | FW7: 26 | FX7: -185 | FY7: -39 | FZ7: -23 | GA7: -57 | GB7: -98 | GC7: -166 | GD7: 43 | GE7: 112 | GF7: -115 | GG7: -5 | GH7: -94 | GI7: -136 | GJ7: 58 | GK7: 103 | GL7: -64 | GM7: -37 | GN7: -4 | GO7: 0 | GP7: 53 | GQ7: -75 | GR7: -31 | GS7: -78 | GT7: -82 | GU7: 27 | GV7: 50 | GW7: -29 | GX7: -64 | GY7: -72 | GZ7: -113 | HA7: -137 | HB7: -279 | HC7: -76 | HD7: 27 | HE7: -135 | HF7: -43 | HG7: -18 | HH7: -194 | HI7: -77 | HJ7: -161 | HK7: -148 | HL7: -30 | HM7: -126 | HN7: 44 | HO7: -51 | HP7: -8 | HQ7: -19 | HR7: -53 | HS7: 28 | HT7: 82 | HU7: 93 | HV7: -39 | HW7: -87 | HX7: -64 | HY7: -143 | HZ7: -27 | IA7: -54 | IB7: 39 | IC7: 43 | ID7: -119 | IE7: -69 | IF7: -193 | IG7: -114 | IH7: -88 | II7: -94 | IJ7: 16 | IK7: 73 | IL7: 73 | IM7: -150 | IN7: -81 | IO7: -69 | IP7: -83 | IQ7: -189 | IR7: -63 | IS7: -10 | IT7: -34 | IU7: -24 | IV7: -61 | IW7: -151 | IX7: -109 | IY7: -40 | IZ7: 54 | JA7: -23 | JB7: -34 | JC7: -43 | JD7: -123 | JE7: 30 | JF7: 28 | JG7: -118 | JH7: -35 | JI7: -48 | JJ7: -91 | JK7: -153 | JL7: -13 | JM7: 26 | JN7: -141 | JO7: -187 | JP7: -37 | JQ7: 42 | JR7: -21 | JS7: -229 | JT7: 13 | JU7: 83 | JV7: 16 | JW7: 21 | JX7: -79 | JY7: -196 | JZ7: -48 | KA7: -77 | KB7: -74 | KC7: -48 | KD7: -54 | KE7: 114 | KF7: -133 | KG7: -99 | KH7: -34 | KI7: -160 | KJ7: 91 | KK7: -77 | KL7: -63 | KM7: -155 | KN7: -6 | KO7: -165 | KP7: 11 | KQ7: -37 | KR7: 173 | KS7: -15 | KT7: -59 | KU7: -111 | KV7: -59 | KW7: -73 | KX7: -130 | KY7: 30 | KZ7: 16 | LA7: 76 | LB7: -126 | LC7: 40 | LD7: -43 | LE7: 22 | LF7: -160 | LG7: 0 | LH7: -149 | LI7: -168 | LJ7: -135 | LK7: -39 | LL7: -2 | LM7: -49 | LN7: -102 | LO7: -21 | LP7: -44 | LQ7: -17 | LR7: -177 | LS7: 5 | LT7: -81 | LU7: -181 | LV7: -152 | LW7: 82 | LX7: -11 | LY7: -73 | LZ7: 53 | MA7: -137 | MB7: -85 | MC7: -42 | MD7: -40 | ME7: -78 | MF7: -164 | MG7: -90 | MH7: -58 | MI7: -141 | MJ7: -42 | MK7: 53 | ML7: 20 | MM7: -146 | MN7: -111 | MO7: 14 | MP7: -99 | MQ7: 51 | MR7: 56 | MS7: -98 | MT7: -15 | MU7: -96 | MV7: -104 | MW7: -153 | MX7: -7 | MY7: 78 | MZ7: 7 | NA7: -24 | NB7: -82 | NC7: 32 | ND7: -66 | NE7: -49 | NF7: -28 | NG7: -20 | NH7: -23 | NI7: -62 | NJ7: 1 | NK7: -46 | NL7: -127 | NM7: 132 | NN7: -48 | NO7: -103 | NP7: -107 | NQ7: -204 | NR7: -3 | NS7: -110 | NT7: -5 | NU7: 4 | NV7: -7 | NW7: 126 | NX7: -47 | NY7: -43 | NZ7: -42 | OA7: 85 | OB7: -47 | OC7: -22 | OD7: -40 | OE7: -28 | OF7: 89 | OG7: -20 | OH7: 0 | OI7: 9 | OJ7: -163 | OK7: 76 | OL7: -110 | OM7: -12 | ON7: -96 | OO7: -140 | OP7: -45 | OQ7: -23 | OR7: -126 | OS7: -182 | OT7: -210 | OU7: -18 | OV7: -71 | OW7: -69 | OX7: -175 | OY7: -8 | OZ7: 76 | PA7: -128 | PB7: -94 | PC7: -22 | PD7: -107 | PE7: -86 | PF7: 165 | PG7: -74 | PH7: -69 | PI7: -14 | PJ7: 58 | PK7: -18 | PL7: 72 | PM7: -10 | PN7: -67 | PO7: -36 | PP7: -249 | PQ7: 38 | PR7: -131 | PS7: 48 | PT7: 35 | PU7: -100 | PV7: -89 | PW7: -114 | PX7: -36 | PY7: -92 | PZ7: -81 | QA7: -103 | QB7: -24 | QC7: 40 | QD7: 4 | QE7: 35 | QF7: -44 | QG7: -72 | QH7: 11 | QI7: 6 | QJ7: -60 | QK7: -57 | QL7: -79 | QM7: -163 | QN7: -48 | QO7: -23 | QP7: 89 | QQ7: -134 | QR7: -63 | QS7: -61 | QT7: 50 | QU7: -32 | QV7: 93 | QW7: 20 | QX7: -91 | QY7: -115 | QZ7: -100 | RA7: 53 | RB7: -18 | RC7: -107 | RD7: -126 | RE7: -86 | RF7: -98 | RG7: -44 | RH7: 10 | RI7: -146 | RJ7: 1 | RK7: -20 | RL7: -40 | RM7: 56 | RN7: -105 | RO7: -98 | RP7: -152 | RQ7: -49 | RR7: 35 | RS7: 147 | RT7: 110 | RU7: 93 | RV7: 3 | RW7: 98 | RX7: -9 | RY7: -101 | RZ7: -102 | SA7: -123 | SB7: -9 | SC7: -92 | SD7: -50 | SE7: -83 | SF7: -32 | SG7: -65 | SH7: 3 | SI7: -31 | SJ7: -24 | SK7: -211 | SL7: -112 | SM7: -124 | SN7: 48 | SO7: 8 | SP7: -35 | SQ7: -43 | SR7: 199 | SS7: -5 | ST7: -110 | SU7: -121 | SV7: -106 | SW7: -129 | SX7: 62 | SY7: -3 | SZ7: -133 | TA7: 43 | TB7: 28 | TC7: -66 | TD7: -15 | TE7: -82 | TF7: -110 | TG7: -25 | TH7: -34 | TI7: 29 | TJ7: -12 | TK7: -135 | TL7: -37 | TM7: -2 | TN7: 104 | TO7: -79 | TP7: 8 | TQ7: -122 | TR7: -11 | TS7: 72 | TT7: -23 | TU7: -155 | TV7: -77 | TW7: -112 | TX7: -108 | TY7: -32 | TZ7: -63 | UA7: 4 | UB7: -61 | UC7: 63 | UD7: -36 | UE7: -36 | UF7: -29 | UG7: 8 | UH7: -17 | UI7: -82 | UJ7: -59 | UK7: -29 | UL7: -72 | UM7: -18 | UN7: -13 | UO7: -36 | UP7: 57 | UQ7: -29 | UR7: -97 | US7: -6 | UT7: -113 | UU7: 23 | UV7: 29 | UW7: -133 | UX7: -80 | UY7: 139 | UZ7: -52 | VA7: -107 | VB7: -135 | VC7: 117 | VD7: -40 | VE7: -135 | VF7: 38 | VG7: -37 | VH7: -99 | VI7: 75 | VJ7: -17 | VK7: -35 | VL7: 22 | VM7: -107 | VN7: -143 | VO7: -172 | VP7: 46 | VQ7: -41 | VR7: -51 | VS7: -6 | VT7: -153 | VU7: -33 | VV7: -84 | VW7: -65 | VX7: -45 | VY7: -81 | VZ7: 135 | WA7: -119 | WB7: 57 | WC7: 86 | WD7: -72 | WE7: -253 | WF7: -68 | WG7: -119 | WH7: -59 | WI7: -120 | WJ7: -114 | WK7: -204 | WL7: -135 | WM7: -84 | WN7: -107 | WO7: 111 | WP7: 152 | WQ7: -193 | WR7: -57 | WS7: 48 | WT7: -120 | WU7: -33 | WV7: -65 | WW7: -37 | WX7: -85 | WY7: 36 | WZ7: 43 | XA7: -15 | XB7: -47 | XC7: -158 | XD7: 21 | XE7: 8 | XF7: -47 | XG7: 28 | XH7: -26 | XI7: -64 | XJ7: -47 | XK7: -130 | XL7: -75 | XM7: -11 | XN7: -44 | XO7: -142 | XP7: 66 | XQ7: -71 | XR7: -33 | XS7: -57 | XT7: -82 | XU7: 57 | XV7: 118 | XW7: -36 | XX7: -64 | XY7: 139 | XZ7: -147 | YA7: -76 | YB7: 9 | YC7: 48 | YD7: -70 | YE7: -37 | YF7: -51 | YG7: 52 | YH7: -40 | YI7: -21 | YJ7: -70 | YK7: -112 | YL7: 16 | YM7: 74 | YN7: -70 | YO7: -114 | YP7: -151 | YQ7: 157 | YR7: -9 | YS7: -141 | YT7: -103 | YU7: -164 | YV7: 23 | YW7: -135 | YX7: -143 | YY7: -49 | YZ7: -50 | ZA7: -136 | ZB7: -17 | ZC7: -84 | ZD7: 3 | ZE7: -104 | ZF7: -80 | ZG7: -115 | ZH7: -5 | ZI7: -173 | ZJ7: 10 | ZK7: -110 | ZL7: -84 | ZM7: -69 | ZN7: 31 | ZO7: -126 | ZP7: -61 | ZQ7: -171 | ZR7: -201 | ZS7: 139 | ZT7: -18 | ZU7: -96 | ZV7: -12 | ZW7: 75 | ZX7: -7 | ZY7: 74 | ZZ7: 164 | AAA7: -68 | AAB7: -77 | AAC7: -93 | AAD7: -158 | AAE7: -8 | AAF7: -109 | AAG7: -19 | AAH7: 58 | AAI7: -87 | AAJ7: 38 | AAK7: -76 | AAL7: -184 | AAM7: -180 | AAN7: -42 | AAO7: 40 | AAP7: -74 | AAQ7: 102 | AAR7: -26 | AAS7: -38 | AAT7: -152 | AAU7: -68 | AAV7: -42 | AAW7: -4 | AAX7: -90 | AAY7: -98 | AAZ7: -64 | ABA7: -49 | ABB7: -41 | ABC7: -30 | ABD7: -91 | ABE7: -51 | ABF7: -38 | ABG7: -49 | ABH7: -83 | ABI7: -35 | ABJ7: -36 | ABK7: -90 | ABL7: -18 | ABM7: -49 | ABN7: 60 | ABO7: 42 | ABP7: 63 | ABQ7: -76 | ABR7: 33 | ABS7: -47 | ABT7: -73 | ABU7: -54 | ABV7: -38 | ABW7: -120 | ABX7: -1 | ABY7: 40 | ABZ7: -21 | ACA7: -60 | ACB7: -28 | ACC7: -12 | ACD7: -93 | ACE7: -207 | ACF7: 162 | ACG7: -79 | ACH7: -73 | ACI7: -6 | ACJ7: -120 | ACK7: -91 | ACL7: -250 | ACM7: -144 | ACN7: -95 | ACO7: 58 | ACP7: -37 | ACQ7: -74 | ACR7: 24 | ACS7: -35 | ACT7: -79 | ACU7: 122 | ACV7: -63 | ACW7: -130 | ACX7: 14 | ACY7: -32 | ACZ7: -352 | ADA7: 25 | ADB7: -93 | ADC7: -40 | ADD7: 5 | ADE7: -2 | ADF7: 8 | ADG7: 16 | ADH7: -71 | ADI7: 26 | ADJ7: -31 | ADK7: -13 | ADL7: -99 | ADM7: -125 | ADN7: -20 | ADO7: 69 | ADP7: -155 | ADQ7: -37 | ADR7: -11 | ADS7: -16 | ADT7: -143 | ADU7: -91 | ADV7: -123 | ADW7: 35 | ADX7: -5 | ADY7: -28 | ADZ7: 38 | AEA7: -100 | AEB7: 152 | AEC7: -94 | AED7: -62 | AEE7: 92 | AEF7: -65 | AEG7: -33 | AEH7: 11 | AEI7: -39 | AEJ7: -46 | AEK7: -155 | AEL7: -115 | AEM7: -133 | AEN7: 81 | AEO7: -128 | AEP7: 98 | AEQ7: 12 | AER7: -162 | AES7: -178 | AET7: -39 | AEU7: 16 | AEV7: -70 | AEW7: -164 | AEX7: 3 | AEY7: -106 | AEZ7: -7 | AFA7: 35 | AFB7: -28 | AFC7: -61 | AFD7: 7 | AFE7: -114 | AFF7: 6 | AFG7: -142 | AFH7: -66 | AFI7: -25 | AFJ7: 65 | AFK7: 76 | AFL7: -12 | AFM7: 20 | AFN7: 37 | AFO7: -166 | AFP7: -55 | AFQ7: -98 | AFR7: -52 | AFS7: -137 | AFT7: -4 | AFU7: -57 | AFV7: 46 | AFW7: -111 | AFX7: 7 | AFY7: -6 | AFZ7: -17 | AGA7: -118 | AGB7: -101 | AGC7: -85 | AGD7: -26 | AGE7: -46 | AGF7: -27 | AGG7: -170 | AGH7: -65 | AGI7: -62 | AGJ7: -16 | AGK7: -97 | AGL7: -40 | AGM7: -43 | AGN7: -59 | AGO7: 57 | AGP7: -94 | AGQ7: -105 | AGR7: -60 | AGS7: 2 | AGT7: -162 | AGU7: -59 | AGV7: -25 | AGW7: -121 | AGX7: 11 | AGY7: 99 | AGZ7: -57 | AHA7: -63 | AHB7: -87 | AHC7: -2 | AHD7: -100 | AHE7: -103 | AHF7: 69 | AHG7: 16 | AHH7: 1 | AHI7: -18 | AHJ7: 21 | AHK7: -81 | AHL7: -62 | AHM7: 9 | AHN7: 99 | AHO7: -68 | AHP7: -2 | AHQ7: -86 | AHR7: 60 | AHS7: -97 | AHT7: 26 | AHU7: -8 | AHV7: -85 | AHW7: -73 | AHX7: -87 | AHY7: 58 | AHZ7: -12 | AIA7: -9 | AIB7: -175 | AIC7: -62 | AID7: -170 | AIE7: -44 | AIF7: -74 | AIG7: -79 | AIH7: -3 | AII7: -31 | AIJ7: 61 | AIK7: -44 | AIL7: -7 | AIM7: 83 | AIN7: -144 | AIO7: -160 | AIP7: 35 | AIQ7: -61 | AIR7: 58 | AIS7: 40 | AIT7: -157 | AIU7: -46 | AIV7: 35 | AIW7: -183 | AIX7: 73 | AIY7: -21 | AIZ7: -61 | AJA7: -25 | AJB7: -18 | AJC7: 95 | AJD7: -178 | AJE7: -102 | AJF7: -69 | AJG7: -81 | AJH7: -124 | AJI7: -77 | AJJ7: 46 | AJK7: 52 | AJL7: -111 | AJM7: -104 | AJN7: -79 | AJO7: -106 | AJP7: 40 | AJQ7: -67 | AJR7: -43 | AJS7: -150 | AJT7: -64 | AJU7: -146 | AJV7: -48 | AJW7: 19 | AJX7: 46 | AJY7: 40 | AJZ7: -131 | AKA7: -25 | AKB7: -12 | AKC7: -12 | AKD7: 78 | AKE7: -22 | AKF7: -14 | AKG7: -263 | AKH7: -157 | AKI7: -61 | AKJ7: -98 | AKK7: -58 | AKL7: -15 | AKM7: -95 | AKN7: 15 | AKO7: 8 | AKP7: -36 | AKQ7: -70 | AKR7: -119 | AKS7: -80 | AKT7: -148 | AKU7: 15 | AKV7: -118 | AKW7: -12 | AKX7: 107 | AKY7: -24 | AKZ7: -104 | ALA7: -111 | ALB7: 68 | ALC7: -140 | ALD7: -25 | ALE7: 23 | ALF7: -43 | ALG7: -46 | ALH7: 51 | ALI7: -157 | ALJ7: -5 | ALK7: 76 | ALL7: -47 | ALM7: 37 | ALN7: -119 | ALO7: -20 | ALP7: 83 | ALQ7: 72 | ALR7: -31 | ALS7: -58 | ALT7: -67 | ALU7: 45 | ALV7: -56 | ALW7: -9 | ALX7: -93 | ALY7: -38 | ALZ7: 4 | AMA7: -159 | AMB7: 59 | AMC7: 46 | AMD7: -5 | AME7: -26 | AMF7: -120 | AMG7: -126 | AMH7: 27 | AMI7: 22 | AMJ7: -40
A8: -55 | B8: -95 | C8: -44 | D8: -107 | E8: -92 | F8: 15 | G8: 10 | H8: 113 | I8: -194 | J8: -118 | K8: -52 | L8: -17 | M8: -70 | N8: -1 | O8: -26 | P8: -37 | Q8: 38 | R8: -133 | S8: -106 | T8: -231 | U8: 43 | V8: -53 | W8: 83 | X8: -33 | Y8: -52 | Z8: 30 | AA8: -6 | AB8: -147 | AC8: -3 | AD8: -93 | AE8: -73 | AF8: 79 | AG8: -56 | AH8: -48 | AI8: -25 | AJ8: -12 | AK8: 20 | AL8: 0 | AM8: 14 | AN8: -32 | AO8: -84 | AP8: 135 | AQ8: 83 | AR8: -8 | AS8: -179 | AT8: -53 | AU8: -48 | AV8: 22 | AW8: -2 | AX8: -78 | AY8: -117 | AZ8: -14 | BA8: -27 | BB8: 48 | BC8: 78 | BD8: 4 | BE8: 22 | BF8: -90 | BG8: -193 | BH8: -93 | BI8: 112 | BJ8: 46 | BK8: -100 | BL8: -136 | BM8: -37 | BN8: -15 | BO8: -71 | BP8: 94 | BQ8: 16 | BR8: -26 | BS8: -56 | BT8: -60 | BU8: -91 | BV8: -54 | BW8: 45 | BX8: 81 | BY8: -59 | BZ8: -14 | CA8: -6 | CB8: 24 | CC8: -90 | CD8: 95 | CE8: -20 | CF8: -65 | CG8: -97 | CH8: -75 | CI8: -121 | CJ8: 17 | CK8: -29 | CL8: -74 | CM8: 5 | CN8: 9 | CO8: -66 | CP8: -74 | CQ8: -93 | CR8: -18 | CS8: -77 | CT8: -64 | CU8: -19 | CV8: -174 | CW8: -56 | CX8: 14 | CY8: 6 | CZ8: 25 | DA8: 52 | DB8: 7 | DC8: -82 | DD8: -33 | DE8: -15 | DF8: 52 | DG8: 22 | DH8: -26 | DI8: -127 | DJ8: -99 | DK8: -15 | DL8: -82 | DM8: -72 | DN8: -15 | DO8: -7 | DP8: -49 | DQ8: -82 | DR8: -7 | DS8: -98 | DT8: -43 | DU8: 12 | DV8: -163 | DW8: -39 | DX8: -40 | DY8: 138 | DZ8: -161 | EA8: -4 | EB8: -145 | EC8: -22 | ED8: -64 | EE8: -49 | EF8: -146 | EG8: -57 | EH8: -68 | EI8: 44 | EJ8: -181 | EK8: 30 | EL8: -27 | EM8: 25 | EN8: -38 | EO8: 53 | EP8: -153 | EQ8: -176 | ER8: 62 | ES8: -55 | ET8: 51 | EU8: -14 | EV8: -20 | EW8: -124 | EX8: -1 | EY8: -38 | EZ8: -18 | FA8: 0 | FB8: -27 | FC8: -73 | FD8: -30 | FE8: -82 | FF8: -71 | FG8: -54 | FH8: 17 | FI8: 33 | FJ8: -109 | FK8: -12 | FL8: 8 | FM8: -140 | FN8: -70 | FO8: 89 | FP8: 60 | FQ8: 34 | FR8: -52 | FS8: -128 | FT8: -33 | FU8: 17 | FV8: -67 | FW8: 7 | FX8: -151 | FY8: -38 | FZ8: -32 | GA8: -43 | GB8: -76 | GC8: -142 | GD8: 92 | GE8: 67 | GF8: -68 | GG8: -22 | GH8: -63 | GI8: -159 | GJ8: -9 | GK8: 27 | GL8: -12 | GM8: -27 | GN8: 22 | GO8: 24 | GP8: 55 | GQ8: -25 | GR8: -51 | GS8: -61 | GT8: -53 | GU8: 2 | GV8: 63 | GW8: -47 | GX8: -91 | GY8: -24 | GZ8: -102 | HA8: -120 | HB8: -190 | HC8: -58 | HD8: 18 | HE8: -100 | HF8: -59 | HG8: -28 | HH8: -168 | HI8: -92 | HJ8: -130 | HK8: -111 | HL8: 27 | HM8: -114 | HN8: 11 | HO8: -32 | HP8: 0 | HQ8: -55 | HR8: -22 | HS8: 0 | HT8: 10 | HU8: 64 | HV8: -34 | HW8: -51 | HX8: -43 | HY8: -115 | HZ8: -34 | IA8: -45 | IB8: -22 | IC8: 67 | ID8: -99 | IE8: -101 | IF8: -189 | IG8: -88 | IH8: -29 | II8: -69 | IJ8: 1 | IK8: 88 | IL8: 53 | IM8: -112 | IN8: -34 | IO8: -65 | IP8: -70 | IQ8: -144 | IR8: -58 | IS8: -38 | IT8: -57 | IU8: -8 | IV8: -69 | IW8: -111 | IX8: -60 | IY8: 3 | IZ8: 37 | JA8: -25 | JB8: 48 | JC8: -41 | JD8: -143 | JE8: 77 | JF8: -39 | JG8: -125 | JH8: 0 | JI8: -8 | JJ8: -46 | JK8: -127 | JL8: -18 | JM8: -7 | JN8: -124 | JO8: -139 | JP8: -61 | JQ8: 24 | JR8: -22 | JS8: -197 | JT8: 33 | JU8: 53 | JV8: -28 | JW8: 9 | JX8: -90 | JY8: -143 | JZ8: -30 | KA8: -72 | KB8: -68 | KC8: -16 | KD8: -87 | KE8: 62 | KF8: -87 | KG8: -79 | KH8: -59 | KI8: -91 | KJ8: 86 | KK8: -48 | KL8: -50 | KM8: -101 | KN8: -3 | KO8: -159 | KP8: -23 | KQ8: 9 | KR8: 130 | KS8: -79 | KT8: -59 | KU8: -77 | KV8: -56 | KW8: -34 | KX8: -105 | KY8: -11 | KZ8: 43 | LA8: 21 | LB8: -134 | LC8: 33 | LD8: 14 | LE8: 6 | LF8: -131 | LG8: -9 | LH8: -127 | LI8: -148 | LJ8: -124 | LK8: -50 | LL8: 21 | LM8: -25 | LN8: -41 | LO8: -43 | LP8: -52 | LQ8: 5 | LR8: -123 | LS8: 2 | LT8: -99 | LU8: -60 | LV8: -125 | LW8: 33 | LX8: 10 | LY8: -48 | LZ8: 89 | MA8: -87 | MB8: -79 | MC8: -12 | MD8: -70 | ME8: -64 | MF8: -143 | MG8: -88 | MH8: -62 | MI8: -123 | MJ8: -49 | MK8: 41 | ML8: 44 | MM8: -146 | MN8: -67 | MO8: 7 | MP8: -105 | MQ8: 41 | MR8: 19 | MS8: -79 | MT8: -33 | MU8: -67 | MV8: -97 | MW8: -116 | MX8: -20 | MY8: 74 | MZ8: 20 | NA8: 16 | NB8: -36 | NC8: 10 | ND8: -62 | NE8: -43 | NF8: 23 | NG8: -18 | NH8: -43 | NI8: -10 | NJ8: 15 | NK8: -27 | NL8: -151 | NM8: 43 | NN8: -49 | NO8: -85 | NP8: -103 | NQ8: -151 | NR8: 15 | NS8: -83 | NT8: -17 | NU8: -23 | NV8: 28 | NW8: 110 | NX8: -28 | NY8: -49 | NZ8: -44 | OA8: 94 | OB8: -51 | OC8: -27 | OD8: -100 | OE8: 13 | OF8: 44 | OG8: -70 | OH8: -14 | OI8: 31 | OJ8: -102 | OK8: 86 | OL8: -105 | OM8: -17 | ON8: -83 | OO8: -117 | OP8: -25 | OQ8: -5 | OR8: -100 | OS8: -164 | OT8: -169 | OU8: 9 | OV8: -76 | OW8: -62 | OX8: -120 | OY8: -49 | OZ8: 72 | PA8: -87 | PB8: -77 | PC8: -10 | PD8: -53 | PE8: -68 | PF8: 149 | PG8: -58 | PH8: -35 | PI8: 9 | PJ8: 85 | PK8: -14 | PL8: 42 | PM8: -30 | PN8: 61 | PO8: 16 | PP8: -182 | PQ8: 32 | PR8: -111 | PS8: 33 | PT8: 63 | PU8: -98 | PV8: -124 | PW8: -81 | PX8: -23 | PY8: -70 | PZ8: -50 | QA8: -78 | QB8: -3 | QC8: 63 | QD8: -14 | QE8: -2 | QF8: -81 | QG8: 45 | QH8: 34 | QI8: 1 | QJ8: -38 | QK8: -35 | QL8: -64 | QM8: -123 | QN8: -27 | QO8: 10 | QP8: 102 | QQ8: -106 | QR8: -42 | QS8: -51 | QT8: -1 | QU8: -51 | QV8: 78 | QW8: 23 | QX8: -84 | QY8: -114 | QZ8: -94 | RA8: 18 | RB8: 36 | RC8: -81 | RD8: -93 | RE8: -63 | RF8: -114 | RG8: -39 | RH8: 19 | RI8: -83 | RJ8: 32 | RK8: 4 | RL8: -59 | RM8: 47 | RN8: -45 | RO8: -74 | RP8: -105 | RQ8: -56 | RR8: 91 | RS8: 100 | RT8: 58 | RU8: 79 | RV8: -13 | RW8: 55 | RX8: -18 | RY8: -101 | RZ8: -93 | SA8: -109 | SB8: 6 | SC8: -84 | SD8: -43 | SE8: -66 | SF8: 12 | SG8: -79 | SH8: -3 | SI8: -21 | SJ8: -29 | SK8: -206 | SL8: -125 | SM8: -114 | SN8: 9 | SO8: -79 | SP8: -41 | SQ8: -48 | SR8: 68 | SS8: 10 | ST8: -80 | SU8: -80 | SV8: -13 | SW8: -112 | SX8: 20 | SY8: -31 | SZ8: -110 | TA8: 67 | TB8: 10 | TC8: -53 | TD8: -25 | TE8: -90 | TF8: -67 | TG8: -28 | TH8: -36 | TI8: 22 | TJ8: -52 | TK8: -122 | TL8: -11 | TM8: -24 | TN8: 40 | TO8: -66 | TP8: 85 | TQ8: -129 | TR8: -22 | TS8: 51 | TT8: 90 | TU8: -130 | TV8: -48 | TW8: -82 | TX8: -80 | TY8: -5 | TZ8: -44 | UA8: 7 | UB8: -39 | UC8: 81 | UD8: -10 | UE8: 3 | UF8: 19 | UG8: 21 | UH8: -9 | UI8: -42 | UJ8: -79 | UK8: -27 | UL8: -69 | UM8: -7 | UN8: 13 | UO8: -16 | UP8: 43 | UQ8: 14 | UR8: -110 | US8: -43 | UT8: -67 | UU8: 39 | UV8: 50 | UW8: -18 | UX8: -86 | UY8: 86 | UZ8: 1 | VA8: -42 | VB8: -121 | VC8: 107 | VD8: -59 | VE8: -104 | VF8: -15 | VG8: -29 | VH8: -66 | VI8: 74 | VJ8: -54 | VK8: -4 | VL8: 101 | VM8: -149 | VN8: -110 | VO8: -199 | VP8: 12 | VQ8: -34 | VR8: -76 | VS8: 8 | VT8: -92 | VU8: -60 | VV8: -68 | VW8: -87 | VX8: -6 | VY8: -158 | VZ8: 144 | WA8: -70 | WB8: 48 | WC8: 62 | WD8: 8 | WE8: -232 | WF8: -32 | WG8: -107 | WH8: -65 | WI8: -130 | WJ8: -103 | WK8: -146 | WL8: -86 | WM8: -112 | WN8: -63 | WO8: 65 | WP8: 86 | WQ8: -136 | WR8: -70 | WS8: 27 | WT8: -92 | WU8: -68 | WV8: -19 | WW8: 17 | WX8: -33 | WY8: 43 | WZ8: 72 | XA8: 34 | XB8: -61 | XC8: -114 | XD8: 21 | XE8: 8 | XF8: -9 | XG8: 35 | XH8: -7 | XI8: -43 | XJ8: -41 | XK8: -46 | XL8: -62 | XM8: -6 | XN8: -7 | XO8: -94 | XP8: 48 | XQ8: -87 | XR8: -38 | XS8: -90 | XT8: -60 | XU8: 28 | XV8: 147 | XW8: -34 | XX8: -43 | XY8: 74 | XZ8: -42 | YA8: -47 | YB8: 29 | YC8: 40 | YD8: -80 | YE8: -31 | YF8: -22 | YG8: 121 | YH8: -72 | YI8: 19 | YJ8: -65 | YK8: -72 | YL8: 39 | YM8: 48 | YN8: -49 | YO8: -55 | YP8: -185 | YQ8: 88 | YR8: 12 | YS8: -118 | YT8: -78 | YU8: -148 | YV8: -7 | YW8: -102 | YX8: -106 | YY8: -14 | YZ8: -55 | ZA8: -134 | ZB8: -36 | ZC8: -93 | ZD8: -19 | ZE8: -19 | ZF8: -74 | ZG8: -14 | ZH8: -4 | ZI8: -182 | ZJ8: -21 | ZK8: -99 | ZL8: -76 | ZM8: -53 | ZN8: 17 | ZO8: -98 | ZP8: -111 | ZQ8: -135 | ZR8: -149 | ZS8: 119 | ZT8: 1 | ZU8: -110 | ZV8: 16 | ZW8: 51 | ZX8: -15 | ZY8: -9 | ZZ8: 159 | AAA8: -56 | AAB8: -46 | AAC8: -65 | AAD8: -131 | AAE8: -35 | AAF8: -89 | AAG8: -9 | AAH8: 44 | AAI8: -20 | AAJ8: 21 | AAK8: -42 | AAL8: -123 | AAM8: -111 | AAN8: 11 | AAO8: 46 | AAP8: -47 | AAQ8: 46 | AAR8: -45 | AAS8: -29 | AAT8: -116 | AAU8: -3 | AAV8: -19 | AAW8: 4 | AAX8: -83 | AAY8: -71 | AAZ8: -64 | ABA8: -52 | ABB8: -73 | ABC8: -60 | ABD8: -99 | ABE8: -41 | ABF8: -20 | ABG8: -48 | ABH8: -90 | ABI8: -45 | ABJ8: -35 | ABK8: -49 | ABL8: -35 | ABM8: -44 | ABN8: 67 | ABO8: 69 | ABP8: 77 | ABQ8: -59 | ABR8: 21 | ABS8: -20 | ABT8: -51 | ABU8: -85 | ABV8: -27 | ABW8: -98 | ABX8: -16 | ABY8: 84 | ABZ8: -28 | ACA8: -50 | ACB8: -44 | ACC8: -34 | ACD8: -46 | ACE8: -156 | ACF8: 125 | ACG8: -44 | ACH8: -52 | ACI8: 38 | ACJ8: -96 | ACK8: -52 | ACL8: -212 | ACM8: -119 | ACN8: -101 | ACO8: 27 | ACP8: -10 | ACQ8: -67 | ACR8: -33 | ACS8: -36 | ACT8: -61 | ACU8: 88 | ACV8: -49 | ACW8: -115 | ACX8: 4 | ACY8: -49 | ACZ8: -300 | ADA8: 8 | ADB8: -88 | ADC8: -49 | ADD8: 4 | ADE8: -18 | ADF8: -42 | ADG8: 12 | ADH8: -80 | ADI8: 10 | ADJ8: 12 | ADK8: -2 | ADL8: -106 | ADM8: -108 | ADN8: -48 | ADO8: 45 | ADP8: -116 | ADQ8: -24 | ADR8: 26 | ADS8: -3 | ADT8: -102 | ADU8: -63 | ADV8: -91 | ADW8: 51 | ADX8: -29 | ADY8: -33 | ADZ8: 89 | AEA8: -44 | AEB8: 141 | AEC8: -70 | AED8: -97 | AEE8: 142 | AEF8: -42 | AEG8: -66 | AEH8: -23 | AEI8: -92 | AEJ8: -11 | AEK8: -156 | AEL8: -131 | AEM8: -125 | AEN8: 3 | AEO8: -109 | AEP8: 75 | AEQ8: -8 | AER8: -126 | AES8: -142 | AET8: -26 | AEU8: 78 | AEV8: -53 | AEW8: -120 | AEX8: 55 | AEY8: -52 | AEZ8: -45 | AFA8: 28 | AFB8: -27 | AFC8: -41 | AFD8: 1 | AFE8: -142 | AFF8: 10 | AFG8: -124 | AFH8: -12 | AFI8: -17 | AFJ8: 50 | AFK8: 22 | AFL8: -26 | AFM8: 15 | AFN8: 49 | AFO8: -111 | AFP8: -35 | AFQ8: -86 | AFR8: -50 | AFS8: -116 | AFT8: 36 | AFU8: -37 | AFV8: 7 | AFW8: -164 | AFX8: -11 | AFY8: -34 | AFZ8: -2 | AGA8: -131 | AGB8: -87 | AGC8: -61 | AGD8: -30 | AGE8: -17 | AGF8: -145 | AGG8: -124 | AGH8: -45 | AGI8: -63 | AGJ8: 19 | AGK8: -5 | AGL8: -24 | AGM8: -35 | AGN8: -46 | AGO8: 36 | AGP8: -91 | AGQ8: -74 | AGR8: -41 | AGS8: 34 | AGT8: -148 | AGU8: -34 | AGV8: -22 | AGW8: -64 | AGX8: 15 | AGY8: 122 | AGZ8: -53 | AHA8: -125 | AHB8: -88 | AHC8: 9 | AHD8: -107 | AHE8: -73 | AHF8: 23 | AHG8: 22 | AHH8: 30 | AHI8: -28 | AHJ8: 43 | AHK8: -48 | AHL8: -48 | AHM8: -11 | AHN8: 86 | AHO8: -77 | AHP8: 4 | AHQ8: -85 | AHR8: 64 | AHS8: -44 | AHT8: -23 | AHU8: -26 | AHV8: -95 | AHW8: -111 | AHX8: -44 | AHY8: 58 | AHZ8: 15 | AIA8: 4 | AIB8: -170 | AIC8: -41 | AID8: -145 | AIE8: -66 | AIF8: -40 | AIG8: -66 | AIH8: -2 | AII8: -70 | AIJ8: 59 | AIK8: -37 | AIL8: -20 | AIM8: 51 | AIN8: -99 | AIO8: -125 | AIP8: 69 | AIQ8: -51 | AIR8: 70 | AIS8: 55 | AIT8: -104 | AIU8: -63 | AIV8: 10 | AIW8: -231 | AIX8: 25 | AIY8: -35 | AIZ8: -40 | AJA8: -6 | AJB8: -3 | AJC8: 11 | AJD8: -114 | AJE8: -88 | AJF8: -66 | AJG8: -81 | AJH8: -111 | AJI8: -19 | AJJ8: 10 | AJK8: 33 | AJL8: -132 | AJM8: -93 | AJN8: -87 | AJO8: -82 | AJP8: 25 | AJQ8: -56 | AJR8: -40 | AJS8: -127 | AJT8: -38 | AJU8: -130 | AJV8: -44 | AJW8: 44 | AJX8: 47 | AJY8: 53 | AJZ8: -161 | AKA8: -17 | AKB8: -10 | AKC8: -22 | AKD8: 45 | AKE8: -35 | AKF8: 16 | AKG8: -287 | AKH8: -106 | AKI8: -29 | AKJ8: -74 | AKK8: -35 | AKL8: -41 | AKM8: -110 | AKN8: 47 | AKO8: 10 | AKP8: -36 | AKQ8: -91 | AKR8: -89 | AKS8: -73 | AKT8: -83 | AKU8: -2 | AKV8: -117 | AKW8: 3 | AKX8: 95 | AKY8: 21 | AKZ8: -77 | ALA8: -101 | ALB8: 6 | ALC8: -121 | ALD8: -20 | ALE8: 43 | ALF8: 52 | ALG8: -91 | ALH8: 8 | ALI8: -108 | ALJ8: -18 | ALK8: 35 | ALL8: -6 | ALM8: 5 | ALN8: -88 | ALO8: -34 | ALP8: 42 | ALQ8: 10 | ALR8: -24 | ALS8: -17 | ALT8: -66 | ALU8: 12 | ALV8: -52 | ALW8: 36 | ALX8: -96 | ALY8: 2 | ALZ8: 2 | AMA8: -136 | AMB8: 63 | AMC8: 57 | AMD8: -65 | AME8: -28 | AMF8: -82 | AMG8: -75 | AMH8: -69 | AMI8: 36 | AMJ8: -22
A9: -24 | B9: -139 | C9: -50 | D9: -52 | E9: -114 | F9: -9 | G9: -3 | H9: 70 | I9: -393 | J9: -121 | K9: -125 | L9: -60 | M9: -71 | N9: 47 | O9: -54 | P9: -58 | Q9: -113 | R9: -174 | S9: -169 | T9: -426 | U9: 18 | V9: -167 | W9: 65 | X9: -71 | Y9: -80 | Z9: 7 | AA9: -1 | AB9: -142 | AC9: -56 | AD9: -136 | AE9: -103 | AF9: 158 | AG9: -123 | AH9: -69 | AI9: -70 | AJ9: -63 | AK9: -65 | AL9: -27 | AM9: 34 | AN9: -33 | AO9: -122 | AP9: 130 | AQ9: -1 | AR9: 29 | AS9: -358 | AT9: -79 | AU9: -67 | AV9: 47 | AW9: 4 | AX9: -147 | AY9: -186 | AZ9: -26 | BA9: -18 | BB9: 28 | BC9: 144 | BD9: -32 | BE9: -25 | BF9: -128 | BG9: -275 | BH9: -107 | BI9: 202 | BJ9: 4 | BK9: -151 | BL9: -207 | BM9: -20 | BN9: -66 | BO9: -69 | BP9: 129 | BQ9: -1 | BR9: -24 | BS9: -60 | BT9: -120 | BU9: -108 | BV9: -110 | BW9: 78 | BX9: 146 | BY9: -75 | BZ9: 17 | CA9: -22 | CB9: 25 | CC9: -121 | CD9: 55 | CE9: -47 | CF9: -136 | CG9: -124 | CH9: -90 | CI9: -184 | CJ9: 15 | CK9: -57 | CL9: -71 | CM9: 66 | CN9: 13 | CO9: -81 | CP9: -114 | CQ9: -102 | CR9: -30 | CS9: -179 | CT9: -95 | CU9: 10 | CV9: -238 | CW9: -143 | CX9: -12 | CY9: -22 | CZ9: 32 | DA9: -1 | DB9: -45 | DC9: -137 | DD9: -81 | DE9: 52 | DF9: -40 | DG9: 23 | DH9: -38 | DI9: -163 | DJ9: -161 | DK9: -41 | DL9: -79 | DM9: -99 | DN9: -74 | DO9: 41 | DP9: -82 | DQ9: -119 | DR9: -16 | DS9: -151 | DT9: -53 | DU9: -40 | DV9: -265 | DW9: -102 | DX9: -96 | DY9: 141 | DZ9: -215 | EA9: -54 | EB9: -225 | EC9: -12 | ED9: -120 | EE9: 2 | EF9: -390 | EG9: -124 | EH9: -54 | EI9: 4 | EJ9: -258 | EK9: -13 | EL9: -47 | EM9: -4 | EN9: -31 | EO9: 33 | EP9: -164 | EQ9: -216 | ER9: 78 | ES9: -100 | ET9: 141 | EU9: -49 | EV9: 66 | EW9: -117 | EX9: 85 | EY9: -33 | EZ9: -77 | FA9: 38 | FB9: -83 | FC9: -100 | FD9: -32 | FE9: -125 | FF9: -146 | FG9: -63 | FH9: -1 | FI9: -9 | FJ9: -183 | FK9: -30 | FL9: -8 | FM9: -159 | FN9: -92 | FO9: 58 | FP9: 45 | FQ9: 73 | FR9: -104 | FS9: -209 | FT9: -55 | FU9: -36 | FV9: -188 | FW9: -58 | FX9: -193 | FY9: 7 | FZ9: -65 | GA9: -58 | GB9: -127 | GC9: -298 | GD9: 143 | GE9: 98 | GF9: -78 | GG9: -20 | GH9: -125 | GI9: -246 | GJ9: -2 | GK9: 42 | GL9: -51 | GM9: -71 | GN9: 48 | GO9: 14 | GP9: 11 | GQ9: -60 | GR9: 18 | GS9: -77 | GT9: -75 | GU9: -40 | GV9: 38 | GW9: -66 | GX9: -207 | GY9: -10 | GZ9: -116 | HA9: -128 | HB9: -242 | HC9: -113 | HD9: 11 | HE9: -317 | HF9: -95 | HG9: -24 | HH9: -226 | HI9: -130 | HJ9: -188 | HK9: -157 | HL9: -15 | HM9: -161 | HN9: 22 | HO9: -28 | HP9: 14 | HQ9: -56 | HR9: -12 | HS9: 4 | HT9: -4 | HU9: 105 | HV9: 9 | HW9: -51 | HX9: -60 | HY9: -158 | HZ9: -52 | IA9: -73 | IB9: 6 | IC9: 58 | ID9: -142 | IE9: -191 | IF9: -274 | IG9: -147 | IH9: -113 | II9: -140 | IJ9: 13 | IK9: 122 | IL9: 51 | IM9: -152 | IN9: -59 | IO9: -75 | IP9: -143 | IQ9: -166 | IR9: -121 | IS9: -105 | IT9: -72 | IU9: -48 | IV9: -139 | IW9: -179 | IX9: -160 | IY9: 2 | IZ9: -44 | JA9: -38 | JB9: 116 | JC9: -31 | JD9: -211 | JE9: 30 | JF9: -83 | JG9: -140 | JH9: -8 | JI9: -38 | JJ9: -43 | JK9: -198 | JL9: -41 | JM9: -2 | JN9: -163 | JO9: -222 | JP9: -64 | JQ9: -4 | JR9: -41 | JS9: -381 | JT9: 45 | JU9: 45 | JV9: -2 | JW9: -9 | JX9: -117 | JY9: -177 | JZ9: -57 | KA9: -98 | KB9: -147 | KC9: 37 | KD9: -140 | KE9: 13 | KF9: -103 | KG9: -119 | KH9: -53 | KI9: -289 | KJ9: 32 | KK9: -105 | KL9: -84 | KM9: -79 | KN9: 0 | KO9: -182 | KP9: -30 | KQ9: 3 | KR9: 93 | KS9: -143 | KT9: -101 | KU9: -120 | KV9: -81 | KW9: -17 | KX9: -129 | KY9: -47 | KZ9: -20 | LA9: -48 | LB9: -218 | LC9: 53 | LD9: -1 | LE9: -2 | LF9: -168 | LG9: 38 | LH9: -204 | LI9: -177 | LJ9: -173 | LK9: -61 | LL9: 82 | LM9: -16 | LN9: -70 | LO9: -42 | LP9: -101 | LQ9: 80 | LR9: -137 | LS9: -19 | LT9: -137 | LU9: -56 | LV9: -175 | LW9: -18 | LX9: 11 | LY9: -116 | LZ9: 136 | MA9: -85 | MB9: -104 | MC9: -9 | MD9: -91 | ME9: -121 | MF9: -171 | MG9: -109 | MH9: -68 | MI9: -136 | MJ9: -80 | MK9: 19 | ML9: 32 | MM9: -226 | MN9: -75 | MO9: -3 | MP9: -89 | MQ9: 84 | MR9: 21 | MS9: -95 | MT9: -67 | MU9: -99 | MV9: -128 | MW9: -132 | MX9: -15 | MY9: 66 | MZ9: -10 | NA9: 3 | NB9: -35 | NC9: 98 | ND9: -92 | NE9: -74 | NF9: 48 | NG9: -27 | NH9: 15 | NI9: -31 | NJ9: 17 | NK9: -43 | NL9: -244 | NM9: 5 | NN9: -78 | NO9: -69 | NP9: -126 | NQ9: -460 | NR9: -2 | NS9: -91 | NT9: -22 | NU9: -18 | NV9: 75 | NW9: 145 | NX9: 47 | NY9: -59 | NZ9: -41 | OA9: 36 | OB9: -61 | OC9: -34 | OD9: -188 | OE9: 12 | OF9: -42 | OG9: -187 | OH9: -22 | OI9: 47 | OJ9: -250 | OK9: 100 | OL9: -136 | OM9: -47 | ON9: -112 | OO9: -159 | OP9: -25 | OQ9: -27 | OR9: -118 | OS9: -212 | OT9: -204 | OU9: -1 | OV9: -87 | OW9: -91 | OX9: -216 | OY9: -120 | OZ9: 90 | PA9: -67 | PB9: -145 | PC9: -63 | PD9: -71 | PE9: -91 | PF9: 175 | PG9: -32 | PH9: -77 | PI9: -60 | PJ9: 104 | PK9: -22 | PL9: 77 | PM9: -4 | PN9: 27 | PO9: 56 | PP9: -293 | PQ9: -37 | PR9: -125 | PS9: 78 | PT9: 78 | PU9: -124 | PV9: -123 | PW9: -106 | PX9: -28 | PY9: -158 | PZ9: -81 | QA9: -109 | QB9: -37 | QC9: 28 | QD9: -39 | QE9: -63 | QF9: -244 | QG9: -22 | QH9: 79 | QI9: 4 | QJ9: -68 | QK9: -12 | QL9: -109 | QM9: -148 | QN9: -36 | QO9: -41 | QP9: 69 | QQ9: -157 | QR9: -75 | QS9: -54 | QT9: -8 | QU9: -139 | QV9: 60 | QW9: -1 | QX9: -133 | QY9: -147 | QZ9: -103 | RA9: 18 | RB9: 94 | RC9: -125 | RD9: -129 | RE9: -92 | RF9: -133 | RG9: -69 | RH9: 54 | RI9: -151 | RJ9: 19 | RK9: -32 | RL9: -133 | RM9: 43 | RN9: -91 | RO9: -102 | RP9: -107 | RQ9: -144 | RR9: 161 | RS9: 60 | RT9: 121 | RU9: 211 | RV9: -76 | RW9: 43 | RX9: 6 | RY9: -140 | RZ9: -104 | SA9: -122 | SB9: 2 | SC9: -117 | SD9: 7 | SE9: -70 | SF9: 70 | SG9: -96 | SH9: -18 | SI9: -25 | SJ9: -61 | SK9: -316 | SL9: -109 | SM9: -142 | SN9: -8 | SO9: -41 | SP9: -35 | SQ9: -106 | SR9: 97 | SS9: -16 | ST9: -132 | SU9: -144 | SV9: -54 | SW9: -177 | SX9: -15 | SY9: -97 | SZ9: -185 | TA9: 65 | TB9: -49 | TC9: -88 | TD9: -58 | TE9: -125 | TF9: -73 | TG9: -20 | TH9: -71 | TI9: -20 | TJ9: -113 | TK9: -198 | TL9: 11 | TM9: 48 | TN9: 103 | TO9: -115 | TP9: 132 | TQ9: -156 | TR9: -43 | TS9: 52 | TT9: 60 | TU9: -132 | TV9: -53 | TW9: -80 | TX9: -131 | TY9: -33 | TZ9: -49 | UA9: -11 | UB9: -68 | UC9: 119 | UD9: -23 | UE9: -65 | UF9: 1 | UG9: -27 | UH9: -33 | UI9: -50 | UJ9: -124 | UK9: -26 | UL9: -96 | UM9: -22 | UN9: -51 | UO9: 59 | UP9: 21 | UQ9: -82 | UR9: -197 | US9: -44 | UT9: -107 | UU9: 81 | UV9: 37 | UW9: -23 | UX9: -117 | UY9: 103 | UZ9: -70 | VA9: -68 | VB9: -151 | VC9: 68 | VD9: -139 | VE9: -148 | VF9: -53 | VG9: -24 | VH9: -98 | VI9: 97 | VJ9: -113 | VK9: -3 | VL9: 137 | VM9: -294 | VN9: -148 | VO9: -187 | VP9: -5 | VQ9: -48 | VR9: -129 | VS9: 138 | VT9: -167 | VU9: -71 | VV9: -103 | VW9: -114 | VX9: -46 | VY9: -250 | VZ9: 144 | WA9: -104 | WB9: 7 | WC9: 67 | WD9: -45 | WE9: -449 | WF9: -46 | WG9: -181 | WH9: -48 | WI9: -165 | WJ9: -122 | WK9: -186 | WL9: -94 | WM9: -141 | WN9: -138 | WO9: 12 | WP9: 73 | WQ9: -272 | WR9: -53 | WS9: 25 | WT9: -123 | WU9: -90 | WV9: -49 | WW9: 33 | WX9: -70 | WY9: 48 | WZ9: 104 | XA9: 100 | XB9: -164 | XC9: -124 | XD9: -21 | XE9: -5 | XF9: -49 | XG9: 33 | XH9: -44 | XI9: -50 | XJ9: 14 | XK9: -82 | XL9: -69 | XM9: -34 | XN9: -82 | XO9: -113 | XP9: 91 | XQ9: -142 | XR9: -116 | XS9: -117 | XT9: -76 | XU9: 23 | XV9: 371 | XW9: -78 | XX9: -81 | XY9: 119 | XZ9: -88 | YA9: -150 | YB9: 48 | YC9: 6 | YD9: -127 | YE9: -61 | YF9: -19 | YG9: 158 | YH9: -59 | YI9: 2 | YJ9: -92 | YK9: -72 | YL9: 40 | YM9: 106 | YN9: -69 | YO9: -158 | YP9: -455 | YQ9: 84 | YR9: 52 | YS9: -182 | YT9: -92 | YU9: -202 | YV9: -56 | YW9: -101 | YX9: -146 | YY9: -109 | YZ9: -91 | ZA9: -230 | ZB9: -67 | ZC9: -145 | ZD9: -48 | ZE9: -73 | ZF9: -122 | ZG9: -57 | ZH9: 18 | ZI9: -270 | ZJ9: -42 | ZK9: -141 | ZL9: -153 | ZM9: -36 | ZN9: 21 | ZO9: -32 | ZP9: -160 | ZQ9: -203 | ZR9: -207 | ZS9: 130 | ZT9: -11 | ZU9: -104 | ZV9: 51 | ZW9: 47 | ZX9: -112 | ZY9: -39 | ZZ9: 178 | AAA9: -96 | AAB9: -52 | AAC9: -150 | AAD9: -159 | AAE9: -35 | AAF9: -169 | AAG9: -21 | AAH9: 82 | AAI9: -51 | AAJ9: 48 | AAK9: -32 | AAL9: -144 | AAM9: -22 | AAN9: -60 | AAO9: 73 | AAP9: -57 | AAQ9: 39 | AAR9: -84 | AAS9: -5 | AAT9: -124 | AAU9: -33 | AAV9: -77 | AAW9: -23 | AAX9: -122 | AAY9: -105 | AAZ9: -110 | ABA9: -76 | ABB9: -45 | ABC9: -77 | ABD9: -149 | ABE9: -47 | ABF9: -99 | ABG9: -70 | ABH9: -138 | ABI9: -92 | ABJ9: -49 | ABK9: -188 | ABL9: 8 | ABM9: -97 | ABN9: 33 | ABO9: 56 | ABP9: 40 | ABQ9: -80 | ABR9: -10 | ABS9: -31 | ABT9: -101 | ABU9: -162 | ABV9: -102 | ABW9: -161 | ABX9: -24 | ABY9: 102 | ABZ9: -69 | ACA9: -85 | ACB9: -62 | ACC9: -34 | ACD9: 22 | ACE9: -200 | ACF9: 130 | ACG9: -41 | ACH9: -55 | ACI9: 9 | ACJ9: -124 | ACK9: -65 | ACL9: -178 | ACM9: -166 | ACN9: -168 | ACO9: -12 | ACP9: 35 | ACQ9: -127 | ACR9: -73 | ACS9: -54 | ACT9: -78 | ACU9: 72 | ACV9: -85 | ACW9: -157 | ACX9: 17 | ACY9: -110 | ACZ9: -559 | ADA9: 10 | ADB9: -131 | ADC9: -82 | ADD9: -28 | ADE9: -12 | ADF9: -75 | ADG9: -7 | ADH9: -128 | ADI9: 8 | ADJ9: 44 | ADK9: -39 | ADL9: -162 | ADM9: -120 | ADN9: -176 | ADO9: 52 | ADP9: -124 | ADQ9: -20 | ADR9: 6 | ADS9: -68 | ADT9: -115 | ADU9: -99 | ADV9: -96 | ADW9: 99 | ADX9: -82 | ADY9: -43 | ADZ9: 17 | AEA9: -36 | AEB9: 127 | AEC9: -94 | AED9: -164 | AEE9: 174 | AEF9: -59 | AEG9: -133 | AEH9: -39 | AEI9: -169 | AEJ9: -10 | AEK9: -223 | AEL9: -184 | AEM9: -167 | AEN9: -1 | AEO9: -173 | AEP9: 55 | AEQ9: -14 | AER9: -223 | AES9: -165 | AET9: -69 | AEU9: 119 | AEV9: -86 | AEW9: -162 | AEX9: 61 | AEY9: -93 | AEZ9: -143 | AFA9: -22 | AFB9: -51 | AFC9: 13 | AFD9: 28 | AFE9: -151 | AFF9: 47 | AFG9: -175 | AFH9: 8 | AFI9: -67 | AFJ9: 8 | AFK9: 27 | AFL9: -5 | AFM9: -31 | AFN9: 37 | AFO9: -158 | AFP9: -62 | AFQ9: -105 | AFR9: -4 | AFS9: -188 | AFT9: 34 | AFU9: -148 | AFV9: -93 | AFW9: -317 | AFX9: -67 | AFY9: -90 | AFZ9: -63 | AGA9: -131 | AGB9: -123 | AGC9: -75 | AGD9: -52 | AGE9: -29 | AGF9: -140 | AGG9: -174 | AGH9: -79 | AGI9: -62 | AGJ9: -8 | AGK9: -48 | AGL9: 25 | AGM9: -28 | AGN9: -10 | AGO9: 59 | AGP9: -61 | AGQ9: -77 | AGR9: -9 | AGS9: 82 | AGT9: -160 | AGU9: 13 | AGV9: -31 | AGW9: -111 | AGX9: 48 | AGY9: 68 | AGZ9: -62 | AHA9: -173 | AHB9: -71 | AHC9: -19 | AHD9: -171 | AHE9: -151 | AHF9: -34 | AHG9: -8 | AHH9: 35 | AHI9: -35 | AHJ9: 25 | AHK9: -61 | AHL9: -110 | AHM9: -39 | AHN9: 27 | AHO9: -128 | AHP9: 86 | AHQ9: -106 | AHR9: -21 | AHS9: -42 | AHT9: 45 | AHU9: -59 | AHV9: -117 | AHW9: -200 | AHX9: -32 | AHY9: 6 | AHZ9: -34 | AIA9: -23 | AIB9: -338 | AIC9: -66 | AID9: -221 | AIE9: -37 | AIF9: -113 | AIG9: -62 | AIH9: 23 | AII9: -101 | AIJ9: 60 | AIK9: -23 | AIL9: 45 | AIM9: 20 | AIN9: -107 | AIO9: -153 | AIP9: 122 | AIQ9: -38 | AIR9: 52 | AIS9: 96 | AIT9: -135 | AIU9: -66 | AIV9: 42 | AIW9: -451 | AIX9: 2 | AIY9: -50 | AIZ9: -33 | AJA9: 22 | AJB9: -67 | AJC9: -54 | AJD9: -159 | AJE9: -124 | AJF9: -113 | AJG9: -85 | AJH9: -138 | AJI9: -29 | AJJ9: -22 | AJK9: 19 | AJL9: -184 | AJM9: -117 | AJN9: -128 | AJO9: -93 | AJP9: -15 | AJQ9: -65 | AJR9: -15 | AJS9: -129 | AJT9: -62 | AJU9: -155 | AJV9: -71 | AJW9: 33 | AJX9: -41 | AJY9: 46 | AJZ9: -274 | AKA9: 8 | AKB9: -11 | AKC9: -21 | AKD9: 68 | AKE9: -53 | AKF9: -21 | AKG9: -407 | AKH9: -21 | AKI9: -25 | AKJ9: -51 | AKK9: -79 | AKL9: -54 | AKM9: -106 | AKN9: 34 | AKO9: 22 | AKP9: -80 | AKQ9: -91 | AKR9: -167 | AKS9: -64 | AKT9: -106 | AKU9: 34 | AKV9: -165 | AKW9: 3 | AKX9: 88 | AKY9: 19 | AKZ9: -83 | ALA9: -204 | ALB9: -26 | ALC9: -159 | ALD9: -53 | ALE9: 228 | ALF9: 51 | ALG9: -158 | ALH9: -54 | ALI9: -151 | ALJ9: 0 | ALK9: -10 | ALL9: -141 | ALM9: 7 | ALN9: -92 | ALO9: -115 | ALP9: 30 | ALQ9: -115 | ALR9: -91 | ALS9: -39 | ALT9: -93 | ALU9: 10 | ALV9: -60 | ALW9: 33 | ALX9: -140 | ALY9: -16 | ALZ9: -2 | AMA9: -167 | AMB9: 46 | AMC9: 136 | AMD9: -30 | AME9: 28 | AMF9: -108 | AMG9: -115 | AMH9: -102 | AMI9: 9 | AMJ9: -72
A10: -58 | B10: -180 | C10: -103 | D10: -93 | E10: -167 | F10: -12 | G10: 1 | H10: 46 | I10: -529 | J10: -170 | K10: -256 | L10: -7 | M10: -94 | N10: 162 | O10: -101 | P10: -67 | Q10: -127 | R10: -241 | S10: -249 | T10: -484 | U10: 50 | V10: -300 | W10: 82 | X10: -91 | Y10: -52 | Z10: 15 | AA10: 42 | AB10: -155 | AC10: -111 | AD10: -178 | AE10: -178 | AF10: 242 | AG10: -188 | AH10: -115 | AI10: -84 | AJ10: -105 | AK10: -113 | AL10: 12 | AM10: 60 | AN10: -53 | AO10: -178 | AP10: 215 | AQ10: 4 | AR10: 85 | AS10: -482 | AT10: -93 | AU10: -85 | AV10: 48 | AW10: 5 | AX10: -198 | AY10: -244 | AZ10: -40 | BA10: -14 | BB10: 13 | BC10: 255 | BD10: -121 | BE10: -78 | BF10: -179 | BG10: -357 | BH10: -103 | BI10: 276 | BJ10: 13 | BK10: -217 | BL10: -359 | BM10: 108 | BN10: -96 | BO10: -103 | BP10: 158 | BQ10: -4 | BR10: -22 | BS10: -101 | BT10: -123 | BU10: -161 | BV10: -167 | BW10: 67 | BX10: 235 | BY10: -104 | BZ10: 23 | CA10: -20 | CB10: -9 | CC10: -156 | CD10: 71 | CE10: -90 | CF10: -174 | CG10: -160 | CH10: -119 | CI10: -281 | CJ10: 25 | CK10: -74 | CL10: -139 | CM10: 148 | CN10: -13 | CO10: -125 | CP10: -126 | CQ10: -138 | CR10: -24 | CS10: -276 | CT10: -166 | CU10: 44 | CV10: -327 | CW10: -299 | CX10: 30 | CY10: -53 | CZ10: 10 | DA10: -56 | DB10: -156 | DC10: -199 | DD10: -130 | DE10: 147 | DF10: -94 | DG10: 27 | DH10: -69 | DI10: -229 | DJ10: -221 | DK10: -48 | DL10: -125 | DM10: -197 | DN10: -148 | DO10: 70 | DP10: -116 | DQ10: -108 | DR10: 40 | DS10: -141 | DT10: -33 | DU10: -48 | DV10: -330 | DW10: -172 | DX10: -98 | DY10: 182 | DZ10: -346 | EA10: -119 | EB10: -287 | EC10: -20 | ED10: -138 | EE10: -52 | EF10: -671 | EG10: -157 | EH10: -64 | EI10: 20 | EJ10: -331 | EK10: -95 | EL10: -57 | EM10: -27 | EN10: -10 | EO10: 11 | EP10: -217 | EQ10: -255 | ER10: 96 | ES10: -194 | ET10: 329 | EU10: -95 | EV10: 96 | EW10: -183 | EX10: 258 | EY10: 2 | EZ10: -66 | FA10: 145 | FB10: -97 | FC10: -142 | FD10: -21 | FE10: -185 | FF10: -164 | FG10: -89 | FH10: -48 | FI10: -53 | FJ10: -352 | FK10: -27 | FL10: -2 | FM10: -239 | FN10: -139 | FO10: 64 | FP10: -2 | FQ10: 131 | FR10: -125 | FS10: -286 | FT10: -82 | FU10: -74 | FV10: -359 | FW10: -101 | FX10: -262 | FY10: -6 | FZ10: -85 | GA10: -59 | GB10: -157 | GC10: -463 | GD10: 274 | GE10: 87 | GF10: -147 | GG10: 18 | GH10: -217 | GI10: -309 | GJ10: -8 | GK10: 86 | GL10: -76 | GM10: -118 | GN10: 83 | GO10: 37 | GP10: -19 | GQ10: -120 | GR10: 116 | GS10: -88 | GT10: -49 | GU10: -67 | GV10: 61 | GW10: -57 | GX10: -369 | GY10: -44 | GZ10: -94 | HA10: -150 | HB10: -301 | HC10: -122 | HD10: 63 | HE10: -497 | HF10: -112 | HG10: 56 | HH10: -298 | HI10: -170 | HJ10: -244 | HK10: -221 | HL10: -117 | HM10: -218 | HN10: 57 | HO10: -12 | HP10: 6 | HQ10: 5 | HR10: -43 | HS10: 26 | HT10: -83 | HU10: 257 | HV10: 43 | HW10: -76 | HX10: -98 | HY10: -222 | HZ10: -57 | IA10: -97 | IB10: 56 | IC10: 49 | ID10: -205 | IE10: -246 | IF10: -424 | IG10: -226 | IH10: -160 | II10: -185 | IJ10: 25 | IK10: 110 | IL10: 10 | IM10: -250 | IN10: -32 | IO10: -46 | IP10: -207 | IQ10: -212 | IR10: -219 | IS10: -165 | IT10: -77 | IU10: -28 | IV10: -217 | IW10: -245 | IX10: -272 | IY10: -35 | IZ10: -163 | JA10: -57 | JB10: 206 | JC10: -59 | JD10: -301 | JE10: -35 | JF10: -156 | JG10: -183 | JH10: -12 | JI10: -40 | JJ10: -52 | JK10: -274 | JL10: -96 | JM10: 36 | JN10: -270 | JO10: -309 | JP10: -134 | JQ10: -39 | JR10: -91 | JS10: -518 | JT10: 117 | JU10: 20 | JV10: 48 | JW10: 12 | JX10: -147 | JY10: -264 | JZ10: -122 | KA10: -162 | KB10: -196 | KC10: 35 | KD10: -173 | KE10: -49 | KF10: -192 | KG10: -99 | KH10: -69 | KI10: -582 | KJ10: 25 | KK10: -142 | KL10: -125 | KM10: -83 | KN10: -10 | KO10: -186 | KP10: 15 | KQ10: 66 | KR10: 93 | KS10: -172 | KT10: -158 | KU10: -182 | KV10: -108 | KW10: -42 | KX10: -131 | KY10: -28 | KZ10: -79 | LA10: -147 | LB10: -276 | LC10: 76 | LD10: 1 | LE10: -55 | LF10: -240 | LG10: 46 | LH10: -287 | LI10: -252 | LJ10: -230 | LK10: -66 | LL10: 102 | LM10: 10 | LN10: -116 | LO10: -17 | LP10: -115 | LQ10: 51 | LR10: -197 | LS10: -30 | LT10: -183 | LU10: -89 | LV10: -265 | LW10: -48 | LX10: 42 | LY10: -195 | LZ10: 176 | MA10: -98 | MB10: -143 | MC10: -17 | MD10: -127 | ME10: -191 | MF10: -235 | MG10: -166 | MH10: -83 | MI10: -180 | MJ10: -116 | MK10: -15 | ML10: -28 | MM10: -243 | MN10: -111 | MO10: -6 | MP10: -100 | MQ10: 171 | MR10: 11 | MS10: -163 | MT10: -93 | MU10: -58 | MV10: -212 | MW10: -190 | MX10: -17 | MY10: 87 | MZ10: -3 | NA10: 6 | NB10: -52 | NC10: 257 | ND10: -138 | NE10: -158 | NF10: 156 | NG10: -24 | NH10: 78 | NI10: -27 | NJ10: 55 | NK10: -91 | NL10: -435 | NM10: 26 | NN10: -76 | NO10: -78 | NP10: -164 | NQ10: -785 | NR10: 11 | NS10: -132 | NT10: -7 | NU10: -55 | NV10: 109 | NW10: 224 | NX10: 21 | NY10: -80 | NZ10: -49 | OA10: 24 | OB10: -88 | OC10: -75 | OD10: -276 | OE10: -13 | OF10: -79 | OG10: -328 | OH10: -85 | OI10: 34 | OJ10: -374 | OK10: 123 | OL10: -190 | OM10: -48 | ON10: -150 | OO10: -243 | OP10: -20 | OQ10: -5 | OR10: -152 | OS10: -239 | OT10: -300 | OU10: 9 | OV10: -67 | OW10: -110 | OX10: -367 | OY10: -177 | OZ10: 133 | PA10: -32 | PB10: -226 | PC10: -116 | PD10: -74 | PE10: -130 | PF10: 194 | PG10: -35 | PH10: -164 | PI10: -143 | PJ10: 97 | PK10: -20 | PL10: 144 | PM10: 13 | PN10: -37 | PO10: 38 | PP10: -439 | PQ10: -125 | PR10: -127 | PS10: 75 | PT10: 132 | PU10: -156 | PV10: -140 | PW10: -174 | PX10: -40 | PY10: -245 | PZ10: -97 | QA10: -109 | QB10: -60 | QC10: 24 | QD10: -45 | QE10: -157 | QF10: -418 | QG10: -88 | QH10: 78 | QI10: 18 | QJ10: -69 | QK10: -6 | QL10: -180 | QM10: -236 | QN10: -14 | QO10: -84 | QP10: 65 | QQ10: -236 | QR10: -91 | QS10: -51 | QT10: -17 | QU10: -235 | QV10: 96 | QW10: -39 | QX10: -219 | QY10: -173 | QZ10: -131 | RA10: 76 | RB10: 172 | RC10: -171 | RD10: -146 | RE10: -139 | RF10: -215 | RG10: -124 | RH10: 79 | RI10: -221 | RJ10: -21 | RK10: -83 | RL10: -187 | RM10: 79 | RN10: -137 | RO10: -161 | RP10: -123 | RQ10: -208 | RR10: 230 | RS10: 58 | RT10: 169 | RU10: 363 | RV10: -100 | RW10: 37 | RX10: 6 | RY10: -201 | RZ10: -171 | SA10: -199 | SB10: 25 | SC10: -124 | SD10: 30 | SE10: -89 | SF10: 147 | SG10: -57 | SH10: -23 | SI10: -33 | SJ10: -114 | SK10: -513 | SL10: -72 | SM10: -169 | SN10: -44 | SO10: -32 | SP10: 23 | SQ10: -137 | SR10: 106 | SS10: -41 | ST10: -155 | SU10: -235 | SV10: -60 | SW10: -250 | SX10: -42 | SY10: -209 | SZ10: -227 | TA10: 102 | TB10: -85 | TC10: -111 | TD10: -108 | TE10: -148 | TF10: -56 | TG10: -21 | TH10: -86 | TI10: -48 | TJ10: -207 | TK10: -244 | TL10: -3 | TM10: 104 | TN10: 172 | TO10: -136 | TP10: 238 | TQ10: -249 | TR10: -51 | TS10: 136 | TT10: 18 | TU10: -189 | TV10: -69 | TW10: -113 | TX10: -163 | TY10: -66 | TZ10: -44 | UA10: -37 | UB10: -73 | UC10: 186 | UD10: -41 | UE10: -164 | UF10: -49 | UG10: -87 | UH10: -78 | UI10: -34 | UJ10: -104 | UK10: -40 | UL10: -123 | UM10: -54 | UN10: -91 | UO10: 176 | UP10: 35 | UQ10: -151 | UR10: -237 | US10: -35 | UT10: -108 | UU10: 103 | UV10: 10 | UW10: -37 | UX10: -206 | UY10: 116 | UZ10: -96 | VA10: -108 | VB10: -211 | VC10: 59 | VD10: -233 | VE10: -222 | VF10: -37 | VG10: -13 | VH10: -103 | VI10: 123 | VJ10: -160 | VK10: 4 | VL10: 168 | VM10: -330 | VN10: -231 | VO10: -49 | VP10: 22 | VQ10: -55 | VR10: -171 | VS10: 311 | VT10: -292 | VU10: -90 | VV10: -136 | VW10: -152 | VX10: -85 | VY10: -296 | VZ10: 199 | WA10: -162 | WB10: 77 | WC10: 96 | WD10: -200 | WE10: -750 | WF10: -43 | WG10: -192 | WH10: -90 | WI10: -263 | WJ10: -164 | WK10: -284 | WL10: -122 | WM10: -238 | WN10: -180 | WO10: 1 | WP10: 66 | WQ10: -363 | WR10: -15 | WS10: 41 | WT10: -176 | WU10: -105 | WV10: -101 | WW10: 24 | WX10: -132 | WY10: 44 | WZ10: 188 | XA10: 193 | XB10: -279 | XC10: -180 | XD10: -41 | XE10: -62 | XF10: -113 | XG10: 54 | XH10: -62 | XI10: -34 | XJ10: 12 | XK10: -137 | XL10: -106 | XM10: -51 | XN10: -189 | XO10: -200 | XP10: 83 | XQ10: -214 | XR10: -109 | XS10: -57 | XT10: -151 | XU10: -3 | XV10: 569 | XW10: -144 | XX10: -135 | XY10: 170 | XZ10: -114 | YA10: -309 | YB10: 81 | YC10: -4 | YD10: -170 | YE10: -85 | YF10: -29 | YG10: 184 | YH10: -63 | YI10: 67 | YJ10: -93 | YK10: -73 | YL10: 59 | YM10: 182 | YN10: -65 | YO10: -217 | YP10: -761 | YQ10: 66 | YR10: 57 | YS10: -247 | YT10: -130 | YU10: -282 | YV10: -51 | YW10: -104 | YX10: -180 | YY10: -178 | YZ10: -110 | ZA10: -320 | ZB10: -136 | ZC10: -205 | ZD10: -73 | ZE10: -172 | ZF10: -131 | ZG10: -72 | ZH10: 52 | ZI10: -336 | ZJ10: -94 | ZK10: -200 | ZL10: -250 | ZM10: 29 | ZN10: 15 | ZO10: 19 | ZP10: -224 | ZQ10: -301 | ZR10: -217 | ZS10: 159 | ZT10: -19 | ZU10: -192 | ZV10: 80 | ZW10: 143 | ZX10: -167 | ZY10: -1 | ZZ10: 196 | AAA10: -131 | AAB10: -98 | AAC10: -249 | AAD10: -207 | AAE10: 14 | AAF10: -282 | AAG10: -29 | AAH10: 148 | AAI10: -107 | AAJ10: 191 | AAK10: -92 | AAL10: -141 | AAM10: 14 | AAN10: -92 | AAO10: 76 | AAP10: -94 | AAQ10: 101 | AAR10: -102 | AAS10: 3 | AAT10: -149 | AAU10: -47 | AAV10: -158 | AAW10: -61 | AAX10: -185 | AAY10: -152 | AAZ10: -159 | ABA10: -102 | ABB10: -22 | ABC10: -111 | ABD10: -169 | ABE10: -56 | ABF10: -164 | ABG10: -130 | ABH10: -162 | ABI10: -141 | ABJ10: -48 | ABK10: -388 | ABL10: 42 | ABM10: -157 | ABN10: 32 | ABO10: 77 | ABP10: -37 | ABQ10: -63 | ABR10: -60 | ABS10: -66 | ABT10: -170 | ABU10: -229 | ABV10: -118 | ABW10: -235 | ABX10: 23 | ABY10: 85 | ABZ10: -128 | ACA10: -87 | ACB10: -47 | ACC10: -60 | ACD10: 84 | ACE10: -273 | ACF10: 96 | ACG10: -52 | ACH10: -75 | ACI10: -20 | ACJ10: -162 | ACK10: -95 | ACL10: -158 | ACM10: -229 | ACN10: -278 | ACO10: -58 | ACP10: 62 | ACQ10: -162 | ACR10: -91 | ACS10: -76 | ACT10: -101 | ACU10: 122 | ACV10: -128 | ACW10: -228 | ACX10: 93 | ACY10: -145 | ACZ10: -743 | ADA10: 2 | ADB10: -148 | ADC10: -178 | ADD10: -63 | ADE10: -5 | ADF10: -123 | ADG10: -11 | ADH10: -146 | ADI10: 33 | ADJ10: 111 | ADK10: -41 | ADL10: -214 | ADM10: -148 | ADN10: -292 | ADO10: 45 | ADP10: -155 | ADQ10: -75 | ADR10: 42 | ADS10: -71 | ADT10: -163 | ADU10: -152 | ADV10: -87 | ADW10: 131 | ADX10: -103 | ADY10: -1 | ADZ10: -51 | AEA10: -22 | AEB10: 229 | AEC10: -148 | AED10: -183 | AEE10: 187 | AEF10: -121 | AEG10: -201 | AEH10: -62 | AEI10: -220 | AEJ10: -38 | AEK10: -295 | AEL10: -234 | AEM10: -238 | AEN10: 19 | AEO10: -213 | AEP10: 47 | AEQ10: 37 | AER10: -308 | AES10: -240 | AET10: -139 | AEU10: 157 | AEV10: -149 | AEW10: -262 | AEX10: 1 | AEY10: -89 | AEZ10: -234 | AFA10: -106 | AFB10: -75 | AFC10: -3 | AFD10: 41 | AFE10: -191 | AFF10: 111 | AFG10: -209 | AFH10: 11 | AFI10: -82 | AFJ10: -62 | AFK10: 15 | AFL10: 10 | AFM10: -67 | AFN10: -64 | AFO10: -237 | AFP10: -104 | AFQ10: -118 | AFR10: 65 | AFS10: -236 | AFT10: 24 | AFU10: -308 | AFV10: -132 | AFW10: -369 | AFX10: -83 | AFY10: -170 | AFZ10: -131 | AGA10: -135 | AGB10: -196 | AGC10: -109 | AGD10: -39 | AGE10: -35 | AGF10: -103 | AGG10: -253 | AGH10: -92 | AGI10: -130 | AGJ10: -7 | AGK10: -107 | AGL10: 64 | AGM10: -36 | AGN10: -21 | AGO10: 130 | AGP10: -43 | AGQ10: -104 | AGR10: -23 | AGS10: 180 | AGT10: -213 | AGU10: -56 | AGV10: -55 | AGW10: -207 | AGX10: 120 | AGY10: -55 | AGZ10: -86 | AHA10: -185 | AHB10: -90 | AHC10: -78 | AHD10: -262 | AHE10: -231 | AHF10: -84 | AHG10: 0 | AHH10: 94 | AHI10: -49 | AHJ10: 48 | AHK10: -74 | AHL10: -168 | AHM10: -49 | AHN10: -45 | AHO10: -225 | AHP10: 181 | AHQ10: -200 | AHR10: -73 | AHS10: -47 | AHT10: 146 | AHU10: -73 | AHV10: -161 | AHW10: -276 | AHX10: -49 | AHY10: -50 | AHZ10: -121 | AIA10: -25 | AIB10: -420 | AIC10: -74 | AID10: -278 | AIE10: -38 | AIF10: -191 | AIG10: -75 | AIH10: 44 | AII10: -106 | AIJ10: 89 | AIK10: -24 | AIL10: 95 | AIM10: 62 | AIN10: -119 | AIO10: -192 | AIP10: 186 | AIQ10: -30 | AIR10: 62 | AIS10: 137 | AIT10: -208 | AIU10: -66 | AIV10: 99 | AIW10: -520 | AIX10: 11 | AIY10: -94 | AIZ10: -25 | AJA10: 6 | AJB10: -141 | AJC10: -89 | AJD10: -200 | AJE10: -165 | AJF10: -154 | AJG10: -124 | AJH10: -192 | AJI10: -104 | AJJ10: -44 | AJK10: 10 | AJL10: -229 | AJM10: -155 | AJN10: -180 | AJO10: -127 | AJP10: -45 | AJQ10: -111 | AJR10: -46 | AJS10: -133 | AJT10: -64 | AJU10: -215 | AJV10: -102 | AJW10: 7 | AJX10: -82 | AJY10: 46 | AJZ10: -452 | AKA10: -10 | AKB10: 14 | AKC10: -46 | AKD10: 82 | AKE10: -57 | AKF10: -56 | AKG10: -527 | AKH10: -49 | AKI10: -39 | AKJ10: -66 | AKK10: -122 | AKL10: -59 | AKM10: -111 | AKN10: 21 | AKO10: 53 | AKP10: -166 | AKQ10: -46 | AKR10: -272 | AKS10: -65 | AKT10: -174 | AKU10: 59 | AKV10: -245 | AKW10: -3 | AKX10: 113 | AKY10: 48 | AKZ10: -175 | ALA10: -241 | ALB10: -76 | ALC10: -214 | ALD10: -88 | ALE10: 389 | ALF10: 122 | ALG10: -196 | ALH10: -103 | ALI10: -218 | ALJ10: 57 | ALK10: -27 | ALL10: -347 | ALM10: 18 | ALN10: -73 | ALO10: -161 | ALP10: 78 | ALQ10: -121 | ALR10: -173 | ALS10: -122 | ALT10: -158 | ALU10: -13 | ALV10: -29 | ALW10: 62 | ALX10: -181 | ALY10: -65 | ALZ10: -6 | AMA10: -206 | AMB10: -46 | AMC10: 237 | AMD10: -16 | AME10: 76 | AMF10: -184 | AMG10: -219 | AMH10: -97 | AMI10: 31 | AMJ10: -118
A11: -82 | B11: -153 | C11: -132 | D11: -91 | E11: -184 | F11: 27 | G11: 14 | H11: 37 | I11: -512 | J11: -192 | K11: -326 | L11: 35 | M11: -115 | N11: 207 | O11: -101 | P11: -58 | Q11: -96 | R11: -268 | S11: -298 | T11: -460 | U11: 49 | V11: -351 | W11: 125 | X11: -86 | Y11: 11 | Z11: 57 | AA11: 67 | AB11: -155 | AC11: -129 | AD11: -195 | AE11: -182 | AF11: 240 | AG11: -215 | AH11: -165 | AI11: -58 | AJ11: -131 | AK11: -113 | AL11: 81 | AM11: 74 | AN11: -74 | AO11: -203 | AP11: 270 | AQ11: 72 | AR11: 118 | AS11: -510 | AT11: -134 | AU11: -51 | AV11: 68 | AW11: -8 | AX11: -208 | AY11: -273 | AZ11: -39 | BA11: -22 | BB11: 19 | BC11: 289 | BD11: -155 | BE11: -130 | BF11: -182 | BG11: -394 | BH11: -131 | BI11: 312 | BJ11: 74 | BK11: -229 | BL11: -408 | BM11: 125 | BN11: -151 | BO11: -95 | BP11: 184 | BQ11: 1 | BR11: -22 | BS11: -102 | BT11: -157 | BU11: -181 | BV11: -211 | BW11: 98 | BX11: 381 | BY11: -94 | BZ11: 56 | CA11: 22 | CB11: -9 | CC11: -152 | CD11: 59 | CE11: -101 | CF11: -223 | CG11: -174 | CH11: -126 | CI11: -331 | CJ11: 79 | CK11: -89 | CL11: -151 | CM11: 207 | CN11: -6 | CO11: -151 | CP11: -88 | CQ11: -159 | CR11: -53 | CS11: -315 | CT11: -185 | CU11: 59 | CV11: -371 | CW11: -402 | CX11: 28 | CY11: -22 | CZ11: 19 | DA11: -66 | DB11: -137 | DC11: -244 | DD11: -147 | DE11: 177 | DF11: -79 | DG11: -12 | DH11: -105 | DI11: -237 | DJ11: -251 | DK11: -36 | DL11: -158 | DM11: -214 | DN11: -237 | DO11: 83 | DP11: -134 | DQ11: -148 | DR11: 83 | DS11: -130 | DT11: -45 | DU11: -24 | DV11: -428 | DW11: -169 | DX11: -78 | DY11: 192 | DZ11: -380 | EA11: -175 | EB11: -377 | EC11: -29 | ED11: -176 | EE11: -61 | EF11: -762 | EG11: -160 | EH11: -57 | EI11: 69 | EJ11: -361 | EK11: -169 | EL11: -73 | EM11: -50 | EN11: -65 | EO11: 33 | EP11: -244 | EQ11: -239 | ER11: 220 | ES11: -196 | ET11: 364 | EU11: -105 | EV11: 68 | EW11: -155 | EX11: 279 | EY11: 22 | EZ11: -47 | FA11: 157 | FB11: -97 | FC11: -151 | FD11: 41 | FE11: -213 | FF11: -144 | FG11: -110 | FH11: -83 | FI11: -47 | FJ11: -461 | FK11: -33 | FL11: 30 | FM11: -273 | FN11: -157 | FO11: 46 | FP11: 22 | FQ11: 142 | FR11: -74 | FS11: -349 | FT11: -65 | FU11: -132 | FV11: -408 | FW11: -115 | FX11: -298 | FY11: 15 | FZ11: -67 | GA11: -50 | GB11: -163 | GC11: -472 | GD11: 354 | GE11: 117 | GF11: -205 | GG11: 52 | GH11: -245 | GI11: -350 | GJ11: 12 | GK11: 70 | GL11: -90 | GM11: -117 | GN11: 46 | GO11: 65 | GP11: 3 | GQ11: -185 | GR11: 212 | GS11: -72 | GT11: -53 | GU11: -37 | GV11: 74 | GW11: -26 | GX11: -458 | GY11: -92 | GZ11: -86 | HA11: -145 | HB11: -367 | HC11: -87 | HD11: 51 | HE11: -583 | HF11: -106 | HG11: 7 | HH11: -355 | HI11: -185 | HJ11: -271 | HK11: -250 | HL11: -197 | HM11: -252 | HN11: 65 | HO11: -16 | HP11: 43 | HQ11: 74 | HR11: -70 | HS11: 19 | HT11: -78 | HU11: 411 | HV11: 94 | HW11: -59 | HX11: -99 | HY11: -250 | HZ11: -26 | IA11: -119 | IB11: 39 | IC11: 52 | ID11: -212 | IE11: -281 | IF11: -429 | IG11: -288 | IH11: -210 | II11: -214 | IJ11: 78 | IK11: 123 | IL11: 25 | IM11: -298 | IN11: -52 | IO11: -30 | IP11: -266 | IQ11: -258 | IR11: -216 | IS11: -206 | IT11: -75 | IU11: -10 | IV11: -237 | IW11: -313 | IX11: -306 | IY11: -45 | IZ11: -182 | JA11: -76 | JB11: 166 | JC11: -80 | JD11: -317 | JE11: -22 | JF11: -174 | JG11: -208 | JH11: -7 | JI11: -62 | JJ11: -54 | JK11: -321 | JL11: -114 | JM11: 52 | JN11: -335 | JO11: -359 | JP11: -127 | JQ11: -51 | JR11: -92 | JS11: -577 | JT11: 135 | JU11: 15 | JV11: 88 | JW11: 30 | JX11: -167 | JY11: -291 | JZ11: -141 | KA11: -175 | KB11: -222 | KC11: 84 | KD11: -118 | KE11: -62 | KF11: -253 | KG11: -107 | KH11: -60 | KI11: -716 | KJ11: 9 | KK11: -179 | KL11: -139 | KM11: -77 | KN11: -41 | KO11: -145 | KP11: -2 | KQ11: 120 | KR11: 127 | KS11: -168 | KT11: -179 | KU11: -216 | KV11: -112 | KW11: -62 | KX11: -134 | KY11: 9 | KZ11: -150 | LA11: -169 | LB11: -312 | LC11: 125 | LD11: 5 | LE11: -64 | LF11: -300 | LG11: 44 | LH11: -323 | LI11: -269 | LJ11: -252 | LK11: -85 | LL11: 101 | LM11: 27 | LN11: -164 | LO11: -63 | LP11: -170 | LQ11: 86 | LR11: -236 | LS11: -29 | LT11: -174 | LU11: -108 | LV11: -309 | LW11: -50 | LX11: 100 | LY11: -195 | LZ11: 169 | MA11: -104 | MB11: -169 | MC11: -17 | MD11: -164 | ME11: -250 | MF11: -271 | MG11: -177 | MH11: -18 | MI11: -235 | MJ11: -157 | MK11: -41 | ML11: -83 | MM11: -265 | MN11: -136 | MO11: -34 | MP11: -131 | MQ11: 171 | MR11: 57 | MS11: -188 | MT11: -84 | MU11: -14 | MV11: -249 | MW11: -216 | MX11: -66 | MY11: 65 | MZ11: -24 | NA11: 27 | NB11: -64 | NC11: 357 | ND11: -168 | NE11: -188 | NF11: 135 | NG11: -23 | NH11: 118 | NI11: -32 | NJ11: 53 | NK11: -112 | NL11: -495 | NM11: 10 | NN11: -49 | NO11: -88 | NP11: -189 | NQ11: -912 | NR11: 48 | NS11: -112 | NT11: 46 | NU11: -84 | NV11: 95 | NW11: 263 | NX11: -18 | NY11: -76 | NZ11: -64 | OA11: 29 | OB11: -94 | OC11: -114 | OD11: -322 | OE11: -29 | OF11: -61 | OG11: -360 | OH11: -91 | OI11: 80 | OJ11: -426 | OK11: 129 | OL11: -216 | OM11: -9 | ON11: -145 | OO11: -240 | OP11: -24 | OQ11: -6 | OR11: -151 | OS11: -276 | OT11: -350 | OU11: 5 | OV11: -59 | OW11: -119 | OX11: -419 | OY11: -190 | OZ11: 144 | PA11: -29 | PB11: -263 | PC11: -106 | PD11: -37 | PE11: -138 | PF11: 229 | PG11: -24 | PH11: -172 | PI11: -199 | PJ11: 111 | PK11: -23 | PL11: 131 | PM11: 2 | PN11: -115 | PO11: 19 | PP11: -491 | PQ11: -108 | PR11: -178 | PS11: 66 | PT11: 151 | PU11: -169 | PV11: -152 | PW11: -206 | PX11: -43 | PY11: -261 | PZ11: -74 | QA11: -119 | QB11: -70 | QC11: 8 | QD11: -36 | QE11: -151 | QF11: -483 | QG11: -141 | QH11: 80 | QI11: 37 | QJ11: -61 | QK11: 20 | QL11: -209 | QM11: -260 | QN11: -8 | QO11: -105 | QP11: 76 | QQ11: -247 | QR11: -68 | QS11: -10 | QT11: 1 | QU11: -294 | QV11: 134 | QW11: -82 | QX11: -233 | QY11: -191 | QZ11: -151 | RA11: 148 | RB11: 223 | RC11: -179 | RD11: -150 | RE11: -161 | RF11: -242 | RG11: -180 | RH11: 138 | RI11: -274 | RJ11: -30 | RK11: -100 | RL11: -222 | RM11: 61 | RN11: -165 | RO11: -199 | RP11: -155 | RQ11: -162 | RR11: 285 | RS11: 67 | RT11: 194 | RU11: 442 | RV11: -138 | RW11: -4 | RX11: 4 | RY11: -216 | RZ11: -197 | SA11: -228 | SB11: 30 | SC11: -142 | SD11: 24 | SE11: -96 | SF11: 161 | SG11: -81 | SH11: 6 | SI11: -73 | SJ11: -129 | SK11: -595 | SL11: -52 | SM11: -220 | SN11: -90 | SO11: -42 | SP11: 40 | SQ11: -143 | SR11: 183 | SS11: -67 | ST11: -149 | SU11: -244 | SV11: -62 | SW11: -302 | SX11: -89 | SY11: -258 | SZ11: -273 | TA11: 118 | TB11: -100 | TC11: -94 | TD11: -124 | TE11: -160 | TF11: -72 | TG11: -14 | TH11: -92 | TI11: -47 | TJ11: -242 | TK11: -302 | TL11: -10 | TM11: 121 | TN11: 171 | TO11: -136 | TP11: 233 | TQ11: -272 | TR11: -74 | TS11: 180 | TT11: -17 | TU11: -190 | TV11: -50 | TW11: -155 | TX11: -186 | TY11: -38 | TZ11: -46 | UA11: -35 | UB11: -58 | UC11: 224 | UD11: -36 | UE11: -175 | UF11: -55 | UG11: -175 | UH11: -55 | UI11: -29 | UJ11: -104 | UK11: -38 | UL11: -121 | UM11: -91 | UN11: -120 | UO11: 171 | UP11: 76 | UQ11: -162 | UR11: -233 | US11: -17 | UT11: -128 | UU11: 128 | UV11: 8 | UW11: -104 | UX11: -227 | UY11: 160 | UZ11: -110 | VA11: -140 | VB11: -231 | VC11: 102 | VD11: -300 | VE11: -273 | VF11: -39 | VG11: 2 | VH11: -88 | VI11: 184 | VJ11: -214 | VK11: -2 | VL11: 124 | VM11: -275 | VN11: -234 | VO11: 39 | VP11: 74 | VQ11: -40 | VR11: -205 | VS11: 333 | VT11: -373 | VU11: -143 | VV11: -163 | VW11: -171 | VX11: -134 | VY11: -251 | VZ11: 290 | WA11: -213 | WB11: 114 | WC11: 92 | WD11: -238 | WE11: -845 | WF11: -48 | WG11: -257 | WH11: -133 | WI11: -266 | WJ11: -185 | WK11: -352 | WL11: -130 | WM11: -240 | WN11: -211 | WO11: 6 | WP11: 111 | WQ11: -337 | WR11: -45 | WS11: 99 | WT11: -215 | WU11: -96 | WV11: -126 | WW11: -9 | WX11: -165 | WY11: 42 | WZ11: 242 | XA11: 209 | XB11: -366 | XC11: -213 | XD11: -9 | XE11: -70 | XF11: -131 | XG11: 42 | XH11: -73 | XI11: -23 | XJ11: 8 | XK11: -162 | XL11: -74 | XM11: -54 | XN11: -244 | XO11: -232 | XP11: 77 | XQ11: -259 | XR11: -58 | XS11: -69 | XT11: -206 | XU11: -27 | XV11: 704 | XW11: -139 | XX11: -166 | XY11: 277 | XZ11: -169 | YA11: -369 | YB11: 75 | YC11: 14 | YD11: -206 | YE11: -68 | YF11: -23 | YG11: 226 | YH11: -98 | YI11: 81 | YJ11: -109 | YK11: -99 | YL11: -19 | YM11: 235 | YN11: -41 | YO11: -238 | YP11: -829 | YQ11: 64 | YR11: 5 | YS11: -295 | YT11: -165 | YU11: -321 | YV11: -106 | YW11: -133 | YX11: -185 | YY11: -226 | YZ11: -103 | ZA11: -342 | ZB11: -194 | ZC11: -261 | ZD11: -102 | ZE11: -220 | ZF11: -168 | ZG11: -68 | ZH11: 120 | ZI11: -327 | ZJ11: -72 | ZK11: -225 | ZL11: -313 | ZM11: 99 | ZN11: -12 | ZO11: 38 | ZP11: -263 | ZQ11: -343 | ZR11: -203 | ZS11: 165 | ZT11: -7 | ZU11: -236 | ZV11: 62 | ZW11: 225 | ZX11: -195 | ZY11: 67 | ZZ11: 196 | AAA11: -216 | AAB11: -122 | AAC11: -326 | AAD11: -236 | AAE11: 35 | AAF11: -346 | AAG11: -50 | AAH11: 212 | AAI11: -103 | AAJ11: 272 | AAK11: -115 | AAL11: -170 | AAM11: -25 | AAN11: -134 | AAO11: 81 | AAP11: -110 | AAQ11: 154 | AAR11: -131 | AAS11: 68 | AAT11: -153 | AAU11: -70 | AAV11: -176 | AAW11: -57 | AAX11: -240 | AAY11: -183 | AAZ11: -166 | ABA11: -114 | ABB11: -67 | ABC11: -136 | ABD11: -117 | ABE11: 4 | ABF11: -172 | ABG11: -138 | ABH11: -165 | ABI11: -135 | ABJ11: -112 | ABK11: -494 | ABL11: 68 | ABM11: -196 | ABN11: 22 | ABO11: 93 | ABP11: -119 | ABQ11: -23 | ABR11: -60 | ABS11: -95 | ABT11: -168 | ABU11: -212 | ABV11: -110 | ABW11: -247 | ABX11: 73 | ABY11: 41 | ABZ11: -129 | ACA11: -49 | ACB11: -37 | ACC11: -74 | ACD11: 125 | ACE11: -319 | ACF11: 47 | ACG11: -81 | ACH11: -57 | ACI11: 4 | ACJ11: -181 | ACK11: -134 | ACL11: -209 | ACM11: -277 | ACN11: -320 | ACO11: -57 | ACP11: 82 | ACQ11: -126 | ACR11: -90 | ACS11: -137 | ACT11: -116 | ACU11: 191 | ACV11: -163 | ACW11: -266 | ACX11: 130 | ACY11: -167 | ACZ11: -861 | ADA11: 9 | ADB11: -180 | ADC11: -224 | ADD11: -99 | ADE11: -2 | ADF11: -119 | ADG11: 30 | ADH11: -144 | ADI11: 49 | ADJ11: 105 | ADK11: -17 | ADL11: -268 | ADM11: -125 | ADN11: -253 | ADO11: 72 | ADP11: -159 | ADQ11: -121 | ADR11: 60 | ADS11: 10 | ADT11: -192 | ADU11: -163 | ADV11: -102 | ADW11: 124 | ADX11: -110 | ADY11: -13 | ADZ11: -20 | AEA11: -24 | AEB11: 219 | AEC11: -167 | AED11: -81 | AEE11: 168 | AEF11: -202 | AEG11: -204 | AEH11: -86 | AEI11: -220 | AEJ11: -76 | AEK11: -343 | AEL11: -249 | AEM11: -276 | AEN11: -6 | AEO11: -231 | AEP11: 65 | AEQ11: -8 | AER11: -388 | AES11: -279 | AET11: -168 | AEU11: 201 | AEV11: -209 | AEW11: -307 | AEX11: -45 | AEY11: -83 | AEZ11: -324 | AFA11: -104 | AFB11: -81 | AFC11: 53 | AFD11: 41 | AFE11: -187 | AFF11: 204 | AFG11: -217 | AFH11: -41 | AFI11: -96 | AFJ11: -114 | AFK11: 72 | AFL11: 19 | AFM11: -67 | AFN11: -66 | AFO11: -292 | AFP11: -111 | AFQ11: -127 | AFR11: 98 | AFS11: -255 | AFT11: 17 | AFU11: -432 | AFV11: -160 | AFW11: -403 | AFX11: -55 | AFY11: -145 | AFZ11: -168 | AGA11: -159 | AGB11: -251 | AGC11: -164 | AGD11: -18 | AGE11: -36 | AGF11: -33 | AGG11: -297 | AGH11: -53 | AGI11: -147 | AGJ11: -54 | AGK11: -170 | AGL11: 106 | AGM11: -31 | AGN11: -20 | AGO11: 216 | AGP11: -70 | AGQ11: -138 | AGR11: -65 | AGS11: 168 | AGT11: -245 | AGU11: -114 | AGV11: 1 | AGW11: -243 | AGX11: 247 | AGY11: -74 | AGZ11: -56 | AHA11: -223 | AHB11: -92 | AHC11: -66 | AHD11: -190 | AHE11: -253 | AHF11: -25 | AHG11: 17 | AHH11: 96 | AHI11: -100 | AHJ11: 18 | AHK11: -98 | AHL11: -193 | AHM11: -69 | AHN11: -111 | AHO11: -267 | AHP11: 144 | AHQ11: -267 | AHR11: -59 | AHS11: -51 | AHT11: 128 | AHU11: -21 | AHV11: -177 | AHW11: -284 | AHX11: -52 | AHY11: -70 | AHZ11: -181 | AIA11: -58 | AIB11: -507 | AIC11: -74 | AID11: -313 | AIE11: 33 | AIF11: -195 | AIG11: -100 | AIH11: 78 | AII11: -108 | AIJ11: 139 | AIK11: -40 | AIL11: 109 | AIM11: 78 | AIN11: -168 | AIO11: -247 | AIP11: 243 | AIQ11: -24 | AIR11: 100 | AIS11: 163 | AIT11: -230 | AIU11: -55 | AIV11: 116 | AIW11: -544 | AIX11: 39 | AIY11: -136 | AIZ11: 46 | AJA11: -6 | AJB11: -133 | AJC11: -81 | AJD11: -228 | AJE11: -214 | AJF11: -177 | AJG11: -121 | AJH11: -222 | AJI11: -102 | AJJ11: -78 | AJK11: 11 | AJL11: -226 | AJM11: -198 | AJN11: -218 | AJO11: -88 | AJP11: -26 | AJQ11: -160 | AJR11: -70 | AJS11: -130 | AJT11: -8 | AJU11: -261 | AJV11: -136 | AJW11: -3 | AJX11: -169 | AJY11: 87 | AJZ11: -553 | AKA11: -17 | AKB11: 19 | AKC11: -53 | AKD11: 116 | AKE11: -68 | AKF11: -38 | AKG11: -486 | AKH11: -54 | AKI11: -66 | AKJ11: -33 | AKK11: -124 | AKL11: -58 | AKM11: -139 | AKN11: 23 | AKO11: 79 | AKP11: -176 | AKQ11: -79 | AKR11: -353 | AKS11: -95 | AKT11: -227 | AKU11: 32 | AKV11: -297 | AKW11: -12 | AKX11: 130 | AKY11: 22 | AKZ11: -227 | ALA11: -260 | ALB11: -127 | ALC11: -250 | ALD11: -85 | ALE11: 392 | ALF11: 59 | ALG11: -205 | ALH11: -111 | ALI11: -259 | ALJ11: 61 | ALK11: -28 | ALL11: -398 | ALM11: -7 | ALN11: -121 | ALO11: -149 | ALP11: 121 | ALQ11: -46 | ALR11: -144 | ALS11: -129 | ALT11: -213 | ALU11: -22 | ALV11: 10 | ALW11: 67 | ALX11: -147 | ALY11: -126 | ALZ11: -2 | AMA11: -257 | AMB11: -93 | AMC11: 296 | AMD11: 8 | AME11: 55 | AMF11: -191 | AMG11: -311 | AMH11: -42 | AMI11: 71 | AMJ11: -84
A12: -97 | B12: -146 | C12: -112 | D12: -120 | E12: -193 | F12: 9 | G12: 37 | H12: 84 | I12: -517 | J12: -203 | K12: -322 | L12: 44 | M12: -76 | N12: 236 | O12: -56 | P12: -74 | Q12: -134 | R12: -254 | S12: -301 | T12: -479 | U12: 27 | V12: -339 | W12: 99 | X12: -78 | Y12: 40 | Z12: 76 | AA12: 55 | AB12: -133 | AC12: -93 | AD12: -194 | AE12: -202 | AF12: 286 | AG12: -199 | AH12: -129 | AI12: -79 | AJ12: -99 | AK12: -138 | AL12: 101 | AM12: 71 | AN12: -61 | AO12: -177 | AP12: 248 | AQ12: 87 | AR12: 95 | AS12: -492 | AT12: -85 | AU12: -39 | AV12: 47 | AW12: -18 | AX12: -152 | AY12: -285 | AZ12: -59 | BA12: -28 | BB12: -7 | BC12: 291 | BD12: -157 | BE12: -158 | BF12: -203 | BG12: -316 | BH12: -147 | BI12: 259 | BJ12: 43 | BK12: -207 | BL12: -424 | BM12: 155 | BN12: -149 | BO12: -83 | BP12: 161 | BQ12: -20 | BR12: -53 | BS12: -114 | BT12: -130 | BU12: -189 | BV12: -177 | BW12: 59 | BX12: 311 | BY12: -97 | BZ12: 39 | CA12: -1 | CB12: -39 | CC12: -199 | CD12: 2 | CE12: -72 | CF12: -258 | CG12: -179 | CH12: -135 | CI12: -324 | CJ12: 57 | CK12: -97 | CL12: -177 | CM12: 162 | CN12: -49 | CO12: -140 | CP12: -95 | CQ12: -163 | CR12: -116 | CS12: -330 | CT12: -212 | CU12: 75 | CV12: -373 | CW12: -387 | CX12: 47 | CY12: -40 | CZ12: 7 | DA12: -80 | DB12: -101 | DC12: -227 | DD12: -147 | DE12: 234 | DF12: -25 | DG12: -30 | DH12: -97 | DI12: -247 | DJ12: -250 | DK12: 22 | DL12: -177 | DM12: -250 | DN12: -232 | DO12: 78 | DP12: -131 | DQ12: -135 | DR12: 54 | DS12: -111 | DT12: -57 | DU12: -14 | DV12: -325 | DW12: -180 | DX12: -122 | DY12: 151 | DZ12: -378 | EA12: -131 | EB12: -377 | EC12: -30 | ED12: -139 | EE12: -33 | EF12: -826 | EG12: -134 | EH12: -35 | EI12: 31 | EJ12: -380 | EK12: -65 | EL12: -41 | EM12: -52 | EN12: -62 | EO12: 19 | EP12: -263 | EQ12: -241 | ER12: 185 | ES12: -149 | ET12: 465 | EU12: -113 | EV12: 38 | EW12: -159 | EX12: 379 | EY12: 58 | EZ12: -66 | FA12: 253 | FB12: -128 | FC12: -175 | FD12: 65 | FE12: -170 | FF12: -166 | FG12: -125 | FH12: -116 | FI12: -53 | FJ12: -417 | FK12: -27 | FL12: 3 | FM12: -275 | FN12: -150 | FO12: 58 | FP12: 7 | FQ12: 160 | FR12: -65 | FS12: -309 | FT12: -78 | FU12: -96 | FV12: -381 | FW12: -139 | FX12: -311 | FY12: -48 | FZ12: -18 | GA12: -15 | GB12: -128 | GC12: -489 | GD12: 346 | GE12: 72 | GF12: -188 | GG12: 17 | GH12: -274 | GI12: -346 | GJ12: -2 | GK12: 80 | GL12: -110 | GM12: -103 | GN12: 42 | GO12: 8 | GP12: -28 | GQ12: -186 | GR12: 173 | GS12: -120 | GT12: -49 | GU12: -18 | GV12: 61 | GW12: 9 | GX12: -452 | GY12: -88 | GZ12: -65 | HA12: -142 | HB12: -227 | HC12: -104 | HD12: 63 | HE12: -519 | HF12: -114 | HG12: -19 | HH12: -358 | HI12: -194 | HJ12: -278 | HK12: -278 | HL12: -159 | HM12: -248 | HN12: 46 | HO12: -39 | HP12: 59 | HQ12: 87 | HR12: -101 | HS12: 38 | HT12: -77 | HU12: 390 | HV12: 46 | HW12: -60 | HX12: -111 | HY12: -238 | HZ12: -60 | IA12: -123 | IB12: 24 | IC12: 9 | ID12: -216 | IE12: -241 | IF12: -458 | IG12: -242 | IH12: -257 | II12: -157 | IJ12: 35 | IK12: 135 | IL12: 29 | IM12: -283 | IN12: -20 | IO12: -5 | IP12: -268 | IQ12: -242 | IR12: -172 | IS12: -201 | IT12: -60 | IU12: -12 | IV12: -265 | IW12: -283 | IX12: -254 | IY12: -100 | IZ12: -275 | JA12: -34 | JB12: 190 | JC12: -80 | JD12: -316 | JE12: -30 | JF12: -156 | JG12: -193 | JH12: 14 | JI12: -52 | JJ12: -72 | JK12: -336 | JL12: -126 | JM12: 116 | JN12: -316 | JO12: -333 | JP12: -112 | JQ12: -26 | JR12: -81 | JS12: -503 | JT12: 141 | JU12: -3 | JV12: 98 | JW12: 26 | JX12: -174 | JY12: -279 | JZ12: -153 | KA12: -164 | KB12: -165 | KC12: 100 | KD12: -152 | KE12: -52 | KF12: -258 | KG12: -91 | KH12: -46 | KI12: -726 | KJ12: 75 | KK12: -162 | KL12: -139 | KM12: -75 | KN12: -25 | KO12: -90 | KP12: 2 | KQ12: 133 | KR12: 147 | KS12: -146 | KT12: -186 | KU12: -225 | KV12: -108 | KW12: -60 | KX12: -127 | KY12: -17 | KZ12: -160 | LA12: -135 | LB12: -326 | LC12: 60 | LD12: 12 | LE12: -101 | LF12: -289 | LG12: 27 | LH12: -305 | LI12: -252 | LJ12: -277 | LK12: -76 | LL12: 109 | LM12: 11 | LN12: -134 | LO12: -93 | LP12: -151 | LQ12: 40 | LR12: -248 | LS12: -34 | LT12: -141 | LU12: -116 | LV12: -270 | LW12: -86 | LX12: 130 | LY12: -172 | LZ12: 164 | MA12: -54 | MB12: -187 | MC12: -11 | MD12: -140 | ME12: -244 | MF12: -244 | MG12: -166 | MH12: 15 | MI12: -216 | MJ12: -159 | MK12: -16 | ML12: -122 | MM12: -223 | MN12: -116 | MO12: -21 | MP12: -118 | MQ12: 189 | MR12: 36 | MS12: -194 | MT12: -106 | MU12: -16 | MV12: -197 | MW12: -201 | MX12: -66 | MY12: 94 | MZ12: -37 | NA12: 15 | NB12: -52 | NC12: 294 | ND12: -155 | NE12: -185 | NF12: 77 | NG12: -54 | NH12: 80 | NI12: -31 | NJ12: 21 | NK12: -119 | NL12: -462 | NM12: 1 | NN12: -17 | NO12: -76 | NP12: -162 | NQ12: -903 | NR12: 44 | NS12: -117 | NT12: 50 | NU12: -90 | NV12: 52 | NW12: 234 | NX12: -72 | NY12: -58 | NZ12: -45 | OA12: 31 | OB12: -73 | OC12: -164 | OD12: -341 | OE12: -14 | OF12: -32 | OG12: -322 | OH12: -107 | OI12: 59 | OJ12: -443 | OK12: 80 | OL12: -205 | OM12: -27 | ON12: -159 | OO12: -237 | OP12: -14 | OQ12: 32 | OR12: -157 | OS12: -246 | OT12: -370 | OU12: -21 | OV12: -43 | OW12: -124 | OX12: -352 | OY12: -186 | OZ12: 165 | PA12: -53 | PB12: -260 | PC12: -93 | PD12: -30 | PE12: -107 | PF12: 277 | PG12: -60 | PH12: -209 | PI12: -247 | PJ12: 62 | PK12: 12 | PL12: 94 | PM12: 5 | PN12: -169 | PO12: -45 | PP12: -486 | PQ12: -120 | PR12: -170 | PS12: 65 | PT12: 183 | PU12: -128 | PV12: -196 | PW12: -193 | PX12: -33 | PY12: -248 | PZ12: -30 | QA12: -90 | QB12: -102 | QC12: -54 | QD12: -43 | QE12: -152 | QF12: -506 | QG12: -157 | QH12: 60 | QI12: 43 | QJ12: -76 | QK12: -6 | QL12: -197 | QM12: -262 | QN12: -8 | QO12: -121 | QP12: 41 | QQ12: -263 | QR12: -77 | QS12: -29 | QT12: -37 | QU12: -334 | QV12: 106 | QW12: -87 | QX12: -230 | QY12: -153 | QZ12: -139 | RA12: 140 | RB12: 191 | RC12: -163 | RD12: -50 | RE12: -151 | RF12: -221 | RG12: -196 | RH12: 97 | RI12: -270 | RJ12: -18 | RK12: -134 | RL12: -212 | RM12: 79 | RN12: -191 | RO12: -218 | RP12: -118 | RQ12: -143 | RR12: 250 | RS12: 68 | RT12: 169 | RU12: 412 | RV12: -105 | RW12: -16 | RX12: -27 | RY12: -202 | RZ12: -198 | SA12: -223 | SB12: 11 | SC12: -125 | SD12: 25 | SE12: -91 | SF12: 164 | SG12: -49 | SH12: -8 | SI12: -123 | SJ12: -120 | SK12: -561 | SL12: -65 | SM12: -184 | SN12: -81 | SO12: -58 | SP12: -6 | SQ12: -154 | SR12: 226 | SS12: -34 | ST12: -168 | SU12: -225 | SV12: -68 | SW12: -285 | SX12: -80 | SY12: -266 | SZ12: -247 | TA12: 106 | TB12: -130 | TC12: -114 | TD12: -136 | TE12: -170 | TF12: -73 | TG12: -62 | TH12: -106 | TI12: -80 | TJ12: -177 | TK12: -294 | TL12: -30 | TM12: 130 | TN12: 154 | TO12: -157 | TP12: 148 | TQ12: -277 | TR12: -69 | TS12: 128 | TT12: -43 | TU12: -168 | TV12: -105 | TW12: -131 | TX12: -181 | TY12: -82 | TZ12: -51 | UA12: -46 | UB12: -48 | UC12: 215 | UD12: -60 | UE12: -203 | UF12: -153 | UG12: -211 | UH12: -59 | UI12: -42 | UJ12: -98 | UK12: -44 | UL12: -119 | UM12: -124 | UN12: -132 | UO12: 232 | UP12: 60 | UQ12: -160 | UR12: -179 | US12: -5 | UT12: -38 | UU12: 91 | UV12: 1 | UW12: -67 | UX12: -208 | UY12: 135 | UZ12: -92 | VA12: -97 | VB12: -218 | VC12: 44 | VD12: -262 | VE12: -261 | VF12: 2 | VG12: -9 | VH12: -121 | VI12: 177 | VJ12: -179 | VK12: -22 | VL12: 219 | VM12: -213 | VN12: -215 | VO12: 111 | VP12: 68 | VQ12: -33 | VR12: -188 | VS12: 389 | VT12: -376 | VU12: -111 | VV12: -184 | VW12: -141 | VX12: -124 | VY12: -174 | VZ12: 276 | WA12: -232 | WB12: 168 | WC12: 65 | WD12: -266 | WE12: -891 | WF12: -63 | WG12: -220 | WH12: -154 | WI12: -264 | WJ12: -167 | WK12: -345 | WL12: -133 | WM12: -256 | WN12: -179 | WO12: -23 | WP12: 101 | WQ12: -303 | WR12: -63 | WS12: 97 | WT12: -247 | WU12: -112 | WV12: -126 | WW12: -82 | WX12: -140 | WY12: 41 | WZ12: 249 | XA12: 195 | XB12: -405 | XC12: -208 | XD12: -14 | XE12: -113 | XF12: -147 | XG12: 40 | XH12: -48 | XI12: -49 | XJ12: -36 | XK12: -125 | XL12: -82 | XM12: 14 | XN12: -200 | XO12: -220 | XP12: 33 | XQ12: -244 | XR12: -113 | XS12: -83 | XT12: -224 | XU12: -2 | XV12: 645 | XW12: -141 | XX12: -151 | XY12: 327 | XZ12: -123 | YA12: -384 | YB12: 78 | YC12: 23 | YD12: -164 | YE12: -14 | YF12: -65 | YG12: 257 | YH12: -116 | YI12: 95 | YJ12: -101 | YK12: -114 | YL12: -2 | YM12: 230 | YN12: -5 | YO12: -280 | YP12: -802 | YQ12: 64 | YR12: 25 | YS12: -263 | YT12: -180 | YU12: -295 | YV12: -64 | YW12: -77 | YX12: -181 | YY12: -220 | YZ12: -53 | ZA12: -325 | ZB12: -179 | ZC12: -229 | ZD12: -100 | ZE12: -236 | ZF12: -174 | ZG12: -75 | ZH12: 110 | ZI12: -297 | ZJ12: -15 | ZK12: -231 | ZL12: -312 | ZM12: 115 | ZN12: -10 | ZO12: 64 | ZP12: -254 | ZQ12: -331 | ZR12: -222 | ZS12: 122 | ZT12: 40 | ZU12: -289 | ZV12: 39 | ZW12: 205 | ZX12: -197 | ZY12: 108 | ZZ12: 167 | AAA12: -186 | AAB12: -132 | AAC12: -398 | AAD12: -237 | AAE12: 9 | AAF12: -324 | AAG12: -32 | AAH12: 209 | AAI12: -92 | AAJ12: 250 | AAK12: -98 | AAL12: -184 | AAM12: -5 | AAN12: -91 | AAO12: 53 | AAP12: -91 | AAQ12: 124 | AAR12: -149 | AAS12: 33 | AAT12: -133 | AAU12: -16 | AAV12: -202 | AAW12: -84 | AAX12: -222 | AAY12: -193 | AAZ12: -144 | ABA12: -141 | ABB12: -59 | ABC12: -125 | ABD12: -75 | ABE12: 1 | ABF12: -139 | ABG12: -70 | ABH12: -144 | ABI12: -114 | ABJ12: -100 | ABK12: -469 | ABL12: 55 | ABM12: -209 | ABN12: 33 | ABO12: 89 | ABP12: -150 | ABQ12: -63 | ABR12: -59 | ABS12: -117 | ABT12: -194 | ABU12: -238 | ABV12: -65 | ABW12: -229 | ABX12: 70 | ABY12: -20 | ABZ12: -122 | ACA12: -20 | ACB12: -22 | ACC12: -104 | ACD12: 36 | ACE12: -294 | ACF12: 83 | ACG12: -99 | ACH12: -69 | ACI12: -29 | ACJ12: -203 | ACK12: -168 | ACL12: -184 | ACM12: -250 | ACN12: -279 | ACO12: -89 | ACP12: 93 | ACQ12: -119 | ACR12: -62 | ACS12: -67 | ACT12: -118 | ACU12: 192 | ACV12: -136 | ACW12: -270 | ACX12: 96 | ACY12: -165 | ACZ12: -775 | ADA12: -19 | ADB12: -166 | ADC12: -241 | ADD12: -92 | ADE12: 24 | ADF12: -105 | ADG12: 52 | ADH12: -137 | ADI12: 61 | ADJ12: 191 | ADK12: -6 | ADL12: -258 | ADM12: -122 | ADN12: -198 | ADO12: 25 | ADP12: -161 | ADQ12: -90 | ADR12: 56 | ADS12: -17 | ADT12: -210 | ADU12: -145 | ADV12: -96 | ADW12: 111 | ADX12: -110 | ADY12: 7 | ADZ12: -61 | AEA12: -32 | AEB12: 253 | AEC12: -170 | AED12: -42 | AEE12: 114 | AEF12: -147 | AEG12: -195 | AEH12: -85 | AEI12: -219 | AEJ12: -84 | AEK12: -334 | AEL12: -195 | AEM12: -274 | AEN12: -14 | AEO12: -195 | AEP12: 8 | AEQ12: 8 | AER12: -340 | AES12: -265 | AET12: -143 | AEU12: 208 | AEV12: -211 | AEW12: -302 | AEX12: -81 | AEY12: -68 | AEZ12: -263 | AFA12: -75 | AFB12: -72 | AFC12: 93 | AFD12: 59 | AFE12: -176 | AFF12: 163 | AFG12: -205 | AFH12: -45 | AFI12: -78 | AFJ12: -99 | AFK12: 61 | AFL12: 7 | AFM12: -125 | AFN12: -60 | AFO12: -284 | AFP12: -127 | AFQ12: -87 | AFR12: 129 | AFS12: -253 | AFT12: 46 | AFU12: -487 | AFV12: -138 | AFW12: -317 | AFX12: -60 | AFY12: -192 | AFZ12: -144 | AGA12: -144 | AGB12: -251 | AGC12: -191 | AGD12: 15 | AGE12: -52 | AGF12: -57 | AGG12: -285 | AGH12: -41 | AGI12: -131 | AGJ12: -9 | AGK12: -152 | AGL12: 60 | AGM12: -30 | AGN12: -15 | AGO12: 213 | AGP12: -55 | AGQ12: -137 | AGR12: -102 | AGS12: 155 | AGT12: -238 | AGU12: -72 | AGV12: -24 | AGW12: -258 | AGX12: 276 | AGY12: -80 | AGZ12: -58 | AHA12: -196 | AHB12: -89 | AHC12: -68 | AHD12: -207 | AHE12: -227 | AHF12: -8 | AHG12: 16 | AHH12: 115 | AHI12: -133 | AHJ12: -40 | AHK12: -107 | AHL12: -157 | AHM12: -65 | AHN12: -158 | AHO12: -300 | AHP12: 78 | AHQ12: -215 | AHR12: -78 | AHS12: -81 | AHT12: 141 | AHU12: -21 | AHV12: -136 | AHW12: -202 | AHX12: -113 | AHY12: -86 | AHZ12: -161 | AIA12: -37 | AIB12: -404 | AIC12: -77 | AID12: -319 | AIE12: -30 | AIF12: -242 | AIG12: -93 | AIH12: 67 | AII12: -124 | AIJ12: 133 | AIK12: -46 | AIL12: 91 | AIM12: 107 | AIN12: -155 | AIO12: -258 | AIP12: 217 | AIQ12: -23 | AIR12: 70 | AIS12: 113 | AIT12: -234 | AIU12: -42 | AIV12: 115 | AIW12: -381 | AIX12: 41 | AIY12: -156 | AIZ12: 46 | AJA12: -18 | AJB12: -126 | AJC12: -60 | AJD12: -234 | AJE12: -191 | AJF12: -135 | AJG12: -105 | AJH12: -209 | AJI12: -77 | AJJ12: -16 | AJK12: 24 | AJL12: -211 | AJM12: -213 | AJN12: -186 | AJO12: -90 | AJP12: -13 | AJQ12: -180 | AJR12: -48 | AJS12: -130 | AJT12: -22 | AJU12: -252 | AJV12: -137 | AJW12: -38 | AJX12: -127 | AJY12: 49 | AJZ12: -585 | AKA12: 6 | AKB12: 6 | AKC12: -44 | AKD12: 103 | AKE12: -85 | AKF12: -55 | AKG12: -389 | AKH12: -122 | AKI12: -76 | AKJ12: -44 | AKK12: -122 | AKL12: -29 | AKM12: -128 | AKN12: 34 | AKO12: 83 | AKP12: -201 | AKQ12: -50 | AKR12: -375 | AKS12: -144 | AKT12: -228 | AKU12: 42 | AKV12: -326 | AKW12: 2 | AKX12: 148 | AKY12: 51 | AKZ12: -238 | ALA12: -212 | ALB12: -140 | ALC12: -232 | ALD12: -93 | ALE12: 374 | ALF12: 10 | ALG12: -209 | ALH12: -131 | ALI12: -225 | ALJ12: 36 | ALK12: 7 | ALL12: -445 | ALM12: -53 | ALN12: -80 | ALO12: -168 | ALP12: 93 | ALQ12: -51 | ALR12: -140 | ALS12: -209 | ALT12: -160 | ALU12: 5 | ALV12: 1 | ALW12: 91 | ALX12: -168 | ALY12: -96 | ALZ12: -43 | AMA12: -262 | AMB12: -104 | AMC12: 283 | AMD12: -8 | AME12: 32 | AMF12: -185 | AMG12: -320 | AMH12: -26 | AMI12: 56 | AMJ12: -92
